Workbook

Sheet ACCUEILPRO
A1: Accueil
F7: =ACCUEIL!F7 -> 2022-10-02

Sheet ACCUEILPREM
A1: Accueil
F7: =ACCUEIL!F7 -> 2022-10-02

Sheet ACCUEILGP
A1: Accueil
F7: =ACCUEIL!F7 -> 2022-10-02

Sheet ACCUEIL
F7: 2022-10-02

Sheet Accueilagence
A1: Accueil
E7: =ACCUEIL!F7 -> 2022-10-02

Sheet Accueilsecteur
A1: Accueil
E7: =ACCUEIL!F7 -> 2022-10-02

Sheet AccueilDircom
A1: Accueil
E7: =ACCUEIL!F7 -> 2022-10-02

Sheet DC_FICHE
A1: Accueil
A2: BAROMETRE BDD
A4: UNITE: | B4: DIRECTION REGIONALE | E4: ETP perf : | F4: =VLOOKUP(A5,'RECAP DIRCOM'!$G$6:$I$12,3,FALSE) -> 219.73
A5: =VLOOKUP(B5,LISTES!$M$6:$N$12,2,FALSE) -> 262 | B5: BAS-RHIN
C6: Coefficient du critére | E6: Résultats | I6: Ecart au 1ier | M6: Evolution | O6: Rang
E7: du 1ier | G7: DIRECTION | I7: Du mois | K7: Au 31/12/2019
A9: RANG au CLASSEMENT GENERAL | K9: =VLOOKUP($A$5,#REF!,168,FALSE) ->  | M9: =+K9-O9 ->  | O9: =VLOOKUP($A$5,'RECAP DIRCOM'!$G$6:$CY$312,168,FALSE) -> 
A11: CRITERE CLIENTS | C11: 15% | O11: =VLOOKUP($A$5,'RECAP DIRCOM'!$G$6:$CY$312,23,FALSE) -> 46.065626
B12: PNB Evolution nette Clients BP | C12: 4% | E12: ='RECAP DIRCOM'!#REF! ->  | G12: =VLOOKUP($A$5,'RECAP DIRCOM'!$G$6:$CY$312,6,FALSE) -> 0.8 | I12: =VLOOKUP($A$5,'RECAP DIRCOM'!$G$6:$CY$312,7,FALSE) -> 500% | K12: =VLOOKUP($A$5,#REF!,7,FALSE) ->  | M12: =+K12-I12 ->  | O12: =VLOOKUP($A$5,'RECAP DIRCOM'!$G$6:$CY$312,8,FALSE) -> 0.6171998828
B13: PNB Evolution nette Clients PREMIUM | C13: 5% | E13: ='RECAP DIRCOM'!#REF! ->  | G13: =VLOOKUP($A$5,'RECAP DIRCOM'!$G$6:$CY$312,10,FALSE) -> 4.0 | I13: =VLOOKUP($A$5,'RECAP DIRCOM'!$G$6:$CY$312,11,FALSE) -> 43% | K13: =VLOOKUP($A$5,#REF!,11,FALSE) ->  | M13: =+K13-I13 ->  | O13: =VLOOKUP($A$5,'RECAP DIRCOM'!$G$6:$CY$312,12,FALSE) -> 0.4310158997
B14: PNB Evolution nette Clients Jeunes Equipés | C14: 3% | E14: ='RECAP DIRCOM'!#REF! ->  | G14: =VLOOKUP($A$5,'RECAP DIRCOM'!$G$6:$CY$312,14,FALSE) -> 0.0 | I14: =VLOOKUP($A$5,'RECAP DIRCOM'!$G$6:$CY$312,15,FALSE) -> 0% | K14: =VLOOKUP($A$5,#REF!,15,FALSE) ->  | M14: =+K14-I14 ->  | O14: =VLOOKUP($A$5,'RECAP DIRCOM'!$G$6:$CY$312,16,FALSE) -> 0
B15: PNB Evolution nette Clients Pro Actifs Equipés | C15: 3% | E15: ='RECAP DIRCOM'!W4 -> 0.0 | G15: =VLOOKUP($A$5,'RECAP DIRCOM'!$G$6:$CY$312,18,FALSE) -> 3432.5 | I15: =VLOOKUP($A$5,'RECAP DIRCOM'!$G$6:$CY$312,19,FALSE) -> 1562% | K15: =VLOOKUP($A$5,#REF!,19,FALSE) ->  | M15: =+K15-I15 ->  | O15: =VLOOKUP($A$5,'RECAP DIRCOM'!$G$6:$CY$312,20,FALSE) -> 0.3261864642
A17: CRITERE BANCARISATION | C17: 15% | O17: =VLOOKUP($A$5,'RECAP DIRCOM'!$G$6:$CY$312,48,FALSE) -> 40517.44488
B18: PNB Ventes nettes forfaits | C18: 4% | E18: ='RECAP DIRCOM'!X4 -> 23.2 | G18: =VLOOKUP($A$5,'RECAP DIRCOM'!$G$6:$CY$312,31,FALSE) -> 0.0 | I18: =VLOOKUP($A$5,'RECAP DIRCOM'!$G$6:$CY$312,32,FALSE) -> 0% | K18: =VLOOKUP($A$5,#REF!,32,FALSE) ->  | M18: =+K18-I18 ->  | O18: =VLOOKUP($A$5,'RECAP DIRCOM'!$G$6:$CY$312,33,FALSE) -> 66599.60793
B19: PNB Ventes nettes IZICARTES Débit Différé | C19: 4% | E19: ='RECAP DIRCOM'!AB4 -> 58.2 | G19: =VLOOKUP($A$5,'RECAP DIRCOM'!$G$6:$CY$312,35,FALSE) -> 0.0 | I19: =VLOOKUP($A$5,'RECAP DIRCOM'!$G$6:$CY$312,36,FALSE) -> 100% | K19: =VLOOKUP($A$5,#REF!,36,FALSE) ->  | M19: =+K19-I19 ->  | O19: =VLOOKUP($A$5,'RECAP DIRCOM'!$G$6:$CY$312,37,FALSE) -> 9956
B20: PNB Ventes nettes cartes HDG Débit Différé | C20: 4% | E20: ='RECAP DIRCOM'!#REF! ->  | G20: =VLOOKUP($A$5,'RECAP DIRCOM'!$G$6:$CY$312,39,FALSE) -> 0.2 | I20: =VLOOKUP($A$5,'RECAP DIRCOM'!$G$6:$CY$312,40,FALSE) -> 300% | K20: =VLOOKUP($A$5,#REF!,40,FALSE) ->  | M20: =+K20-I20 ->  | O20: =VLOOKUP($A$5,'RECAP DIRCOM'!$G$6:$CY$312,41,FALSE) -> 0.0973507999
B21: PNB Ventes nettes Forfaits Pro, Carte pro | C21: 3% | E21: ='RECAP DIRCOM'!#REF! ->  | G21: =VLOOKUP($A$5,'RECAP DIRCOM'!$G$6:$CY$312,43,FALSE) -> 1.0 | I21: =VLOOKUP($A$5,'RECAP DIRCOM'!$G$6:$CY$312,44,FALSE) -> 0% | K21: =VLOOKUP($A$5,#REF!,44,FALSE) ->  | M21: =+K21-I21 ->  | O21: =VLOOKUP($A$5,'RECAP DIRCOM'!$G$6:$CY$312,45,FALSE) -> 0
A23: CRITERE EPARGNE | C23: 10% | O23: =VLOOKUP($A$5,'RECAP DIRCOM'!$G$6:$CY$312,69,FALSE) -> 0.4067415026
B24: PNB Epargne Liquide | C24: 3% | E24: ='RECAP DIRCOM'!AM4 -> 303.1 | G24: =VLOOKUP($A$5,'RECAP DIRCOM'!$G$6:$CY$312,56,FALSE) -> 3579.0 | I24: =VLOOKUP($A$5,'RECAP DIRCOM'!$G$6:$CY$312,57,FALSE) -> 1629% | K24: =VLOOKUP($A$5,#REF!,57,FALSE) ->  | M24: =+K24-I24 ->  | O24: =VLOOKUP($A$5,'RECAP DIRCOM'!$G$6:$CY$312,58,FALSE) -> 0.4137897884
B25: PNB CA UC + arbitrage | C25: 4% | E25: ='RECAP DIRCOM'!AQ4 -> 59.9 | G25: =VLOOKUP($A$5,'RECAP DIRCOM'!$G$6:$CY$312,60,FALSE) -> 0.4 | I25: =VLOOKUP($A$5,'RECAP DIRCOM'!$G$6:$CY$312,61,FALSE) -> 37% | K25: =VLOOKUP($A$5,#REF!,61,FALSE) ->  | M25: =+K25-I25 ->  | O25: =VLOOKUP($A$5,'RECAP DIRCOM'!$G$6:$CY$312,62,FALSE) -> 6
B26: PNB Excédent assurance vie | C26: 3% | E26: ='RECAP DIRCOM'!#REF! ->  | G26: =VLOOKUP($A$5,'RECAP DIRCOM'!$G$6:$CY$312,64,FALSE) -> 0.0 | I26: =VLOOKUP($A$5,'RECAP DIRCOM'!$G$6:$CY$312,65,FALSE) -> 0% | K26: =VLOOKUP($A$5,#REF!,65,FALSE) ->  | M26: =+K26-I26 ->  | O26: =VLOOKUP($A$5,'RECAP DIRCOM'!$G$6:$CY$312,66,FALSE) -> 0
A28: CRITERE CREDITS | C28: 15% | O28: =VLOOKUP($A$5,'RECAP DIRCOM'!$G$6:$CY$312,102,FALSE) -> 
B29: PNB crédit conso | C29: 4% | E29: ='RECAP DIRCOM'!BB4 -> 373.1 | G29: =VLOOKUP($A$5,'RECAP DIRCOM'!$G$6:$CY$312,77,FALSE) -> 5.0 | I29: =VLOOKUP($A$5,'RECAP DIRCOM'!$G$6:$CY$312,78,FALSE) -> 0% | K29: =VLOOKUP($A$5,#REF!,78,FALSE) ->  | M29: =+K29-I29 ->  | O29: =VLOOKUP($A$5,'RECAP DIRCOM'!$G$6:$CY$312,79,FALSE) -> 0
B30: PNB ADE crédit conso | C30: 1% | E30: ='RECAP DIRCOM'!#REF! ->  | G30: =VLOOKUP($A$5,'RECAP DIRCOM'!$G$6:$CY$312,81,FALSE) -> 0.0 | I30: =VLOOKUP($A$5,'RECAP DIRCOM'!$G$6:$CY$312,82,FALSE) -> 0% | K30: =VLOOKUP($A$5,#REF!,82,FALSE) ->  | O30: =VLOOKUP($A$5,'RECAP DIRCOM'!$G$6:$CY$312,83,FALSE) -> 0
B31: PNB crédit immo | C31: 4% | E31: ='RECAP DIRCOM'!BF4 -> 49.6 | G31: =VLOOKUP($A$5,'RECAP DIRCOM'!$G$6:$CY$312,85,FALSE) -> 0.0 | I31: =VLOOKUP($A$5,'RECAP DIRCOM'!$G$6:$CY$312,86,FALSE) -> 0% | K31: =VLOOKUP($A$5,#REF!,86,FALSE) ->  | O31: =VLOOKUP($A$5,'RECAP DIRCOM'!$G$6:$CY$312,87,FALSE) -> 0
B32: PNB ADE crédit immo | C32: 2% | E32: ='RECAP DIRCOM'!#REF! ->  | G32: =VLOOKUP($A$5,'RECAP DIRCOM'!$G$6:$CY$312,89,FALSE) -> 0.0 | I32: =VLOOKUP($A$5,'RECAP DIRCOM'!$G$6:$CY$312,90,FALSE) -> 0% | K32: =VLOOKUP($A$5,#REF!,90,FALSE) ->  | O32: =VLOOKUP($A$5,'RECAP DIRCOM'!$G$6:$CY$312,91,FALSE) -> 0
B33: PNB SACCEF | C33: 2% | E33: ='RECAP DIRCOM'!#REF! ->  | G33: =VLOOKUP($A$5,'RECAP DIRCOM'!$G$6:$CY$312,93,FALSE) -> 0.0 | I33: =VLOOKUP($A$5,'RECAP DIRCOM'!$G$6:$CY$312,94,FALSE) -> 28% | K33: =VLOOKUP($A$5,#REF!,94,FALSE) ->  | O33: =VLOOKUP($A$5,'RECAP DIRCOM'!$G$6:$CY$312,95,FALSE) -> 0.246886954
B34: PNB Crédit MLT + Crédit Bail | C34: 2% | E34: ='RECAP DIRCOM'!BJ4 -> 27.8 | G34: =VLOOKUP($A$5,'RECAP DIRCOM'!$G$6:$CY$312,97,FALSE) -> 0.0 | I34: =VLOOKUP($A$5,'RECAP DIRCOM'!$G$6:$CY$312,98,FALSE) ->  | K34: =VLOOKUP($A$5,#REF!,98,FALSE) ->  | O34: =VLOOKUP($A$5,'RECAP DIRCOM'!$G$6:$CY$312,99,FALSE) -> 
A36: CRITERE IARD PREVOYANCE | C36: 15% | O36: =VLOOKUP($A$5,'RECAP DIRCOM'!$G$6:$CY$312,119,FALSE) -> 
B37: PNB Ventes nettes IARD | C37: 9% | E37: ='RECAP DIRCOM'!BU4 -> 127.8 | G37: =VLOOKUP($A$5,'RECAP DIRCOM'!$G$6:$CY$312,110,FALSE) ->  | I37: =VLOOKUP($A$5,'RECAP DIRCOM'!$G$6:$CY$312,111,FALSE) ->  | K37: =VLOOKUP($A$5,#REF!,111,FALSE) ->  | M37: =+K37-I37 ->  | O37: =VLOOKUP($A$5,'RECAP DIRCOM'!$G$6:$CY$312,112,FALSE) -> 
B38: PNB Ventes nettes Prévoyance | C38: 6% | E38: ='RECAP DIRCOM'!BY4 -> 38.2 | G38: =VLOOKUP($A$5,'RECAP DIRCOM'!$G$6:$CY$312,114,FALSE) ->  | I38: =VLOOKUP($A$5,'RECAP DIRCOM'!$G$6:$CY$312,115,FALSE) ->  | K38: =VLOOKUP($A$5,#REF!,115,FALSE) ->  | M38: =+K38-I38 ->  | O38: =VLOOKUP($A$5,'RECAP DIRCOM'!$G$6:$CY$312,116,FALSE) -> 
A40: CRITERE ACCELERATEURS PNB | C40: 15% | O40: =VLOOKUP($A$5,'RECAP DIRCOM'!$G$6:$CY$312,144,FALSE) -> 
B41: PNB Ventes brutes SED Finalisées | C41: 6% | E41: ='RECAP DIRCOM'!#REF! ->  | G41: =VLOOKUP($A$5,'RECAP DIRCOM'!$G$6:$CY$312,127,FALSE) ->  | I41: =VLOOKUP($A$5,'RECAP DIRCOM'!$G$6:$CY$312,128,FALSE) ->  | K41: =VLOOKUP($A$5,#REF!,128,FALSE) ->  | M41: =+K41-I41 ->  | O41: =VLOOKUP($A$5,'RECAP DIRCOM'!$G$6:$CY$312,129,FALSE) -> 
B42: PNB clients équipés E documents | C42: 3% | E42: ='RECAP DIRCOM'!#REF! ->  | G42: =VLOOKUP($A$5,'RECAP DIRCOM'!$G$6:$CY$312,131,FALSE) ->  | I42: =VLOOKUP($A$5,'RECAP DIRCOM'!$G$6:$CY$312,132,FALSE) ->  | K42: =VLOOKUP($A$5,#REF!,132,FALSE) ->  | M42: =+K42-I42 ->  | O42: =VLOOKUP($A$5,'RECAP DIRCOM'!$G$6:$CY$312,133,FALSE) -> 
B43: Economie opt'in | C43: 3% | E43: ='RECAP DIRCOM'!#REF! ->  | G43: =VLOOKUP($A$5,'RECAP DIRCOM'!$G$6:$CY$312,135,FALSE) ->  | I43: =VLOOKUP($A$5,'RECAP DIRCOM'!$G$6:$CY$312,136,FALSE) ->  | K43: =VLOOKUP($A$5,#REF!,136,FALSE) ->  | M43: =+K43-I43 ->  | O43: =VLOOKUP($A$5,'RECAP DIRCOM'!$G$6:$CY$312,137,FALSE) -> 
B44: Remises commerciales | C44: 3% | E44: ='RECAP DIRCOM'!#REF! ->  | G44: =VLOOKUP($A$5,'RECAP DIRCOM'!$G$6:$CY$312,139,FALSE) ->  | I44: =VLOOKUP($A$5,'RECAP DIRCOM'!$G$6:$CY$312,140,FALSE) ->  | K44: =VLOOKUP($A$5,#REF!,140,FALSE) ->  | M44: =+K44-I44 ->  | O44: =VLOOKUP($A$5,'RECAP DIRCOM'!$G$6:$CY$312,141,FALSE) -> 
A46: CRITERE Qualité-Satisfaction Clients | C46: 15% | O46: =VLOOKUP($A$5,'RECAP DIRCOM'!$G$6:$CY$312,159,FALSE) -> 
B47: Objectifs NPS* | C47: 8% | E47: ='RECAP DIRCOM'!K4 -> 23 | G47: =VLOOKUP($A$5,'RECAP DIRCOM'!$G$6:$CY$312,151,FALSE) ->  | I47: =VLOOKUP($A$5,'RECAP DIRCOM'!$G$6:$CY$312,152,FALSE) ->  | K47: =VLOOKUP($A$5,#REF!,152,FALSE) ->  | M47: =+K47-I47 ->  | O47: =VLOOKUP($A$5,'RECAP DIRCOM'!$G$6:$CY$312,153,FALSE) -> 
B48: Enquête Qualité Haute Définition | C48: 7% | E48: ='RECAP DIRCOM'!N4 -> 69% | G48: =VLOOKUP($A$5,'RECAP DIRCOM'!$G$6:$CY$312,154,FALSE) ->  | I48: =VLOOKUP($A$5,'RECAP DIRCOM'!$G$6:$CY$312,155,FALSE) ->  | K48: =VLOOKUP($A$5,#REF!,155,FALSE) ->  | M48: =+K48-I48 ->  | O48: =VLOOKUP($A$5,'RECAP DIRCOM'!$G$6:$CY$312,156,FALSE) -> 

Sheet DC_TOTAL
B1: Accueil | D1: BAROMETRE BDD - DIRECTIONS REGIONALES
D2: TOTAL GENERAL
D3: =ACCUEIL!F7 -> 2022-10-02
D7: TOTAL GENERAL | G7: Total Satisfaction Clients | J7: Total Bancarisation | M7: Total Epargne | P7: Total IARD Prévoyance | S7: Total Crédits
E8: coef | F8: =+I8+L8+O8+R8+U8 -> 100% | H8: coef | I8: =DC_SATISFACTION!L8 -> 20% | K8: coef | L8: =DC_BANCA!N8 -> 20% | N8: coef | O8: =DC_EPARGNE!N8 -> 20% | Q8: coef | R8: =DC_IARD!N8 -> 20% | T8: coef | U8: =DC_CREDIT!R8 -> 20%
A9: eds | B9: Direction | C9: ="ETP perf "&DATEMAJ!$C$28 -> ETP perf 02-oct | D9: Moyenne ecart au 1er | E9: % Ecart au 1er | F9: Rang CEGEE | G9: Moyenne ecart au 1er | H9: % Ecart au 1er | I9: Rang CEGEE | J9: Moyenne ecart au 1er | K9: % Ecart au 1er | L9: Rang CEGEE | M9: Moyenne ecart au 1er | N9: % Ecart au 1er | O9: Rang CEGEE | P9: Moyenne ecart au 1er | Q9: % Ecart au 1er | R9: Rang CEGEE | S9: Moyenne ecart au 1er | T9: % Ecart au 1er | U9: Rang CEGEE
A10: 50 | B10: Marne-Ardennes | C10: 193 | D10: 3% | E10: 0% | F10: 1 | G10: 15% | H10: 15% | I10: 2 | J10: 0% | K10: 0% | L10: 1 | M10: 10% | N10: 0% | O10: 2 | P10: 0% | Q10: 0% | R10: 1 | S10: 4% | T10: 0% | U10: 1
A11: 262 | B11: Moselle | C11: 222 | D11: 8% | E11: 5% | F11: 2 | G11: 22% | H11: 22% | I11: 3 | J11: 7% | K11: 7% | L11: 2 | M11: 14% | N11: 4% | O11: 3 | P11: 2% | Q11: 2% | R11: 2 | S11: 9% | T11: 5% | U11: 2
A12: 264 | B12: Meurthe et Moselle Meuse | C12: 204 | D12: 23% | E12: 20% | F12: 3 | G12: 33% | H12: 33% | I12: 4 | J12: 28% | K12: 28% | L12: 3 | M12: 25% | N12: 16% | O12: 4 | P12: 24% | Q12: 24% | R12: 3 | S12: 19% | T12: 16% | U12: 3
A13: 30 | B13: Vosges | C13: 117 | D13: 24% | E13: 21% | F13: 4 | G13: 0% | H13: 0% | I13: 1 | J13: 35% | K13: 35% | L13: 5 | M13: 27% | N13: 17% | O13: 5 | P13: 38% | Q13: 38% | R13: 6 | S13: 35% | T13: 32% | U13: 4
A14: 110 | B14: Bas-Rhin | C14: 220 | D14: 28% | E14: 25% | F14: 5 | G14: 43% | H14: 43% | I14: 5 | J14: 28% | K14: 28% | L14: 4 | M14: 10% | N14: 0% | O14: 1 | P14: 31% | Q14: 31% | R14: 5 | S14: 40% | T14: 37% | U14: 6
A15: 160 | B15: Aube Haute Marne | C15: 112 | D15: 38% | E15: 35% | F15: 6 | G15: 52% | H15: 52% | I15: 6 | J15: 44% | K15: 44% | L15: 6 | M15: 45% | N15: 35% | O15: 6 | P15: 25% | Q15: 25% | R15: 4 | S15: 37% | T15: 33% | U15: 5
A16: 80 | B16: Haut-Rhin | C16: 123 | D16: 60% | E16: 57% | F16: 7 | G16: 59% | H16: 59% | I16: 7 | J16: 65% | K16: 65% | L16: 7 | M16: 75% | N16: 65% | O16: 7 | P16: 64% | Q16: 64% | R16: 7 | S16: 48% | T16: 45% | U16: 7
B17: Total CEGEE Directions Régionales | C17: =SUM(C10:C16) -> 1191

Sheet DC_BANCA
B1: Accueil | D1: BAROMETRE BDD - DIRECTIONS REGIONALES
D2: BANCARISATION
D3: =ACCUEIL!F7 -> 2022-10-02
D7: Ventes Nettes produits pondérés | H7: Ventes sur client non détenteur de l’univers | L7: Total Bancarisation
D8: =DATEMAJ!C8 -> au 02/10 | F8: coef | G8: ='RECAP DIRCOM'!AA4 -> 12% | H8: =DATEMAJ!C9 -> au 02/10 | J8: coef | K8: ='RECAP DIRCOM'!AE4 -> 8% | M8: coef | N8: ='RECAP DIRCOM'!AH4 -> 20%
B9: Direction | C9: ="ETP perf "&DATEMAJ!$C$28 -> ETP perf 02-oct | D9: VN | E9: VN / ETP | F9: % Ecart au 1er | G9: Rang | H9: VB | I9: VB / ETP | J9: % Ecart au 1er | K9: Rang | L9: Moyenne ecart au 1er | M9: % Ecart au 1er | N9: Rang CEGEE
A10: 50 | B10: Aube Haute Marne | C10: =VLOOKUP($A10,'RECAP DIRCOM'!$G$6:$CU$12,3,FALSE) -> 112 | D10: =VLOOKUP($A10,'RECAP DIRCOM'!$G$6:$CU$12,18,FALSE) -> 1,080 | E10: =VLOOKUP($A10,'RECAP DIRCOM'!$G$6:$CU$12,19,FALSE) -> 9.61 | F10: =VLOOKUP($A10,'RECAP DIRCOM'!$G$6:$CU$12,20,FALSE) -> 59% | G10: =VLOOKUP($A10,'RECAP DIRCOM'!$G$6:$CU$12,21,FALSE) -> 6 | H10: =VLOOKUP($A10,'RECAP DIRCOM'!$G$6:$CU$12,22,FALSE) -> 5,070 | I10: =VLOOKUP($A10,'RECAP DIRCOM'!$G$6:$CU$12,23,FALSE) -> 45.09 | J10: =VLOOKUP($A10,'RECAP DIRCOM'!$G$6:$CU$12,24,FALSE) -> 22% | K10: =VLOOKUP($A10,'RECAP DIRCOM'!$G$6:$CU$12,25,FALSE) -> 5 | L10: =VLOOKUP($A10,'RECAP DIRCOM'!$G$6:$CU$12,26,FALSE) -> 44% | M10: =VLOOKUP($A10,'RECAP DIRCOM'!$G$6:$CU$12,27,FALSE) -> 44% | N10: =VLOOKUP($A10,'RECAP DIRCOM'!$G$6:$CU$12,28,FALSE) -> 6
A11: 262 | B11: Bas-Rhin | C11: =VLOOKUP($A11,'RECAP DIRCOM'!$G$6:$CU$12,3,FALSE) -> 220 | D11: =VLOOKUP($A11,'RECAP DIRCOM'!$G$6:$CU$12,18,FALSE) -> 3,433 | E11: =VLOOKUP($A11,'RECAP DIRCOM'!$G$6:$CU$12,19,FALSE) -> 15.62 | F11: =VLOOKUP($A11,'RECAP DIRCOM'!$G$6:$CU$12,20,FALSE) -> 33% | G11: =VLOOKUP($A11,'RECAP DIRCOM'!$G$6:$CU$12,21,FALSE) -> 3 | H11: =VLOOKUP($A11,'RECAP DIRCOM'!$G$6:$CU$12,22,FALSE) -> 10,122 | I11: =VLOOKUP($A11,'RECAP DIRCOM'!$G$6:$CU$12,23,FALSE) -> 46.07 | J11: =VLOOKUP($A11,'RECAP DIRCOM'!$G$6:$CU$12,24,FALSE) -> 21% | K11: =VLOOKUP($A11,'RECAP DIRCOM'!$G$6:$CU$12,25,FALSE) -> 4 | L11: =VLOOKUP($A11,'RECAP DIRCOM'!$G$6:$CU$12,26,FALSE) -> 28% | M11: =VLOOKUP($A11,'RECAP DIRCOM'!$G$6:$CU$12,27,FALSE) -> 28% | N11: =VLOOKUP($A11,'RECAP DIRCOM'!$G$6:$CU$12,28,FALSE) -> 4
A12: 264 | B12: Haut-Rhin | C12: =VLOOKUP($A12,'RECAP DIRCOM'!$G$6:$CU$12,3,FALSE) -> 123 | D12: =VLOOKUP($A12,'RECAP DIRCOM'!$G$6:$CU$12,18,FALSE) -> 457 | E12: =VLOOKUP($A12,'RECAP DIRCOM'!$G$6:$CU$12,19,FALSE) -> 3.72 | F12: =VLOOKUP($A12,'RECAP DIRCOM'!$G$6:$CU$12,20,FALSE) -> 84% | G12: =VLOOKUP($A12,'RECAP DIRCOM'!$G$6:$CU$12,21,FALSE) -> 7 | H12: =VLOOKUP($A12,'RECAP DIRCOM'!$G$6:$CU$12,22,FALSE) -> 4,587 | I12: =VLOOKUP($A12,'RECAP DIRCOM'!$G$6:$CU$12,23,FALSE) -> 37.32 | J12: =VLOOKUP($A12,'RECAP DIRCOM'!$G$6:$CU$12,24,FALSE) -> 36% | K12: =VLOOKUP($A12,'RECAP DIRCOM'!$G$6:$CU$12,25,FALSE) -> 7 | L12: =VLOOKUP($A12,'RECAP DIRCOM'!$G$6:$CU$12,26,FALSE) -> 65% | M12: =VLOOKUP($A12,'RECAP DIRCOM'!$G$6:$CU$12,27,FALSE) -> 65% | N12: =VLOOKUP($A12,'RECAP DIRCOM'!$G$6:$CU$12,28,FALSE) -> 7
A13: 30 | B13: Marne-Ardennes | C13: =VLOOKUP($A13,'RECAP DIRCOM'!$G$6:$CU$12,3,FALSE) -> 193 | D13: =VLOOKUP($A13,'RECAP DIRCOM'!$G$6:$CU$12,18,FALSE) -> 4,476 | E13: =VLOOKUP($A13,'RECAP DIRCOM'!$G$6:$CU$12,19,FALSE) -> 23.18 | F13: =VLOOKUP($A13,'RECAP DIRCOM'!$G$6:$CU$12,20,FALSE) -> 0% | G13: =VLOOKUP($A13,'RECAP DIRCOM'!$G$6:$CU$12,21,FALSE) -> 1 | H13: =VLOOKUP($A13,'RECAP DIRCOM'!$G$6:$CU$12,22,FALSE) -> 11,231 | I13: =VLOOKUP($A13,'RECAP DIRCOM'!$G$6:$CU$12,23,FALSE) -> 58.18 | J13: =VLOOKUP($A13,'RECAP DIRCOM'!$G$6:$CU$12,24,FALSE) -> 0% | K13: =VLOOKUP($A13,'RECAP DIRCOM'!$G$6:$CU$12,25,FALSE) -> 1 | L13: =VLOOKUP($A13,'RECAP DIRCOM'!$G$6:$CU$12,26,FALSE) -> 0% | M13: =VLOOKUP($A13,'RECAP DIRCOM'!$G$6:$CU$12,27,FALSE) -> 0% | N13: =VLOOKUP($A13,'RECAP DIRCOM'!$G$6:$CU$12,28,FALSE) -> 1
A14: 110 | B14: Meurthe et Moselle Meuse | C14: =VLOOKUP($A14,'RECAP DIRCOM'!$G$6:$CU$12,3,FALSE) -> 204 | D14: =VLOOKUP($A14,'RECAP DIRCOM'!$G$6:$CU$12,18,FALSE) -> 2,912 | E14: =VLOOKUP($A14,'RECAP DIRCOM'!$G$6:$CU$12,19,FALSE) -> 14.28 | F14: =VLOOKUP($A14,'RECAP DIRCOM'!$G$6:$CU$12,20,FALSE) -> 38% | G14: =VLOOKUP($A14,'RECAP DIRCOM'!$G$6:$CU$12,21,FALSE) -> 4 | H14: =VLOOKUP($A14,'RECAP DIRCOM'!$G$6:$CU$12,22,FALSE) -> 10,424 | I14: =VLOOKUP($A14,'RECAP DIRCOM'!$G$6:$CU$12,23,FALSE) -> 51.13 | J14: =VLOOKUP($A14,'RECAP DIRCOM'!$G$6:$CU$12,24,FALSE) -> 12% | K14: =VLOOKUP($A14,'RECAP DIRCOM'!$G$6:$CU$12,25,FALSE) -> 3 | L14: =VLOOKUP($A14,'RECAP DIRCOM'!$G$6:$CU$12,26,FALSE) -> 28% | M14: =VLOOKUP($A14,'RECAP DIRCOM'!$G$6:$CU$12,27,FALSE) -> 28% | N14: =VLOOKUP($A14,'RECAP DIRCOM'!$G$6:$CU$12,28,FALSE) -> 3
A15: 160 | B15: Moselle | C15: =VLOOKUP($A15,'RECAP DIRCOM'!$G$6:$CU$12,3,FALSE) -> 222 | D15: =VLOOKUP($A15,'RECAP DIRCOM'!$G$6:$CU$12,18,FALSE) -> 4,631 | E15: =VLOOKUP($A15,'RECAP DIRCOM'!$G$6:$CU$12,19,FALSE) -> 20.86 | F15: =VLOOKUP($A15,'RECAP DIRCOM'!$G$6:$CU$12,20,FALSE) -> 10% | G15: =VLOOKUP($A15,'RECAP DIRCOM'!$G$6:$CU$12,21,FALSE) -> 2 | H15: =VLOOKUP($A15,'RECAP DIRCOM'!$G$6:$CU$12,22,FALSE) -> 12,685 | I15: =VLOOKUP($A15,'RECAP DIRCOM'!$G$6:$CU$12,23,FALSE) -> 57.12 | J15: =VLOOKUP($A15,'RECAP DIRCOM'!$G$6:$CU$12,24,FALSE) -> 2% | K15: =VLOOKUP($A15,'RECAP DIRCOM'!$G$6:$CU$12,25,FALSE) -> 2 | L15: =VLOOKUP($A15,'RECAP DIRCOM'!$G$6:$CU$12,26,FALSE) -> 7% | M15: =VLOOKUP($A15,'RECAP DIRCOM'!$G$6:$CU$12,27,FALSE) -> 7% | N15: =VLOOKUP($A15,'RECAP DIRCOM'!$G$6:$CU$12,28,FALSE) -> 2
A16: 80 | B16: Vosges | C16: =VLOOKUP($A16,'RECAP DIRCOM'!$G$6:$CU$12,3,FALSE) -> 117 | D16: =VLOOKUP($A16,'RECAP DIRCOM'!$G$6:$CU$12,18,FALSE) -> 1,632 | E16: =VLOOKUP($A16,'RECAP DIRCOM'!$G$6:$CU$12,19,FALSE) -> 13.97 | F16: =VLOOKUP($A16,'RECAP DIRCOM'!$G$6:$CU$12,20,FALSE) -> 40% | G16: =VLOOKUP($A16,'RECAP DIRCOM'!$G$6:$CU$12,21,FALSE) -> 5 | H16: =VLOOKUP($A16,'RECAP DIRCOM'!$G$6:$CU$12,22,FALSE) -> 4,956 | I16: =VLOOKUP($A16,'RECAP DIRCOM'!$G$6:$CU$12,23,FALSE) -> 42.42 | J16: =VLOOKUP($A16,'RECAP DIRCOM'!$G$6:$CU$12,24,FALSE) -> 27% | K16: =VLOOKUP($A16,'RECAP DIRCOM'!$G$6:$CU$12,25,FALSE) -> 6 | L16: =VLOOKUP($A16,'RECAP DIRCOM'!$G$6:$CU$12,26,FALSE) -> 35% | M16: =VLOOKUP($A16,'RECAP DIRCOM'!$G$6:$CU$12,27,FALSE) -> 35% | N16: =VLOOKUP($A16,'RECAP DIRCOM'!$G$6:$CU$12,28,FALSE) -> 5
B17: Total CEGEE Directions Régionales | C17: =SUM(C10:C16) -> 1191

Sheet DC_EPARGNE
B1: Accueil | D1: BAROMETRE BDD - DIRECTIONS REGIONALES
D2: EPARGNE
D3: =ACCUEIL!F7 -> 2022-10-02
D7: Excédent Epargne hors DAV pondéré | H7: Ventes sur client non détenteur de l’univers | L7: Total Epargne
D8: =DATEMAJ!C14 -> au 02/10 | F8: coef | G8: ='RECAP DIRCOM'!AP4 -> 12% | H8: =DATEMAJ!C15 -> au 02/10 | J8: coef | K8: ='RECAP DIRCOM'!AT4 -> 8% | M8: coef | N8: ='RECAP DIRCOM'!AW4 -> 20%
B9: Direction | C9: ="ETP perf "&DATEMAJ!$C$28 -> ETP perf 02-oct | D9: Excédent | E9: Excédent / ETP | F9: % Ecart au 1er | G9: Rang | H9: VB | I9: VB / ETP | J9: % Ecart au 1er | K9: Rang | L9: Moyenne ecart au 1er | M9: % Ecart au 1er | N9: Rang CEGEE
A10: 50 | B10: Aube Haute Marne | C10: =VLOOKUP($A10,'RECAP DIRCOM'!$G$6:$CU$12,3,FALSE) -> 112 | D10: =VLOOKUP($A10,'RECAP DIRCOM'!$G$6:$CU$12,33,FALSE) -> 15,246 | E10: =VLOOKUP($A10,'RECAP DIRCOM'!$G$6:$CU$12,34,FALSE) -> 135.61 | F10: =VLOOKUP($A10,'RECAP DIRCOM'!$G$6:$CU$12,35,FALSE) -> 55% | G10: =VLOOKUP($A10,'RECAP DIRCOM'!$G$6:$CU$12,36,FALSE) -> 6 | H10: =VLOOKUP($A10,'RECAP DIRCOM'!$G$6:$CU$12,37,FALSE) -> 4,743 | I10: =VLOOKUP($A10,'RECAP DIRCOM'!$G$6:$CU$12,38,FALSE) -> 42.19 | J10: =VLOOKUP($A10,'RECAP DIRCOM'!$G$6:$CU$12,39,FALSE) -> 30% | K10: =VLOOKUP($A10,'RECAP DIRCOM'!$G$6:$CU$12,40,FALSE) -> 5 | L10: =VLOOKUP($A10,'RECAP DIRCOM'!$G$6:$CU$12,41,FALSE) -> 45% | M10: =VLOOKUP($A10,'RECAP DIRCOM'!$G$6:$CU$12,42,FALSE) -> 35% | N10: =VLOOKUP($A10,'RECAP DIRCOM'!$G$6:$CU$12,43,FALSE) -> 6
A11: 262 | B11: Bas-Rhin | C11: =VLOOKUP($A11,'RECAP DIRCOM'!$G$6:$CU$12,3,FALSE) -> 220 | D11: =VLOOKUP($A11,'RECAP DIRCOM'!$G$6:$CU$12,33,FALSE) -> 66,600 | E11: =VLOOKUP($A11,'RECAP DIRCOM'!$G$6:$CU$12,34,FALSE) -> 303.10 | F11: =VLOOKUP($A11,'RECAP DIRCOM'!$G$6:$CU$12,35,FALSE) -> 0% | G11: =VLOOKUP($A11,'RECAP DIRCOM'!$G$6:$CU$12,36,FALSE) -> 1 | H11: =VLOOKUP($A11,'RECAP DIRCOM'!$G$6:$CU$12,37,FALSE) -> 9,956 | I11: =VLOOKUP($A11,'RECAP DIRCOM'!$G$6:$CU$12,38,FALSE) -> 45.31 | J11: =VLOOKUP($A11,'RECAP DIRCOM'!$G$6:$CU$12,39,FALSE) -> 24% | K11: =VLOOKUP($A11,'RECAP DIRCOM'!$G$6:$CU$12,40,FALSE) -> 3 | L11: =VLOOKUP($A11,'RECAP DIRCOM'!$G$6:$CU$12,41,FALSE) -> 10% | M11: =VLOOKUP($A11,'RECAP DIRCOM'!$G$6:$CU$12,42,FALSE) -> 0% | N11: =VLOOKUP($A11,'RECAP DIRCOM'!$G$6:$CU$12,43,FALSE) -> 1
A12: 264 | B12: Haut-Rhin | C12: =VLOOKUP($A12,'RECAP DIRCOM'!$G$6:$CU$12,3,FALSE) -> 123 | D12: =VLOOKUP($A12,'RECAP DIRCOM'!$G$6:$CU$12,33,FALSE) -> 1,418 | E12: =VLOOKUP($A12,'RECAP DIRCOM'!$G$6:$CU$12,34,FALSE) -> 11.54 | F12: =VLOOKUP($A12,'RECAP DIRCOM'!$G$6:$CU$12,35,FALSE) -> 96% | G12: =VLOOKUP($A12,'RECAP DIRCOM'!$G$6:$CU$12,36,FALSE) -> 7 | H12: =VLOOKUP($A12,'RECAP DIRCOM'!$G$6:$CU$12,37,FALSE) -> 4,148 | I12: =VLOOKUP($A12,'RECAP DIRCOM'!$G$6:$CU$12,38,FALSE) -> 33.75 | J12: =VLOOKUP($A12,'RECAP DIRCOM'!$G$6:$CU$12,39,FALSE) -> 44% | K12: =VLOOKUP($A12,'RECAP DIRCOM'!$G$6:$CU$12,40,FALSE) -> 7 | L12: =VLOOKUP($A12,'RECAP DIRCOM'!$G$6:$CU$12,41,FALSE) -> 75% | M12: =VLOOKUP($A12,'RECAP DIRCOM'!$G$6:$CU$12,42,FALSE) -> 65% | N12: =VLOOKUP($A12,'RECAP DIRCOM'!$G$6:$CU$12,43,FALSE) -> 7
A13: 30 | B13: Marne-Ardennes | C13: =VLOOKUP($A13,'RECAP DIRCOM'!$G$6:$CU$12,3,FALSE) -> 193 | D13: =VLOOKUP($A13,'RECAP DIRCOM'!$G$6:$CU$12,33,FALSE) -> 50,954 | E13: =VLOOKUP($A13,'RECAP DIRCOM'!$G$6:$CU$12,34,FALSE) -> 263.94 | F13: =VLOOKUP($A13,'RECAP DIRCOM'!$G$6:$CU$12,35,FALSE) -> 13% | G13: =VLOOKUP($A13,'RECAP DIRCOM'!$G$6:$CU$12,36,FALSE) -> 2 | H13: =VLOOKUP($A13,'RECAP DIRCOM'!$G$6:$CU$12,37,FALSE) -> 10,980 | I13: =VLOOKUP($A13,'RECAP DIRCOM'!$G$6:$CU$12,38,FALSE) -> 56.88 | J13: =VLOOKUP($A13,'RECAP DIRCOM'!$G$6:$CU$12,39,FALSE) -> 5% | K13: =VLOOKUP($A13,'RECAP DIRCOM'!$G$6:$CU$12,40,FALSE) -> 2 | L13: =VLOOKUP($A13,'RECAP DIRCOM'!$G$6:$CU$12,41,FALSE) -> 10% | M13: =VLOOKUP($A13,'RECAP DIRCOM'!$G$6:$CU$12,42,FALSE) -> 0% | N13: =VLOOKUP($A13,'RECAP DIRCOM'!$G$6:$CU$12,43,FALSE) -> 2
A14: 110 | B14: Meurthe et Moselle Meuse | C14: =VLOOKUP($A14,'RECAP DIRCOM'!$G$6:$CU$12,3,FALSE) -> 204 | D14: =VLOOKUP($A14,'RECAP DIRCOM'!$G$6:$CU$12,33,FALSE) -> 45,738 | E14: =VLOOKUP($A14,'RECAP DIRCOM'!$G$6:$CU$12,34,FALSE) -> 224.33 | F14: =VLOOKUP($A14,'RECAP DIRCOM'!$G$6:$CU$12,35,FALSE) -> 26% | G14: =VLOOKUP($A14,'RECAP DIRCOM'!$G$6:$CU$12,36,FALSE) -> 5 | H14: =VLOOKUP($A14,'RECAP DIRCOM'!$G$6:$CU$12,37,FALSE) -> 9,196 | I14: =VLOOKUP($A14,'RECAP DIRCOM'!$G$6:$CU$12,38,FALSE) -> 45.10 | J14: =VLOOKUP($A14,'RECAP DIRCOM'!$G$6:$CU$12,39,FALSE) -> 25% | K14: =VLOOKUP($A14,'RECAP DIRCOM'!$G$6:$CU$12,40,FALSE) -> 4 | L14: =VLOOKUP($A14,'RECAP DIRCOM'!$G$6:$CU$12,41,FALSE) -> 25% | M14: =VLOOKUP($A14,'RECAP DIRCOM'!$G$6:$CU$12,42,FALSE) -> 16% | N14: =VLOOKUP($A14,'RECAP DIRCOM'!$G$6:$CU$12,43,FALSE) -> 4
A15: 160 | B15: Moselle | C15: =VLOOKUP($A15,'RECAP DIRCOM'!$G$6:$CU$12,3,FALSE) -> 222 | D15: =VLOOKUP($A15,'RECAP DIRCOM'!$G$6:$CU$12,33,FALSE) -> 51,695 | E15: =VLOOKUP($A15,'RECAP DIRCOM'!$G$6:$CU$12,34,FALSE) -> 232.80 | F15: =VLOOKUP($A15,'RECAP DIRCOM'!$G$6:$CU$12,35,FALSE) -> 23% | G15: =VLOOKUP($A15,'RECAP DIRCOM'!$G$6:$CU$12,36,FALSE) -> 4 | H15: =VLOOKUP($A15,'RECAP DIRCOM'!$G$6:$CU$12,37,FALSE) -> 13,298 | I15: =VLOOKUP($A15,'RECAP DIRCOM'!$G$6:$CU$12,38,FALSE) -> 59.88 | J15: =VLOOKUP($A15,'RECAP DIRCOM'!$G$6:$CU$12,39,FALSE) -> 0% | K15: =VLOOKUP($A15,'RECAP DIRCOM'!$G$6:$CU$12,40,FALSE) -> 1 | L15: =VLOOKUP($A15,'RECAP DIRCOM'!$G$6:$CU$12,41,FALSE) -> 14% | M15: =VLOOKUP($A15,'RECAP DIRCOM'!$G$6:$CU$12,42,FALSE) -> 4% | N15: =VLOOKUP($A15,'RECAP DIRCOM'!$G$6:$CU$12,43,FALSE) -> 3
A16: 80 | B16: Vosges | C16: =VLOOKUP($A16,'RECAP DIRCOM'!$G$6:$CU$12,3,FALSE) -> 117 | D16: =VLOOKUP($A16,'RECAP DIRCOM'!$G$6:$CU$12,33,FALSE) -> 27,739 | E16: =VLOOKUP($A16,'RECAP DIRCOM'!$G$6:$CU$12,34,FALSE) -> 237.41 | F16: =VLOOKUP($A16,'RECAP DIRCOM'!$G$6:$CU$12,35,FALSE) -> 22% | G16: =VLOOKUP($A16,'RECAP DIRCOM'!$G$6:$CU$12,36,FALSE) -> 3 | H16: =VLOOKUP($A16,'RECAP DIRCOM'!$G$6:$CU$12,37,FALSE) -> 4,574 | I16: =VLOOKUP($A16,'RECAP DIRCOM'!$G$6:$CU$12,38,FALSE) -> 39.15 | J16: =VLOOKUP($A16,'RECAP DIRCOM'!$G$6:$CU$12,39,FALSE) -> 35% | K16: =VLOOKUP($A16,'RECAP DIRCOM'!$G$6:$CU$12,40,FALSE) -> 6 | L16: =VLOOKUP($A16,'RECAP DIRCOM'!$G$6:$CU$12,41,FALSE) -> 27% | M16: =VLOOKUP($A16,'RECAP DIRCOM'!$G$6:$CU$12,42,FALSE) -> 17% | N16: =VLOOKUP($A16,'RECAP DIRCOM'!$G$6:$CU$12,43,FALSE) -> 5
B17: Total CEGEE Directions Régionales | C17: =SUM(C10:C16) -> 1191

Sheet DC_CREDIT
B1: Accueil | D1: BAROMETRE BDD - DIRECTIONS REGIONALES
D2: CREDITS
D3: =ACCUEIL!F7 -> 2022-10-02
D7: Engagements et ventes accessoires pondérés Immo | H7: Engagements et ventes accessoires pondérés Conso | L7: Ventes sur client non détenteur de l’univers | P7: Total Crédits
D8: =DATEMAJ!C18 -> au 02/10 | F8: coef | G8: ='RECAP DIRCOM'!BE4 -> 6% | H8: =DATEMAJ!C19 -> au 02/10 | J8: coef | K8: ='RECAP DIRCOM'!BI4 -> 6% | L8: =DATEMAJ!C20 -> au 02/10 | N8: coef | O8: ='RECAP DIRCOM'!BM4 -> 8% | Q8: coef | R8: ='RECAP DIRCOM'!BP4 -> 20%
B9: Direction | C9: ="ETP perf "&DATEMAJ!$C$28 -> ETP perf 02-oct | D9: PNB | E9: PNB / ETP | F9: % Ecart au 1er | G9: Rang | H9: PNB | I9: PNB / ETP | J9: % Ecart au 1er | K9: Rang | L9: VB | M9: VB / ETP | N9: % Ecart au 1er | O9: Rang | P9: Moyenne ecart au 1er | Q9: % Ecart au 1er | R9: Rang CEGEE
A10: 50 | B10: Aube Haute Marne | C10: =VLOOKUP($A10,'RECAP DIRCOM'!$G$6:$CU$12,3,FALSE) -> 112 | D10: =VLOOKUP($A10,'RECAP DIRCOM'!$G$6:$CU$12,48,FALSE) -> 19,625 | E10: =VLOOKUP($A10,'RECAP DIRCOM'!$G$6:$CU$12,49,FALSE) -> 174.55 | F10: =VLOOKUP($A10,'RECAP DIRCOM'!$G$6:$CU$12,50,FALSE) -> 53% | G10: =VLOOKUP($A10,'RECAP DIRCOM'!$G$6:$CU$12,51,FALSE) -> 6 | H10: =VLOOKUP($A10,'RECAP DIRCOM'!$G$6:$CU$12,52,FALSE) -> 4,703 | I10: =VLOOKUP($A10,'RECAP DIRCOM'!$G$6:$CU$12,53,FALSE) -> 41.83 | J10: =VLOOKUP($A10,'RECAP DIRCOM'!$G$6:$CU$12,54,FALSE) -> 16% | K10: =VLOOKUP($A10,'RECAP DIRCOM'!$G$6:$CU$12,55,FALSE) -> 4 | L10: =VLOOKUP($A10,'RECAP DIRCOM'!$G$6:$CU$12,56,FALSE) -> 1,884 | M10: =VLOOKUP($A10,'RECAP DIRCOM'!$G$6:$CU$12,57,FALSE) -> 16.76 | N10: =VLOOKUP($A10,'RECAP DIRCOM'!$G$6:$CU$12,58,FALSE) -> 40% | O10: =VLOOKUP($A10,'RECAP DIRCOM'!$G$6:$CU$12,59,FALSE) -> 5 | P10: =VLOOKUP($A10,'RECAP DIRCOM'!$G$6:$CU$12,60,FALSE) -> 37% | Q10: =VLOOKUP($A10,'RECAP DIRCOM'!$G$6:$CU$12,61,FALSE) -> 33% | R10: =VLOOKUP($A10,'RECAP DIRCOM'!$G$6:$CU$12,62,FALSE) -> 5
A11: 262 | B11: Bas-Rhin | C11: =VLOOKUP($A11,'RECAP DIRCOM'!$G$6:$CU$12,3,FALSE) -> 220 | D11: =VLOOKUP($A11,'RECAP DIRCOM'!$G$6:$CU$12,48,FALSE) -> 40,517 | E11: =VLOOKUP($A11,'RECAP DIRCOM'!$G$6:$CU$12,49,FALSE) -> 184.40 | F11: =VLOOKUP($A11,'RECAP DIRCOM'!$G$6:$CU$12,50,FALSE) -> 51% | G11: =VLOOKUP($A11,'RECAP DIRCOM'!$G$6:$CU$12,51,FALSE) -> 4 | H11: =VLOOKUP($A11,'RECAP DIRCOM'!$G$6:$CU$12,52,FALSE) -> 7,817 | I11: =VLOOKUP($A11,'RECAP DIRCOM'!$G$6:$CU$12,53,FALSE) -> 35.57 | J11: =VLOOKUP($A11,'RECAP DIRCOM'!$G$6:$CU$12,54,FALSE) -> 28% | K11: =VLOOKUP($A11,'RECAP DIRCOM'!$G$6:$CU$12,55,FALSE) -> 6 | L11: =VLOOKUP($A11,'RECAP DIRCOM'!$G$6:$CU$12,56,FALSE) -> 3,579 | M11: =VLOOKUP($A11,'RECAP DIRCOM'!$G$6:$CU$12,57,FALSE) -> 16.29 | N11: =VLOOKUP($A11,'RECAP DIRCOM'!$G$6:$CU$12,58,FALSE) -> 41% | O11: =VLOOKUP($A11,'RECAP DIRCOM'!$G$6:$CU$12,59,FALSE) -> 6 | P11: =VLOOKUP($A11,'RECAP DIRCOM'!$G$6:$CU$12,60,FALSE) -> 40% | Q11: =VLOOKUP($A11,'RECAP DIRCOM'!$G$6:$CU$12,61,FALSE) -> 37% | R11: =VLOOKUP($A11,'RECAP DIRCOM'!$G$6:$CU$12,62,FALSE) -> 6
A12: 264 | B12: Haut-Rhin | C12: =VLOOKUP($A12,'RECAP DIRCOM'!$G$6:$CU$12,3,FALSE) -> 123 | D12: =VLOOKUP($A12,'RECAP DIRCOM'!$G$6:$CU$12,48,FALSE) -> 18,519 | E12: =VLOOKUP($A12,'RECAP DIRCOM'!$G$6:$CU$12,49,FALSE) -> 150.66 | F12: =VLOOKUP($A12,'RECAP DIRCOM'!$G$6:$CU$12,50,FALSE) -> 60% | G12: =VLOOKUP($A12,'RECAP DIRCOM'!$G$6:$CU$12,51,FALSE) -> 7 | H12: =VLOOKUP($A12,'RECAP DIRCOM'!$G$6:$CU$12,52,FALSE) -> 4,191 | I12: =VLOOKUP($A12,'RECAP DIRCOM'!$G$6:$CU$12,53,FALSE) -> 34.10 | J12: =VLOOKUP($A12,'RECAP DIRCOM'!$G$6:$CU$12,54,FALSE) -> 31% | K12: =VLOOKUP($A12,'RECAP DIRCOM'!$G$6:$CU$12,55,FALSE) -> 7 | L12: =VLOOKUP($A12,'RECAP DIRCOM'!$G$6:$CU$12,56,FALSE) -> 1,604 | M12: =VLOOKUP($A12,'RECAP DIRCOM'!$G$6:$CU$12,57,FALSE) -> 13.05 | N12: =VLOOKUP($A12,'RECAP DIRCOM'!$G$6:$CU$12,58,FALSE) -> 53% | O12: =VLOOKUP($A12,'RECAP DIRCOM'!$G$6:$CU$12,59,FALSE) -> 7 | P12: =VLOOKUP($A12,'RECAP DIRCOM'!$G$6:$CU$12,60,FALSE) -> 48% | Q12: =VLOOKUP($A12,'RECAP DIRCOM'!$G$6:$CU$12,61,FALSE) -> 45% | R12: =VLOOKUP($A12,'RECAP DIRCOM'!$G$6:$CU$12,62,FALSE) -> 7
A13: 30 | B13: Marne-Ardennes | C13: =VLOOKUP($A13,'RECAP DIRCOM'!$G$6:$CU$12,3,FALSE) -> 193 | D13: =VLOOKUP($A13,'RECAP DIRCOM'!$G$6:$CU$12,48,FALSE) -> 72,032 | E13: =VLOOKUP($A13,'RECAP DIRCOM'!$G$6:$CU$12,49,FALSE) -> 373.13 | F13: =VLOOKUP($A13,'RECAP DIRCOM'!$G$6:$CU$12,50,FALSE) -> 0% | G13: =VLOOKUP($A13,'RECAP DIRCOM'!$G$6:$CU$12,51,FALSE) -> 1 | H13: =VLOOKUP($A13,'RECAP DIRCOM'!$G$6:$CU$12,52,FALSE) -> 8,452 | I13: =VLOOKUP($A13,'RECAP DIRCOM'!$G$6:$CU$12,53,FALSE) -> 43.78 | J13: =VLOOKUP($A13,'RECAP DIRCOM'!$G$6:$CU$12,54,FALSE) -> 12% | K13: =VLOOKUP($A13,'RECAP DIRCOM'!$G$6:$CU$12,55,FALSE) -> 3 | L13: =VLOOKUP($A13,'RECAP DIRCOM'!$G$6:$CU$12,56,FALSE) -> 5,364 | M13: =VLOOKUP($A13,'RECAP DIRCOM'!$G$6:$CU$12,57,FALSE) -> 27.79 | N13: =VLOOKUP($A13,'RECAP DIRCOM'!$G$6:$CU$12,58,FALSE) -> 0% | O13: =VLOOKUP($A13,'RECAP DIRCOM'!$G$6:$CU$12,59,FALSE) -> 1 | P13: =VLOOKUP($A13,'RECAP DIRCOM'!$G$6:$CU$12,60,FALSE) -> 4% | Q13: =VLOOKUP($A13,'RECAP DIRCOM'!$G$6:$CU$12,61,FALSE) -> 0% | R13: =VLOOKUP($A13,'RECAP DIRCOM'!$G$6:$CU$12,62,FALSE) -> 1
A14: 110 | B14: Meurthe et Moselle Meuse | C14: =VLOOKUP($A14,'RECAP DIRCOM'!$G$6:$CU$12,3,FALSE) -> 204 | D14: =VLOOKUP($A14,'RECAP DIRCOM'!$G$6:$CU$12,48,FALSE) -> 58,827 | E14: =VLOOKUP($A14,'RECAP DIRCOM'!$G$6:$CU$12,49,FALSE) -> 288.53 | F14: =VLOOKUP($A14,'RECAP DIRCOM'!$G$6:$CU$12,50,FALSE) -> 23% | G14: =VLOOKUP($A14,'RECAP DIRCOM'!$G$6:$CU$12,51,FALSE) -> 3 | H14: =VLOOKUP($A14,'RECAP DIRCOM'!$G$6:$CU$12,52,FALSE) -> 9,151 | I14: =VLOOKUP($A14,'RECAP DIRCOM'!$G$6:$CU$12,53,FALSE) -> 44.88 | J14: =VLOOKUP($A14,'RECAP DIRCOM'!$G$6:$CU$12,54,FALSE) -> 9% | K14: =VLOOKUP($A14,'RECAP DIRCOM'!$G$6:$CU$12,55,FALSE) -> 2 | L14: =VLOOKUP($A14,'RECAP DIRCOM'!$G$6:$CU$12,56,FALSE) -> 4,300 | M14: =VLOOKUP($A14,'RECAP DIRCOM'!$G$6:$CU$12,57,FALSE) -> 21.09 | N14: =VLOOKUP($A14,'RECAP DIRCOM'!$G$6:$CU$12,58,FALSE) -> 24% | O14: =VLOOKUP($A14,'RECAP DIRCOM'!$G$6:$CU$12,59,FALSE) -> 3 | P14: =VLOOKUP($A14,'RECAP DIRCOM'!$G$6:$CU$12,60,FALSE) -> 19% | Q14: =VLOOKUP($A14,'RECAP DIRCOM'!$G$6:$CU$12,61,FALSE) -> 16% | R14: =VLOOKUP($A14,'RECAP DIRCOM'!$G$6:$CU$12,62,FALSE) -> 3
A15: 160 | B15: Moselle | C15: =VLOOKUP($A15,'RECAP DIRCOM'!$G$6:$CU$12,3,FALSE) -> 222 | D15: =VLOOKUP($A15,'RECAP DIRCOM'!$G$6:$CU$12,48,FALSE) -> 75,945 | E15: =VLOOKUP($A15,'RECAP DIRCOM'!$G$6:$CU$12,49,FALSE) -> 342.00 | F15: =VLOOKUP($A15,'RECAP DIRCOM'!$G$6:$CU$12,50,FALSE) -> 8% | G15: =VLOOKUP($A15,'RECAP DIRCOM'!$G$6:$CU$12,51,FALSE) -> 2 | H15: =VLOOKUP($A15,'RECAP DIRCOM'!$G$6:$CU$12,52,FALSE) -> 11,009 | I15: =VLOOKUP($A15,'RECAP DIRCOM'!$G$6:$CU$12,53,FALSE) -> 49.58 | J15: =VLOOKUP($A15,'RECAP DIRCOM'!$G$6:$CU$12,54,FALSE) -> 0% | K15: =VLOOKUP($A15,'RECAP DIRCOM'!$G$6:$CU$12,55,FALSE) -> 1 | L15: =VLOOKUP($A15,'RECAP DIRCOM'!$G$6:$CU$12,56,FALSE) -> 5,200 | M15: =VLOOKUP($A15,'RECAP DIRCOM'!$G$6:$CU$12,57,FALSE) -> 23.42 | N15: =VLOOKUP($A15,'RECAP DIRCOM'!$G$6:$CU$12,58,FALSE) -> 16% | O15: =VLOOKUP($A15,'RECAP DIRCOM'!$G$6:$CU$12,59,FALSE) -> 2 | P15: =VLOOKUP($A15,'RECAP DIRCOM'!$G$6:$CU$12,60,FALSE) -> 9% | Q15: =VLOOKUP($A15,'RECAP DIRCOM'!$G$6:$CU$12,61,FALSE) -> 5% | R15: =VLOOKUP($A15,'RECAP DIRCOM'!$G$6:$CU$12,62,FALSE) -> 2
A16: 80 | B16: Vosges | C16: =VLOOKUP($A16,'RECAP DIRCOM'!$G$6:$CU$12,3,FALSE) -> 117 | D16: =VLOOKUP($A16,'RECAP DIRCOM'!$G$6:$CU$12,48,FALSE) -> 21,476 | E16: =VLOOKUP($A16,'RECAP DIRCOM'!$G$6:$CU$12,49,FALSE) -> 183.80 | F16: =VLOOKUP($A16,'RECAP DIRCOM'!$G$6:$CU$12,50,FALSE) -> 51% | G16: =VLOOKUP($A16,'RECAP DIRCOM'!$G$6:$CU$12,51,FALSE) -> 5 | H16: =VLOOKUP($A16,'RECAP DIRCOM'!$G$6:$CU$12,52,FALSE) -> 4,509 | I16: =VLOOKUP($A16,'RECAP DIRCOM'!$G$6:$CU$12,53,FALSE) -> 38.59 | J16: =VLOOKUP($A16,'RECAP DIRCOM'!$G$6:$CU$12,54,FALSE) -> 22% | K16: =VLOOKUP($A16,'RECAP DIRCOM'!$G$6:$CU$12,55,FALSE) -> 5 | L16: =VLOOKUP($A16,'RECAP DIRCOM'!$G$6:$CU$12,56,FALSE) -> 2,175 | M16: =VLOOKUP($A16,'RECAP DIRCOM'!$G$6:$CU$12,57,FALSE) -> 18.62 | N16: =VLOOKUP($A16,'RECAP DIRCOM'!$G$6:$CU$12,58,FALSE) -> 33% | O16: =VLOOKUP($A16,'RECAP DIRCOM'!$G$6:$CU$12,59,FALSE) -> 4 | P16: =VLOOKUP($A16,'RECAP DIRCOM'!$G$6:$CU$12,60,FALSE) -> 35% | Q16: =VLOOKUP($A16,'RECAP DIRCOM'!$G$6:$CU$12,61,FALSE) -> 32% | R16: =VLOOKUP($A16,'RECAP DIRCOM'!$G$6:$CU$12,62,FALSE) -> 4
B17: Total CEGEE Directions Régionales | C17: =SUM(C10:C16) -> 1191

Sheet DC_IARD
B1: Accueil | D1: BAROMETRE BDD - DIRECTIONS REGIONALES
D2: IARD ET PREVOYANCE
D3: =ACCUEIL!F7 -> 2022-10-02
D7: Ventes Nettes produits pondérés | H7: Ventes sur client non détenteur de l’univers | L7: Total IARD Prévoyance
D8: =DATEMAJ!C23 -> au 02/10 | F8: coef | G8: ='RECAP DIRCOM'!BX4 -> 12% | H8: =DATEMAJ!C24 -> au 02/10 | J8: coef | K8: ='RECAP DIRCOM'!CB4 -> 8% | M8: coef | N8: ='RECAP DIRCOM'!CE4 -> 20%
B9: Direction | C9: ="ETP perf "&DATEMAJ!$C$28 -> ETP perf 02-oct | D9: VN | E9: VN / ETP | F9: % Ecart au 1er | G9: Rang | H9: VB | I9: VB / ETP | J9: % Ecart au 1er | K9: Rang | L9: Moyenne ecart au 1er | M9: % Ecart au 1er | N9: Rang CEGEE
A10: 50 | B10: Aube Haute Marne | C10: =VLOOKUP($A10,'RECAP DIRCOM'!$G$6:$CU$12,3,FALSE) -> 112 | D10: =VLOOKUP($A10,'RECAP DIRCOM'!$G$6:$CU$12,67,FALSE) -> 10,423 | E10: =VLOOKUP($A10,'RECAP DIRCOM'!$G$6:$CU$12,68,FALSE) -> 92.71 | F10: =VLOOKUP($A10,'RECAP DIRCOM'!$G$6:$CU$12,69,FALSE) -> 27% | G10: =VLOOKUP($A10,'RECAP DIRCOM'!$G$6:$CU$12,70,FALSE) -> 3 | H10: =VLOOKUP($A10,'RECAP DIRCOM'!$G$6:$CU$12,71,FALSE) -> 3,375 | I10: =VLOOKUP($A10,'RECAP DIRCOM'!$G$6:$CU$12,72,FALSE) -> 30.02 | J10: =VLOOKUP($A10,'RECAP DIRCOM'!$G$6:$CU$12,73,FALSE) -> 21% | K10: =VLOOKUP($A10,'RECAP DIRCOM'!$G$6:$CU$12,74,FALSE) -> 5 | L10: =VLOOKUP($A10,'RECAP DIRCOM'!$G$6:$CU$12,75,FALSE) -> 25% | M10: =VLOOKUP($A10,'RECAP DIRCOM'!$G$6:$CU$12,76,FALSE) -> 25% | N10: =VLOOKUP($A10,'RECAP DIRCOM'!$G$6:$CU$12,77,FALSE) -> 4
A11: 262 | B11: Bas-Rhin | C11: =VLOOKUP($A11,'RECAP DIRCOM'!$G$6:$CU$12,3,FALSE) -> 220 | D11: =VLOOKUP($A11,'RECAP DIRCOM'!$G$6:$CU$12,67,FALSE) -> 16,655 | E11: =VLOOKUP($A11,'RECAP DIRCOM'!$G$6:$CU$12,68,FALSE) -> 75.80 | F11: =VLOOKUP($A11,'RECAP DIRCOM'!$G$6:$CU$12,69,FALSE) -> 41% | G11: =VLOOKUP($A11,'RECAP DIRCOM'!$G$6:$CU$12,70,FALSE) -> 5 | H11: =VLOOKUP($A11,'RECAP DIRCOM'!$G$6:$CU$12,71,FALSE) -> 6,953 | I11: =VLOOKUP($A11,'RECAP DIRCOM'!$G$6:$CU$12,72,FALSE) -> 31.64 | J11: =VLOOKUP($A11,'RECAP DIRCOM'!$G$6:$CU$12,73,FALSE) -> 17% | K11: =VLOOKUP($A11,'RECAP DIRCOM'!$G$6:$CU$12,74,FALSE) -> 4 | L11: =VLOOKUP($A11,'RECAP DIRCOM'!$G$6:$CU$12,75,FALSE) -> 31% | M11: =VLOOKUP($A11,'RECAP DIRCOM'!$G$6:$CU$12,76,FALSE) -> 31% | N11: =VLOOKUP($A11,'RECAP DIRCOM'!$G$6:$CU$12,77,FALSE) -> 5
A12: 264 | B12: Haut-Rhin | C12: =VLOOKUP($A12,'RECAP DIRCOM'!$G$6:$CU$12,3,FALSE) -> 123 | D12: =VLOOKUP($A12,'RECAP DIRCOM'!$G$6:$CU$12,67,FALSE) -> 2,717 | E12: =VLOOKUP($A12,'RECAP DIRCOM'!$G$6:$CU$12,68,FALSE) -> 22.10 | F12: =VLOOKUP($A12,'RECAP DIRCOM'!$G$6:$CU$12,69,FALSE) -> 83% | G12: =VLOOKUP($A12,'RECAP DIRCOM'!$G$6:$CU$12,70,FALSE) -> 7 | H12: =VLOOKUP($A12,'RECAP DIRCOM'!$G$6:$CU$12,71,FALSE) -> 3,039 | I12: =VLOOKUP($A12,'RECAP DIRCOM'!$G$6:$CU$12,72,FALSE) -> 24.72 | J12: =VLOOKUP($A12,'RECAP DIRCOM'!$G$6:$CU$12,73,FALSE) -> 35% | K12: =VLOOKUP($A12,'RECAP DIRCOM'!$G$6:$CU$12,74,FALSE) -> 7 | L12: =VLOOKUP($A12,'RECAP DIRCOM'!$G$6:$CU$12,75,FALSE) -> 64% | M12: =VLOOKUP($A12,'RECAP DIRCOM'!$G$6:$CU$12,76,FALSE) -> 64% | N12: =VLOOKUP($A12,'RECAP DIRCOM'!$G$6:$CU$12,77,FALSE) -> 7
A13: 30 | B13: Marne-Ardennes | C13: =VLOOKUP($A13,'RECAP DIRCOM'!$G$6:$CU$12,3,FALSE) -> 193 | D13: =VLOOKUP($A13,'RECAP DIRCOM'!$G$6:$CU$12,67,FALSE) -> 24,665 | E13: =VLOOKUP($A13,'RECAP DIRCOM'!$G$6:$CU$12,68,FALSE) -> 127.76 | F13: =VLOOKUP($A13,'RECAP DIRCOM'!$G$6:$CU$12,69,FALSE) -> 0% | G13: =VLOOKUP($A13,'RECAP DIRCOM'!$G$6:$CU$12,70,FALSE) -> 1 | H13: =VLOOKUP($A13,'RECAP DIRCOM'!$G$6:$CU$12,71,FALSE) -> 7,371 | I13: =VLOOKUP($A13,'RECAP DIRCOM'!$G$6:$CU$12,72,FALSE) -> 38.18 | J13: =VLOOKUP($A13,'RECAP DIRCOM'!$G$6:$CU$12,73,FALSE) -> 0% | K13: =VLOOKUP($A13,'RECAP DIRCOM'!$G$6:$CU$12,74,FALSE) -> 1 | L13: =VLOOKUP($A13,'RECAP DIRCOM'!$G$6:$CU$12,75,FALSE) -> 0% | M13: =VLOOKUP($A13,'RECAP DIRCOM'!$G$6:$CU$12,76,FALSE) -> 0% | N13: =VLOOKUP($A13,'RECAP DIRCOM'!$G$6:$CU$12,77,FALSE) -> 1
A14: 110 | B14: Meurthe et Moselle Meuse | C14: =VLOOKUP($A14,'RECAP DIRCOM'!$G$6:$CU$12,3,FALSE) -> 204 | D14: =VLOOKUP($A14,'RECAP DIRCOM'!$G$6:$CU$12,67,FALSE) -> 17,659 | E14: =VLOOKUP($A14,'RECAP DIRCOM'!$G$6:$CU$12,68,FALSE) -> 86.61 | F14: =VLOOKUP($A14,'RECAP DIRCOM'!$G$6:$CU$12,69,FALSE) -> 32% | G14: =VLOOKUP($A14,'RECAP DIRCOM'!$G$6:$CU$12,70,FALSE) -> 4 | H14: =VLOOKUP($A14,'RECAP DIRCOM'!$G$6:$CU$12,71,FALSE) -> 6,900 | I14: =VLOOKUP($A14,'RECAP DIRCOM'!$G$6:$CU$12,72,FALSE) -> 33.84 | J14: =VLOOKUP($A14,'RECAP DIRCOM'!$G$6:$CU$12,73,FALSE) -> 11% | K14: =VLOOKUP($A14,'RECAP DIRCOM'!$G$6:$CU$12,74,FALSE) -> 3 | L14: =VLOOKUP($A14,'RECAP DIRCOM'!$G$6:$CU$12,75,FALSE) -> 24% | M14: =VLOOKUP($A14,'RECAP DIRCOM'!$G$6:$CU$12,76,FALSE) -> 24% | N14: =VLOOKUP($A14,'RECAP DIRCOM'!$G$6:$CU$12,77,FALSE) -> 3
A15: 160 | B15: Moselle | C15: =VLOOKUP($A15,'RECAP DIRCOM'!$G$6:$CU$12,3,FALSE) -> 222 | D15: =VLOOKUP($A15,'RECAP DIRCOM'!$G$6:$CU$12,67,FALSE) -> 27,657 | E15: =VLOOKUP($A15,'RECAP DIRCOM'!$G$6:$CU$12,68,FALSE) -> 124.55 | F15: =VLOOKUP($A15,'RECAP DIRCOM'!$G$6:$CU$12,69,FALSE) -> 3% | G15: =VLOOKUP($A15,'RECAP DIRCOM'!$G$6:$CU$12,70,FALSE) -> 2 | H15: =VLOOKUP($A15,'RECAP DIRCOM'!$G$6:$CU$12,71,FALSE) -> 8,476 | I15: =VLOOKUP($A15,'RECAP DIRCOM'!$G$6:$CU$12,72,FALSE) -> 38.17 | J15: =VLOOKUP($A15,'RECAP DIRCOM'!$G$6:$CU$12,73,FALSE) -> 0% | K15: =VLOOKUP($A15,'RECAP DIRCOM'!$G$6:$CU$12,74,FALSE) -> 2 | L15: =VLOOKUP($A15,'RECAP DIRCOM'!$G$6:$CU$12,75,FALSE) -> 2% | M15: =VLOOKUP($A15,'RECAP DIRCOM'!$G$6:$CU$12,76,FALSE) -> 2% | N15: =VLOOKUP($A15,'RECAP DIRCOM'!$G$6:$CU$12,77,FALSE) -> 2
A16: 80 | B16: Vosges | C16: =VLOOKUP($A16,'RECAP DIRCOM'!$G$6:$CU$12,3,FALSE) -> 117 | D16: =VLOOKUP($A16,'RECAP DIRCOM'!$G$6:$CU$12,67,FALSE) -> 8,378 | E16: =VLOOKUP($A16,'RECAP DIRCOM'!$G$6:$CU$12,68,FALSE) -> 71.70 | F16: =VLOOKUP($A16,'RECAP DIRCOM'!$G$6:$CU$12,69,FALSE) -> 44% | G16: =VLOOKUP($A16,'RECAP DIRCOM'!$G$6:$CU$12,70,FALSE) -> 6 | H16: =VLOOKUP($A16,'RECAP DIRCOM'!$G$6:$CU$12,71,FALSE) -> 3,194 | I16: =VLOOKUP($A16,'RECAP DIRCOM'!$G$6:$CU$12,72,FALSE) -> 27.34 | J16: =VLOOKUP($A16,'RECAP DIRCOM'!$G$6:$CU$12,73,FALSE) -> 28% | K16: =VLOOKUP($A16,'RECAP DIRCOM'!$G$6:$CU$12,74,FALSE) -> 6 | L16: =VLOOKUP($A16,'RECAP DIRCOM'!$G$6:$CU$12,75,FALSE) -> 38% | M16: =VLOOKUP($A16,'RECAP DIRCOM'!$G$6:$CU$12,76,FALSE) -> 38% | N16: =VLOOKUP($A16,'RECAP DIRCOM'!$G$6:$CU$12,77,FALSE) -> 6
B17: Total CEGEE Directions Régionales | C17: =SUM(C10:C16) -> 1191

Sheet DC_SATISFACTION
B1: Accueil | D1: BAROMETRE BDD - DIRECTIONS REGIONALES
D2: SATISFACTION
D3: =ACCUEIL!F7 -> 2022-10-02
D7: NPS à froid (SAE) | G7: NPS à chaud (QHD) | J7: Total Satisfaction Clients
D8: =DATEMAJ!E4 -> au 31/07 | E8: coef | F8: ='RECAP DIRCOM'!M4 -> 10% | G8: =DATEMAJ!C5 -> au 31/08 | H8: coef | I8: ='RECAP DIRCOM'!P4 -> 10% | K8: coef | L8: ='RECAP DIRCOM'!S4 -> 20%
B9: Direction | C9: ="ETP perf "&DATEMAJ!$C$28 -> ETP perf 02-oct | E9: % Ecart au 1er | F9: Rang | H9: % Ecart au 1er | I9: Rang | J9: Moyenne ecart au 1er | K9: % Ecart au 1er | L9: Rang CEGEE
A10: 50 | B10: Aube Haute Marne | C10: =VLOOKUP($A10,'RECAP DIRCOM'!$G$6:$CU$12,3,FALSE) -> 112 | D10: =VLOOKUP($A10,'RECAP DIRCOM'!$G$6:$CU$12,5,FALSE) -> 4.25 | E10: =VLOOKUP($A10,'RECAP DIRCOM'!$G$6:$CU$12,6,FALSE) -> 82% | F10: =VLOOKUP($A10,'RECAP DIRCOM'!$G$6:$CU$12,7,FALSE) -> 6 | G10: =VLOOKUP($A10,'RECAP DIRCOM'!$G$6:$CU$12,8,FALSE) -> 54% | H10: =VLOOKUP($A10,'RECAP DIRCOM'!$G$6:$CU$12,9,FALSE) -> 22% | I10: =VLOOKUP($A10,'RECAP DIRCOM'!$G$6:$CU$12,10,FALSE) -> 6 | J10: =VLOOKUP($A10,'RECAP DIRCOM'!$G$6:$CU$12,11,FALSE) -> 52% | K10: =VLOOKUP($A10,'RECAP DIRCOM'!$G$6:$CU$12,12,FALSE) -> 52% | L10: =VLOOKUP($A10,'RECAP DIRCOM'!$G$6:$CU$12,13,FALSE) -> 6
A11: 262 | B11: Bas-Rhin | C11: =VLOOKUP($A11,'RECAP DIRCOM'!$G$6:$CU$12,3,FALSE) -> 220 | D11: =VLOOKUP($A11,'RECAP DIRCOM'!$G$6:$CU$12,5,FALSE) -> 5.75 | E11: =VLOOKUP($A11,'RECAP DIRCOM'!$G$6:$CU$12,6,FALSE) -> 75% | F11: =VLOOKUP($A11,'RECAP DIRCOM'!$G$6:$CU$12,7,FALSE) -> 5 | G11: =VLOOKUP($A11,'RECAP DIRCOM'!$G$6:$CU$12,8,FALSE) -> 62% | H11: =VLOOKUP($A11,'RECAP DIRCOM'!$G$6:$CU$12,9,FALSE) -> 11% | I11: =VLOOKUP($A11,'RECAP DIRCOM'!$G$6:$CU$12,10,FALSE) -> 4 | J11: =VLOOKUP($A11,'RECAP DIRCOM'!$G$6:$CU$12,11,FALSE) -> 43% | K11: =VLOOKUP($A11,'RECAP DIRCOM'!$G$6:$CU$12,12,FALSE) -> 43% | L11: =VLOOKUP($A11,'RECAP DIRCOM'!$G$6:$CU$12,13,FALSE) -> 5
A12: 264 | B12: Haut-Rhin | C12: =VLOOKUP($A12,'RECAP DIRCOM'!$G$6:$CU$12,3,FALSE) -> 123 | D12: =VLOOKUP($A12,'RECAP DIRCOM'!$G$6:$CU$12,5,FALSE) -> 3 | E12: =VLOOKUP($A12,'RECAP DIRCOM'!$G$6:$CU$12,6,FALSE) -> 87% | F12: =VLOOKUP($A12,'RECAP DIRCOM'!$G$6:$CU$12,7,FALSE) -> 7 | G12: =VLOOKUP($A12,'RECAP DIRCOM'!$G$6:$CU$12,8,FALSE) -> 47% | H12: =VLOOKUP($A12,'RECAP DIRCOM'!$G$6:$CU$12,9,FALSE) -> 32% | I12: =VLOOKUP($A12,'RECAP DIRCOM'!$G$6:$CU$12,10,FALSE) -> 7 | J12: =VLOOKUP($A12,'RECAP DIRCOM'!$G$6:$CU$12,11,FALSE) -> 59% | K12: =VLOOKUP($A12,'RECAP DIRCOM'!$G$6:$CU$12,12,FALSE) -> 59% | L12: =VLOOKUP($A12,'RECAP DIRCOM'!$G$6:$CU$12,13,FALSE) -> 7
A13: 30 | B13: Marne-Ardennes | C13: =VLOOKUP($A13,'RECAP DIRCOM'!$G$6:$CU$12,3,FALSE) -> 193 | D13: =VLOOKUP($A13,'RECAP DIRCOM'!$G$6:$CU$12,5,FALSE) -> 17.25 | E13: =VLOOKUP($A13,'RECAP DIRCOM'!$G$6:$CU$12,6,FALSE) -> 26% | F13: =VLOOKUP($A13,'RECAP DIRCOM'!$G$6:$CU$12,7,FALSE) -> 2 | G13: =VLOOKUP($A13,'RECAP DIRCOM'!$G$6:$CU$12,8,FALSE) -> 66% | H13: =VLOOKUP($A13,'RECAP DIRCOM'!$G$6:$CU$12,9,FALSE) -> 5% | I13: =VLOOKUP($A13,'RECAP DIRCOM'!$G$6:$CU$12,10,FALSE) -> 2 | J13: =VLOOKUP($A13,'RECAP DIRCOM'!$G$6:$CU$12,11,FALSE) -> 15% | K13: =VLOOKUP($A13,'RECAP DIRCOM'!$G$6:$CU$12,12,FALSE) -> 15% | L13: =VLOOKUP($A13,'RECAP DIRCOM'!$G$6:$CU$12,13,FALSE) -> 2
A14: 110 | B14: Meurthe et Moselle Meuse | C14: =VLOOKUP($A14,'RECAP DIRCOM'!$G$6:$CU$12,3,FALSE) -> 204 | D14: =VLOOKUP($A14,'RECAP DIRCOM'!$G$6:$CU$12,5,FALSE) -> 10.75 | E14: =VLOOKUP($A14,'RECAP DIRCOM'!$G$6:$CU$12,6,FALSE) -> 54% | F14: =VLOOKUP($A14,'RECAP DIRCOM'!$G$6:$CU$12,7,FALSE) -> 4 | G14: =VLOOKUP($A14,'RECAP DIRCOM'!$G$6:$CU$12,8,FALSE) -> 61% | H14: =VLOOKUP($A14,'RECAP DIRCOM'!$G$6:$CU$12,9,FALSE) -> 12% | I14: =VLOOKUP($A14,'RECAP DIRCOM'!$G$6:$CU$12,10,FALSE) -> 5 | J14: =VLOOKUP($A14,'RECAP DIRCOM'!$G$6:$CU$12,11,FALSE) -> 33% | K14: =VLOOKUP($A14,'RECAP DIRCOM'!$G$6:$CU$12,12,FALSE) -> 33% | L14: =VLOOKUP($A14,'RECAP DIRCOM'!$G$6:$CU$12,13,FALSE) -> 4
A15: 160 | B15: Moselle | C15: =VLOOKUP($A15,'RECAP DIRCOM'!$G$6:$CU$12,3,FALSE) -> 222 | D15: =VLOOKUP($A15,'RECAP DIRCOM'!$G$6:$CU$12,5,FALSE) -> 15.25 | E15: =VLOOKUP($A15,'RECAP DIRCOM'!$G$6:$CU$12,6,FALSE) -> 34% | F15: =VLOOKUP($A15,'RECAP DIRCOM'!$G$6:$CU$12,7,FALSE) -> 3 | G15: =VLOOKUP($A15,'RECAP DIRCOM'!$G$6:$CU$12,8,FALSE) -> 62% | H15: =VLOOKUP($A15,'RECAP DIRCOM'!$G$6:$CU$12,9,FALSE) -> 10% | I15: =VLOOKUP($A15,'RECAP DIRCOM'!$G$6:$CU$12,10,FALSE) -> 3 | J15: =VLOOKUP($A15,'RECAP DIRCOM'!$G$6:$CU$12,11,FALSE) -> 22% | K15: =VLOOKUP($A15,'RECAP DIRCOM'!$G$6:$CU$12,12,FALSE) -> 22% | L15: =VLOOKUP($A15,'RECAP DIRCOM'!$G$6:$CU$12,13,FALSE) -> 3
A16: 80 | B16: Vosges | C16: =VLOOKUP($A16,'RECAP DIRCOM'!$G$6:$CU$12,3,FALSE) -> 117 | D16: =VLOOKUP($A16,'RECAP DIRCOM'!$G$6:$CU$12,5,FALSE) -> 23.25 | E16: =VLOOKUP($A16,'RECAP DIRCOM'!$G$6:$CU$12,6,FALSE) -> 0% | F16: =VLOOKUP($A16,'RECAP DIRCOM'!$G$6:$CU$12,7,FALSE) -> 1 | G16: =VLOOKUP($A16,'RECAP DIRCOM'!$G$6:$CU$12,8,FALSE) -> 69% | H16: =VLOOKUP($A16,'RECAP DIRCOM'!$G$6:$CU$12,9,FALSE) -> 0% | I16: =VLOOKUP($A16,'RECAP DIRCOM'!$G$6:$CU$12,10,FALSE) -> 1 | J16: =VLOOKUP($A16,'RECAP DIRCOM'!$G$6:$CU$12,11,FALSE) -> 0% | K16: =VLOOKUP($A16,'RECAP DIRCOM'!$G$6:$CU$12,12,FALSE) -> 0% | L16: =VLOOKUP($A16,'RECAP DIRCOM'!$G$6:$CU$12,13,FALSE) -> 1
B17: Total CEGEE Directions Régionales | C17: =SUM(C10:C16) -> 1191

Sheet SE_FICHE
A1: Accueil
A2: BAROMETRE BDD
A4: UNITE: | B4: TERRITOIRE | E4: ETP perf : | F4: =VLOOKUP(A5,'RECAP SECT'!$G$6:$I$23,3,FALSE) -> 46.29
A5: =VLOOKUP(B5,LISTES!$H$6:$I$23,2,FALSE) -> 5130 | B5: COLMAR
C6: Coefficient du critére | E6: Résultats | I6: Ecart au 1ier | M6: Evolution | O6: Rang
E7: du 1ier | G7: du territoire | I7: Du mois | K7: Au 31/12/2019
A9: RANG au CLASSEMENT GENERAL | K9: =VLOOKUP($A$5,#REF!,168,FALSE) ->  | M9: =+K9-O9 ->  | O9: =VLOOKUP($A$5,'RECAP SECT'!$G$6:$CY$312,168,FALSE) ->  | S9: =VLOOKUP($A$5,#REF!,154,FALSE) ->  | U9: =+S9-O9 -> 
A11: CRITERE CONQUETE | C11: 15% | O11: =VLOOKUP($A$5,'RECAP SECT'!$G$6:$CY$312,23,FALSE) -> 45.79822856
B12: PNB Evolution nette Clients BP | C12: 4% | E12: ='RECAP SECT'!#REF! ->  | G12: =VLOOKUP($A$5,'RECAP SECT'!$G$6:$CY$312,6,FALSE) -> 0.9 | I12: =VLOOKUP($A$5,'RECAP SECT'!$G$6:$CY$312,7,FALSE) -> 1500% | K12: =VLOOKUP($A$5,#REF!,7,FALSE) ->  | M12: =+K12-I12 ->  | O12: =VLOOKUP($A$5,'RECAP SECT'!$G$6:$CY$312,8,FALSE) -> 0.5025046922 | S12: =VLOOKUP($A$5,#REF!,6,FALSE) ->  | U12: =+S12-I12 -> 
B13: PNB Evolution nette Clients PREMIUM | C13: 5% | E13: ='RECAP SECT'!#REF! ->  | G13: =VLOOKUP($A$5,'RECAP SECT'!$G$6:$CY$312,10,FALSE) -> 16.0 | I13: =VLOOKUP($A$5,'RECAP SECT'!$G$6:$CY$312,11,FALSE) -> 61% | K13: =VLOOKUP($A$5,#REF!,11,FALSE) ->  | M13: =+K13-I13 ->  | O13: =VLOOKUP($A$5,'RECAP SECT'!$G$6:$CY$312,12,FALSE) -> 0.5790563846 | S13: =VLOOKUP($A$5,#REF!,9,FALSE) ->  | U13: =+S13-I13 -> 
B14: PNB Evolution nette Clients Jeunes Equipés | C14: 3% | E14: ='RECAP SECT'!#REF! ->  | G14: =VLOOKUP($A$5,'RECAP SECT'!$G$6:$CY$312,14,FALSE) -> 0.0 | I14: =VLOOKUP($A$5,'RECAP SECT'!$G$6:$CY$312,15,FALSE) -> 0% | K14: =VLOOKUP($A$5,#REF!,15,FALSE) ->  | M14: =+K14-I14 ->  | O14: =VLOOKUP($A$5,'RECAP SECT'!$G$6:$CY$312,16,FALSE) -> 0 | S14: =VLOOKUP($A$5,#REF!,12,FALSE) ->  | U14: =+S14-I14 -> 
B15: PNB Evolution nette Clients Pro Actifs Equipés | C15: 3% | E15: ='RECAP SECT'!W4 -> 0.0 | G15: =VLOOKUP($A$5,'RECAP SECT'!$G$6:$CY$312,18,FALSE) -> 411.9 | I15: =VLOOKUP($A$5,'RECAP SECT'!$G$6:$CY$312,19,FALSE) -> 890% | K15: =VLOOKUP($A$5,#REF!,19,FALSE) ->  | M15: =+K15-I15 ->  | O15: =VLOOKUP($A$5,'RECAP SECT'!$G$6:$CY$312,20,FALSE) -> 0.7512706823 | S15: =VLOOKUP($A$5,#REF!,15,FALSE) ->  | U15: =+S15-I15 -> 
A17: CRITERE BANCARISATION | C17: 15% | O17: =VLOOKUP($A$5,'RECAP SECT'!$G$6:$CY$312,48,FALSE) -> 8096.28203
B18: PNB Ventes nettes forfaits | C18: 4% | E18: ='RECAP SECT'!X4 -> 35.8 | G18: =VLOOKUP($A$5,'RECAP SECT'!$G$6:$CY$312,31,FALSE) -> 0.0 | I18: =VLOOKUP($A$5,'RECAP SECT'!$G$6:$CY$312,32,FALSE) -> 0% | K18: =VLOOKUP($A$5,#REF!,32,FALSE) ->  | M18: =+K18-I18 ->  | O18: =VLOOKUP($A$5,'RECAP SECT'!$G$6:$CY$312,33,FALSE) -> 7093.072291 | S18: =VLOOKUP($A$5,#REF!,27,FALSE) ->  | U18: =+S18-I18 -> 
B19: PNB Ventes nettes IZICARTES Débit Différé | C19: 4% | E19: ='RECAP SECT'!AB4 -> 83.7 | G19: =VLOOKUP($A$5,'RECAP SECT'!$G$6:$CY$312,35,FALSE) -> 0.7 | I19: =VLOOKUP($A$5,'RECAP SECT'!$G$6:$CY$312,36,FALSE) -> 1600% | K19: =VLOOKUP($A$5,#REF!,36,FALSE) ->  | M19: =+K19-I19 ->  | O19: =VLOOKUP($A$5,'RECAP SECT'!$G$6:$CY$312,37,FALSE) -> 1922 | S19: =VLOOKUP($A$5,#REF!,30,FALSE) ->  | U19: =+S19-I19 -> 
B20: PNB Ventes nettes cartes HDG Débit Différé | C20: 4% | E20: ='RECAP SECT'!#REF! ->  | G20: =VLOOKUP($A$5,'RECAP SECT'!$G$6:$CY$312,39,FALSE) -> 0.5 | I20: =VLOOKUP($A$5,'RECAP SECT'!$G$6:$CY$312,40,FALSE) -> 1800% | K20: =VLOOKUP($A$5,#REF!,40,FALSE) ->  | M20: =+K20-I20 ->  | O20: =VLOOKUP($A$5,'RECAP SECT'!$G$6:$CY$312,41,FALSE) -> 0.5907712335 | S20: =VLOOKUP($A$5,#REF!,33,FALSE) ->  | U20: =+S20-I20 -> 
B21: PNB Ventes nettes Forfaits Pro, Carte pro | C21: 3% | E21: ='RECAP SECT'!#REF! ->  | G21: =VLOOKUP($A$5,'RECAP SECT'!$G$6:$CY$312,43,FALSE) -> 16.0 | I21: =VLOOKUP($A$5,'RECAP SECT'!$G$6:$CY$312,44,FALSE) -> 0% | K21: =VLOOKUP($A$5,#REF!,44,FALSE) ->  | M21: =+K21-I21 ->  | O21: =VLOOKUP($A$5,'RECAP SECT'!$G$6:$CY$312,45,FALSE) -> 0 | S21: =VLOOKUP($A$5,#REF!,39,FALSE) ->  | U21: =+S21-I21 -> 
A23: CRITERE EPARGNE | C23: 10% | O23: =VLOOKUP($A$5,'RECAP SECT'!$G$6:$CY$312,69,FALSE) -> 0.7207583193
B24: PNB Epargne Liquide | C24: 3% | E24: ='RECAP SECT'!AM4 -> 457.4 | G24: =VLOOKUP($A$5,'RECAP SECT'!$G$6:$CY$312,56,FALSE) -> 779.0 | I24: =VLOOKUP($A$5,'RECAP SECT'!$G$6:$CY$312,57,FALSE) -> 1683% | K24: =VLOOKUP($A$5,#REF!,57,FALSE) ->  | M24: =+K24-I24 ->  | O24: =VLOOKUP($A$5,'RECAP SECT'!$G$6:$CY$312,58,FALSE) -> 0.590433597 | S24: =VLOOKUP($A$5,#REF!,51,FALSE) ->  | U24: =+S24-I24 -> 
B25: PNB CA UC + arbitrage | C25: 4% | E25: ='RECAP SECT'!AQ4 -> 79.8 | G25: =VLOOKUP($A$5,'RECAP SECT'!$G$6:$CY$312,60,FALSE) -> 0.5 | I25: =VLOOKUP($A$5,'RECAP SECT'!$G$6:$CY$312,61,FALSE) -> 48% | K25: =VLOOKUP($A$5,#REF!,61,FALSE) ->  | M25: =+K25-I25 ->  | O25: =VLOOKUP($A$5,'RECAP SECT'!$G$6:$CY$312,62,FALSE) -> 18 | S25: =VLOOKUP($A$5,#REF!,57,FALSE) ->  | U25: =+S25-I25 -> 
B26: PNB Excédent assurance vie | C26: 3% | E26: ='RECAP SECT'!#REF! ->  | G26: =VLOOKUP($A$5,'RECAP SECT'!$G$6:$CY$312,64,FALSE) -> 0.0 | I26: =VLOOKUP($A$5,'RECAP SECT'!$G$6:$CY$312,65,FALSE) -> 0% | K26: =VLOOKUP($A$5,#REF!,65,FALSE) ->  | M26: =+K26-I26 ->  | O26: =VLOOKUP($A$5,'RECAP SECT'!$G$6:$CY$312,66,FALSE) -> 0 | S26: =VLOOKUP($A$5,#REF!,60,FALSE) ->  | U26: =+S26-I26 -> 
A28: CRITERE CREDITS | C28: 15% | O28: =VLOOKUP($A$5,'RECAP SECT'!$G$6:$CY$312,102,FALSE) -> 
B29: PNB crédit conso | C29: 4% | E29: ='RECAP SECT'!BB4 -> 580.0 | G29: =VLOOKUP($A$5,'RECAP SECT'!$G$6:$CY$312,77,FALSE) -> 17.0 | I29: =VLOOKUP($A$5,'RECAP SECT'!$G$6:$CY$312,78,FALSE) -> 0% | K29: =VLOOKUP($A$5,#REF!,78,FALSE) ->  | M29: =+K29-I29 ->  | O29: =VLOOKUP($A$5,'RECAP SECT'!$G$6:$CY$312,79,FALSE) -> 0 | S29: =VLOOKUP($A$5,#REF!,75,FALSE) ->  | U29: =+S29-I29 -> 
B30: PNB ADE crédit conso | C30: 1% | E30: ='RECAP SECT'!#REF! ->  | G30: =VLOOKUP($A$5,'RECAP SECT'!$G$6:$CY$312,81,FALSE) -> 0.0 | I30: =VLOOKUP($A$5,'RECAP SECT'!$G$6:$CY$312,82,FALSE) -> 0% | K30: =VLOOKUP($A$5,#REF!,82,FALSE) ->  | O30: =VLOOKUP($A$5,'RECAP SECT'!$G$6:$CY$312,83,FALSE) -> 0 | S30: =VLOOKUP($A$5,#REF!,78,FALSE) -> 
B31: PNB crédit immo | C31: 4% | E31: ='RECAP SECT'!BF4 -> 61.8 | G31: =VLOOKUP($A$5,'RECAP SECT'!$G$6:$CY$312,85,FALSE) -> 0.0 | I31: =VLOOKUP($A$5,'RECAP SECT'!$G$6:$CY$312,86,FALSE) -> 0% | K31: =VLOOKUP($A$5,#REF!,86,FALSE) ->  | O31: =VLOOKUP($A$5,'RECAP SECT'!$G$6:$CY$312,87,FALSE) -> 0 | S31: =VLOOKUP($A$5,#REF!,81,FALSE) -> 
B32: PNB ADE crédit immo | C32: 2% | E32: ='RECAP SECT'!#REF! ->  | G32: =VLOOKUP($A$5,'RECAP SECT'!$G$6:$CY$312,89,FALSE) -> 0.0 | I32: =VLOOKUP($A$5,'RECAP SECT'!$G$6:$CY$312,90,FALSE) -> 0% | K32: =VLOOKUP($A$5,#REF!,90,FALSE) ->  | O32: =VLOOKUP($A$5,'RECAP SECT'!$G$6:$CY$312,91,FALSE) -> 0 | S32: =VLOOKUP($A$5,#REF!,84,FALSE) -> 
B33: PNB SACCEF | C33: 2% | E33: ='RECAP SECT'!#REF! ->  | G33: =VLOOKUP($A$5,'RECAP SECT'!$G$6:$CY$312,93,FALSE) -> 0.0 | I33: =VLOOKUP($A$5,'RECAP SECT'!$G$6:$CY$312,94,FALSE) -> 56% | K33: =VLOOKUP($A$5,#REF!,94,FALSE) ->  | O33: =VLOOKUP($A$5,'RECAP SECT'!$G$6:$CY$312,95,FALSE) -> 0.4889050912 | S33: =VLOOKUP($A$5,#REF!,87,FALSE) -> 
B34: PNB Crédit MLT + Crédit Bail | C34: 2% | E34: ='RECAP SECT'!BJ4 -> 41.1 | G34: =VLOOKUP($A$5,'RECAP SECT'!$G$6:$CY$312,97,FALSE) -> 0.0 | I34: =VLOOKUP($A$5,'RECAP SECT'!$G$6:$CY$312,98,FALSE) ->  | K34: =VLOOKUP($A$5,#REF!,98,FALSE) ->  | O34: =VLOOKUP($A$5,'RECAP SECT'!$G$6:$CY$312,99,FALSE) ->  | S34: =VLOOKUP($A$5,#REF!,90,FALSE) -> 
A36: CRITERE IARD PREVOYANCE | C36: 15% | O36: =VLOOKUP($A$5,'RECAP SECT'!$G$6:$CY$312,119,FALSE) -> 
B37: PNB Ventes nettes IARD | C37: 9% | E37: ='RECAP SECT'!BU4 -> 190.1 | G37: =VLOOKUP($A$5,'RECAP SECT'!$G$6:$CY$312,110,FALSE) ->  | I37: =VLOOKUP($A$5,'RECAP SECT'!$G$6:$CY$312,111,FALSE) ->  | K37: =VLOOKUP($A$5,#REF!,111,FALSE) ->  | M37: =+K37-I37 ->  | O37: =VLOOKUP($A$5,'RECAP SECT'!$G$6:$CY$312,112,FALSE) ->  | S37: =VLOOKUP($A$5,#REF!,102,FALSE) ->  | U37: =+S37-I37 -> 
B38: PNB Ventes nettes Prévoyance | C38: 6% | E38: ='RECAP SECT'!BY4 -> 52.9 | G38: =VLOOKUP($A$5,'RECAP SECT'!$G$6:$CY$312,114,FALSE) ->  | I38: =VLOOKUP($A$5,'RECAP SECT'!$G$6:$CY$312,115,FALSE) ->  | K38: =VLOOKUP($A$5,#REF!,115,FALSE) ->  | M38: =+K38-I38 ->  | O38: =VLOOKUP($A$5,'RECAP SECT'!$G$6:$CY$312,116,FALSE) ->  | S38: =VLOOKUP($A$5,#REF!,105,FALSE) ->  | U38: =+S38-I38 -> 
A40: CRITERE ACCELERATEURS PNB | C40: 15% | O40: =VLOOKUP($A$5,'RECAP SECT'!$G$6:$CY$312,144,FALSE) -> 
B41: PNB Ventes brutes SED Finalisées | C41: 6% | E41: ='RECAP SECT'!#REF! ->  | G41: =VLOOKUP($A$5,'RECAP SECT'!$G$6:$CY$312,127,FALSE) ->  | I41: =VLOOKUP($A$5,'RECAP SECT'!$G$6:$CY$312,128,FALSE) ->  | K41: =VLOOKUP($A$5,#REF!,128,FALSE) ->  | M41: =+K41-I41 ->  | O41: =VLOOKUP($A$5,'RECAP SECT'!$G$6:$CY$312,129,FALSE) ->  | S41: =VLOOKUP($A$5,#REF!,120,FALSE) ->  | U41: =+S41-I41 -> 
B42: PNB clients équipés E documents | C42: 3% | E42: ='RECAP SECT'!#REF! ->  | G42: =VLOOKUP($A$5,'RECAP SECT'!$G$6:$CY$312,131,FALSE) ->  | I42: =VLOOKUP($A$5,'RECAP SECT'!$G$6:$CY$312,132,FALSE) ->  | K42: =VLOOKUP($A$5,#REF!,132,FALSE) ->  | M42: =+K42-I42 ->  | O42: =VLOOKUP($A$5,'RECAP SECT'!$G$6:$CY$312,133,FALSE) ->  | S42: =VLOOKUP($A$5,#REF!,123,FALSE) ->  | U42: =+S42-I42 -> 
B43: Economie opt'in | C43: 3% | E43: ='RECAP SECT'!#REF! ->  | G43: =VLOOKUP($A$5,'RECAP SECT'!$G$6:$CY$312,135,FALSE) ->  | I43: =VLOOKUP($A$5,'RECAP SECT'!$G$6:$CY$312,136,FALSE) ->  | K43: =VLOOKUP($A$5,#REF!,136,FALSE) ->  | M43: =+K43-I43 ->  | O43: =VLOOKUP($A$5,'RECAP SECT'!$G$6:$CY$312,137,FALSE) -> 
B44: Remises commerciales | C44: 3% | E44: ='RECAP SECT'!#REF! ->  | G44: =VLOOKUP($A$5,'RECAP SECT'!$G$6:$CY$312,139,FALSE) ->  | I44: =VLOOKUP($A$5,'RECAP SECT'!$G$6:$CY$312,140,FALSE) ->  | K44: =VLOOKUP($A$5,#REF!,140,FALSE) ->  | M44: =+K44-I44 ->  | O44: =VLOOKUP($A$5,'RECAP SECT'!$G$6:$CY$312,141,FALSE) ->  | S44: =VLOOKUP($A$5,#REF!,126,FALSE) ->  | U44: =+S44-I44 -> 
A46: CRITERE Satisfaction Clients | C46: 15% | O46: =VLOOKUP($A$5,'RECAP SECT'!$G$6:$CY$312,159,FALSE) -> 
B47: Objectifs NPS* | C47: 8% | E47: ='RECAP SECT'!K4 -> 25 | G47: =VLOOKUP($A$5,'RECAP SECT'!$G$6:$CY$312,151,FALSE) ->  | I47: =VLOOKUP($A$5,'RECAP SECT'!$G$6:$CY$312,152,FALSE) ->  | K47: =VLOOKUP($A$5,#REF!,152,FALSE) ->  | M47: =+K47-I47 ->  | O47: =VLOOKUP($A$5,'RECAP SECT'!$G$6:$CY$312,153,FALSE) ->  | S47: =VLOOKUP($A$5,#REF!,138,FALSE) ->  | U47: =+S47-I47 -> 
B48: Enquête Qualité Haute Définition | C48: 7% | E48: ='RECAP SECT'!N4 -> 74% | G48: =VLOOKUP($A$5,'RECAP SECT'!$G$6:$CY$312,154,FALSE) ->  | I48: =VLOOKUP($A$5,'RECAP SECT'!$G$6:$CY$312,155,FALSE) ->  | K48: =VLOOKUP($A$5,#REF!,155,FALSE) ->  | M48: =+K48-I48 ->  | O48: =VLOOKUP($A$5,'RECAP SECT'!$G$6:$CY$312,156,FALSE) ->  | S48: =VLOOKUP($A$5,#REF!,141,FALSE) ->  | U48: =+S48-I48 -> 

Sheet SE_TOTAL
B1: Accueil | F1: BAROMETRE BDD - TERRITOIRES
F2: TOTAL GENERAL
F3: =ACCUEIL!F7 -> 2022-10-02
F7: TOTAL GENERAL | I7: Total Satisfaction Clients | L7: Total Bancarisation | O7: Total Epargne | R7: Total IARD Prévoyance | U7: Total Crédits
G8: coef | H8: =K8+N8+Q8+T8+W8 -> 100% | J8: coef | K8: =SE_SATISFACTION!N8 -> 20% | M8: coef | N8: =SE_BANCA!P8 -> 20% | P8: coef | Q8: =SE_EPARGNE!P8 -> 20% | S8: coef | T8: =SE_IARD!P8 -> 20% | V8: coef | W8: =SE_CREDIT!T8 -> 20%
B9: Direction | C9: eds | D9: Territoire | E9: ="ETP perf "&DATEMAJ!$C$28 -> ETP perf 02-oct | F9: Moyenne ecart au 1er | G9: % Ecart au 1er | H9: Rang CEGEE | I9: Moyenne ecart au 1er | J9: % Ecart au 1er | K9: Rang CEGEE | L9: Moyenne ecart au 1er | M9: % Ecart au 1er | N9: Rang CEGEE | O9: Moyenne ecart au 1er | P9: % Ecart au 1er | Q9: Rang CEGEE | R9: Moyenne ecart au 1er | S9: % Ecart au 1er | T9: Rang CEGEE | U9: Moyenne ecart au 1er | V9: % Ecart au 1er | W9: Rang CEGEE
A10: 50 | B10: MARNE-ARDENNES | C10: 11 | D10: REIMS | E10: 68.0 | F10: 8% | G10: 0% | H10: 1 | I10: 24% | J10: 21% | K10: 7 | L10: 0% | M10: 0% | N10: 1 | O10: 12% | P10: 8% | Q10: 2 | R10: 10% | S10: 10% | T10: 2 | U10: 4% | V10: 0% | W10: 1
A11: 50 | B11: MOSELLE | C11: 44 | D11: MOSELLE NORD | E11: 55.9 | F11: 16% | G11: 9% | H11: 2 | I11: 42% | J11: 39% | K11: 13 | L11: 8% | M11: 8% | N11: 2 | O11: 32% | P11: 28% | Q11: 11 | R11: 1% | S11: 0% | T11: 1 | U11: 9% | V11: 5% | W11: 2
A12: 262 | B12: MARNE-ARDENNES | C12: 6 | D12: CHALONS EN CHAMPAGNE | E12: 37.5 | F12: 17% | G12: 9% | H12: 3 | I12: 3% | J12: 0% | K12: 1 | L12: 21% | M12: 21% | N12: 3 | O12: 30% | P12: 26% | Q12: 9 | R12: 17% | S12: 16% | T12: 4 | U12: 26% | V12: 22% | W12: 5
A13: 262 | B13: MARNE-ARDENNES | C13: 2 | D13: CHARLEVILLE MEZIERES | E13: 48.5 | F13: 23% | G13: 15% | H13: 4 | I13: 26% | J13: 24% | K13: 8 | L13: 36% | M13: 36% | N13: 6 | O13: 26% | P13: 22% | Q13: 5 | R13: 15% | S13: 14% | T13: 3 | U13: 22% | V13: 18% | W13: 3
A14: 262 | B14: MOSELLE | C14: 42 | D14: MOSELLE EST | E14: 58.5 | F14: 23% | G14: 15% | H14: 5 | I14: 13% | J14: 10% | K14: 4 | L14: 26% | M14: 26% | N14: 4 | O14: 43% | P14: 38% | Q14: 13 | R14: 17% | S14: 17% | T14: 5 | U14: 27% | V14: 23% | W14: 6
A15: 264 | B15: BAS-RHIN | C15: 5006 | D15: STRASBOURG | E15: 65.2 | F15: 24% | G15: 17% | H15: 6 | I15: 36% | J15: 33% | K15: 11 | L15: 31% | M15: 31% | N15: 5 | O15: 4% | P15: 0% | Q15: 1 | R15: 22% | S15: 21% | T15: 7 | U15: 41% | V15: 37% | W15: 11
A16: 264 | B16: AUBE HAUTE MARNE | C16: 21 | D16: CHAUMONT | E16: 33.7 | F16: 27% | G16: 19% | H16: 7 | I16: 18% | J16: 15% | K16: 6 | L16: 44% | M16: 44% | N16: 14 | O16: 27% | P16: 22% | Q16: 6 | R16: 18% | S16: 17% | T16: 6 | U16: 39% | V16: 34% | W16: 10
A17: 30 | B17: MOSELLE | C17: 45 | D17: METZ | E17: 72.8 | F17: 27% | G17: 20% | H17: 8 | I17: 30% | J17: 27% | K17: 9 | L17: 40% | M17: 40% | N17: 8 | O17: 13% | P17: 9% | Q17: 3 | R17: 35% | S17: 34% | T17: 9 | U17: 31% | V17: 27% | W17: 8
A18: 30 | B18: MEURTHE ET MOSELLE MEUSE | C18: 26 | D18: NANCY | E18: 54.8 | F18: 30% | G18: 22% | H18: 9 | I18: 32% | J18: 29% | K18: 10 | L18: 40% | M18: 40% | N18: 10 | O18: 26% | P18: 22% | Q18: 4 | R18: 38% | S18: 38% | T18: 11 | U18: 24% | V18: 20% | W18: 4
A19: 30 | B19: VOSGES | C19: 57 | D19: EPINAL | E19: 53.0 | F19: 30% | G19: 22% | H19: 10 | I19: 9% | J19: 6% | K19: 3 | L19: 40% | M19: 40% | N19: 9 | O19: 28% | P19: 24% | Q19: 8 | R19: 43% | S19: 42% | T19: 12 | U19: 42% | V19: 38% | W19: 13
A20: 110 | B20: MEURTHE ET MOSELLE MEUSE | C20: 31 | D20: VERDUN | E20: 48.4 | F20: 32% | G20: 25% | H20: 11 | I20: 13% | J20: 10% | K20: 5 | L20: 37% | M20: 37% | N20: 7 | O20: 50% | P20: 46% | Q20: 15 | R20: 38% | S20: 37% | T20: 10 | U20: 34% | V20: 30% | W20: 9
A21: 110 | B21: MEURTHE ET MOSELLE MEUSE | C21: 27 | D21: PONT A MOUSSON | E21: 60.2 | F21: 35% | G21: 27% | H21: 12 | I21: 59% | J21: 56% | K21: 15 | L21: 41% | M21: 41% | N21: 11 | O21: 31% | P21: 27% | Q21: 10 | R21: 27% | S21: 26% | T21: 8 | U21: 28% | V21: 24% | W21: 7
A22: 110 | B22: VOSGES | C22: 55 | D22: SAINT DIE | E22: 40.2 | F22: 36% | G22: 29% | H22: 13 | I22: 3% | J22: 0% | K22: 2 | L22: 52% | M22: 52% | N22: 15 | O22: 47% | P22: 43% | Q22: 14 | R22: 50% | S22: 49% | T22: 16 | U22: 42% | V22: 38% | W22: 12
A23: 160 | B23: BAS-RHIN | C23: 5060 | D23: HAGUENAU | E23: 55.2 | F23: 39% | G23: 31% | H23: 14 | I23: 39% | J23: 36% | K23: 12 | L23: 43% | M23: 43% | N23: 12 | O23: 27% | P23: 23% | Q23: 7 | R23: 49% | S23: 48% | T23: 14 | U23: 50% | V23: 45% | W23: 16
A24: 160 | B24: BAS-RHIN | C24: 5101 | D24: SELESTAT | E24: 51.3 | F24: 43% | G24: 36% | H24: 15 | I24: 56% | J24: 53% | K24: 14 | L24: 43% | M24: 43% | N24: 13 | O24: 33% | P24: 29% | Q24: 12 | R24: 49% | S24: 49% | T24: 15 | U24: 47% | V24: 42% | W24: 15
A25: 160 | B25: AUBE HAUTE MARNE | C25: 14 | D25: TROYES | E25: 54.2 | F25: 53% | G25: 45% | H25: 16 | I25: 67% | J25: 64% | K25: 18 | L25: 57% | M25: 57% | N25: 16 | O25: 65% | P25: 61% | Q25: 17 | R25: 43% | S25: 43% | T25: 13 | U25: 43% | V25: 39% | W25: 14
A26: 80 | B26: HAUT-RHIN | C26: 5130 | D26: COLMAR | E26: 46.3 | F26: 56% | G26: 49% | H26: 17 | I26: 61% | J26: 58% | K26: 16 | L26: 63% | M26: 63% | N26: 17 | O26: 59% | P26: 55% | Q26: 16 | R26: 59% | S26: 58% | T26: 17 | U26: 52% | V26: 48% | W26: 18
A27: 80 | B27: HAUT-RHIN | C27: 5169 | D27: MULHOUSE | E27: 46.8 | F27: 68% | G27: 60% | H27: 18 | I27: 63% | J27: 60% | K27: 17 | L27: 73% | M27: 73% | N27: 18 | O27: 92% | P27: 88% | Q27: 18 | R27: 73% | S27: 73% | T27: 18 | U27: 50% | V27: 45% | W27: 17
A28: Total CEGEE Directions Régionales | E28: =SUM(E10:E27) -> 950

Sheet SE_BANCA
B1: Accueil | F1: BAROMETRE BDD - TERRITOIRES
F2: BANCARISATION
F3: =ACCUEIL!F7 -> 2022-10-02
F7: Ventes Nettes produits pondérés | J7: Ventes sur client non détenteur de l’univers | N7: Total Bancarisation
F8: =DATEMAJ!C8 -> au 02/10 | H8: coef | I8: ='RECAP DIRCOM'!AA4 -> 12% | J8: =DATEMAJ!C9 -> au 02/10 | L8: coef | M8: ='RECAP DIRCOM'!AE4 -> 8% | O8: coef | P8: ='RECAP DIRCOM'!AH4 -> 20%
B9: Direction | C9: eds | D9: Territoire | E9: ="ETP perf "&DATEMAJ!$C$28 -> ETP perf 02-oct | F9: VN | G9: VN / ETP | H9: % Ecart au 1er | I9: Rang | J9: VB | K9: VB / ETP | L9: % Ecart au 1er | M9: Rang | N9: Moyenne ecart au 1er | O9: % Ecart au 1er | P9: Rang CEGEE
A10: 50 | B10: AUBE HAUTE MARNE | C10: 21 | D10: CHAUMONT | E10: =VLOOKUP($C10,'RECAP SECT'!$G$6:$CU$253,3,FALSE) -> 33.7 | F10: =VLOOKUP($C10,'RECAP SECT'!$G$6:$CU$253,18,FALSE) -> 570 | G10: =VLOOKUP($C10,'RECAP SECT'!$G$6:$CU$253,19,FALSE) -> 16.92 | H10: =VLOOKUP($C10,'RECAP SECT'!$G$6:$CU$253,20,FALSE) -> 53% | I10: =VLOOKUP($C10,'RECAP SECT'!$G$6:$CU$253,21,FALSE) -> 13 | J10: =VLOOKUP($C10,'RECAP SECT'!$G$6:$CU$253,22,FALSE) -> 1,948 | K10: =VLOOKUP($C10,'RECAP SECT'!$G$6:$CU$253,23,FALSE) -> 57.82 | L10: =VLOOKUP($C10,'RECAP SECT'!$G$6:$CU$253,24,FALSE) -> 31% | M10: =VLOOKUP($C10,'RECAP SECT'!$G$6:$CU$253,25,FALSE) -> 11 | N10: =VLOOKUP($C10,'RECAP SECT'!$G$6:$CU$253,26,FALSE) -> 44% | O10: =VLOOKUP($C10,'RECAP SECT'!$G$6:$CU$253,27,FALSE) -> 44% | P10: =VLOOKUP($C10,'RECAP SECT'!$G$6:$CU$253,28,FALSE) -> 14
A11: 50 | B11: AUBE HAUTE MARNE | C11: 14 | D11: TROYES | E11: =VLOOKUP($C11,'RECAP SECT'!$G$6:$CU$253,3,FALSE) -> 54.2 | F11: =VLOOKUP($C11,'RECAP SECT'!$G$6:$CU$253,18,FALSE) -> 510 | G11: =VLOOKUP($C11,'RECAP SECT'!$G$6:$CU$253,19,FALSE) -> 9.40 | H11: =VLOOKUP($C11,'RECAP SECT'!$G$6:$CU$253,20,FALSE) -> 74% | I11: =VLOOKUP($C11,'RECAP SECT'!$G$6:$CU$253,21,FALSE) -> 16 | J11: =VLOOKUP($C11,'RECAP SECT'!$G$6:$CU$253,22,FALSE) -> 3,122 | K11: =VLOOKUP($C11,'RECAP SECT'!$G$6:$CU$253,23,FALSE) -> 57.58 | L11: =VLOOKUP($C11,'RECAP SECT'!$G$6:$CU$253,24,FALSE) -> 31% | M11: =VLOOKUP($C11,'RECAP SECT'!$G$6:$CU$253,25,FALSE) -> 12 | N11: =VLOOKUP($C11,'RECAP SECT'!$G$6:$CU$253,26,FALSE) -> 57% | O11: =VLOOKUP($C11,'RECAP SECT'!$G$6:$CU$253,27,FALSE) -> 57% | P11: =VLOOKUP($C11,'RECAP SECT'!$G$6:$CU$253,28,FALSE) -> 16
A12: 262 | B12: BAS-RHIN | C12: 5060 | D12: HAGUENAU | E12: =VLOOKUP($C12,'RECAP SECT'!$G$6:$CU$253,3,FALSE) -> 55.2 | F12: =VLOOKUP($C12,'RECAP SECT'!$G$6:$CU$253,18,FALSE) -> 1,085 | G12: =VLOOKUP($C12,'RECAP SECT'!$G$6:$CU$253,19,FALSE) -> 19.65 | H12: =VLOOKUP($C12,'RECAP SECT'!$G$6:$CU$253,20,FALSE) -> 45% | I12: =VLOOKUP($C12,'RECAP SECT'!$G$6:$CU$253,21,FALSE) -> 7 | J12: =VLOOKUP($C12,'RECAP SECT'!$G$6:$CU$253,22,FALSE) -> 2,794 | K12: =VLOOKUP($C12,'RECAP SECT'!$G$6:$CU$253,23,FALSE) -> 50.60 | L12: =VLOOKUP($C12,'RECAP SECT'!$G$6:$CU$253,24,FALSE) -> 40% | M12: =VLOOKUP($C12,'RECAP SECT'!$G$6:$CU$253,25,FALSE) -> 16 | N12: =VLOOKUP($C12,'RECAP SECT'!$G$6:$CU$253,26,FALSE) -> 43% | O12: =VLOOKUP($C12,'RECAP SECT'!$G$6:$CU$253,27,FALSE) -> 43% | P12: =VLOOKUP($C12,'RECAP SECT'!$G$6:$CU$253,28,FALSE) -> 12
A13: 262 | B13: BAS-RHIN | C13: 5101 | D13: SELESTAT | E13: =VLOOKUP($C13,'RECAP SECT'!$G$6:$CU$253,3,FALSE) -> 51.3 | F13: =VLOOKUP($C13,'RECAP SECT'!$G$6:$CU$253,18,FALSE) -> 997 | G13: =VLOOKUP($C13,'RECAP SECT'!$G$6:$CU$253,19,FALSE) -> 19.44 | H13: =VLOOKUP($C13,'RECAP SECT'!$G$6:$CU$253,20,FALSE) -> 46% | I13: =VLOOKUP($C13,'RECAP SECT'!$G$6:$CU$253,21,FALSE) -> 10 | J13: =VLOOKUP($C13,'RECAP SECT'!$G$6:$CU$253,22,FALSE) -> 2,611 | K13: =VLOOKUP($C13,'RECAP SECT'!$G$6:$CU$253,23,FALSE) -> 50.95 | L13: =VLOOKUP($C13,'RECAP SECT'!$G$6:$CU$253,24,FALSE) -> 39% | M13: =VLOOKUP($C13,'RECAP SECT'!$G$6:$CU$253,25,FALSE) -> 15 | N13: =VLOOKUP($C13,'RECAP SECT'!$G$6:$CU$253,26,FALSE) -> 43% | O13: =VLOOKUP($C13,'RECAP SECT'!$G$6:$CU$253,27,FALSE) -> 43% | P13: =VLOOKUP($C13,'RECAP SECT'!$G$6:$CU$253,28,FALSE) -> 13
A14: 262 | B14: BAS-RHIN | C14: 5006 | D14: STRASBOURG | E14: =VLOOKUP($C14,'RECAP SECT'!$G$6:$CU$253,3,FALSE) -> 65.2 | F14: =VLOOKUP($C14,'RECAP SECT'!$G$6:$CU$253,18,FALSE) -> 1,351 | G14: =VLOOKUP($C14,'RECAP SECT'!$G$6:$CU$253,19,FALSE) -> 20.72 | H14: =VLOOKUP($C14,'RECAP SECT'!$G$6:$CU$253,20,FALSE) -> 42% | I14: =VLOOKUP($C14,'RECAP SECT'!$G$6:$CU$253,21,FALSE) -> 5 | J14: =VLOOKUP($C14,'RECAP SECT'!$G$6:$CU$253,22,FALSE) -> 4,717 | K14: =VLOOKUP($C14,'RECAP SECT'!$G$6:$CU$253,23,FALSE) -> 72.36 | L14: =VLOOKUP($C14,'RECAP SECT'!$G$6:$CU$253,24,FALSE) -> 14% | M14: =VLOOKUP($C14,'RECAP SECT'!$G$6:$CU$253,25,FALSE) -> 3 | N14: =VLOOKUP($C14,'RECAP SECT'!$G$6:$CU$253,26,FALSE) -> 31% | O14: =VLOOKUP($C14,'RECAP SECT'!$G$6:$CU$253,27,FALSE) -> 31% | P14: =VLOOKUP($C14,'RECAP SECT'!$G$6:$CU$253,28,FALSE) -> 5
A15: 264 | B15: HAUT-RHIN | C15: 5130 | D15: COLMAR | E15: =VLOOKUP($C15,'RECAP SECT'!$G$6:$CU$253,3,FALSE) -> 46.3 | F15: =VLOOKUP($C15,'RECAP SECT'!$G$6:$CU$253,18,FALSE) -> 412 | G15: =VLOOKUP($C15,'RECAP SECT'!$G$6:$CU$253,19,FALSE) -> 8.90 | H15: =VLOOKUP($C15,'RECAP SECT'!$G$6:$CU$253,20,FALSE) -> 75% | I15: =VLOOKUP($C15,'RECAP SECT'!$G$6:$CU$253,21,FALSE) -> 17 | J15: =VLOOKUP($C15,'RECAP SECT'!$G$6:$CU$253,22,FALSE) -> 2,120 | K15: =VLOOKUP($C15,'RECAP SECT'!$G$6:$CU$253,23,FALSE) -> 45.80 | L15: =VLOOKUP($C15,'RECAP SECT'!$G$6:$CU$253,24,FALSE) -> 45% | M15: =VLOOKUP($C15,'RECAP SECT'!$G$6:$CU$253,25,FALSE) -> 18 | N15: =VLOOKUP($C15,'RECAP SECT'!$G$6:$CU$253,26,FALSE) -> 63% | O15: =VLOOKUP($C15,'RECAP SECT'!$G$6:$CU$253,27,FALSE) -> 63% | P15: =VLOOKUP($C15,'RECAP SECT'!$G$6:$CU$253,28,FALSE) -> 17
A16: 264 | B16: HAUT-RHIN | C16: 5169 | D16: MULHOUSE | E16: =VLOOKUP($C16,'RECAP SECT'!$G$6:$CU$253,3,FALSE) -> 46.8 | F16: =VLOOKUP($C16,'RECAP SECT'!$G$6:$CU$253,18,FALSE) -> 45 | G16: =VLOOKUP($C16,'RECAP SECT'!$G$6:$CU$253,19,FALSE) -> 0.96 | H16: =VLOOKUP($C16,'RECAP SECT'!$G$6:$CU$253,20,FALSE) -> 97% | I16: =VLOOKUP($C16,'RECAP SECT'!$G$6:$CU$253,21,FALSE) -> 18 | J16: =VLOOKUP($C16,'RECAP SECT'!$G$6:$CU$253,22,FALSE) -> 2,467 | K16: =VLOOKUP($C16,'RECAP SECT'!$G$6:$CU$253,23,FALSE) -> 52.74 | L16: =VLOOKUP($C16,'RECAP SECT'!$G$6:$CU$253,24,FALSE) -> 37% | M16: =VLOOKUP($C16,'RECAP SECT'!$G$6:$CU$253,25,FALSE) -> 14 | N16: =VLOOKUP($C16,'RECAP SECT'!$G$6:$CU$253,26,FALSE) -> 73% | O16: =VLOOKUP($C16,'RECAP SECT'!$G$6:$CU$253,27,FALSE) -> 73% | P16: =VLOOKUP($C16,'RECAP SECT'!$G$6:$CU$253,28,FALSE) -> 18
A17: 30 | B17: MARNE-ARDENNES | C17: 6 | D17: CHALONS EN CHAMPAGNE | E17: =VLOOKUP($C17,'RECAP SECT'!$G$6:$CU$253,3,FALSE) -> 37.5 | F17: =VLOOKUP($C17,'RECAP SECT'!$G$6:$CU$253,18,FALSE) -> 1,102 | G17: =VLOOKUP($C17,'RECAP SECT'!$G$6:$CU$253,19,FALSE) -> 29.40 | H17: =VLOOKUP($C17,'RECAP SECT'!$G$6:$CU$253,20,FALSE) -> 18% | I17: =VLOOKUP($C17,'RECAP SECT'!$G$6:$CU$253,21,FALSE) -> 3 | J17: =VLOOKUP($C17,'RECAP SECT'!$G$6:$CU$253,22,FALSE) -> 2,352 | K17: =VLOOKUP($C17,'RECAP SECT'!$G$6:$CU$253,23,FALSE) -> 62.74 | L17: =VLOOKUP($C17,'RECAP SECT'!$G$6:$CU$253,24,FALSE) -> 25% | M17: =VLOOKUP($C17,'RECAP SECT'!$G$6:$CU$253,25,FALSE) -> 8 | N17: =VLOOKUP($C17,'RECAP SECT'!$G$6:$CU$253,26,FALSE) -> 21% | O17: =VLOOKUP($C17,'RECAP SECT'!$G$6:$CU$253,27,FALSE) -> 21% | P17: =VLOOKUP($C17,'RECAP SECT'!$G$6:$CU$253,28,FALSE) -> 3
A18: 30 | B18: MARNE-ARDENNES | C18: 2 | D18: CHARLEVILLE MEZIERES | E18: =VLOOKUP($C18,'RECAP SECT'!$G$6:$CU$253,3,FALSE) -> 48.5 | F18: =VLOOKUP($C18,'RECAP SECT'!$G$6:$CU$253,18,FALSE) -> 942 | G18: =VLOOKUP($C18,'RECAP SECT'!$G$6:$CU$253,19,FALSE) -> 19.45 | H18: =VLOOKUP($C18,'RECAP SECT'!$G$6:$CU$253,20,FALSE) -> 46% | I18: =VLOOKUP($C18,'RECAP SECT'!$G$6:$CU$253,21,FALSE) -> 9 | J18: =VLOOKUP($C18,'RECAP SECT'!$G$6:$CU$253,22,FALSE) -> 3,191 | K18: =VLOOKUP($C18,'RECAP SECT'!$G$6:$CU$253,23,FALSE) -> 65.85 | L18: =VLOOKUP($C18,'RECAP SECT'!$G$6:$CU$253,24,FALSE) -> 21% | M18: =VLOOKUP($C18,'RECAP SECT'!$G$6:$CU$253,25,FALSE) -> 5 | N18: =VLOOKUP($C18,'RECAP SECT'!$G$6:$CU$253,26,FALSE) -> 36% | O18: =VLOOKUP($C18,'RECAP SECT'!$G$6:$CU$253,27,FALSE) -> 36% | P18: =VLOOKUP($C18,'RECAP SECT'!$G$6:$CU$253,28,FALSE) -> 6
A19: 30 | B19: MARNE-ARDENNES | C19: 11 | D19: REIMS | E19: =VLOOKUP($C19,'RECAP SECT'!$G$6:$CU$253,3,FALSE) -> 68.0 | F19: =VLOOKUP($C19,'RECAP SECT'!$G$6:$CU$253,18,FALSE) -> 2,431 | G19: =VLOOKUP($C19,'RECAP SECT'!$G$6:$CU$253,19,FALSE) -> 35.77 | H19: =VLOOKUP($C19,'RECAP SECT'!$G$6:$CU$253,20,FALSE) -> 0% | I19: =VLOOKUP($C19,'RECAP SECT'!$G$6:$CU$253,21,FALSE) -> 1 | J19: =VLOOKUP($C19,'RECAP SECT'!$G$6:$CU$253,22,FALSE) -> 5,688 | K19: =VLOOKUP($C19,'RECAP SECT'!$G$6:$CU$253,23,FALSE) -> 83.71 | L19: =VLOOKUP($C19,'RECAP SECT'!$G$6:$CU$253,24,FALSE) -> 0% | M19: =VLOOKUP($C19,'RECAP SECT'!$G$6:$CU$253,25,FALSE) -> 1 | N19: =VLOOKUP($C19,'RECAP SECT'!$G$6:$CU$253,26,FALSE) -> 0% | O19: =VLOOKUP($C19,'RECAP SECT'!$G$6:$CU$253,27,FALSE) -> 0% | P19: =VLOOKUP($C19,'RECAP SECT'!$G$6:$CU$253,28,FALSE) -> 1
A20: 110 | B20: MEURTHE ET MOSELLE MEUSE | C20: 26 | D20: NANCY | E20: =VLOOKUP($C20,'RECAP SECT'!$G$6:$CU$253,3,FALSE) -> 54.8 | F20: =VLOOKUP($C20,'RECAP SECT'!$G$6:$CU$253,18,FALSE) -> 935 | G20: =VLOOKUP($C20,'RECAP SECT'!$G$6:$CU$253,19,FALSE) -> 17.08 | H20: =VLOOKUP($C20,'RECAP SECT'!$G$6:$CU$253,20,FALSE) -> 52% | I20: =VLOOKUP($C20,'RECAP SECT'!$G$6:$CU$253,21,FALSE) -> 12 | J20: =VLOOKUP($C20,'RECAP SECT'!$G$6:$CU$253,22,FALSE) -> 3,549 | K20: =VLOOKUP($C20,'RECAP SECT'!$G$6:$CU$253,23,FALSE) -> 64.82 | L20: =VLOOKUP($C20,'RECAP SECT'!$G$6:$CU$253,24,FALSE) -> 23% | M20: =VLOOKUP($C20,'RECAP SECT'!$G$6:$CU$253,25,FALSE) -> 7 | N20: =VLOOKUP($C20,'RECAP SECT'!$G$6:$CU$253,26,FALSE) -> 40% | O20: =VLOOKUP($C20,'RECAP SECT'!$G$6:$CU$253,27,FALSE) -> 40% | P20: =VLOOKUP($C20,'RECAP SECT'!$G$6:$CU$253,28,FALSE) -> 10
A21: 110 | B21: MEURTHE ET MOSELLE MEUSE | C21: 27 | D21: PONT A MOUSSON | E21: =VLOOKUP($C21,'RECAP SECT'!$G$6:$CU$253,3,FALSE) -> 60.2 | F21: =VLOOKUP($C21,'RECAP SECT'!$G$6:$CU$253,18,FALSE) -> 1,010 | G21: =VLOOKUP($C21,'RECAP SECT'!$G$6:$CU$253,19,FALSE) -> 16.79 | H21: =VLOOKUP($C21,'RECAP SECT'!$G$6:$CU$253,20,FALSE) -> 53% | I21: =VLOOKUP($C21,'RECAP SECT'!$G$6:$CU$253,21,FALSE) -> 14 | J21: =VLOOKUP($C21,'RECAP SECT'!$G$6:$CU$253,22,FALSE) -> 3,909 | K21: =VLOOKUP($C21,'RECAP SECT'!$G$6:$CU$253,23,FALSE) -> 64.99 | L21: =VLOOKUP($C21,'RECAP SECT'!$G$6:$CU$253,24,FALSE) -> 22% | M21: =VLOOKUP($C21,'RECAP SECT'!$G$6:$CU$253,25,FALSE) -> 6 | N21: =VLOOKUP($C21,'RECAP SECT'!$G$6:$CU$253,26,FALSE) -> 41% | O21: =VLOOKUP($C21,'RECAP SECT'!$G$6:$CU$253,27,FALSE) -> 41% | P21: =VLOOKUP($C21,'RECAP SECT'!$G$6:$CU$253,28,FALSE) -> 11
A22: 110 | B22: MEURTHE ET MOSELLE MEUSE | C22: 31 | D22: VERDUN | E22: =VLOOKUP($C22,'RECAP SECT'!$G$6:$CU$253,3,FALSE) -> 48.4 | F22: =VLOOKUP($C22,'RECAP SECT'!$G$6:$CU$253,18,FALSE) -> 967 | G22: =VLOOKUP($C22,'RECAP SECT'!$G$6:$CU$253,19,FALSE) -> 19.97 | H22: =VLOOKUP($C22,'RECAP SECT'!$G$6:$CU$253,20,FALSE) -> 44% | I22: =VLOOKUP($C22,'RECAP SECT'!$G$6:$CU$253,21,FALSE) -> 6 | J22: =VLOOKUP($C22,'RECAP SECT'!$G$6:$CU$253,22,FALSE) -> 2,966 | K22: =VLOOKUP($C22,'RECAP SECT'!$G$6:$CU$253,23,FALSE) -> 61.24 | L22: =VLOOKUP($C22,'RECAP SECT'!$G$6:$CU$253,24,FALSE) -> 27% | M22: =VLOOKUP($C22,'RECAP SECT'!$G$6:$CU$253,25,FALSE) -> 10 | N22: =VLOOKUP($C22,'RECAP SECT'!$G$6:$CU$253,26,FALSE) -> 37% | O22: =VLOOKUP($C22,'RECAP SECT'!$G$6:$CU$253,27,FALSE) -> 37% | P22: =VLOOKUP($C22,'RECAP SECT'!$G$6:$CU$253,28,FALSE) -> 7
A23: 160 | B23: MOSELLE | C23: 45 | D23: METZ | E23: =VLOOKUP($C23,'RECAP SECT'!$G$6:$CU$253,3,FALSE) -> 72.8 | F23: =VLOOKUP($C23,'RECAP SECT'!$G$6:$CU$253,18,FALSE) -> 1,330 | G23: =VLOOKUP($C23,'RECAP SECT'!$G$6:$CU$253,19,FALSE) -> 18.27 | H23: =VLOOKUP($C23,'RECAP SECT'!$G$6:$CU$253,20,FALSE) -> 49% | I23: =VLOOKUP($C23,'RECAP SECT'!$G$6:$CU$253,21,FALSE) -> 11 | J23: =VLOOKUP($C23,'RECAP SECT'!$G$6:$CU$253,22,FALSE) -> 4,537 | K23: =VLOOKUP($C23,'RECAP SECT'!$G$6:$CU$253,23,FALSE) -> 62.34 | L23: =VLOOKUP($C23,'RECAP SECT'!$G$6:$CU$253,24,FALSE) -> 26% | M23: =VLOOKUP($C23,'RECAP SECT'!$G$6:$CU$253,25,FALSE) -> 9 | N23: =VLOOKUP($C23,'RECAP SECT'!$G$6:$CU$253,26,FALSE) -> 40% | O23: =VLOOKUP($C23,'RECAP SECT'!$G$6:$CU$253,27,FALSE) -> 40% | P23: =VLOOKUP($C23,'RECAP SECT'!$G$6:$CU$253,28,FALSE) -> 8
A24: 160 | B24: MOSELLE | C24: 42 | D24: MOSELLE EST | E24: =VLOOKUP($C24,'RECAP SECT'!$G$6:$CU$253,3,FALSE) -> 58.5 | F24: =VLOOKUP($C24,'RECAP SECT'!$G$6:$CU$253,18,FALSE) -> 1,441 | G24: =VLOOKUP($C24,'RECAP SECT'!$G$6:$CU$253,19,FALSE) -> 24.64 | H24: =VLOOKUP($C24,'RECAP SECT'!$G$6:$CU$253,20,FALSE) -> 31% | I24: =VLOOKUP($C24,'RECAP SECT'!$G$6:$CU$253,21,FALSE) -> 4 | J24: =VLOOKUP($C24,'RECAP SECT'!$G$6:$CU$253,22,FALSE) -> 3,940 | K24: =VLOOKUP($C24,'RECAP SECT'!$G$6:$CU$253,23,FALSE) -> 67.38 | L24: =VLOOKUP($C24,'RECAP SECT'!$G$6:$CU$253,24,FALSE) -> 20% | M24: =VLOOKUP($C24,'RECAP SECT'!$G$6:$CU$253,25,FALSE) -> 4 | N24: =VLOOKUP($C24,'RECAP SECT'!$G$6:$CU$253,26,FALSE) -> 26% | O24: =VLOOKUP($C24,'RECAP SECT'!$G$6:$CU$253,27,FALSE) -> 26% | P24: =VLOOKUP($C24,'RECAP SECT'!$G$6:$CU$253,28,FALSE) -> 4
A25: 160 | B25: MOSELLE | C25: 44 | D25: MOSELLE NORD | E25: =VLOOKUP($C25,'RECAP SECT'!$G$6:$CU$253,3,FALSE) -> 55.9 | F25: =VLOOKUP($C25,'RECAP SECT'!$G$6:$CU$253,18,FALSE) -> 1,861 | G25: =VLOOKUP($C25,'RECAP SECT'!$G$6:$CU$253,19,FALSE) -> 33.32 | H25: =VLOOKUP($C25,'RECAP SECT'!$G$6:$CU$253,20,FALSE) -> 7% | I25: =VLOOKUP($C25,'RECAP SECT'!$G$6:$CU$253,21,FALSE) -> 2 | J25: =VLOOKUP($C25,'RECAP SECT'!$G$6:$CU$253,22,FALSE) -> 4,208 | K25: =VLOOKUP($C25,'RECAP SECT'!$G$6:$CU$253,23,FALSE) -> 75.34 | L25: =VLOOKUP($C25,'RECAP SECT'!$G$6:$CU$253,24,FALSE) -> 10% | M25: =VLOOKUP($C25,'RECAP SECT'!$G$6:$CU$253,25,FALSE) -> 2 | N25: =VLOOKUP($C25,'RECAP SECT'!$G$6:$CU$253,26,FALSE) -> 8% | O25: =VLOOKUP($C25,'RECAP SECT'!$G$6:$CU$253,27,FALSE) -> 8% | P25: =VLOOKUP($C25,'RECAP SECT'!$G$6:$CU$253,28,FALSE) -> 2
A26: 80 | B26: VOSGES | C26: 57 | D26: EPINAL | E26: =VLOOKUP($C26,'RECAP SECT'!$G$6:$CU$253,3,FALSE) -> 53.0 | F26: =VLOOKUP($C26,'RECAP SECT'!$G$6:$CU$253,18,FALSE) -> 1,033 | G26: =VLOOKUP($C26,'RECAP SECT'!$G$6:$CU$253,19,FALSE) -> 19.51 | H26: =VLOOKUP($C26,'RECAP SECT'!$G$6:$CU$253,20,FALSE) -> 45% | I26: =VLOOKUP($C26,'RECAP SECT'!$G$6:$CU$253,21,FALSE) -> 8 | J26: =VLOOKUP($C26,'RECAP SECT'!$G$6:$CU$253,22,FALSE) -> 2,984 | K26: =VLOOKUP($C26,'RECAP SECT'!$G$6:$CU$253,23,FALSE) -> 56.34 | L26: =VLOOKUP($C26,'RECAP SECT'!$G$6:$CU$253,24,FALSE) -> 33% | M26: =VLOOKUP($C26,'RECAP SECT'!$G$6:$CU$253,25,FALSE) -> 13 | N26: =VLOOKUP($C26,'RECAP SECT'!$G$6:$CU$253,26,FALSE) -> 40% | O26: =VLOOKUP($C26,'RECAP SECT'!$G$6:$CU$253,27,FALSE) -> 40% | P26: =VLOOKUP($C26,'RECAP SECT'!$G$6:$CU$253,28,FALSE) -> 9
A27: 80 | B27: VOSGES | C27: 55 | D27: SAINT DIE | E27: =VLOOKUP($C27,'RECAP SECT'!$G$6:$CU$253,3,FALSE) -> 40.2 | F27: =VLOOKUP($C27,'RECAP SECT'!$G$6:$CU$253,18,FALSE) -> 599 | G27: =VLOOKUP($C27,'RECAP SECT'!$G$6:$CU$253,19,FALSE) -> 14.92 | H27: =VLOOKUP($C27,'RECAP SECT'!$G$6:$CU$253,20,FALSE) -> 58% | I27: =VLOOKUP($C27,'RECAP SECT'!$G$6:$CU$253,21,FALSE) -> 15 | J27: =VLOOKUP($C27,'RECAP SECT'!$G$6:$CU$253,22,FALSE) -> 1,972 | K27: =VLOOKUP($C27,'RECAP SECT'!$G$6:$CU$253,23,FALSE) -> 49.10 | L27: =VLOOKUP($C27,'RECAP SECT'!$G$6:$CU$253,24,FALSE) -> 41% | M27: =VLOOKUP($C27,'RECAP SECT'!$G$6:$CU$253,25,FALSE) -> 17 | N27: =VLOOKUP($C27,'RECAP SECT'!$G$6:$CU$253,26,FALSE) -> 52% | O27: =VLOOKUP($C27,'RECAP SECT'!$G$6:$CU$253,27,FALSE) -> 52% | P27: =VLOOKUP($C27,'RECAP SECT'!$G$6:$CU$253,28,FALSE) -> 15
A28: Total CEGEE Directions Régionales | E28: =SUM(E10:E27) -> 950

Sheet SE_EPARGNE
B1: Accueil | F1: BAROMETRE BDD - TERRITOIRES
F2: EPARGNE
F3: =ACCUEIL!F7 -> 2022-10-02
F7: Excédent Epargne hors DAV pondéré | J7: Ventes sur client non détenteur de l’univers | N7: Total Epargne
F8: =DATEMAJ!C14 -> au 02/10 | H8: coef | I8: ='RECAP DIRCOM'!AP4 -> 12% | J8: =DATEMAJ!C15 -> au 02/10 | L8: coef | M8: ='RECAP DIRCOM'!AT4 -> 8% | O8: coef | P8: ='RECAP DIRCOM'!AW4 -> 20%
A9: eds | B9: Direction | C9: eds | D9: Territoire | E9: ="ETP perf "&DATEMAJ!$C$28 -> ETP perf 02-oct | F9: Excédent | G9: Excédent / ETP | H9: % Ecart au 1er | I9: Rang | J9: VB | K9: VB / ETP | L9: % Ecart au 1er | M9: Rang | N9: Moyenne ecart au 1er | O9: % Ecart au 1er | P9: Rang CEGEE
A10: 50 | B10: AUBE HAUTE MARNE | C10: 21 | D10: CHAUMONT | E10: =VLOOKUP($C10,'RECAP SECT'!$G$6:$CU$253,3,FALSE) -> 33.7 | F10: =VLOOKUP($C10,'RECAP SECT'!$G$6:$CU$253,33,FALSE) -> 11,770 | G10: =VLOOKUP($C10,'RECAP SECT'!$G$6:$CU$253,34,FALSE) -> 349.35 | H10: =VLOOKUP($C10,'RECAP SECT'!$G$6:$CU$253,35,FALSE) -> 24% | I10: =VLOOKUP($C10,'RECAP SECT'!$G$6:$CU$253,36,FALSE) -> 5 | J10: =VLOOKUP($C10,'RECAP SECT'!$G$6:$CU$253,37,FALSE) -> 1,847 | K10: =VLOOKUP($C10,'RECAP SECT'!$G$6:$CU$253,38,FALSE) -> 54.82 | L10: =VLOOKUP($C10,'RECAP SECT'!$G$6:$CU$253,39,FALSE) -> 31% | M10: =VLOOKUP($C10,'RECAP SECT'!$G$6:$CU$253,40,FALSE) -> 9 | N10: =VLOOKUP($C10,'RECAP SECT'!$G$6:$CU$253,41,FALSE) -> 27% | O10: =VLOOKUP($C10,'RECAP SECT'!$G$6:$CU$253,42,FALSE) -> 22% | P10: =VLOOKUP($C10,'RECAP SECT'!$G$6:$CU$253,43,FALSE) -> 6
A11: 50 | B11: AUBE HAUTE MARNE | C11: 14 | D11: TROYES | E11: =VLOOKUP($C11,'RECAP SECT'!$G$6:$CU$253,3,FALSE) -> 54.2 | F11: =VLOOKUP($C11,'RECAP SECT'!$G$6:$CU$253,33,FALSE) -> 3,476 | G11: =VLOOKUP($C11,'RECAP SECT'!$G$6:$CU$253,34,FALSE) -> 64.12 | H11: =VLOOKUP($C11,'RECAP SECT'!$G$6:$CU$253,35,FALSE) -> 86% | I11: =VLOOKUP($C11,'RECAP SECT'!$G$6:$CU$253,36,FALSE) -> 17 | J11: =VLOOKUP($C11,'RECAP SECT'!$G$6:$CU$253,37,FALSE) -> 2,896 | K11: =VLOOKUP($C11,'RECAP SECT'!$G$6:$CU$253,38,FALSE) -> 53.41 | L11: =VLOOKUP($C11,'RECAP SECT'!$G$6:$CU$253,39,FALSE) -> 33% | M11: =VLOOKUP($C11,'RECAP SECT'!$G$6:$CU$253,40,FALSE) -> 12 | N11: =VLOOKUP($C11,'RECAP SECT'!$G$6:$CU$253,41,FALSE) -> 65% | O11: =VLOOKUP($C11,'RECAP SECT'!$G$6:$CU$253,42,FALSE) -> 61% | P11: =VLOOKUP($C11,'RECAP SECT'!$G$6:$CU$253,43,FALSE) -> 17
A12: 262 | B12: BAS-RHIN | C12: 5060 | D12: HAGUENAU | E12: =VLOOKUP($C12,'RECAP SECT'!$G$6:$CU$253,3,FALSE) -> 55.2 | F12: =VLOOKUP($C12,'RECAP SECT'!$G$6:$CU$253,33,FALSE) -> 20,354 | G12: =VLOOKUP($C12,'RECAP SECT'!$G$6:$CU$253,34,FALSE) -> 368.59 | H12: =VLOOKUP($C12,'RECAP SECT'!$G$6:$CU$253,35,FALSE) -> 19% | I12: =VLOOKUP($C12,'RECAP SECT'!$G$6:$CU$253,36,FALSE) -> 4 | J12: =VLOOKUP($C12,'RECAP SECT'!$G$6:$CU$253,37,FALSE) -> 2,731 | K12: =VLOOKUP($C12,'RECAP SECT'!$G$6:$CU$253,38,FALSE) -> 49.46 | L12: =VLOOKUP($C12,'RECAP SECT'!$G$6:$CU$253,39,FALSE) -> 38% | M12: =VLOOKUP($C12,'RECAP SECT'!$G$6:$CU$253,40,FALSE) -> 15 | N12: =VLOOKUP($C12,'RECAP SECT'!$G$6:$CU$253,41,FALSE) -> 27% | O12: =VLOOKUP($C12,'RECAP SECT'!$G$6:$CU$253,42,FALSE) -> 23% | P12: =VLOOKUP($C12,'RECAP SECT'!$G$6:$CU$253,43,FALSE) -> 7
A13: 262 | B13: BAS-RHIN | C13: 5101 | D13: SELESTAT | E13: =VLOOKUP($C13,'RECAP SECT'!$G$6:$CU$253,3,FALSE) -> 51.3 | F13: =VLOOKUP($C13,'RECAP SECT'!$G$6:$CU$253,33,FALSE) -> 16,430 | G13: =VLOOKUP($C13,'RECAP SECT'!$G$6:$CU$253,34,FALSE) -> 320.59 | H13: =VLOOKUP($C13,'RECAP SECT'!$G$6:$CU$253,35,FALSE) -> 30% | I13: =VLOOKUP($C13,'RECAP SECT'!$G$6:$CU$253,36,FALSE) -> 9 | J13: =VLOOKUP($C13,'RECAP SECT'!$G$6:$CU$253,37,FALSE) -> 2,573 | K13: =VLOOKUP($C13,'RECAP SECT'!$G$6:$CU$253,38,FALSE) -> 50.20 | L13: =VLOOKUP($C13,'RECAP SECT'!$G$6:$CU$253,39,FALSE) -> 37% | M13: =VLOOKUP($C13,'RECAP SECT'!$G$6:$CU$253,40,FALSE) -> 14 | N13: =VLOOKUP($C13,'RECAP SECT'!$G$6:$CU$253,41,FALSE) -> 33% | O13: =VLOOKUP($C13,'RECAP SECT'!$G$6:$CU$253,42,FALSE) -> 29% | P13: =VLOOKUP($C13,'RECAP SECT'!$G$6:$CU$253,43,FALSE) -> 12
A14: 262 | B14: BAS-RHIN | C14: 5006 | D14: STRASBOURG | E14: =VLOOKUP($C14,'RECAP SECT'!$G$6:$CU$253,3,FALSE) -> 65.2 | F14: =VLOOKUP($C14,'RECAP SECT'!$G$6:$CU$253,33,FALSE) -> 29,816 | G14: =VLOOKUP($C14,'RECAP SECT'!$G$6:$CU$253,34,FALSE) -> 457.36 | H14: =VLOOKUP($C14,'RECAP SECT'!$G$6:$CU$253,35,FALSE) -> 0% | I14: =VLOOKUP($C14,'RECAP SECT'!$G$6:$CU$253,36,FALSE) -> 1 | J14: =VLOOKUP($C14,'RECAP SECT'!$G$6:$CU$253,37,FALSE) -> 4,652 | K14: =VLOOKUP($C14,'RECAP SECT'!$G$6:$CU$253,38,FALSE) -> 71.36 | L14: =VLOOKUP($C14,'RECAP SECT'!$G$6:$CU$253,39,FALSE) -> 11% | M14: =VLOOKUP($C14,'RECAP SECT'!$G$6:$CU$253,40,FALSE) -> 4 | N14: =VLOOKUP($C14,'RECAP SECT'!$G$6:$CU$253,41,FALSE) -> 4% | O14: =VLOOKUP($C14,'RECAP SECT'!$G$6:$CU$253,42,FALSE) -> 0% | P14: =VLOOKUP($C14,'RECAP SECT'!$G$6:$CU$253,43,FALSE) -> 1
A15: 264 | B15: HAUT-RHIN | C15: 5130 | D15: COLMAR | E15: =VLOOKUP($C15,'RECAP SECT'!$G$6:$CU$253,3,FALSE) -> 46.3 | F15: =VLOOKUP($C15,'RECAP SECT'!$G$6:$CU$253,33,FALSE) -> 7,093 | G15: =VLOOKUP($C15,'RECAP SECT'!$G$6:$CU$253,34,FALSE) -> 153.23 | H15: =VLOOKUP($C15,'RECAP SECT'!$G$6:$CU$253,35,FALSE) -> 66% | I15: =VLOOKUP($C15,'RECAP SECT'!$G$6:$CU$253,36,FALSE) -> 16 | J15: =VLOOKUP($C15,'RECAP SECT'!$G$6:$CU$253,37,FALSE) -> 1,922 | K15: =VLOOKUP($C15,'RECAP SECT'!$G$6:$CU$253,38,FALSE) -> 41.52 | L15: =VLOOKUP($C15,'RECAP SECT'!$G$6:$CU$253,39,FALSE) -> 48% | M15: =VLOOKUP($C15,'RECAP SECT'!$G$6:$CU$253,40,FALSE) -> 18 | N15: =VLOOKUP($C15,'RECAP SECT'!$G$6:$CU$253,41,FALSE) -> 59% | O15: =VLOOKUP($C15,'RECAP SECT'!$G$6:$CU$253,42,FALSE) -> 55% | P15: =VLOOKUP($C15,'RECAP SECT'!$G$6:$CU$253,43,FALSE) -> 16
A16: 264 | B16: HAUT-RHIN | C16: 5169 | D16: MULHOUSE | E16: =VLOOKUP($C16,'RECAP SECT'!$G$6:$CU$253,3,FALSE) -> 46.8 | F16: =VLOOKUP($C16,'RECAP SECT'!$G$6:$CU$253,33,FALSE) -> -5,675 | G16: =VLOOKUP($C16,'RECAP SECT'!$G$6:$CU$253,34,FALSE) -> -121.31 | H16: =VLOOKUP($C16,'RECAP SECT'!$G$6:$CU$253,35,FALSE) -> 127% | I16: =VLOOKUP($C16,'RECAP SECT'!$G$6:$CU$253,36,FALSE) -> 18 | J16: =VLOOKUP($C16,'RECAP SECT'!$G$6:$CU$253,37,FALSE) -> 2,226 | K16: =VLOOKUP($C16,'RECAP SECT'!$G$6:$CU$253,38,FALSE) -> 47.58 | L16: =VLOOKUP($C16,'RECAP SECT'!$G$6:$CU$253,39,FALSE) -> 40% | M16: =VLOOKUP($C16,'RECAP SECT'!$G$6:$CU$253,40,FALSE) -> 16 | N16: =VLOOKUP($C16,'RECAP SECT'!$G$6:$CU$253,41,FALSE) -> 92% | O16: =VLOOKUP($C16,'RECAP SECT'!$G$6:$CU$253,42,FALSE) -> 88% | P16: =VLOOKUP($C16,'RECAP SECT'!$G$6:$CU$253,43,FALSE) -> 18
A17: 30 | B17: MARNE-ARDENNES | C17: 6 | D17: CHALONS EN CHAMPAGNE | E17: =VLOOKUP($C17,'RECAP SECT'!$G$6:$CU$253,3,FALSE) -> 37.5 | F17: =VLOOKUP($C17,'RECAP SECT'!$G$6:$CU$253,33,FALSE) -> 10,479 | G17: =VLOOKUP($C17,'RECAP SECT'!$G$6:$CU$253,34,FALSE) -> 279.52 | H17: =VLOOKUP($C17,'RECAP SECT'!$G$6:$CU$253,35,FALSE) -> 39% | I17: =VLOOKUP($C17,'RECAP SECT'!$G$6:$CU$253,36,FALSE) -> 11 | J17: =VLOOKUP($C17,'RECAP SECT'!$G$6:$CU$253,37,FALSE) -> 2,511 | K17: =VLOOKUP($C17,'RECAP SECT'!$G$6:$CU$253,38,FALSE) -> 66.98 | L17: =VLOOKUP($C17,'RECAP SECT'!$G$6:$CU$253,39,FALSE) -> 16% | M17: =VLOOKUP($C17,'RECAP SECT'!$G$6:$CU$253,40,FALSE) -> 6 | N17: =VLOOKUP($C17,'RECAP SECT'!$G$6:$CU$253,41,FALSE) -> 30% | O17: =VLOOKUP($C17,'RECAP SECT'!$G$6:$CU$253,42,FALSE) -> 26% | P17: =VLOOKUP($C17,'RECAP SECT'!$G$6:$CU$253,43,FALSE) -> 9
A18: 30 | B18: MARNE-ARDENNES | C18: 2 | D18: CHARLEVILLE MEZIERES | E18: =VLOOKUP($C18,'RECAP SECT'!$G$6:$CU$253,3,FALSE) -> 48.5 | F18: =VLOOKUP($C18,'RECAP SECT'!$G$6:$CU$253,33,FALSE) -> 13,992 | G18: =VLOOKUP($C18,'RECAP SECT'!$G$6:$CU$253,34,FALSE) -> 288.74 | H18: =VLOOKUP($C18,'RECAP SECT'!$G$6:$CU$253,35,FALSE) -> 37% | I18: =VLOOKUP($C18,'RECAP SECT'!$G$6:$CU$253,36,FALSE) -> 10 | J18: =VLOOKUP($C18,'RECAP SECT'!$G$6:$CU$253,37,FALSE) -> 3,464 | K18: =VLOOKUP($C18,'RECAP SECT'!$G$6:$CU$253,38,FALSE) -> 71.48 | L18: =VLOOKUP($C18,'RECAP SECT'!$G$6:$CU$253,39,FALSE) -> 10% | M18: =VLOOKUP($C18,'RECAP SECT'!$G$6:$CU$253,40,FALSE) -> 3 | N18: =VLOOKUP($C18,'RECAP SECT'!$G$6:$CU$253,41,FALSE) -> 26% | O18: =VLOOKUP($C18,'RECAP SECT'!$G$6:$CU$253,42,FALSE) -> 22% | P18: =VLOOKUP($C18,'RECAP SECT'!$G$6:$CU$253,43,FALSE) -> 5
A19: 30 | B19: MARNE-ARDENNES | C19: 11 | D19: REIMS | E19: =VLOOKUP($C19,'RECAP SECT'!$G$6:$CU$253,3,FALSE) -> 68.0 | F19: =VLOOKUP($C19,'RECAP SECT'!$G$6:$CU$253,33,FALSE) -> 26,483 | G19: =VLOOKUP($C19,'RECAP SECT'!$G$6:$CU$253,34,FALSE) -> 389.74 | H19: =VLOOKUP($C19,'RECAP SECT'!$G$6:$CU$253,35,FALSE) -> 15% | I19: =VLOOKUP($C19,'RECAP SECT'!$G$6:$CU$253,36,FALSE) -> 3 | J19: =VLOOKUP($C19,'RECAP SECT'!$G$6:$CU$253,37,FALSE) -> 5,005 | K19: =VLOOKUP($C19,'RECAP SECT'!$G$6:$CU$253,38,FALSE) -> 73.66 | L19: =VLOOKUP($C19,'RECAP SECT'!$G$6:$CU$253,39,FALSE) -> 8% | M19: =VLOOKUP($C19,'RECAP SECT'!$G$6:$CU$253,40,FALSE) -> 2 | N19: =VLOOKUP($C19,'RECAP SECT'!$G$6:$CU$253,41,FALSE) -> 12% | O19: =VLOOKUP($C19,'RECAP SECT'!$G$6:$CU$253,42,FALSE) -> 8% | P19: =VLOOKUP($C19,'RECAP SECT'!$G$6:$CU$253,43,FALSE) -> 2
A20: 110 | B20: MEURTHE ET MOSELLE MEUSE | C20: 26 | D20: NANCY | E20: =VLOOKUP($C20,'RECAP SECT'!$G$6:$CU$253,3,FALSE) -> 54.8 | F20: =VLOOKUP($C20,'RECAP SECT'!$G$6:$CU$253,33,FALSE) -> 18,101 | G20: =VLOOKUP($C20,'RECAP SECT'!$G$6:$CU$253,34,FALSE) -> 330.61 | H20: =VLOOKUP($C20,'RECAP SECT'!$G$6:$CU$253,35,FALSE) -> 28% | I20: =VLOOKUP($C20,'RECAP SECT'!$G$6:$CU$253,36,FALSE) -> 7 | J20: =VLOOKUP($C20,'RECAP SECT'!$G$6:$CU$253,37,FALSE) -> 3,319 | K20: =VLOOKUP($C20,'RECAP SECT'!$G$6:$CU$253,38,FALSE) -> 60.62 | L20: =VLOOKUP($C20,'RECAP SECT'!$G$6:$CU$253,39,FALSE) -> 24% | M20: =VLOOKUP($C20,'RECAP SECT'!$G$6:$CU$253,40,FALSE) -> 8 | N20: =VLOOKUP($C20,'RECAP SECT'!$G$6:$CU$253,41,FALSE) -> 26% | O20: =VLOOKUP($C20,'RECAP SECT'!$G$6:$CU$253,42,FALSE) -> 22% | P20: =VLOOKUP($C20,'RECAP SECT'!$G$6:$CU$253,43,FALSE) -> 4
A21: 110 | B21: MEURTHE ET MOSELLE MEUSE | C21: 27 | D21: PONT A MOUSSON | E21: =VLOOKUP($C21,'RECAP SECT'!$G$6:$CU$253,3,FALSE) -> 60.2 | F21: =VLOOKUP($C21,'RECAP SECT'!$G$6:$CU$253,33,FALSE) -> 19,297 | G21: =VLOOKUP($C21,'RECAP SECT'!$G$6:$CU$253,34,FALSE) -> 320.81 | H21: =VLOOKUP($C21,'RECAP SECT'!$G$6:$CU$253,35,FALSE) -> 30% | I21: =VLOOKUP($C21,'RECAP SECT'!$G$6:$CU$253,36,FALSE) -> 8 | J21: =VLOOKUP($C21,'RECAP SECT'!$G$6:$CU$253,37,FALSE) -> 3,223 | K21: =VLOOKUP($C21,'RECAP SECT'!$G$6:$CU$253,38,FALSE) -> 53.58 | L21: =VLOOKUP($C21,'RECAP SECT'!$G$6:$CU$253,39,FALSE) -> 33% | M21: =VLOOKUP($C21,'RECAP SECT'!$G$6:$CU$253,40,FALSE) -> 11 | N21: =VLOOKUP($C21,'RECAP SECT'!$G$6:$CU$253,41,FALSE) -> 31% | O21: =VLOOKUP($C21,'RECAP SECT'!$G$6:$CU$253,42,FALSE) -> 27% | P21: =VLOOKUP($C21,'RECAP SECT'!$G$6:$CU$253,43,FALSE) -> 10
A22: 110 | B22: MEURTHE ET MOSELLE MEUSE | C22: 31 | D22: VERDUN | E22: =VLOOKUP($C22,'RECAP SECT'!$G$6:$CU$253,3,FALSE) -> 48.4 | F22: =VLOOKUP($C22,'RECAP SECT'!$G$6:$CU$253,33,FALSE) -> 8,341 | G22: =VLOOKUP($C22,'RECAP SECT'!$G$6:$CU$253,34,FALSE) -> 172.23 | H22: =VLOOKUP($C22,'RECAP SECT'!$G$6:$CU$253,35,FALSE) -> 62% | I22: =VLOOKUP($C22,'RECAP SECT'!$G$6:$CU$253,36,FALSE) -> 14 | J22: =VLOOKUP($C22,'RECAP SECT'!$G$6:$CU$253,37,FALSE) -> 2,654 | K22: =VLOOKUP($C22,'RECAP SECT'!$G$6:$CU$253,38,FALSE) -> 54.80 | L22: =VLOOKUP($C22,'RECAP SECT'!$G$6:$CU$253,39,FALSE) -> 31% | M22: =VLOOKUP($C22,'RECAP SECT'!$G$6:$CU$253,40,FALSE) -> 10 | N22: =VLOOKUP($C22,'RECAP SECT'!$G$6:$CU$253,41,FALSE) -> 50% | O22: =VLOOKUP($C22,'RECAP SECT'!$G$6:$CU$253,42,FALSE) -> 46% | P22: =VLOOKUP($C22,'RECAP SECT'!$G$6:$CU$253,43,FALSE) -> 15
A23: 160 | B23: MOSELLE | C23: 45 | D23: METZ | E23: =VLOOKUP($C23,'RECAP SECT'!$G$6:$CU$253,3,FALSE) -> 72.8 | F23: =VLOOKUP($C23,'RECAP SECT'!$G$6:$CU$253,33,FALSE) -> 29,979 | G23: =VLOOKUP($C23,'RECAP SECT'!$G$6:$CU$253,34,FALSE) -> 411.91 | H23: =VLOOKUP($C23,'RECAP SECT'!$G$6:$CU$253,35,FALSE) -> 10% | I23: =VLOOKUP($C23,'RECAP SECT'!$G$6:$CU$253,36,FALSE) -> 2 | J23: =VLOOKUP($C23,'RECAP SECT'!$G$6:$CU$253,37,FALSE) -> 4,756 | K23: =VLOOKUP($C23,'RECAP SECT'!$G$6:$CU$253,38,FALSE) -> 65.35 | L23: =VLOOKUP($C23,'RECAP SECT'!$G$6:$CU$253,39,FALSE) -> 18% | M23: =VLOOKUP($C23,'RECAP SECT'!$G$6:$CU$253,40,FALSE) -> 7 | N23: =VLOOKUP($C23,'RECAP SECT'!$G$6:$CU$253,41,FALSE) -> 13% | O23: =VLOOKUP($C23,'RECAP SECT'!$G$6:$CU$253,42,FALSE) -> 9% | P23: =VLOOKUP($C23,'RECAP SECT'!$G$6:$CU$253,43,FALSE) -> 3
A24: 160 | B24: MOSELLE | C24: 42 | D24: MOSELLE EST | E24: =VLOOKUP($C24,'RECAP SECT'!$G$6:$CU$253,3,FALSE) -> 58.5 | F24: =VLOOKUP($C24,'RECAP SECT'!$G$6:$CU$253,33,FALSE) -> 9,987 | G24: =VLOOKUP($C24,'RECAP SECT'!$G$6:$CU$253,34,FALSE) -> 170.81 | H24: =VLOOKUP($C24,'RECAP SECT'!$G$6:$CU$253,35,FALSE) -> 63% | I24: =VLOOKUP($C24,'RECAP SECT'!$G$6:$CU$253,36,FALSE) -> 15 | J24: =VLOOKUP($C24,'RECAP SECT'!$G$6:$CU$253,37,FALSE) -> 4,087 | K24: =VLOOKUP($C24,'RECAP SECT'!$G$6:$CU$253,38,FALSE) -> 69.90 | L24: =VLOOKUP($C24,'RECAP SECT'!$G$6:$CU$253,39,FALSE) -> 12% | M24: =VLOOKUP($C24,'RECAP SECT'!$G$6:$CU$253,40,FALSE) -> 5 | N24: =VLOOKUP($C24,'RECAP SECT'!$G$6:$CU$253,41,FALSE) -> 43% | O24: =VLOOKUP($C24,'RECAP SECT'!$G$6:$CU$253,42,FALSE) -> 38% | P24: =VLOOKUP($C24,'RECAP SECT'!$G$6:$CU$253,43,FALSE) -> 13
A25: 160 | B25: MOSELLE | C25: 44 | D25: MOSELLE NORD | E25: =VLOOKUP($C25,'RECAP SECT'!$G$6:$CU$253,3,FALSE) -> 55.9 | F25: =VLOOKUP($C25,'RECAP SECT'!$G$6:$CU$253,33,FALSE) -> 11,729 | G25: =VLOOKUP($C25,'RECAP SECT'!$G$6:$CU$253,34,FALSE) -> 210.01 | H25: =VLOOKUP($C25,'RECAP SECT'!$G$6:$CU$253,35,FALSE) -> 54% | I25: =VLOOKUP($C25,'RECAP SECT'!$G$6:$CU$253,36,FALSE) -> 13 | J25: =VLOOKUP($C25,'RECAP SECT'!$G$6:$CU$253,37,FALSE) -> 4,455 | K25: =VLOOKUP($C25,'RECAP SECT'!$G$6:$CU$253,38,FALSE) -> 79.77 | L25: =VLOOKUP($C25,'RECAP SECT'!$G$6:$CU$253,39,FALSE) -> 0% | M25: =VLOOKUP($C25,'RECAP SECT'!$G$6:$CU$253,40,FALSE) -> 1 | N25: =VLOOKUP($C25,'RECAP SECT'!$G$6:$CU$253,41,FALSE) -> 32% | O25: =VLOOKUP($C25,'RECAP SECT'!$G$6:$CU$253,42,FALSE) -> 28% | P25: =VLOOKUP($C25,'RECAP SECT'!$G$6:$CU$253,43,FALSE) -> 11
A26: 80 | B26: VOSGES | C26: 57 | D26: EPINAL | E26: =VLOOKUP($C26,'RECAP SECT'!$G$6:$CU$253,3,FALSE) -> 53.0 | F26: =VLOOKUP($C26,'RECAP SECT'!$G$6:$CU$253,33,FALSE) -> 18,263 | G26: =VLOOKUP($C26,'RECAP SECT'!$G$6:$CU$253,34,FALSE) -> 344.84 | H26: =VLOOKUP($C26,'RECAP SECT'!$G$6:$CU$253,35,FALSE) -> 25% | I26: =VLOOKUP($C26,'RECAP SECT'!$G$6:$CU$253,36,FALSE) -> 6 | J26: =VLOOKUP($C26,'RECAP SECT'!$G$6:$CU$253,37,FALSE) -> 2,821 | K26: =VLOOKUP($C26,'RECAP SECT'!$G$6:$CU$253,38,FALSE) -> 53.27 | L26: =VLOOKUP($C26,'RECAP SECT'!$G$6:$CU$253,39,FALSE) -> 33% | M26: =VLOOKUP($C26,'RECAP SECT'!$G$6:$CU$253,40,FALSE) -> 13 | N26: =VLOOKUP($C26,'RECAP SECT'!$G$6:$CU$253,41,FALSE) -> 28% | O26: =VLOOKUP($C26,'RECAP SECT'!$G$6:$CU$253,42,FALSE) -> 24% | P26: =VLOOKUP($C26,'RECAP SECT'!$G$6:$CU$253,43,FALSE) -> 8
A27: 80 | B27: VOSGES | C27: 55 | D27: SAINT DIE | E27: =VLOOKUP($C27,'RECAP SECT'!$G$6:$CU$253,3,FALSE) -> 40.2 | F27: =VLOOKUP($C27,'RECAP SECT'!$G$6:$CU$253,33,FALSE) -> 9,476 | G27: =VLOOKUP($C27,'RECAP SECT'!$G$6:$CU$253,34,FALSE) -> 235.97 | H27: =VLOOKUP($C27,'RECAP SECT'!$G$6:$CU$253,35,FALSE) -> 48% | I27: =VLOOKUP($C27,'RECAP SECT'!$G$6:$CU$253,36,FALSE) -> 12 | J27: =VLOOKUP($C27,'RECAP SECT'!$G$6:$CU$253,37,FALSE) -> 1,753 | K27: =VLOOKUP($C27,'RECAP SECT'!$G$6:$CU$253,38,FALSE) -> 43.65 | L27: =VLOOKUP($C27,'RECAP SECT'!$G$6:$CU$253,39,FALSE) -> 45% | M27: =VLOOKUP($C27,'RECAP SECT'!$G$6:$CU$253,40,FALSE) -> 17 | N27: =VLOOKUP($C27,'RECAP SECT'!$G$6:$CU$253,41,FALSE) -> 47% | O27: =VLOOKUP($C27,'RECAP SECT'!$G$6:$CU$253,42,FALSE) -> 43% | P27: =VLOOKUP($C27,'RECAP SECT'!$G$6:$CU$253,43,FALSE) -> 14
A28: Total CEGEE Directions Régionales | E28: =SUM(E10:E27) -> 950

Sheet SE_CREDIT
B1: Accueil | F1: BAROMETRE BDD - TERRITOIRES
F2: CREDITS
F3: =ACCUEIL!F7 -> 2022-10-02
F7: Engagements et ventes accessoires pondérés Immo | J7: Engagements et ventes accessoires pondérés Conso | N7: Ventes sur client non détenteur de l’univers | R7: Total Crédits
F8: =DATEMAJ!C18 -> au 02/10 | H8: coef | I8: ='RECAP DIRCOM'!BE4 -> 6% | J8: =DATEMAJ!C19 -> au 02/10 | L8: coef | M8: ='RECAP DIRCOM'!BI4 -> 6% | N8: =DATEMAJ!C20 -> au 02/10 | P8: coef | Q8: ='RECAP DIRCOM'!BM4 -> 8% | S8: coef | T8: ='RECAP DIRCOM'!BP4 -> 20%
B9: Direction | C9: eds | D9: Territoire | E9: ="ETP perf "&DATEMAJ!$C$28 -> ETP perf 02-oct | F9: PNB | G9: PNB / ETP | H9: % Ecart au 1er | I9: Rang | J9: PNB | K9: PNB / ETP | L9: % Ecart au 1er | M9: Rang | N9: VB | O9: VB / ETP | P9: % Ecart au 1er | Q9: Rang | R9: Moyenne ecart au 1er | S9: % Ecart au 1er | T9: Rang CEGEE
A10: 50 | B10: AUBE HAUTE MARNE | C10: 21 | D10: CHAUMONT | E10: =VLOOKUP($C10,'RECAP SECT'!$G$6:$CU$253,3,FALSE) -> 33.7 | F10: =VLOOKUP($C10,'RECAP SECT'!$G$6:$CU$253,48,FALSE) -> 7,092 | G10: =VLOOKUP($C10,'RECAP SECT'!$G$6:$CU$253,49,FALSE) -> 210.51 | H10: =VLOOKUP($C10,'RECAP SECT'!$G$6:$CU$253,50,FALSE) -> 64% | I10: =VLOOKUP($C10,'RECAP SECT'!$G$6:$CU$253,51,FALSE) -> 16 | J10: =VLOOKUP($C10,'RECAP SECT'!$G$6:$CU$253,52,FALSE) -> 1,933 | K10: =VLOOKUP($C10,'RECAP SECT'!$G$6:$CU$253,53,FALSE) -> 57.38 | L10: =VLOOKUP($C10,'RECAP SECT'!$G$6:$CU$253,54,FALSE) -> 7% | M10: =VLOOKUP($C10,'RECAP SECT'!$G$6:$CU$253,55,FALSE) -> 5 | N10: =VLOOKUP($C10,'RECAP SECT'!$G$6:$CU$253,56,FALSE) -> 779 | O10: =VLOOKUP($C10,'RECAP SECT'!$G$6:$CU$253,57,FALSE) -> 23.12 | P10: =VLOOKUP($C10,'RECAP SECT'!$G$6:$CU$253,58,FALSE) -> 44% | Q10: =VLOOKUP($C10,'RECAP SECT'!$G$6:$CU$253,59,FALSE) -> 11 | R10: =VLOOKUP($C10,'RECAP SECT'!$G$6:$CU$253,60,FALSE) -> 39% | S10: =VLOOKUP($C10,'RECAP SECT'!$G$6:$CU$253,61,FALSE) -> 34% | T10: =VLOOKUP($C10,'RECAP SECT'!$G$6:$CU$253,62,FALSE) -> 10
A11: 50 | B11: AUBE HAUTE MARNE | C11: 14 | D11: TROYES | E11: =VLOOKUP($C11,'RECAP SECT'!$G$6:$CU$253,3,FALSE) -> 54.2 | F11: =VLOOKUP($C11,'RECAP SECT'!$G$6:$CU$253,48,FALSE) -> 12,533 | G11: =VLOOKUP($C11,'RECAP SECT'!$G$6:$CU$253,49,FALSE) -> 231.16 | H11: =VLOOKUP($C11,'RECAP SECT'!$G$6:$CU$253,50,FALSE) -> 60% | I11: =VLOOKUP($C11,'RECAP SECT'!$G$6:$CU$253,51,FALSE) -> 12 | J11: =VLOOKUP($C11,'RECAP SECT'!$G$6:$CU$253,52,FALSE) -> 2,770 | K11: =VLOOKUP($C11,'RECAP SECT'!$G$6:$CU$253,53,FALSE) -> 51.09 | L11: =VLOOKUP($C11,'RECAP SECT'!$G$6:$CU$253,54,FALSE) -> 17% | M11: =VLOOKUP($C11,'RECAP SECT'!$G$6:$CU$253,55,FALSE) -> 12 | N11: =VLOOKUP($C11,'RECAP SECT'!$G$6:$CU$253,56,FALSE) -> 1,105 | O11: =VLOOKUP($C11,'RECAP SECT'!$G$6:$CU$253,57,FALSE) -> 20.38 | P11: =VLOOKUP($C11,'RECAP SECT'!$G$6:$CU$253,58,FALSE) -> 50% | Q11: =VLOOKUP($C11,'RECAP SECT'!$G$6:$CU$253,59,FALSE) -> 14 | R11: =VLOOKUP($C11,'RECAP SECT'!$G$6:$CU$253,60,FALSE) -> 43% | S11: =VLOOKUP($C11,'RECAP SECT'!$G$6:$CU$253,61,FALSE) -> 39% | T11: =VLOOKUP($C11,'RECAP SECT'!$G$6:$CU$253,62,FALSE) -> 14
A12: 262 | B12: BAS-RHIN | C12: 5060 | D12: HAGUENAU | E12: =VLOOKUP($C12,'RECAP SECT'!$G$6:$CU$253,3,FALSE) -> 55.2 | F12: =VLOOKUP($C12,'RECAP SECT'!$G$6:$CU$253,48,FALSE) -> 9,503 | G12: =VLOOKUP($C12,'RECAP SECT'!$G$6:$CU$253,49,FALSE) -> 172.10 | H12: =VLOOKUP($C12,'RECAP SECT'!$G$6:$CU$253,50,FALSE) -> 70% | I12: =VLOOKUP($C12,'RECAP SECT'!$G$6:$CU$253,51,FALSE) -> 18 | J12: =VLOOKUP($C12,'RECAP SECT'!$G$6:$CU$253,52,FALSE) -> 2,784 | K12: =VLOOKUP($C12,'RECAP SECT'!$G$6:$CU$253,53,FALSE) -> 50.42 | L12: =VLOOKUP($C12,'RECAP SECT'!$G$6:$CU$253,54,FALSE) -> 18% | M12: =VLOOKUP($C12,'RECAP SECT'!$G$6:$CU$253,55,FALSE) -> 13 | N12: =VLOOKUP($C12,'RECAP SECT'!$G$6:$CU$253,56,FALSE) -> 961 | O12: =VLOOKUP($C12,'RECAP SECT'!$G$6:$CU$253,57,FALSE) -> 17.40 | P12: =VLOOKUP($C12,'RECAP SECT'!$G$6:$CU$253,58,FALSE) -> 58% | Q12: =VLOOKUP($C12,'RECAP SECT'!$G$6:$CU$253,59,FALSE) -> 17 | R12: =VLOOKUP($C12,'RECAP SECT'!$G$6:$CU$253,60,FALSE) -> 50% | S12: =VLOOKUP($C12,'RECAP SECT'!$G$6:$CU$253,61,FALSE) -> 45% | T12: =VLOOKUP($C12,'RECAP SECT'!$G$6:$CU$253,62,FALSE) -> 16
A13: 262 | B13: BAS-RHIN | C13: 5101 | D13: SELESTAT | E13: =VLOOKUP($C13,'RECAP SECT'!$G$6:$CU$253,3,FALSE) -> 51.3 | F13: =VLOOKUP($C13,'RECAP SECT'!$G$6:$CU$253,48,FALSE) -> 11,451 | G13: =VLOOKUP($C13,'RECAP SECT'!$G$6:$CU$253,49,FALSE) -> 223.43 | H13: =VLOOKUP($C13,'RECAP SECT'!$G$6:$CU$253,50,FALSE) -> 61% | I13: =VLOOKUP($C13,'RECAP SECT'!$G$6:$CU$253,51,FALSE) -> 13 | J13: =VLOOKUP($C13,'RECAP SECT'!$G$6:$CU$253,52,FALSE) -> 2,378 | K13: =VLOOKUP($C13,'RECAP SECT'!$G$6:$CU$253,53,FALSE) -> 46.40 | L13: =VLOOKUP($C13,'RECAP SECT'!$G$6:$CU$253,54,FALSE) -> 25% | M13: =VLOOKUP($C13,'RECAP SECT'!$G$6:$CU$253,55,FALSE) -> 14 | N13: =VLOOKUP($C13,'RECAP SECT'!$G$6:$CU$253,56,FALSE) -> 1,016 | O13: =VLOOKUP($C13,'RECAP SECT'!$G$6:$CU$253,57,FALSE) -> 19.82 | P13: =VLOOKUP($C13,'RECAP SECT'!$G$6:$CU$253,58,FALSE) -> 52% | Q13: =VLOOKUP($C13,'RECAP SECT'!$G$6:$CU$253,59,FALSE) -> 15 | R13: =VLOOKUP($C13,'RECAP SECT'!$G$6:$CU$253,60,FALSE) -> 47% | S13: =VLOOKUP($C13,'RECAP SECT'!$G$6:$CU$253,61,FALSE) -> 42% | T13: =VLOOKUP($C13,'RECAP SECT'!$G$6:$CU$253,62,FALSE) -> 15
A14: 262 | B14: BAS-RHIN | C14: 5006 | D14: STRASBOURG | E14: =VLOOKUP($C14,'RECAP SECT'!$G$6:$CU$253,3,FALSE) -> 65.2 | F14: =VLOOKUP($C14,'RECAP SECT'!$G$6:$CU$253,48,FALSE) -> 19,564 | G14: =VLOOKUP($C14,'RECAP SECT'!$G$6:$CU$253,49,FALSE) -> 300.10 | H14: =VLOOKUP($C14,'RECAP SECT'!$G$6:$CU$253,50,FALSE) -> 48% | I14: =VLOOKUP($C14,'RECAP SECT'!$G$6:$CU$253,51,FALSE) -> 9 | J14: =VLOOKUP($C14,'RECAP SECT'!$G$6:$CU$253,52,FALSE) -> 2,654 | K14: =VLOOKUP($C14,'RECAP SECT'!$G$6:$CU$253,53,FALSE) -> 40.72 | L14: =VLOOKUP($C14,'RECAP SECT'!$G$6:$CU$253,54,FALSE) -> 34% | M14: =VLOOKUP($C14,'RECAP SECT'!$G$6:$CU$253,55,FALSE) -> 18 | N14: =VLOOKUP($C14,'RECAP SECT'!$G$6:$CU$253,56,FALSE) -> 1,602 | O14: =VLOOKUP($C14,'RECAP SECT'!$G$6:$CU$253,57,FALSE) -> 24.57 | P14: =VLOOKUP($C14,'RECAP SECT'!$G$6:$CU$253,58,FALSE) -> 40% | Q14: =VLOOKUP($C14,'RECAP SECT'!$G$6:$CU$253,59,FALSE) -> 9 | R14: =VLOOKUP($C14,'RECAP SECT'!$G$6:$CU$253,60,FALSE) -> 41% | S14: =VLOOKUP($C14,'RECAP SECT'!$G$6:$CU$253,61,FALSE) -> 37% | T14: =VLOOKUP($C14,'RECAP SECT'!$G$6:$CU$253,62,FALSE) -> 11
A15: 264 | B15: HAUT-RHIN | C15: 5130 | D15: COLMAR | E15: =VLOOKUP($C15,'RECAP SECT'!$G$6:$CU$253,3,FALSE) -> 46.3 | F15: =VLOOKUP($C15,'RECAP SECT'!$G$6:$CU$253,48,FALSE) -> 8,096 | G15: =VLOOKUP($C15,'RECAP SECT'!$G$6:$CU$253,49,FALSE) -> 174.90 | H15: =VLOOKUP($C15,'RECAP SECT'!$G$6:$CU$253,50,FALSE) -> 70% | I15: =VLOOKUP($C15,'RECAP SECT'!$G$6:$CU$253,51,FALSE) -> 17 | J15: =VLOOKUP($C15,'RECAP SECT'!$G$6:$CU$253,52,FALSE) -> 2,113 | K15: =VLOOKUP($C15,'RECAP SECT'!$G$6:$CU$253,53,FALSE) -> 45.64 | L15: =VLOOKUP($C15,'RECAP SECT'!$G$6:$CU$253,54,FALSE) -> 26% | M15: =VLOOKUP($C15,'RECAP SECT'!$G$6:$CU$253,55,FALSE) -> 15 | N15: =VLOOKUP($C15,'RECAP SECT'!$G$6:$CU$253,56,FALSE) -> 779 | O15: =VLOOKUP($C15,'RECAP SECT'!$G$6:$CU$253,57,FALSE) -> 16.83 | P15: =VLOOKUP($C15,'RECAP SECT'!$G$6:$CU$253,58,FALSE) -> 59% | Q15: =VLOOKUP($C15,'RECAP SECT'!$G$6:$CU$253,59,FALSE) -> 18 | R15: =VLOOKUP($C15,'RECAP SECT'!$G$6:$CU$253,60,FALSE) -> 52% | S15: =VLOOKUP($C15,'RECAP SECT'!$G$6:$CU$253,61,FALSE) -> 48% | T15: =VLOOKUP($C15,'RECAP SECT'!$G$6:$CU$253,62,FALSE) -> 18
A16: 264 | B16: HAUT-RHIN | C16: 5169 | D16: MULHOUSE | E16: =VLOOKUP($C16,'RECAP SECT'!$G$6:$CU$253,3,FALSE) -> 46.8 | F16: =VLOOKUP($C16,'RECAP SECT'!$G$6:$CU$253,48,FALSE) -> 10,423 | G16: =VLOOKUP($C16,'RECAP SECT'!$G$6:$CU$253,49,FALSE) -> 222.81 | H16: =VLOOKUP($C16,'RECAP SECT'!$G$6:$CU$253,50,FALSE) -> 62% | I16: =VLOOKUP($C16,'RECAP SECT'!$G$6:$CU$253,51,FALSE) -> 14 | J16: =VLOOKUP($C16,'RECAP SECT'!$G$6:$CU$253,52,FALSE) -> 2,079 | K16: =VLOOKUP($C16,'RECAP SECT'!$G$6:$CU$253,53,FALSE) -> 44.43 | L16: =VLOOKUP($C16,'RECAP SECT'!$G$6:$CU$253,54,FALSE) -> 28% | M16: =VLOOKUP($C16,'RECAP SECT'!$G$6:$CU$253,55,FALSE) -> 17 | N16: =VLOOKUP($C16,'RECAP SECT'!$G$6:$CU$253,56,FALSE) -> 825 | O16: =VLOOKUP($C16,'RECAP SECT'!$G$6:$CU$253,57,FALSE) -> 17.64 | P16: =VLOOKUP($C16,'RECAP SECT'!$G$6:$CU$253,58,FALSE) -> 57% | Q16: =VLOOKUP($C16,'RECAP SECT'!$G$6:$CU$253,59,FALSE) -> 16 | R16: =VLOOKUP($C16,'RECAP SECT'!$G$6:$CU$253,60,FALSE) -> 50% | S16: =VLOOKUP($C16,'RECAP SECT'!$G$6:$CU$253,61,FALSE) -> 45% | T16: =VLOOKUP($C16,'RECAP SECT'!$G$6:$CU$253,62,FALSE) -> 17
A17: 30 | B17: MARNE-ARDENNES | C17: 6 | D17: CHALONS EN CHAMPAGNE | E17: =VLOOKUP($C17,'RECAP SECT'!$G$6:$CU$253,3,FALSE) -> 37.5 | F17: =VLOOKUP($C17,'RECAP SECT'!$G$6:$CU$253,48,FALSE) -> 13,560 | G17: =VLOOKUP($C17,'RECAP SECT'!$G$6:$CU$253,49,FALSE) -> 361.71 | H17: =VLOOKUP($C17,'RECAP SECT'!$G$6:$CU$253,50,FALSE) -> 38% | I17: =VLOOKUP($C17,'RECAP SECT'!$G$6:$CU$253,51,FALSE) -> 6 | J17: =VLOOKUP($C17,'RECAP SECT'!$G$6:$CU$253,52,FALSE) -> 2,166 | K17: =VLOOKUP($C17,'RECAP SECT'!$G$6:$CU$253,53,FALSE) -> 57.77 | L17: =VLOOKUP($C17,'RECAP SECT'!$G$6:$CU$253,54,FALSE) -> 6% | M17: =VLOOKUP($C17,'RECAP SECT'!$G$6:$CU$253,55,FALSE) -> 4 | N17: =VLOOKUP($C17,'RECAP SECT'!$G$6:$CU$253,56,FALSE) -> 1,053 | O17: =VLOOKUP($C17,'RECAP SECT'!$G$6:$CU$253,57,FALSE) -> 28.09 | P17: =VLOOKUP($C17,'RECAP SECT'!$G$6:$CU$253,58,FALSE) -> 32% | Q17: =VLOOKUP($C17,'RECAP SECT'!$G$6:$CU$253,59,FALSE) -> 5 | R17: =VLOOKUP($C17,'RECAP SECT'!$G$6:$CU$253,60,FALSE) -> 26% | S17: =VLOOKUP($C17,'RECAP SECT'!$G$6:$CU$253,61,FALSE) -> 22% | T17: =VLOOKUP($C17,'RECAP SECT'!$G$6:$CU$253,62,FALSE) -> 5
A18: 30 | B18: MARNE-ARDENNES | C18: 2 | D18: CHARLEVILLE MEZIERES | E18: =VLOOKUP($C18,'RECAP SECT'!$G$6:$CU$253,3,FALSE) -> 48.5 | F18: =VLOOKUP($C18,'RECAP SECT'!$G$6:$CU$253,48,FALSE) -> 19,057 | G18: =VLOOKUP($C18,'RECAP SECT'!$G$6:$CU$253,49,FALSE) -> 393.25 | H18: =VLOOKUP($C18,'RECAP SECT'!$G$6:$CU$253,50,FALSE) -> 32% | I18: =VLOOKUP($C18,'RECAP SECT'!$G$6:$CU$253,51,FALSE) -> 4 | J18: =VLOOKUP($C18,'RECAP SECT'!$G$6:$CU$253,52,FALSE) -> 2,683 | K18: =VLOOKUP($C18,'RECAP SECT'!$G$6:$CU$253,53,FALSE) -> 55.36 | L18: =VLOOKUP($C18,'RECAP SECT'!$G$6:$CU$253,54,FALSE) -> 10% | M18: =VLOOKUP($C18,'RECAP SECT'!$G$6:$CU$253,55,FALSE) -> 7 | N18: =VLOOKUP($C18,'RECAP SECT'!$G$6:$CU$253,56,FALSE) -> 1,519 | O18: =VLOOKUP($C18,'RECAP SECT'!$G$6:$CU$253,57,FALSE) -> 31.35 | P18: =VLOOKUP($C18,'RECAP SECT'!$G$6:$CU$253,58,FALSE) -> 24% | Q18: =VLOOKUP($C18,'RECAP SECT'!$G$6:$CU$253,59,FALSE) -> 3 | R18: =VLOOKUP($C18,'RECAP SECT'!$G$6:$CU$253,60,FALSE) -> 22% | S18: =VLOOKUP($C18,'RECAP SECT'!$G$6:$CU$253,61,FALSE) -> 18% | T18: =VLOOKUP($C18,'RECAP SECT'!$G$6:$CU$253,62,FALSE) -> 3
A19: 30 | B19: MARNE-ARDENNES | C19: 11 | D19: REIMS | E19: =VLOOKUP($C19,'RECAP SECT'!$G$6:$CU$253,3,FALSE) -> 68.0 | F19: =VLOOKUP($C19,'RECAP SECT'!$G$6:$CU$253,48,FALSE) -> 39,414 | G19: =VLOOKUP($C19,'RECAP SECT'!$G$6:$CU$253,49,FALSE) -> 580.05 | H19: =VLOOKUP($C19,'RECAP SECT'!$G$6:$CU$253,50,FALSE) -> 0% | I19: =VLOOKUP($C19,'RECAP SECT'!$G$6:$CU$253,51,FALSE) -> 1 | J19: =VLOOKUP($C19,'RECAP SECT'!$G$6:$CU$253,52,FALSE) -> 3,604 | K19: =VLOOKUP($C19,'RECAP SECT'!$G$6:$CU$253,53,FALSE) -> 53.03 | L19: =VLOOKUP($C19,'RECAP SECT'!$G$6:$CU$253,54,FALSE) -> 14% | M19: =VLOOKUP($C19,'RECAP SECT'!$G$6:$CU$253,55,FALSE) -> 10 | N19: =VLOOKUP($C19,'RECAP SECT'!$G$6:$CU$253,56,FALSE) -> 2,792 | O19: =VLOOKUP($C19,'RECAP SECT'!$G$6:$CU$253,57,FALSE) -> 41.09 | P19: =VLOOKUP($C19,'RECAP SECT'!$G$6:$CU$253,58,FALSE) -> 0% | Q19: =VLOOKUP($C19,'RECAP SECT'!$G$6:$CU$253,59,FALSE) -> 1 | R19: =VLOOKUP($C19,'RECAP SECT'!$G$6:$CU$253,60,FALSE) -> 4% | S19: =VLOOKUP($C19,'RECAP SECT'!$G$6:$CU$253,61,FALSE) -> 0% | T19: =VLOOKUP($C19,'RECAP SECT'!$G$6:$CU$253,62,FALSE) -> 1
A20: 110 | B20: MEURTHE ET MOSELLE MEUSE | C20: 26 | D20: NANCY | E20: =VLOOKUP($C20,'RECAP SECT'!$G$6:$CU$253,3,FALSE) -> 54.8 | F20: =VLOOKUP($C20,'RECAP SECT'!$G$6:$CU$253,48,FALSE) -> 22,563 | G20: =VLOOKUP($C20,'RECAP SECT'!$G$6:$CU$253,49,FALSE) -> 412.11 | H20: =VLOOKUP($C20,'RECAP SECT'!$G$6:$CU$253,50,FALSE) -> 29% | I20: =VLOOKUP($C20,'RECAP SECT'!$G$6:$CU$253,51,FALSE) -> 3 | J20: =VLOOKUP($C20,'RECAP SECT'!$G$6:$CU$253,52,FALSE) -> 2,949 | K20: =VLOOKUP($C20,'RECAP SECT'!$G$6:$CU$253,53,FALSE) -> 53.86 | L20: =VLOOKUP($C20,'RECAP SECT'!$G$6:$CU$253,54,FALSE) -> 13% | M20: =VLOOKUP($C20,'RECAP SECT'!$G$6:$CU$253,55,FALSE) -> 9 | N20: =VLOOKUP($C20,'RECAP SECT'!$G$6:$CU$253,56,FALSE) -> 1,580 | O20: =VLOOKUP($C20,'RECAP SECT'!$G$6:$CU$253,57,FALSE) -> 28.86 | P20: =VLOOKUP($C20,'RECAP SECT'!$G$6:$CU$253,58,FALSE) -> 30% | Q20: =VLOOKUP($C20,'RECAP SECT'!$G$6:$CU$253,59,FALSE) -> 4 | R20: =VLOOKUP($C20,'RECAP SECT'!$G$6:$CU$253,60,FALSE) -> 24% | S20: =VLOOKUP($C20,'RECAP SECT'!$G$6:$CU$253,61,FALSE) -> 20% | T20: =VLOOKUP($C20,'RECAP SECT'!$G$6:$CU$253,62,FALSE) -> 4
A21: 110 | B21: MEURTHE ET MOSELLE MEUSE | C21: 27 | D21: PONT A MOUSSON | E21: =VLOOKUP($C21,'RECAP SECT'!$G$6:$CU$253,3,FALSE) -> 60.2 | F21: =VLOOKUP($C21,'RECAP SECT'!$G$6:$CU$253,48,FALSE) -> 22,902 | G21: =VLOOKUP($C21,'RECAP SECT'!$G$6:$CU$253,49,FALSE) -> 380.74 | H21: =VLOOKUP($C21,'RECAP SECT'!$G$6:$CU$253,50,FALSE) -> 34% | I21: =VLOOKUP($C21,'RECAP SECT'!$G$6:$CU$253,51,FALSE) -> 5 | J21: =VLOOKUP($C21,'RECAP SECT'!$G$6:$CU$253,52,FALSE) -> 3,256 | K21: =VLOOKUP($C21,'RECAP SECT'!$G$6:$CU$253,53,FALSE) -> 54.13 | L21: =VLOOKUP($C21,'RECAP SECT'!$G$6:$CU$253,54,FALSE) -> 12% | M21: =VLOOKUP($C21,'RECAP SECT'!$G$6:$CU$253,55,FALSE) -> 8 | N21: =VLOOKUP($C21,'RECAP SECT'!$G$6:$CU$253,56,FALSE) -> 1,612 | O21: =VLOOKUP($C21,'RECAP SECT'!$G$6:$CU$253,57,FALSE) -> 26.80 | P21: =VLOOKUP($C21,'RECAP SECT'!$G$6:$CU$253,58,FALSE) -> 35% | Q21: =VLOOKUP($C21,'RECAP SECT'!$G$6:$CU$253,59,FALSE) -> 6 | R21: =VLOOKUP($C21,'RECAP SECT'!$G$6:$CU$253,60,FALSE) -> 28% | S21: =VLOOKUP($C21,'RECAP SECT'!$G$6:$CU$253,61,FALSE) -> 24% | T21: =VLOOKUP($C21,'RECAP SECT'!$G$6:$CU$253,62,FALSE) -> 7
A22: 110 | B22: MEURTHE ET MOSELLE MEUSE | C22: 31 | D22: VERDUN | E22: =VLOOKUP($C22,'RECAP SECT'!$G$6:$CU$253,3,FALSE) -> 48.4 | F22: =VLOOKUP($C22,'RECAP SECT'!$G$6:$CU$253,48,FALSE) -> 13,363 | G22: =VLOOKUP($C22,'RECAP SECT'!$G$6:$CU$253,49,FALSE) -> 275.92 | H22: =VLOOKUP($C22,'RECAP SECT'!$G$6:$CU$253,50,FALSE) -> 52% | I22: =VLOOKUP($C22,'RECAP SECT'!$G$6:$CU$253,51,FALSE) -> 10 | J22: =VLOOKUP($C22,'RECAP SECT'!$G$6:$CU$253,52,FALSE) -> 2,946 | K22: =VLOOKUP($C22,'RECAP SECT'!$G$6:$CU$253,53,FALSE) -> 60.82 | L22: =VLOOKUP($C22,'RECAP SECT'!$G$6:$CU$253,54,FALSE) -> 2% | M22: =VLOOKUP($C22,'RECAP SECT'!$G$6:$CU$253,55,FALSE) -> 2 | N22: =VLOOKUP($C22,'RECAP SECT'!$G$6:$CU$253,56,FALSE) -> 1,108 | O22: =VLOOKUP($C22,'RECAP SECT'!$G$6:$CU$253,57,FALSE) -> 22.88 | P22: =VLOOKUP($C22,'RECAP SECT'!$G$6:$CU$253,58,FALSE) -> 44% | Q22: =VLOOKUP($C22,'RECAP SECT'!$G$6:$CU$253,59,FALSE) -> 12 | R22: =VLOOKUP($C22,'RECAP SECT'!$G$6:$CU$253,60,FALSE) -> 34% | S22: =VLOOKUP($C22,'RECAP SECT'!$G$6:$CU$253,61,FALSE) -> 30% | T22: =VLOOKUP($C22,'RECAP SECT'!$G$6:$CU$253,62,FALSE) -> 9
A23: 160 | B23: MOSELLE | C23: 45 | D23: METZ | E23: =VLOOKUP($C23,'RECAP SECT'!$G$6:$CU$253,3,FALSE) -> 72.8 | F23: =VLOOKUP($C23,'RECAP SECT'!$G$6:$CU$253,48,FALSE) -> 24,981 | G23: =VLOOKUP($C23,'RECAP SECT'!$G$6:$CU$253,49,FALSE) -> 343.25 | H23: =VLOOKUP($C23,'RECAP SECT'!$G$6:$CU$253,50,FALSE) -> 41% | I23: =VLOOKUP($C23,'RECAP SECT'!$G$6:$CU$253,51,FALSE) -> 8 | J23: =VLOOKUP($C23,'RECAP SECT'!$G$6:$CU$253,52,FALSE) -> 4,053 | K23: =VLOOKUP($C23,'RECAP SECT'!$G$6:$CU$253,53,FALSE) -> 55.69 | L23: =VLOOKUP($C23,'RECAP SECT'!$G$6:$CU$253,54,FALSE) -> 10% | M23: =VLOOKUP($C23,'RECAP SECT'!$G$6:$CU$253,55,FALSE) -> 6 | N23: =VLOOKUP($C23,'RECAP SECT'!$G$6:$CU$253,56,FALSE) -> 1,809 | O23: =VLOOKUP($C23,'RECAP SECT'!$G$6:$CU$253,57,FALSE) -> 24.86 | P23: =VLOOKUP($C23,'RECAP SECT'!$G$6:$CU$253,58,FALSE) -> 40% | Q23: =VLOOKUP($C23,'RECAP SECT'!$G$6:$CU$253,59,FALSE) -> 8 | R23: =VLOOKUP($C23,'RECAP SECT'!$G$6:$CU$253,60,FALSE) -> 31% | S23: =VLOOKUP($C23,'RECAP SECT'!$G$6:$CU$253,61,FALSE) -> 27% | T23: =VLOOKUP($C23,'RECAP SECT'!$G$6:$CU$253,62,FALSE) -> 8
A24: 160 | B24: MOSELLE | C24: 42 | D24: MOSELLE EST | E24: =VLOOKUP($C24,'RECAP SECT'!$G$6:$CU$253,3,FALSE) -> 58.5 | F24: =VLOOKUP($C24,'RECAP SECT'!$G$6:$CU$253,48,FALSE) -> 20,677 | G24: =VLOOKUP($C24,'RECAP SECT'!$G$6:$CU$253,49,FALSE) -> 353.64 | H24: =VLOOKUP($C24,'RECAP SECT'!$G$6:$CU$253,50,FALSE) -> 39% | I24: =VLOOKUP($C24,'RECAP SECT'!$G$6:$CU$253,51,FALSE) -> 7 | J24: =VLOOKUP($C24,'RECAP SECT'!$G$6:$CU$253,52,FALSE) -> 3,507 | K24: =VLOOKUP($C24,'RECAP SECT'!$G$6:$CU$253,53,FALSE) -> 59.98 | L24: =VLOOKUP($C24,'RECAP SECT'!$G$6:$CU$253,54,FALSE) -> 3% | M24: =VLOOKUP($C24,'RECAP SECT'!$G$6:$CU$253,55,FALSE) -> 3 | N24: =VLOOKUP($C24,'RECAP SECT'!$G$6:$CU$253,56,FALSE) -> 1,528 | O24: =VLOOKUP($C24,'RECAP SECT'!$G$6:$CU$253,57,FALSE) -> 26.13 | P24: =VLOOKUP($C24,'RECAP SECT'!$G$6:$CU$253,58,FALSE) -> 36% | Q24: =VLOOKUP($C24,'RECAP SECT'!$G$6:$CU$253,59,FALSE) -> 7 | R24: =VLOOKUP($C24,'RECAP SECT'!$G$6:$CU$253,60,FALSE) -> 27% | S24: =VLOOKUP($C24,'RECAP SECT'!$G$6:$CU$253,61,FALSE) -> 23% | T24: =VLOOKUP($C24,'RECAP SECT'!$G$6:$CU$253,62,FALSE) -> 6
A25: 160 | B25: MOSELLE | C25: 44 | D25: MOSELLE NORD | E25: =VLOOKUP($C25,'RECAP SECT'!$G$6:$CU$253,3,FALSE) -> 55.9 | F25: =VLOOKUP($C25,'RECAP SECT'!$G$6:$CU$253,48,FALSE) -> 30,287 | G25: =VLOOKUP($C25,'RECAP SECT'!$G$6:$CU$253,49,FALSE) -> 542.28 | H25: =VLOOKUP($C25,'RECAP SECT'!$G$6:$CU$253,50,FALSE) -> 7% | I25: =VLOOKUP($C25,'RECAP SECT'!$G$6:$CU$253,51,FALSE) -> 2 | J25: =VLOOKUP($C25,'RECAP SECT'!$G$6:$CU$253,52,FALSE) -> 3,449 | K25: =VLOOKUP($C25,'RECAP SECT'!$G$6:$CU$253,53,FALSE) -> 61.75 | L25: =VLOOKUP($C25,'RECAP SECT'!$G$6:$CU$253,54,FALSE) -> 0% | M25: =VLOOKUP($C25,'RECAP SECT'!$G$6:$CU$253,55,FALSE) -> 1 | N25: =VLOOKUP($C25,'RECAP SECT'!$G$6:$CU$253,56,FALSE) -> 1,863 | O25: =VLOOKUP($C25,'RECAP SECT'!$G$6:$CU$253,57,FALSE) -> 33.36 | P25: =VLOOKUP($C25,'RECAP SECT'!$G$6:$CU$253,58,FALSE) -> 19% | Q25: =VLOOKUP($C25,'RECAP SECT'!$G$6:$CU$253,59,FALSE) -> 2 | R25: =VLOOKUP($C25,'RECAP SECT'!$G$6:$CU$253,60,FALSE) -> 9% | S25: =VLOOKUP($C25,'RECAP SECT'!$G$6:$CU$253,61,FALSE) -> 5% | T25: =VLOOKUP($C25,'RECAP SECT'!$G$6:$CU$253,62,FALSE) -> 2
A26: 80 | B26: VOSGES | C26: 57 | D26: EPINAL | E26: =VLOOKUP($C26,'RECAP SECT'!$G$6:$CU$253,3,FALSE) -> 53.0 | F26: =VLOOKUP($C26,'RECAP SECT'!$G$6:$CU$253,48,FALSE) -> 12,887 | G26: =VLOOKUP($C26,'RECAP SECT'!$G$6:$CU$253,49,FALSE) -> 243.34 | H26: =VLOOKUP($C26,'RECAP SECT'!$G$6:$CU$253,50,FALSE) -> 58% | I26: =VLOOKUP($C26,'RECAP SECT'!$G$6:$CU$253,51,FALSE) -> 11 | J26: =VLOOKUP($C26,'RECAP SECT'!$G$6:$CU$253,52,FALSE) -> 2,403 | K26: =VLOOKUP($C26,'RECAP SECT'!$G$6:$CU$253,53,FALSE) -> 45.38 | L26: =VLOOKUP($C26,'RECAP SECT'!$G$6:$CU$253,54,FALSE) -> 27% | M26: =VLOOKUP($C26,'RECAP SECT'!$G$6:$CU$253,55,FALSE) -> 16 | N26: =VLOOKUP($C26,'RECAP SECT'!$G$6:$CU$253,56,FALSE) -> 1,280 | O26: =VLOOKUP($C26,'RECAP SECT'!$G$6:$CU$253,57,FALSE) -> 24.17 | P26: =VLOOKUP($C26,'RECAP SECT'!$G$6:$CU$253,58,FALSE) -> 41% | Q26: =VLOOKUP($C26,'RECAP SECT'!$G$6:$CU$253,59,FALSE) -> 10 | R26: =VLOOKUP($C26,'RECAP SECT'!$G$6:$CU$253,60,FALSE) -> 42% | S26: =VLOOKUP($C26,'RECAP SECT'!$G$6:$CU$253,61,FALSE) -> 38% | T26: =VLOOKUP($C26,'RECAP SECT'!$G$6:$CU$253,62,FALSE) -> 13
A27: 80 | B27: VOSGES | C27: 55 | D27: SAINT DIE | E27: =VLOOKUP($C27,'RECAP SECT'!$G$6:$CU$253,3,FALSE) -> 40.2 | F27: =VLOOKUP($C27,'RECAP SECT'!$G$6:$CU$253,48,FALSE) -> 8,588 | G27: =VLOOKUP($C27,'RECAP SECT'!$G$6:$CU$253,49,FALSE) -> 213.85 | H27: =VLOOKUP($C27,'RECAP SECT'!$G$6:$CU$253,50,FALSE) -> 63% | I27: =VLOOKUP($C27,'RECAP SECT'!$G$6:$CU$253,51,FALSE) -> 15 | J27: =VLOOKUP($C27,'RECAP SECT'!$G$6:$CU$253,52,FALSE) -> 2,105 | K27: =VLOOKUP($C27,'RECAP SECT'!$G$6:$CU$253,53,FALSE) -> 52.43 | L27: =VLOOKUP($C27,'RECAP SECT'!$G$6:$CU$253,54,FALSE) -> 15% | M27: =VLOOKUP($C27,'RECAP SECT'!$G$6:$CU$253,55,FALSE) -> 11 | N27: =VLOOKUP($C27,'RECAP SECT'!$G$6:$CU$253,56,FALSE) -> 895 | O27: =VLOOKUP($C27,'RECAP SECT'!$G$6:$CU$253,57,FALSE) -> 22.29 | P27: =VLOOKUP($C27,'RECAP SECT'!$G$6:$CU$253,58,FALSE) -> 46% | Q27: =VLOOKUP($C27,'RECAP SECT'!$G$6:$CU$253,59,FALSE) -> 13 | R27: =VLOOKUP($C27,'RECAP SECT'!$G$6:$CU$253,60,FALSE) -> 42% | S27: =VLOOKUP($C27,'RECAP SECT'!$G$6:$CU$253,61,FALSE) -> 38% | T27: =VLOOKUP($C27,'RECAP SECT'!$G$6:$CU$253,62,FALSE) -> 12
A28: Total CEGEE Directions Régionales | E28: =SUM(E10:E27) -> 950

Sheet SE_IARD
B1: Accueil | F1: BAROMETRE BDD - TERRITOIRES
F2: IARD ET PREVOYANCE
F3: =ACCUEIL!F7 -> 2022-10-02
F7: Ventes Nettes produits pondérés | J7: Ventes sur client non détenteur de l’univers | N7: Total IARD Prévoyance
F8: =DATEMAJ!C23 -> au 02/10 | H8: coef | I8: ='RECAP DIRCOM'!BX4 -> 12% | J8: =DATEMAJ!C24 -> au 02/10 | L8: coef | M8: ='RECAP DIRCOM'!CB4 -> 8% | O8: coef | P8: ='RECAP DIRCOM'!CE4 -> 20%
B9: Direction | C9: eds | D9: Territoire | E9: ="ETP perf "&DATEMAJ!$C$28 -> ETP perf 02-oct | F9: VN | G9: VN / ETP | H9: % Ecart au 1er | I9: Rang | J9: VB | K9: VB / ETP | L9: % Ecart au 1er | M9: Rang | N9: Moyenne ecart au 1er | O9: % Ecart au 1er | P9: Rang CEGEE
A10: 50 | B10: AUBE HAUTE MARNE | C10: 21 | D10: CHAUMONT | E10: =VLOOKUP($C10,'RECAP SECT'!$G$6:$CU$253,3,FALSE) -> 33.7 | F10: =VLOOKUP($C10,'RECAP SECT'!$G$6:$CU$253,67,FALSE) -> 5,530 | G10: =VLOOKUP($C10,'RECAP SECT'!$G$6:$CU$253,68,FALSE) -> 164.14 | H10: =VLOOKUP($C10,'RECAP SECT'!$G$6:$CU$253,69,FALSE) -> 14% | I10: =VLOOKUP($C10,'RECAP SECT'!$G$6:$CU$253,70,FALSE) -> 3 | J10: =VLOOKUP($C10,'RECAP SECT'!$G$6:$CU$253,71,FALSE) -> 1,348 | K10: =VLOOKUP($C10,'RECAP SECT'!$G$6:$CU$253,72,FALSE) -> 40.01 | L10: =VLOOKUP($C10,'RECAP SECT'!$G$6:$CU$253,73,FALSE) -> 24% | M10: =VLOOKUP($C10,'RECAP SECT'!$G$6:$CU$253,74,FALSE) -> 9 | N10: =VLOOKUP($C10,'RECAP SECT'!$G$6:$CU$253,75,FALSE) -> 18% | O10: =VLOOKUP($C10,'RECAP SECT'!$G$6:$CU$253,76,FALSE) -> 17% | P10: =VLOOKUP($C10,'RECAP SECT'!$G$6:$CU$253,77,FALSE) -> 6
A11: 50 | B11: AUBE HAUTE MARNE | C11: 14 | D11: TROYES | E11: =VLOOKUP($C11,'RECAP SECT'!$G$6:$CU$253,3,FALSE) -> 54.2 | F11: =VLOOKUP($C11,'RECAP SECT'!$G$6:$CU$253,67,FALSE) -> 4,893 | G11: =VLOOKUP($C11,'RECAP SECT'!$G$6:$CU$253,68,FALSE) -> 90.24 | H11: =VLOOKUP($C11,'RECAP SECT'!$G$6:$CU$253,69,FALSE) -> 53% | I11: =VLOOKUP($C11,'RECAP SECT'!$G$6:$CU$253,70,FALSE) -> 13 | J11: =VLOOKUP($C11,'RECAP SECT'!$G$6:$CU$253,71,FALSE) -> 2,027 | K11: =VLOOKUP($C11,'RECAP SECT'!$G$6:$CU$253,72,FALSE) -> 37.38 | L11: =VLOOKUP($C11,'RECAP SECT'!$G$6:$CU$253,73,FALSE) -> 29% | M11: =VLOOKUP($C11,'RECAP SECT'!$G$6:$CU$253,74,FALSE) -> 12 | N11: =VLOOKUP($C11,'RECAP SECT'!$G$6:$CU$253,75,FALSE) -> 43% | O11: =VLOOKUP($C11,'RECAP SECT'!$G$6:$CU$253,76,FALSE) -> 43% | P11: =VLOOKUP($C11,'RECAP SECT'!$G$6:$CU$253,77,FALSE) -> 13
A12: 262 | B12: BAS-RHIN | C12: 5060 | D12: HAGUENAU | E12: =VLOOKUP($C12,'RECAP SECT'!$G$6:$CU$253,3,FALSE) -> 55.2 | F12: =VLOOKUP($C12,'RECAP SECT'!$G$6:$CU$253,67,FALSE) -> 4,422 | G12: =VLOOKUP($C12,'RECAP SECT'!$G$6:$CU$253,68,FALSE) -> 80.08 | H12: =VLOOKUP($C12,'RECAP SECT'!$G$6:$CU$253,69,FALSE) -> 58% | I12: =VLOOKUP($C12,'RECAP SECT'!$G$6:$CU$253,70,FALSE) -> 15 | J12: =VLOOKUP($C12,'RECAP SECT'!$G$6:$CU$253,71,FALSE) -> 1,884 | K12: =VLOOKUP($C12,'RECAP SECT'!$G$6:$CU$253,72,FALSE) -> 34.12 | L12: =VLOOKUP($C12,'RECAP SECT'!$G$6:$CU$253,73,FALSE) -> 36% | M12: =VLOOKUP($C12,'RECAP SECT'!$G$6:$CU$253,74,FALSE) -> 15 | N12: =VLOOKUP($C12,'RECAP SECT'!$G$6:$CU$253,75,FALSE) -> 49% | O12: =VLOOKUP($C12,'RECAP SECT'!$G$6:$CU$253,76,FALSE) -> 48% | P12: =VLOOKUP($C12,'RECAP SECT'!$G$6:$CU$253,77,FALSE) -> 14
A13: 262 | B13: BAS-RHIN | C13: 5101 | D13: SELESTAT | E13: =VLOOKUP($C13,'RECAP SECT'!$G$6:$CU$253,3,FALSE) -> 51.3 | F13: =VLOOKUP($C13,'RECAP SECT'!$G$6:$CU$253,67,FALSE) -> 4,026 | G13: =VLOOKUP($C13,'RECAP SECT'!$G$6:$CU$253,68,FALSE) -> 78.56 | H13: =VLOOKUP($C13,'RECAP SECT'!$G$6:$CU$253,69,FALSE) -> 59% | I13: =VLOOKUP($C13,'RECAP SECT'!$G$6:$CU$253,70,FALSE) -> 16 | J13: =VLOOKUP($C13,'RECAP SECT'!$G$6:$CU$253,71,FALSE) -> 1,759 | K13: =VLOOKUP($C13,'RECAP SECT'!$G$6:$CU$253,72,FALSE) -> 34.32 | L13: =VLOOKUP($C13,'RECAP SECT'!$G$6:$CU$253,73,FALSE) -> 35% | M13: =VLOOKUP($C13,'RECAP SECT'!$G$6:$CU$253,74,FALSE) -> 14 | N13: =VLOOKUP($C13,'RECAP SECT'!$G$6:$CU$253,75,FALSE) -> 49% | O13: =VLOOKUP($C13,'RECAP SECT'!$G$6:$CU$253,76,FALSE) -> 49% | P13: =VLOOKUP($C13,'RECAP SECT'!$G$6:$CU$253,77,FALSE) -> 15
A14: 262 | B14: BAS-RHIN | C14: 5006 | D14: STRASBOURG | E14: =VLOOKUP($C14,'RECAP SECT'!$G$6:$CU$253,3,FALSE) -> 65.2 | F14: =VLOOKUP($C14,'RECAP SECT'!$G$6:$CU$253,67,FALSE) -> 8,207 | G14: =VLOOKUP($C14,'RECAP SECT'!$G$6:$CU$253,68,FALSE) -> 125.89 | H14: =VLOOKUP($C14,'RECAP SECT'!$G$6:$CU$253,69,FALSE) -> 34% | I14: =VLOOKUP($C14,'RECAP SECT'!$G$6:$CU$253,70,FALSE) -> 7 | J14: =VLOOKUP($C14,'RECAP SECT'!$G$6:$CU$253,71,FALSE) -> 3,310 | K14: =VLOOKUP($C14,'RECAP SECT'!$G$6:$CU$253,72,FALSE) -> 50.77 | L14: =VLOOKUP($C14,'RECAP SECT'!$G$6:$CU$253,73,FALSE) -> 4% | M14: =VLOOKUP($C14,'RECAP SECT'!$G$6:$CU$253,74,FALSE) -> 3 | N14: =VLOOKUP($C14,'RECAP SECT'!$G$6:$CU$253,75,FALSE) -> 22% | O14: =VLOOKUP($C14,'RECAP SECT'!$G$6:$CU$253,76,FALSE) -> 21% | P14: =VLOOKUP($C14,'RECAP SECT'!$G$6:$CU$253,77,FALSE) -> 7
A15: 264 | B15: HAUT-RHIN | C15: 5130 | D15: COLMAR | E15: =VLOOKUP($C15,'RECAP SECT'!$G$6:$CU$253,3,FALSE) -> 46.3 | F15: =VLOOKUP($C15,'RECAP SECT'!$G$6:$CU$253,67,FALSE) -> 2,457 | G15: =VLOOKUP($C15,'RECAP SECT'!$G$6:$CU$253,68,FALSE) -> 53.08 | H15: =VLOOKUP($C15,'RECAP SECT'!$G$6:$CU$253,69,FALSE) -> 72% | I15: =VLOOKUP($C15,'RECAP SECT'!$G$6:$CU$253,70,FALSE) -> 17 | J15: =VLOOKUP($C15,'RECAP SECT'!$G$6:$CU$253,71,FALSE) -> 1,500 | K15: =VLOOKUP($C15,'RECAP SECT'!$G$6:$CU$253,72,FALSE) -> 32.40 | L15: =VLOOKUP($C15,'RECAP SECT'!$G$6:$CU$253,73,FALSE) -> 39% | M15: =VLOOKUP($C15,'RECAP SECT'!$G$6:$CU$253,74,FALSE) -> 18 | N15: =VLOOKUP($C15,'RECAP SECT'!$G$6:$CU$253,75,FALSE) -> 59% | O15: =VLOOKUP($C15,'RECAP SECT'!$G$6:$CU$253,76,FALSE) -> 58% | P15: =VLOOKUP($C15,'RECAP SECT'!$G$6:$CU$253,77,FALSE) -> 17
A16: 264 | B16: HAUT-RHIN | C16: 5169 | D16: MULHOUSE | E16: =VLOOKUP($C16,'RECAP SECT'!$G$6:$CU$253,3,FALSE) -> 46.8 | F16: =VLOOKUP($C16,'RECAP SECT'!$G$6:$CU$253,67,FALSE) -> 260 | G16: =VLOOKUP($C16,'RECAP SECT'!$G$6:$CU$253,68,FALSE) -> 5.56 | H16: =VLOOKUP($C16,'RECAP SECT'!$G$6:$CU$253,69,FALSE) -> 97% | I16: =VLOOKUP($C16,'RECAP SECT'!$G$6:$CU$253,70,FALSE) -> 18 | J16: =VLOOKUP($C16,'RECAP SECT'!$G$6:$CU$253,71,FALSE) -> 1,539 | K16: =VLOOKUP($C16,'RECAP SECT'!$G$6:$CU$253,72,FALSE) -> 32.90 | L16: =VLOOKUP($C16,'RECAP SECT'!$G$6:$CU$253,73,FALSE) -> 38% | M16: =VLOOKUP($C16,'RECAP SECT'!$G$6:$CU$253,74,FALSE) -> 16 | N16: =VLOOKUP($C16,'RECAP SECT'!$G$6:$CU$253,75,FALSE) -> 73% | O16: =VLOOKUP($C16,'RECAP SECT'!$G$6:$CU$253,76,FALSE) -> 73% | P16: =VLOOKUP($C16,'RECAP SECT'!$G$6:$CU$253,77,FALSE) -> 18
A17: 30 | B17: MARNE-ARDENNES | C17: 6 | D17: CHALONS EN CHAMPAGNE | E17: =VLOOKUP($C17,'RECAP SECT'!$G$6:$CU$253,3,FALSE) -> 37.5 | F17: =VLOOKUP($C17,'RECAP SECT'!$G$6:$CU$253,67,FALSE) -> 5,828 | G17: =VLOOKUP($C17,'RECAP SECT'!$G$6:$CU$253,68,FALSE) -> 155.45 | H17: =VLOOKUP($C17,'RECAP SECT'!$G$6:$CU$253,69,FALSE) -> 18% | I17: =VLOOKUP($C17,'RECAP SECT'!$G$6:$CU$253,70,FALSE) -> 5 | J17: =VLOOKUP($C17,'RECAP SECT'!$G$6:$CU$253,71,FALSE) -> 1,708 | K17: =VLOOKUP($C17,'RECAP SECT'!$G$6:$CU$253,72,FALSE) -> 45.56 | L17: =VLOOKUP($C17,'RECAP SECT'!$G$6:$CU$253,73,FALSE) -> 14% | M17: =VLOOKUP($C17,'RECAP SECT'!$G$6:$CU$253,74,FALSE) -> 6 | N17: =VLOOKUP($C17,'RECAP SECT'!$G$6:$CU$253,75,FALSE) -> 17% | O17: =VLOOKUP($C17,'RECAP SECT'!$G$6:$CU$253,76,FALSE) -> 16% | P17: =VLOOKUP($C17,'RECAP SECT'!$G$6:$CU$253,77,FALSE) -> 4
A18: 30 | B18: MARNE-ARDENNES | C18: 2 | D18: CHARLEVILLE MEZIERES | E18: =VLOOKUP($C18,'RECAP SECT'!$G$6:$CU$253,3,FALSE) -> 48.5 | F18: =VLOOKUP($C18,'RECAP SECT'!$G$6:$CU$253,67,FALSE) -> 8,110 | G18: =VLOOKUP($C18,'RECAP SECT'!$G$6:$CU$253,68,FALSE) -> 167.35 | H18: =VLOOKUP($C18,'RECAP SECT'!$G$6:$CU$253,69,FALSE) -> 12% | I18: =VLOOKUP($C18,'RECAP SECT'!$G$6:$CU$253,70,FALSE) -> 2 | J18: =VLOOKUP($C18,'RECAP SECT'!$G$6:$CU$253,71,FALSE) -> 2,066 | K18: =VLOOKUP($C18,'RECAP SECT'!$G$6:$CU$253,72,FALSE) -> 42.63 | L18: =VLOOKUP($C18,'RECAP SECT'!$G$6:$CU$253,73,FALSE) -> 19% | M18: =VLOOKUP($C18,'RECAP SECT'!$G$6:$CU$253,74,FALSE) -> 7 | N18: =VLOOKUP($C18,'RECAP SECT'!$G$6:$CU$253,75,FALSE) -> 15% | O18: =VLOOKUP($C18,'RECAP SECT'!$G$6:$CU$253,76,FALSE) -> 14% | P18: =VLOOKUP($C18,'RECAP SECT'!$G$6:$CU$253,77,FALSE) -> 3
A19: 30 | B19: MARNE-ARDENNES | C19: 11 | D19: REIMS | E19: =VLOOKUP($C19,'RECAP SECT'!$G$6:$CU$253,3,FALSE) -> 68.0 | F19: =VLOOKUP($C19,'RECAP SECT'!$G$6:$CU$253,67,FALSE) -> 10,727 | G19: =VLOOKUP($C19,'RECAP SECT'!$G$6:$CU$253,68,FALSE) -> 157.87 | H19: =VLOOKUP($C19,'RECAP SECT'!$G$6:$CU$253,69,FALSE) -> 17% | I19: =VLOOKUP($C19,'RECAP SECT'!$G$6:$CU$253,70,FALSE) -> 4 | J19: =VLOOKUP($C19,'RECAP SECT'!$G$6:$CU$253,71,FALSE) -> 3,597 | K19: =VLOOKUP($C19,'RECAP SECT'!$G$6:$CU$253,72,FALSE) -> 52.94 | L19: =VLOOKUP($C19,'RECAP SECT'!$G$6:$CU$253,73,FALSE) -> 0% | M19: =VLOOKUP($C19,'RECAP SECT'!$G$6:$CU$253,74,FALSE) -> 1 | N19: =VLOOKUP($C19,'RECAP SECT'!$G$6:$CU$253,75,FALSE) -> 10% | O19: =VLOOKUP($C19,'RECAP SECT'!$G$6:$CU$253,76,FALSE) -> 10% | P19: =VLOOKUP($C19,'RECAP SECT'!$G$6:$CU$253,77,FALSE) -> 2
A20: 110 | B20: MEURTHE ET MOSELLE MEUSE | C20: 26 | D20: NANCY | E20: =VLOOKUP($C20,'RECAP SECT'!$G$6:$CU$253,3,FALSE) -> 54.8 | F20: =VLOOKUP($C20,'RECAP SECT'!$G$6:$CU$253,67,FALSE) -> 5,205 | G20: =VLOOKUP($C20,'RECAP SECT'!$G$6:$CU$253,68,FALSE) -> 95.07 | H20: =VLOOKUP($C20,'RECAP SECT'!$G$6:$CU$253,69,FALSE) -> 50% | I20: =VLOOKUP($C20,'RECAP SECT'!$G$6:$CU$253,70,FALSE) -> 12 | J20: =VLOOKUP($C20,'RECAP SECT'!$G$6:$CU$253,71,FALSE) -> 2,298 | K20: =VLOOKUP($C20,'RECAP SECT'!$G$6:$CU$253,72,FALSE) -> 41.97 | L20: =VLOOKUP($C20,'RECAP SECT'!$G$6:$CU$253,73,FALSE) -> 21% | M20: =VLOOKUP($C20,'RECAP SECT'!$G$6:$CU$253,74,FALSE) -> 8 | N20: =VLOOKUP($C20,'RECAP SECT'!$G$6:$CU$253,75,FALSE) -> 38% | O20: =VLOOKUP($C20,'RECAP SECT'!$G$6:$CU$253,76,FALSE) -> 38% | P20: =VLOOKUP($C20,'RECAP SECT'!$G$6:$CU$253,77,FALSE) -> 11
A21: 110 | B21: MEURTHE ET MOSELLE MEUSE | C21: 27 | D21: PONT A MOUSSON | E21: =VLOOKUP($C21,'RECAP SECT'!$G$6:$CU$253,3,FALSE) -> 60.2 | F21: =VLOOKUP($C21,'RECAP SECT'!$G$6:$CU$253,67,FALSE) -> 7,383 | G21: =VLOOKUP($C21,'RECAP SECT'!$G$6:$CU$253,68,FALSE) -> 122.74 | H21: =VLOOKUP($C21,'RECAP SECT'!$G$6:$CU$253,69,FALSE) -> 35% | I21: =VLOOKUP($C21,'RECAP SECT'!$G$6:$CU$253,70,FALSE) -> 8 | J21: =VLOOKUP($C21,'RECAP SECT'!$G$6:$CU$253,71,FALSE) -> 2,749 | K21: =VLOOKUP($C21,'RECAP SECT'!$G$6:$CU$253,72,FALSE) -> 45.70 | L21: =VLOOKUP($C21,'RECAP SECT'!$G$6:$CU$253,73,FALSE) -> 14% | M21: =VLOOKUP($C21,'RECAP SECT'!$G$6:$CU$253,74,FALSE) -> 4 | N21: =VLOOKUP($C21,'RECAP SECT'!$G$6:$CU$253,75,FALSE) -> 27% | O21: =VLOOKUP($C21,'RECAP SECT'!$G$6:$CU$253,76,FALSE) -> 26% | P21: =VLOOKUP($C21,'RECAP SECT'!$G$6:$CU$253,77,FALSE) -> 8
A22: 110 | B22: MEURTHE ET MOSELLE MEUSE | C22: 31 | D22: VERDUN | E22: =VLOOKUP($C22,'RECAP SECT'!$G$6:$CU$253,3,FALSE) -> 48.4 | F22: =VLOOKUP($C22,'RECAP SECT'!$G$6:$CU$253,67,FALSE) -> 5,071 | G22: =VLOOKUP($C22,'RECAP SECT'!$G$6:$CU$253,68,FALSE) -> 104.71 | H22: =VLOOKUP($C22,'RECAP SECT'!$G$6:$CU$253,69,FALSE) -> 45% | I22: =VLOOKUP($C22,'RECAP SECT'!$G$6:$CU$253,70,FALSE) -> 10 | J22: =VLOOKUP($C22,'RECAP SECT'!$G$6:$CU$253,71,FALSE) -> 1,853 | K22: =VLOOKUP($C22,'RECAP SECT'!$G$6:$CU$253,72,FALSE) -> 38.26 | L22: =VLOOKUP($C22,'RECAP SECT'!$G$6:$CU$253,73,FALSE) -> 28% | M22: =VLOOKUP($C22,'RECAP SECT'!$G$6:$CU$253,74,FALSE) -> 11 | N22: =VLOOKUP($C22,'RECAP SECT'!$G$6:$CU$253,75,FALSE) -> 38% | O22: =VLOOKUP($C22,'RECAP SECT'!$G$6:$CU$253,76,FALSE) -> 37% | P22: =VLOOKUP($C22,'RECAP SECT'!$G$6:$CU$253,77,FALSE) -> 10
A23: 160 | B23: MOSELLE | C23: 45 | D23: METZ | E23: =VLOOKUP($C23,'RECAP SECT'!$G$6:$CU$253,3,FALSE) -> 72.8 | F23: =VLOOKUP($C23,'RECAP SECT'!$G$6:$CU$253,67,FALSE) -> 8,094 | G23: =VLOOKUP($C23,'RECAP SECT'!$G$6:$CU$253,68,FALSE) -> 111.21 | H23: =VLOOKUP($C23,'RECAP SECT'!$G$6:$CU$253,69,FALSE) -> 41% | I23: =VLOOKUP($C23,'RECAP SECT'!$G$6:$CU$253,70,FALSE) -> 9 | J23: =VLOOKUP($C23,'RECAP SECT'!$G$6:$CU$253,71,FALSE) -> 2,895 | K23: =VLOOKUP($C23,'RECAP SECT'!$G$6:$CU$253,72,FALSE) -> 39.78 | L23: =VLOOKUP($C23,'RECAP SECT'!$G$6:$CU$253,73,FALSE) -> 25% | M23: =VLOOKUP($C23,'RECAP SECT'!$G$6:$CU$253,74,FALSE) -> 10 | N23: =VLOOKUP($C23,'RECAP SECT'!$G$6:$CU$253,75,FALSE) -> 35% | O23: =VLOOKUP($C23,'RECAP SECT'!$G$6:$CU$253,76,FALSE) -> 34% | P23: =VLOOKUP($C23,'RECAP SECT'!$G$6:$CU$253,77,FALSE) -> 9
A24: 160 | B24: MOSELLE | C24: 42 | D24: MOSELLE EST | E24: =VLOOKUP($C24,'RECAP SECT'!$G$6:$CU$253,3,FALSE) -> 58.5 | F24: =VLOOKUP($C24,'RECAP SECT'!$G$6:$CU$253,67,FALSE) -> 8,947 | G24: =VLOOKUP($C24,'RECAP SECT'!$G$6:$CU$253,68,FALSE) -> 153.02 | H24: =VLOOKUP($C24,'RECAP SECT'!$G$6:$CU$253,69,FALSE) -> 19% | I24: =VLOOKUP($C24,'RECAP SECT'!$G$6:$CU$253,70,FALSE) -> 6 | J24: =VLOOKUP($C24,'RECAP SECT'!$G$6:$CU$253,71,FALSE) -> 2,666 | K24: =VLOOKUP($C24,'RECAP SECT'!$G$6:$CU$253,72,FALSE) -> 45.60 | L24: =VLOOKUP($C24,'RECAP SECT'!$G$6:$CU$253,73,FALSE) -> 14% | M24: =VLOOKUP($C24,'RECAP SECT'!$G$6:$CU$253,74,FALSE) -> 5 | N24: =VLOOKUP($C24,'RECAP SECT'!$G$6:$CU$253,75,FALSE) -> 17% | O24: =VLOOKUP($C24,'RECAP SECT'!$G$6:$CU$253,76,FALSE) -> 17% | P24: =VLOOKUP($C24,'RECAP SECT'!$G$6:$CU$253,77,FALSE) -> 5
A25: 160 | B25: MOSELLE | C25: 44 | D25: MOSELLE NORD | E25: =VLOOKUP($C25,'RECAP SECT'!$G$6:$CU$253,3,FALSE) -> 55.9 | F25: =VLOOKUP($C25,'RECAP SECT'!$G$6:$CU$253,67,FALSE) -> 10,616 | G25: =VLOOKUP($C25,'RECAP SECT'!$G$6:$CU$253,68,FALSE) -> 190.08 | H25: =VLOOKUP($C25,'RECAP SECT'!$G$6:$CU$253,69,FALSE) -> 0% | I25: =VLOOKUP($C25,'RECAP SECT'!$G$6:$CU$253,70,FALSE) -> 1 | J25: =VLOOKUP($C25,'RECAP SECT'!$G$6:$CU$253,71,FALSE) -> 2,915 | K25: =VLOOKUP($C25,'RECAP SECT'!$G$6:$CU$253,72,FALSE) -> 52.19 | L25: =VLOOKUP($C25,'RECAP SECT'!$G$6:$CU$253,73,FALSE) -> 1% | M25: =VLOOKUP($C25,'RECAP SECT'!$G$6:$CU$253,74,FALSE) -> 2 | N25: =VLOOKUP($C25,'RECAP SECT'!$G$6:$CU$253,75,FALSE) -> 1% | O25: =VLOOKUP($C25,'RECAP SECT'!$G$6:$CU$253,76,FALSE) -> 0% | P25: =VLOOKUP($C25,'RECAP SECT'!$G$6:$CU$253,77,FALSE) -> 1
A26: 80 | B26: VOSGES | C26: 57 | D26: EPINAL | E26: =VLOOKUP($C26,'RECAP SECT'!$G$6:$CU$253,3,FALSE) -> 53.0 | F26: =VLOOKUP($C26,'RECAP SECT'!$G$6:$CU$253,67,FALSE) -> 5,143 | G26: =VLOOKUP($C26,'RECAP SECT'!$G$6:$CU$253,68,FALSE) -> 97.11 | H26: =VLOOKUP($C26,'RECAP SECT'!$G$6:$CU$253,69,FALSE) -> 49% | I26: =VLOOKUP($C26,'RECAP SECT'!$G$6:$CU$253,70,FALSE) -> 11 | J26: =VLOOKUP($C26,'RECAP SECT'!$G$6:$CU$253,71,FALSE) -> 1,880 | K26: =VLOOKUP($C26,'RECAP SECT'!$G$6:$CU$253,72,FALSE) -> 35.50 | L26: =VLOOKUP($C26,'RECAP SECT'!$G$6:$CU$253,73,FALSE) -> 33% | M26: =VLOOKUP($C26,'RECAP SECT'!$G$6:$CU$253,74,FALSE) -> 13 | N26: =VLOOKUP($C26,'RECAP SECT'!$G$6:$CU$253,75,FALSE) -> 43% | O26: =VLOOKUP($C26,'RECAP SECT'!$G$6:$CU$253,76,FALSE) -> 42% | P26: =VLOOKUP($C26,'RECAP SECT'!$G$6:$CU$253,77,FALSE) -> 12
A27: 80 | B27: VOSGES | C27: 55 | D27: SAINT DIE | E27: =VLOOKUP($C27,'RECAP SECT'!$G$6:$CU$253,3,FALSE) -> 40.2 | F27: =VLOOKUP($C27,'RECAP SECT'!$G$6:$CU$253,67,FALSE) -> 3,235 | G27: =VLOOKUP($C27,'RECAP SECT'!$G$6:$CU$253,68,FALSE) -> 80.55 | H27: =VLOOKUP($C27,'RECAP SECT'!$G$6:$CU$253,69,FALSE) -> 58% | I27: =VLOOKUP($C27,'RECAP SECT'!$G$6:$CU$253,70,FALSE) -> 14 | J27: =VLOOKUP($C27,'RECAP SECT'!$G$6:$CU$253,71,FALSE) -> 1,314 | K27: =VLOOKUP($C27,'RECAP SECT'!$G$6:$CU$253,72,FALSE) -> 32.72 | L27: =VLOOKUP($C27,'RECAP SECT'!$G$6:$CU$253,73,FALSE) -> 38% | M27: =VLOOKUP($C27,'RECAP SECT'!$G$6:$CU$253,74,FALSE) -> 17 | N27: =VLOOKUP($C27,'RECAP SECT'!$G$6:$CU$253,75,FALSE) -> 50% | O27: =VLOOKUP($C27,'RECAP SECT'!$G$6:$CU$253,76,FALSE) -> 49% | P27: =VLOOKUP($C27,'RECAP SECT'!$G$6:$CU$253,77,FALSE) -> 16
A28: Total CEGEE Directions Régionales | E28: =SUM(E10:E27) -> 950

Sheet SE_SATISFACTION
B1: Accueil | F1: BAROMETRE BDD - TERRITOIRES
F2: SATISFACTION
F3: =ACCUEIL!F7 -> 2022-10-02
F7: NPS à froid (SAE) | I7: NPS à chaud (QHD) | L7: Total Satisfaction Clients
F8: =DATEMAJ!E4 -> au 31/07 | G8: coef | H8: ='RECAP DIRCOM'!M4 -> 10% | I8: =DATEMAJ!C5 -> au 31/08 | J8: coef | K8: ='RECAP DIRCOM'!P4 -> 10% | M8: coef | N8: ='RECAP DIRCOM'!S4 -> 20%
B9: Direction | C9: eds | D9: Territoire | E9: ="ETP perf "&DATEMAJ!$C$28 -> ETP perf 02-oct | G9: % Ecart au 1er | H9: Rang | J9: % Ecart au 1er | K9: Rang | L9: Moyenne ecart au 1er | M9: % Ecart au 1er | N9: Rang CEGEE
A10: 50 | B10: AUBE HAUTE MARNE | C10: 21 | D10: CHAUMONT | E10: =VLOOKUP($C10,'RECAP SECT'!$G$6:$CU$253,3,FALSE) -> 33.7 | F10: =VLOOKUP($C10,'RECAP SECT'!$G$6:$CU$253,5,FALSE) -> 19 | G10: =VLOOKUP($C10,'RECAP SECT'!$G$6:$CU$253,6,FALSE) -> 25% | H10: =VLOOKUP($C10,'RECAP SECT'!$G$6:$CU$253,7,FALSE) -> 6 | I10: =VLOOKUP($C10,'RECAP SECT'!$G$6:$CU$253,8,FALSE) -> 65% | J10: =VLOOKUP($C10,'RECAP SECT'!$G$6:$CU$253,9,FALSE) -> 12% | K10: =VLOOKUP($C10,'RECAP SECT'!$G$6:$CU$253,10,FALSE) -> 8 | L10: =VLOOKUP($C10,'RECAP SECT'!$G$6:$CU$253,11,FALSE) -> 18% | M10: =VLOOKUP($C10,'RECAP SECT'!$G$6:$CU$253,12,FALSE) -> 15% | N10: =VLOOKUP($C10,'RECAP SECT'!$G$6:$CU$253,13,FALSE) -> 6
A11: 50 | B11: AUBE HAUTE MARNE | C11: 14 | D11: TROYES | E11: =VLOOKUP($C11,'RECAP SECT'!$G$6:$CU$253,3,FALSE) -> 54.2 | F11: =VLOOKUP($C11,'RECAP SECT'!$G$6:$CU$253,5,FALSE) -> 0 | G11: =VLOOKUP($C11,'RECAP SECT'!$G$6:$CU$253,6,FALSE) -> 100% | H11: =VLOOKUP($C11,'RECAP SECT'!$G$6:$CU$253,7,FALSE) -> 18 | I11: =VLOOKUP($C11,'RECAP SECT'!$G$6:$CU$253,8,FALSE) -> 48% | J11: =VLOOKUP($C11,'RECAP SECT'!$G$6:$CU$253,9,FALSE) -> 35% | K11: =VLOOKUP($C11,'RECAP SECT'!$G$6:$CU$253,10,FALSE) -> 17 | L11: =VLOOKUP($C11,'RECAP SECT'!$G$6:$CU$253,11,FALSE) -> 67% | M11: =VLOOKUP($C11,'RECAP SECT'!$G$6:$CU$253,12,FALSE) -> 64% | N11: =VLOOKUP($C11,'RECAP SECT'!$G$6:$CU$253,13,FALSE) -> 18
A12: 262 | B12: BAS-RHIN | C12: 5060 | D12: HAGUENAU | E12: =VLOOKUP($C12,'RECAP SECT'!$G$6:$CU$253,3,FALSE) -> 55.2 | F12: =VLOOKUP($C12,'RECAP SECT'!$G$6:$CU$253,5,FALSE) -> 10 | G12: =VLOOKUP($C12,'RECAP SECT'!$G$6:$CU$253,6,FALSE) -> 60% | H12: =VLOOKUP($C12,'RECAP SECT'!$G$6:$CU$253,7,FALSE) -> 11 | I12: =VLOOKUP($C12,'RECAP SECT'!$G$6:$CU$253,8,FALSE) -> 61% | J12: =VLOOKUP($C12,'RECAP SECT'!$G$6:$CU$253,9,FALSE) -> 17% | K12: =VLOOKUP($C12,'RECAP SECT'!$G$6:$CU$253,10,FALSE) -> 11 | L12: =VLOOKUP($C12,'RECAP SECT'!$G$6:$CU$253,11,FALSE) -> 39% | M12: =VLOOKUP($C12,'RECAP SECT'!$G$6:$CU$253,12,FALSE) -> 36% | N12: =VLOOKUP($C12,'RECAP SECT'!$G$6:$CU$253,13,FALSE) -> 12
A13: 262 | B13: BAS-RHIN | C13: 5101 | D13: SELESTAT | E13: =VLOOKUP($C13,'RECAP SECT'!$G$6:$CU$253,3,FALSE) -> 51.3 | F13: =VLOOKUP($C13,'RECAP SECT'!$G$6:$CU$253,5,FALSE) -> 1.75 | G13: =VLOOKUP($C13,'RECAP SECT'!$G$6:$CU$253,6,FALSE) -> 93% | H13: =VLOOKUP($C13,'RECAP SECT'!$G$6:$CU$253,7,FALSE) -> 17 | I13: =VLOOKUP($C13,'RECAP SECT'!$G$6:$CU$253,8,FALSE) -> 60% | J13: =VLOOKUP($C13,'RECAP SECT'!$G$6:$CU$253,9,FALSE) -> 19% | K13: =VLOOKUP($C13,'RECAP SECT'!$G$6:$CU$253,10,FALSE) -> 13 | L13: =VLOOKUP($C13,'RECAP SECT'!$G$6:$CU$253,11,FALSE) -> 56% | M13: =VLOOKUP($C13,'RECAP SECT'!$G$6:$CU$253,12,FALSE) -> 53% | N13: =VLOOKUP($C13,'RECAP SECT'!$G$6:$CU$253,13,FALSE) -> 14
A14: 262 | B14: BAS-RHIN | C14: 5006 | D14: STRASBOURG | E14: =VLOOKUP($C14,'RECAP SECT'!$G$6:$CU$253,3,FALSE) -> 65.2 | F14: =VLOOKUP($C14,'RECAP SECT'!$G$6:$CU$253,5,FALSE) -> 9.75 | G14: =VLOOKUP($C14,'RECAP SECT'!$G$6:$CU$253,6,FALSE) -> 61% | H14: =VLOOKUP($C14,'RECAP SECT'!$G$6:$CU$253,7,FALSE) -> 12 | I14: =VLOOKUP($C14,'RECAP SECT'!$G$6:$CU$253,8,FALSE) -> 66% | J14: =VLOOKUP($C14,'RECAP SECT'!$G$6:$CU$253,9,FALSE) -> 10% | K14: =VLOOKUP($C14,'RECAP SECT'!$G$6:$CU$253,10,FALSE) -> 6 | L14: =VLOOKUP($C14,'RECAP SECT'!$G$6:$CU$253,11,FALSE) -> 36% | M14: =VLOOKUP($C14,'RECAP SECT'!$G$6:$CU$253,12,FALSE) -> 33% | N14: =VLOOKUP($C14,'RECAP SECT'!$G$6:$CU$253,13,FALSE) -> 11
A15: 264 | B15: HAUT-RHIN | C15: 5130 | D15: COLMAR | E15: =VLOOKUP($C15,'RECAP SECT'!$G$6:$CU$253,3,FALSE) -> 46.3 | F15: =VLOOKUP($C15,'RECAP SECT'!$G$6:$CU$253,5,FALSE) -> 2.5 | G15: =VLOOKUP($C15,'RECAP SECT'!$G$6:$CU$253,6,FALSE) -> 90% | H15: =VLOOKUP($C15,'RECAP SECT'!$G$6:$CU$253,7,FALSE) -> 15 | I15: =VLOOKUP($C15,'RECAP SECT'!$G$6:$CU$253,8,FALSE) -> 50% | J15: =VLOOKUP($C15,'RECAP SECT'!$G$6:$CU$253,9,FALSE) -> 32% | K15: =VLOOKUP($C15,'RECAP SECT'!$G$6:$CU$253,10,FALSE) -> 16 | L15: =VLOOKUP($C15,'RECAP SECT'!$G$6:$CU$253,11,FALSE) -> 61% | M15: =VLOOKUP($C15,'RECAP SECT'!$G$6:$CU$253,12,FALSE) -> 58% | N15: =VLOOKUP($C15,'RECAP SECT'!$G$6:$CU$253,13,FALSE) -> 16
A16: 264 | B16: HAUT-RHIN | C16: 5169 | D16: MULHOUSE | E16: =VLOOKUP($C16,'RECAP SECT'!$G$6:$CU$253,3,FALSE) -> 46.8 | F16: =VLOOKUP($C16,'RECAP SECT'!$G$6:$CU$253,5,FALSE) -> 3 | G16: =VLOOKUP($C16,'RECAP SECT'!$G$6:$CU$253,6,FALSE) -> 88% | H16: =VLOOKUP($C16,'RECAP SECT'!$G$6:$CU$253,7,FALSE) -> 14 | I16: =VLOOKUP($C16,'RECAP SECT'!$G$6:$CU$253,8,FALSE) -> 45% | J16: =VLOOKUP($C16,'RECAP SECT'!$G$6:$CU$253,9,FALSE) -> 39% | K16: =VLOOKUP($C16,'RECAP SECT'!$G$6:$CU$253,10,FALSE) -> 18 | L16: =VLOOKUP($C16,'RECAP SECT'!$G$6:$CU$253,11,FALSE) -> 63% | M16: =VLOOKUP($C16,'RECAP SECT'!$G$6:$CU$253,12,FALSE) -> 60% | N16: =VLOOKUP($C16,'RECAP SECT'!$G$6:$CU$253,13,FALSE) -> 17
A17: 30 | B17: MARNE-ARDENNES | C17: 6 | D17: CHALONS EN CHAMPAGNE | E17: =VLOOKUP($C17,'RECAP SECT'!$G$6:$CU$253,3,FALSE) -> 37.5 | F17: =VLOOKUP($C17,'RECAP SECT'!$G$6:$CU$253,5,FALSE) -> 23.75 | G17: =VLOOKUP($C17,'RECAP SECT'!$G$6:$CU$253,6,FALSE) -> 6% | H17: =VLOOKUP($C17,'RECAP SECT'!$G$6:$CU$253,7,FALSE) -> 2 | I17: =VLOOKUP($C17,'RECAP SECT'!$G$6:$CU$253,8,FALSE) -> 74% | J17: =VLOOKUP($C17,'RECAP SECT'!$G$6:$CU$253,9,FALSE) -> 0% | K17: =VLOOKUP($C17,'RECAP SECT'!$G$6:$CU$253,10,FALSE) -> 1 | L17: =VLOOKUP($C17,'RECAP SECT'!$G$6:$CU$253,11,FALSE) -> 3% | M17: =VLOOKUP($C17,'RECAP SECT'!$G$6:$CU$253,12,FALSE) -> 0% | N17: =VLOOKUP($C17,'RECAP SECT'!$G$6:$CU$253,13,FALSE) -> 1
A18: 30 | B18: MARNE-ARDENNES | C18: 2 | D18: CHARLEVILLE MEZIERES | E18: =VLOOKUP($C18,'RECAP SECT'!$G$6:$CU$253,3,FALSE) -> 48.5 | F18: =VLOOKUP($C18,'RECAP SECT'!$G$6:$CU$253,5,FALSE) -> 14.5 | G18: =VLOOKUP($C18,'RECAP SECT'!$G$6:$CU$253,6,FALSE) -> 43% | H18: =VLOOKUP($C18,'RECAP SECT'!$G$6:$CU$253,7,FALSE) -> 9 | I18: =VLOOKUP($C18,'RECAP SECT'!$G$6:$CU$253,8,FALSE) -> 66% | J18: =VLOOKUP($C18,'RECAP SECT'!$G$6:$CU$253,9,FALSE) -> 10% | K18: =VLOOKUP($C18,'RECAP SECT'!$G$6:$CU$253,10,FALSE) -> 7 | L18: =VLOOKUP($C18,'RECAP SECT'!$G$6:$CU$253,11,FALSE) -> 26% | M18: =VLOOKUP($C18,'RECAP SECT'!$G$6:$CU$253,12,FALSE) -> 24% | N18: =VLOOKUP($C18,'RECAP SECT'!$G$6:$CU$253,13,FALSE) -> 8
A19: 30 | B19: MARNE-ARDENNES | C19: 11 | D19: REIMS | E19: =VLOOKUP($C19,'RECAP SECT'!$G$6:$CU$253,3,FALSE) -> 68.0 | F19: =VLOOKUP($C19,'RECAP SECT'!$G$6:$CU$253,5,FALSE) -> 17.5 | G19: =VLOOKUP($C19,'RECAP SECT'!$G$6:$CU$253,6,FALSE) -> 31% | H19: =VLOOKUP($C19,'RECAP SECT'!$G$6:$CU$253,7,FALSE) -> 7 | I19: =VLOOKUP($C19,'RECAP SECT'!$G$6:$CU$253,8,FALSE) -> 62% | J19: =VLOOKUP($C19,'RECAP SECT'!$G$6:$CU$253,9,FALSE) -> 16% | K19: =VLOOKUP($C19,'RECAP SECT'!$G$6:$CU$253,10,FALSE) -> 10 | L19: =VLOOKUP($C19,'RECAP SECT'!$G$6:$CU$253,11,FALSE) -> 24% | M19: =VLOOKUP($C19,'RECAP SECT'!$G$6:$CU$253,12,FALSE) -> 21% | N19: =VLOOKUP($C19,'RECAP SECT'!$G$6:$CU$253,13,FALSE) -> 7
A20: 110 | B20: MEURTHE ET MOSELLE MEUSE | C20: 26 | D20: NANCY | E20: =VLOOKUP($C20,'RECAP SECT'!$G$6:$CU$253,3,FALSE) -> 54.8 | F20: =VLOOKUP($C20,'RECAP SECT'!$G$6:$CU$253,5,FALSE) -> 13.25 | G20: =VLOOKUP($C20,'RECAP SECT'!$G$6:$CU$253,6,FALSE) -> 48% | H20: =VLOOKUP($C20,'RECAP SECT'!$G$6:$CU$253,7,FALSE) -> 10 | I20: =VLOOKUP($C20,'RECAP SECT'!$G$6:$CU$253,8,FALSE) -> 62% | J20: =VLOOKUP($C20,'RECAP SECT'!$G$6:$CU$253,9,FALSE) -> 16% | K20: =VLOOKUP($C20,'RECAP SECT'!$G$6:$CU$253,10,FALSE) -> 9 | L20: =VLOOKUP($C20,'RECAP SECT'!$G$6:$CU$253,11,FALSE) -> 32% | M20: =VLOOKUP($C20,'RECAP SECT'!$G$6:$CU$253,12,FALSE) -> 29% | N20: =VLOOKUP($C20,'RECAP SECT'!$G$6:$CU$253,13,FALSE) -> 10
A21: 110 | B21: MEURTHE ET MOSELLE MEUSE | C21: 27 | D21: PONT A MOUSSON | E21: =VLOOKUP($C21,'RECAP SECT'!$G$6:$CU$253,3,FALSE) -> 60.2 | F21: =VLOOKUP($C21,'RECAP SECT'!$G$6:$CU$253,5,FALSE) -> 2.25 | G21: =VLOOKUP($C21,'RECAP SECT'!$G$6:$CU$253,6,FALSE) -> 91% | H21: =VLOOKUP($C21,'RECAP SECT'!$G$6:$CU$253,7,FALSE) -> 16 | I21: =VLOOKUP($C21,'RECAP SECT'!$G$6:$CU$253,8,FALSE) -> 54% | J21: =VLOOKUP($C21,'RECAP SECT'!$G$6:$CU$253,9,FALSE) -> 26% | K21: =VLOOKUP($C21,'RECAP SECT'!$G$6:$CU$253,10,FALSE) -> 15 | L21: =VLOOKUP($C21,'RECAP SECT'!$G$6:$CU$253,11,FALSE) -> 59% | M21: =VLOOKUP($C21,'RECAP SECT'!$G$6:$CU$253,12,FALSE) -> 56% | N21: =VLOOKUP($C21,'RECAP SECT'!$G$6:$CU$253,13,FALSE) -> 15
A22: 110 | B22: MEURTHE ET MOSELLE MEUSE | C22: 31 | D22: VERDUN | E22: =VLOOKUP($C22,'RECAP SECT'!$G$6:$CU$253,3,FALSE) -> 48.4 | F22: =VLOOKUP($C22,'RECAP SECT'!$G$6:$CU$253,5,FALSE) -> 20.75 | G22: =VLOOKUP($C22,'RECAP SECT'!$G$6:$CU$253,6,FALSE) -> 18% | H22: =VLOOKUP($C22,'RECAP SECT'!$G$6:$CU$253,7,FALSE) -> 5 | I22: =VLOOKUP($C22,'RECAP SECT'!$G$6:$CU$253,8,FALSE) -> 67% | J22: =VLOOKUP($C22,'RECAP SECT'!$G$6:$CU$253,9,FALSE) -> 9% | K22: =VLOOKUP($C22,'RECAP SECT'!$G$6:$CU$253,10,FALSE) -> 4 | L22: =VLOOKUP($C22,'RECAP SECT'!$G$6:$CU$253,11,FALSE) -> 13% | M22: =VLOOKUP($C22,'RECAP SECT'!$G$6:$CU$253,12,FALSE) -> 10% | N22: =VLOOKUP($C22,'RECAP SECT'!$G$6:$CU$253,13,FALSE) -> 5
A23: 160 | B23: MOSELLE | C23: 45 | D23: METZ | E23: =VLOOKUP($C23,'RECAP SECT'!$G$6:$CU$253,3,FALSE) -> 72.8 | F23: =VLOOKUP($C23,'RECAP SECT'!$G$6:$CU$253,5,FALSE) -> 15.25 | G23: =VLOOKUP($C23,'RECAP SECT'!$G$6:$CU$253,6,FALSE) -> 40% | H23: =VLOOKUP($C23,'RECAP SECT'!$G$6:$CU$253,7,FALSE) -> 8 | I23: =VLOOKUP($C23,'RECAP SECT'!$G$6:$CU$253,8,FALSE) -> 59% | J23: =VLOOKUP($C23,'RECAP SECT'!$G$6:$CU$253,9,FALSE) -> 19% | K23: =VLOOKUP($C23,'RECAP SECT'!$G$6:$CU$253,10,FALSE) -> 14 | L23: =VLOOKUP($C23,'RECAP SECT'!$G$6:$CU$253,11,FALSE) -> 30% | M23: =VLOOKUP($C23,'RECAP SECT'!$G$6:$CU$253,12,FALSE) -> 27% | N23: =VLOOKUP($C23,'RECAP SECT'!$G$6:$CU$253,13,FALSE) -> 9
A24: 160 | B24: MOSELLE | C24: 42 | D24: MOSELLE EST | E24: =VLOOKUP($C24,'RECAP SECT'!$G$6:$CU$253,3,FALSE) -> 58.5 | F24: =VLOOKUP($C24,'RECAP SECT'!$G$6:$CU$253,5,FALSE) -> 21.25 | G24: =VLOOKUP($C24,'RECAP SECT'!$G$6:$CU$253,6,FALSE) -> 16% | H24: =VLOOKUP($C24,'RECAP SECT'!$G$6:$CU$253,7,FALSE) -> 4 | I24: =VLOOKUP($C24,'RECAP SECT'!$G$6:$CU$253,8,FALSE) -> 67% | J24: =VLOOKUP($C24,'RECAP SECT'!$G$6:$CU$253,9,FALSE) -> 10% | K24: =VLOOKUP($C24,'RECAP SECT'!$G$6:$CU$253,10,FALSE) -> 5 | L24: =VLOOKUP($C24,'RECAP SECT'!$G$6:$CU$253,11,FALSE) -> 13% | M24: =VLOOKUP($C24,'RECAP SECT'!$G$6:$CU$253,12,FALSE) -> 10% | N24: =VLOOKUP($C24,'RECAP SECT'!$G$6:$CU$253,13,FALSE) -> 4
A25: 160 | B25: MOSELLE | C25: 44 | D25: MOSELLE NORD | E25: =VLOOKUP($C25,'RECAP SECT'!$G$6:$CU$253,3,FALSE) -> 55.9 | F25: =VLOOKUP($C25,'RECAP SECT'!$G$6:$CU$253,5,FALSE) -> 8.25 | G25: =VLOOKUP($C25,'RECAP SECT'!$G$6:$CU$253,6,FALSE) -> 67% | H25: =VLOOKUP($C25,'RECAP SECT'!$G$6:$CU$253,7,FALSE) -> 13 | I25: =VLOOKUP($C25,'RECAP SECT'!$G$6:$CU$253,8,FALSE) -> 61% | J25: =VLOOKUP($C25,'RECAP SECT'!$G$6:$CU$253,9,FALSE) -> 17% | K25: =VLOOKUP($C25,'RECAP SECT'!$G$6:$CU$253,10,FALSE) -> 12 | L25: =VLOOKUP($C25,'RECAP SECT'!$G$6:$CU$253,11,FALSE) -> 42% | M25: =VLOOKUP($C25,'RECAP SECT'!$G$6:$CU$253,12,FALSE) -> 39% | N25: =VLOOKUP($C25,'RECAP SECT'!$G$6:$CU$253,13,FALSE) -> 13
A26: 80 | B26: VOSGES | C26: 57 | D26: EPINAL | E26: =VLOOKUP($C26,'RECAP SECT'!$G$6:$CU$253,3,FALSE) -> 53.0 | F26: =VLOOKUP($C26,'RECAP SECT'!$G$6:$CU$253,5,FALSE) -> 22.25 | G26: =VLOOKUP($C26,'RECAP SECT'!$G$6:$CU$253,6,FALSE) -> 12% | H26: =VLOOKUP($C26,'RECAP SECT'!$G$6:$CU$253,7,FALSE) -> 3 | I26: =VLOOKUP($C26,'RECAP SECT'!$G$6:$CU$253,8,FALSE) -> 70% | J26: =VLOOKUP($C26,'RECAP SECT'!$G$6:$CU$253,9,FALSE) -> 5% | K26: =VLOOKUP($C26,'RECAP SECT'!$G$6:$CU$253,10,FALSE) -> 2 | L26: =VLOOKUP($C26,'RECAP SECT'!$G$6:$CU$253,11,FALSE) -> 9% | M26: =VLOOKUP($C26,'RECAP SECT'!$G$6:$CU$253,12,FALSE) -> 6% | N26: =VLOOKUP($C26,'RECAP SECT'!$G$6:$CU$253,13,FALSE) -> 3
A27: 80 | B27: VOSGES | C27: 55 | D27: SAINT DIE | E27: =VLOOKUP($C27,'RECAP SECT'!$G$6:$CU$253,3,FALSE) -> 40.2 | F27: =VLOOKUP($C27,'RECAP SECT'!$G$6:$CU$253,5,FALSE) -> 25.25 | G27: =VLOOKUP($C27,'RECAP SECT'!$G$6:$CU$253,6,FALSE) -> 0% | H27: =VLOOKUP($C27,'RECAP SECT'!$G$6:$CU$253,7,FALSE) -> 1 | I27: =VLOOKUP($C27,'RECAP SECT'!$G$6:$CU$253,8,FALSE) -> 69% | J27: =VLOOKUP($C27,'RECAP SECT'!$G$6:$CU$253,9,FALSE) -> 7% | K27: =VLOOKUP($C27,'RECAP SECT'!$G$6:$CU$253,10,FALSE) -> 3 | L27: =VLOOKUP($C27,'RECAP SECT'!$G$6:$CU$253,11,FALSE) -> 3% | M27: =VLOOKUP($C27,'RECAP SECT'!$G$6:$CU$253,12,FALSE) -> 0% | N27: =VLOOKUP($C27,'RECAP SECT'!$G$6:$CU$253,13,FALSE) -> 2
A28: Total CEGEE Directions Régionales | E28: =SUM(E10:E27) -> 950

Sheet AG_CLASS
B1: Accueil | H1: BAROMETRE BDD - AGENCES
H2: CLASSEMENTS
H3: =ACCUEIL!F7 -> 2022-10-02
H8: CLASSEMENT GENERAL | I8: CRITERE Satisfaction Clients | J8: NPS à froid (SAE) | K8: NPS à chaud (QHD) | L8: CRITERE BANCARISATION | M8: Ventes Nettes produits pondérés | N8: Ventes sur client non détenteur de l’univers | O8: CRITERE EPARGNE | P8: Excédent Epargne hors DAV pondéré | Q8: Ventes sur client non détenteur de l’univers | R8: CRITERE IARD PREVOYANCE | S8: Ventes Nettes produits pondérés | T8: Ventes sur client non détenteur de l’univers | U8: CRITERE CREDITS | V8: Engagements et ventes accessoires pondérés Immo | W8: Engagements et ventes accessoires pondérés Conso | X8: Ventes sur client non détenteur de l’univers
B9: Direction | C9: eds | D9: Territoire | E9: eds | F9: Agence | G9: ="ETP perf "&DATEMAJ!$C$28 -> ETP perf 02-oct | H9: Rang | I9: Rang | J9: Rang | K9: Rang | L9: Rang | M9: Rang | N9: Rang | O9: Rang | P9: Rang | Q9: Rang | R9: Rang | S9: Rang | T9: Rang | U9: Rang | V9: Rang | W9: Rang | X9: Rang
A10: 50 | B10: MOSELLE | C10: 44 | D10: MOSELLE NORD | E10: 557508 | F10: NILVANGE | G10: 1.5 | H10: 1 | I10: 64 | J10: 73 | K10: 40 | L10: 1 | M10: 1 | N10: 1 | O10: 4 | P10: 111 | Q10: 1 | R10: 1 | S10: 1 | T10: 1 | U10: 1 | V10: 1 | W10: 1 | X10: 1
A11: 50 | B11: VOSGES | C11: 57 | D11: EPINAL | E11: 488288 | F11: EPINAL LEOPOLD BOURG | G11: 2.0 | H11: 2 | I11: 2 | J11: 2 | K11: 3 | L11: 16 | M11: 9 | N11: 49 | O11: 5 | P11: 4 | Q11: 29 | R11: 57 | S11: 32 | T11: 156 | U11: 25 | V11: 17 | W11: 67 | X11: 29
A12: 50 | B12: MARNE ARDENNES | C12: 11 | D12: REIMS | E12: 551305 | F12: REIMS HIPPODROME | G12: 5.2 | H12: 3 | I12: 68 | J12: 67 | K12: 76 | L12: 11 | M12: 34 | N12: 7 | O12: 18 | P12: 24 | Q12: 17 | R12: 8 | S12: 13 | T12: 10 | U12: 5 | V12: 6 | W12: 62 | X12: 5
A13: 50 | B13: MARNE ARDENNES | C13: 6 | D13: CHALONS EN CHAMPAGNE | E13: 451115 | F13: MOURMELON LE GRAND | G13: 2.8 | H13: 4 | I13: 82 | J13: 116 | K13: 18 | L13: 2 | M13: 2 | N13: 11 | O13: 17 | P13: 37 | Q13: 5 | R13: 18 | S13: 45 | T13: 8 | U13: 14 | V13: 35 | W13: 3 | X13: 36
A14: 50 | B14: MARNE ARDENNES | C14: 11 | D14: REIMS | E14: 551340 | F14: BETHENY | G14: 2.2 | H14: 5 | I14: 45 | J14: 34 | K14: 110 | L14: 5 | M14: 6 | N14: 6 | O14: 29 | P14: 61 | Q14: 10 | R14: 79 | S14: 97 | T14: 62 | U14: 8 | V14: 4 | W14: 76 | X14: 9
A15: 50 | B15: MOSELLE | C15: 44 | D15: MOSELLE NORD | E15: 557660 | F15: UCKANGE | G15: 1.8 | H15: 6 | I15: 219 | J15: 178 | K15: 224 | L15: 12 | M15: 36 | N15: 10 | O15: 24 | P15: 160 | Q15: 2 | R15: 2 | S15: 2 | T15: 3 | U15: 2 | V15: 2 | W15: 31 | X15: 2
A16: 50 | B16: MARNE ARDENNES | C16: 2 | D16: CHARLEVILLE MEZIERES | E16: 508820 | F16: VOUZIERS | G16: 2.8 | H16: 7 | I16: 27 | J16: 20 | K16: 71 | L16: 36 | M16: 35 | N16: 50 | O16: 31 | P16: 22 | Q16: 142 | R16: 3 | S16: 3 | T16: 17 | U16: 33 | V16: 83 | W16: 7 | X16: 53
A17: 50 | B17: MARNE ARDENNES | C17: 11 | D17: REIMS | E17: 551349 | F17: REIMS SAINT REMI | G17: 2.9 | H17: 8 | I17: 122 | J17: 134 | K17: 93 | L17: 3 | M17: 3 | N17: 9 | O17: 43 | P17: 78 | Q17: 13 | R17: 15 | S17: 23 | T17: 13 | U17: 7 | V17: 10 | W17: 30 | X17: 8
A18: 50 | B18: MARNE ARDENNES | C18: 6 | D18: CHALONS EN CHAMPAGNE | E18: 551330 | F18: MONTMIRAIL | G18: 2.8 | H18: 9 | I18: 10 | J18: 15 | K18: 14 | L18: 13 | M18: 8 | N18: 53 | O18: 49 | P18: 43 | Q18: 85 | R18: 11 | S18: 9 | T18: 22 | U18: 75 | V18: 55 | W18: 188 | X18: 46
A19: 50 | B19: MEURTHE ET MOSELLE MEUSE | C19: 26 | D19: NANCY | E19: 554476 | F19: NANCY ARTEM | G19: 2.8 | H19: 10 | I19: 37 | J19: 50 | K19: 15 | L19: 10 | M19: 14 | N19: 16 | O19: 156 | P19: 167 | Q19: 97 | R19: 56 | S19: 47 | T19: 95 | U19: 3 | V19: 3 | W19: 97 | X19: 4
A20: 50 | B20: MOSELLE | C20: 45 | D20: METZ | E20: 457443 | F20: METZ REPUBLIQUE | G20: 3.4 | H20: 11 | I20: 42 | J20: 40 | K20: 51 | L20: 72 | M20: 64 | N20: 102 | O20: 3 | P20: 3 | Q20: 70 | R20: 12 | S20: 7 | T20: 36 | U20: 98 | V20: 110 | W20: 92 | X20: 107
A21: 50 | B21: MARNE ARDENNES | C21: 6 | D21: CHALONS EN CHAMPAGNE | E21: 451120 | F21: SARRY | G21: 2.3 | H21: 12 | I21: 6 | J21: 7 | K21: 5 | L21: 18 | M21: 11 | N21: 59 | O21: 110 | P21: 138 | Q21: 39 | R21: 45 | S21: 38 | T21: 90 | U21: 51 | V21: 37 | W21: 65 | X21: 79
A22: 50 | B22: MOSELLE | C22: 44 | D22: MOSELLE NORD | E22: 557113 | F22: AUDUN LE TICHE | G22: 2.1 | H22: 13 | I22: 117 | J22: 166 | K22: 12 | L22: 9 | M22: 17 | N22: 5 | O22: 21 | P22: 47 | Q22: 6 | R22: 21 | S22: 42 | T22: 11 | U22: 13 | V22: 15 | W22: 8 | X22: 30
A23: 50 | B23: BAS RHIN | C23: 5006 | D23: STRASBOURG | E23: 4048 | F23: STRASBOURG KOENIGSHOFFEN | G23: 1.6 | H23: 14 | I23: 170 | J23: 208 | K23: 147 | L23: 8 | M23: 15 | N23: 8 | O23: 8 | P23: 26 | Q23: 3 | R23: 6 | S23: 60 | T23: 2 | U23: 19 | V23: 70 | W23: 18 | X23: 14
A24: 50 | B24: MEURTHE ET MOSELLE MEUSE | C24: 27 | D24: PONT A MOUSSON | E24: 554381 | F24: LAXOU ARISTIDE BRIAND | G24: 2.3 | H24: 15 | I24: 159 | J24: 185 | K24: 133 | L24: 4 | M24: 5 | N24: 2 | O24: 57 | P24: 104 | Q24: 7 | R24: 13 | S24: 39 | T24: 7 | U24: 6 | V24: 7 | W24: 34 | X24: 7
A25: 50 | B25: MARNE ARDENNES | C25: 11 | D25: REIMS | E25: 551365 | F25: DORMANS | G25: 2.5 | H25: 16 | I25: 50 | J25: 56 | K25: 61 | L25: 6 | M25: 4 | N25: 18 | O25: 141 | P25: 181 | Q25: 32 | R25: 42 | S25: 50 | T25: 42 | U25: 23 | V25: 24 | W25: 149 | X25: 10
A26: 50 | B26: BAS RHIN | C26: 5006 | D26: STRASBOURG | E26: 4037 | F26: MUNDOLSHEIM | G26: 3.8 | H26: 17 | I26: 56 | J26: 45 | K26: 88 | L26: 15 | M26: 19 | N26: 22 | O26: 151 | P26: 205 | Q26: 16 | R26: 9 | S26: 8 | T26: 18 | U26: 26 | V26: 31 | W26: 125 | X26: 16
A27: 50 | B27: MOSELLE | C27: 42 | D27: MOSELLE EST | E27: 457165 | F27: BITCHE | G27: 2.5 | H27: 18 | I27: 16 | J27: 12 | K27: 36 | L27: 20 | M27: 10 | N27: 65 | O27: 114 | P27: 170 | Q27: 19 | R27: 28 | S27: 25 | T27: 51 | U27: 115 | V27: 123 | W27: 57 | X27: 178
A28: 262 | B28: MOSELLE | C28: 45 | D28: METZ | E28: 457453 | F28: MONTIGNY LES METZ | G28: 6.9 | H28: 19 | I28: 11 | J28: 14 | K28: 21 | L28: 44 | M28: 37 | N28: 89 | O28: 73 | P28: 119 | Q28: 11 | R28: 107 | S28: 87 | T28: 161 | U28: 42 | V28: 34 | W28: 70 | X28: 61
A29: 262 | B29: MARNE ARDENNES | C29: 11 | D29: REIMS | E29: 451350 | F29: REIMS CENTRE VILLE | G29: 6.4 | H29: 20 | I29: 195 | J29: 194 | K29: 176 | L29: 7 | M29: 12 | N29: 14 | O29: 75 | P29: 89 | Q29: 34 | R29: 24 | S29: 29 | T29: 21 | U29: 4 | V29: 8 | W29: 29 | X29: 3
A30: 262 | B30: MARNE ARDENNES | C30: 11 | D30: REIMS | E30: 451336 | F30: TINQUEUX | G30: 5.0 | H30: 21 | I30: 144 | J30: 133 | K30: 170 | L30: 46 | M30: 44 | N30: 74 | O30: 1 | P30: 2 | Q30: 53 | R30: 102 | S30: 123 | T30: 84 | U30: 58 | V30: 23 | W30: 167 | X30: 56
A31: 262 | B31: MEURTHE ET MOSELLE MEUSE | C31: 26 | D31: NANCY | E31: 554601 | F31: SAINT MAX | G31: 3.5 | H31: 22 | I31: 22 | J31: 26 | K31: 33 | L31: 104 | M31: 89 | N31: 129 | O31: 15 | P31: 10 | Q31: 99 | R31: 43 | S31: 36 | T31: 100 | U31: 82 | V31: 77 | W31: 82 | X31: 100
A32: 262 | B32: MOSELLE | C32: 42 | D32: MOSELLE EST | E32: 457308 | F32: FORBACH CENTRALE | G32: 10.2 | H32: 23 | I32: 88 | J32: 73 | K32: 125 | L32: 23 | M32: 20 | N32: 36 | O32: 94 | P32: 124 | Q32: 31 | R32: 23 | S32: 22 | T32: 27 | U32: 31 | V32: 48 | W32: 16 | X32: 50
A33: 262 | B33: MARNE ARDENNES | C33: 2 | D33: CHARLEVILLE MEZIERES | E33: 408801 | F33: CHARLEVILLE JEAN JAURES | G33: 8.8 | H33: 24 | I33: 67 | J33: 75 | K33: 44 | L33: 64 | M33: 71 | N33: 62 | O33: 47 | P33: 70 | Q33: 25 | R33: 38 | S33: 34 | T33: 83 | U33: 40 | V33: 19 | W33: 177 | X33: 28
A34: 262 | B34: MARNE ARDENNES | C34: 2 | D34: CHARLEVILLE MEZIERES | E34: 508839 | F34: GIVET | G34: 3.3 | H34: 25 | I34: 74 | J34: 72 | K34: 101 | L34: 47 | M34: 61 | N34: 44 | O34: 145 | P34: 179 | Q34: 41 | R34: 10 | S34: 5 | T34: 50 | U34: 35 | V34: 63 | W34: 21 | X34: 48
A35: 262 | B35: MOSELLE | C35: 45 | D35: METZ | E35: 557439 | F35: METZ POMPIDOU | G35: 2.6 | H35: 26 | I35: 58 | J35: 51 | K35: 89 | L35: 60 | M35: 111 | N35: 28 | O35: 11 | P35: 13 | Q35: 42 | R35: 122 | S35: 158 | T35: 47 | U35: 72 | V35: 50 | W35: 93 | X35: 98
A36: 262 | B36: MOSELLE | C36: 45 | D36: METZ | E36: 457446 | F36: METZ SAINT LOUIS | G36: 5.7 | H36: 27 | I36: 102 | J36: 109 | K36: 80 | L36: 29 | M36: 27 | N36: 43 | O36: 82 | P36: 145 | Q36: 8 | R36: 66 | S36: 57 | T36: 88 | U36: 27 | V36: 14 | W36: 108 | X36: 27
A37: 262 | B37: MARNE ARDENNES | C37: 11 | D37: REIMS | E37: 551367 | F37: AY CHAMPAGNE | G37: 2.6 | H37: 28 | I37: 43 | J37: 36 | K37: 69 | L37: 101 | M37: 136 | N37: 61 | O37: 68 | P37: 51 | Q37: 153 | R37: 48 | S37: 55 | T37: 44 | U37: 44 | V37: 27 | W37: 192 | X37: 25
A38: 262 | B38: MARNE ARDENNES | C38: 11 | D38: REIMS | E38: 451361 | F38: PIERRY LECLERC | G38: 1.8 | H38: 29 | I38: 51 | J38: 58 | K38: 55 | L38: 77 | M38: 79 | N38: 87 | O38: 9 | P38: 9 | Q38: 67 | R38: 88 | S38: 65 | T38: 138 | U38: 90 | V38: 57 | W38: 185 | X38: 78
A39: 262 | B39: VOSGES | C39: 57 | D39: EPINAL | E39: 588336 | F39: GOLBEY | G39: 2.8 | H39: 30 | I39: 40 | J39: 38 | K39: 42 | L39: 115 | M39: 122 | N39: 106 | O39: 36 | P39: 32 | Q39: 109 | R39: 47 | S39: 40 | T39: 89 | U39: 74 | V39: 108 | W39: 90 | X39: 47
A40: 262 | B40: AUBE HAUTE MARNE | C40: 21 | D40: CHAUMONT | E40: 510590 | F40: CHAUMONT REPUBLIQUE | G40: 2.9 | H40: 31 | I40: 44 | J40: 59 | K40: 23 | L40: 133 | M40: 162 | N40: 80 | O40: 38 | P40: 44 | Q40: 54 | R40: 31 | S40: 27 | T40: 63 | U40: 63 | V40: 119 | W40: 27 | X40: 69
A41: 262 | B41: MARNE ARDENNES | C41: 11 | D41: REIMS | E41: 451301 | F41: REIMS HOTEL DE VILLE | G41: 6.9 | H41: 32 | I41: 99 | J41: 96 | K41: 105 | L41: 52 | M41: 59 | N41: 54 | O41: 87 | P41: 108 | Q41: 36 | R41: 14 | S41: 14 | T41: 26 | U41: 39 | V41: 21 | W41: 152 | X41: 37
A42: 262 | B42: MARNE ARDENNES | C42: 11 | D42: REIMS | E42: 451370 | F42: EPERNAY | G42: 9.0 | H42: 33 | I42: 70 | J42: 78 | K42: 43 | L42: 39 | M42: 30 | N42: 75 | O42: 63 | P42: 67 | Q42: 61 | R42: 92 | S42: 96 | T42: 91 | U42: 49 | V42: 62 | W42: 86 | X42: 35
A43: 262 | B43: MOSELLE | C43: 42 | D43: MOSELLE EST | E43: 557250 | F43: CREUTZWALD | G43: 2.5 | H43: 34 | I43: 20 | J43: 17 | K43: 48 | L43: 136 | M43: 160 | N43: 85 | O43: 92 | P43: 109 | Q43: 49 | R43: 34 | S43: 21 | T43: 108 | U43: 73 | V43: 85 | W43: 20 | X43: 146
A44: 262 | B44: MARNE ARDENNES | C44: 6 | D44: CHALONS EN CHAMPAGNE | E44: 551354 | F44: VERTUS | G44: 2.0 | H44: 35 | I44: 1 | J44: 1 | K44: 1 | L44: 145 | M44: 110 | N44: 208 | O44: 62 | P44: 49 | Q44: 136 | R44: 208 | S44: 212 | T44: 159 | U44: 123 | V44: 155 | W44: 83 | X44: 130
A45: 262 | B45: MEURTHE ET MOSELLE MEUSE | C45: 26 | D45: NANCY | E45: 554356 | F45: JARVILLE LA MALGRANGE | G45: 4.2 | H45: 36 | I45: 31 | J45: 41 | K45: 22 | L45: 32 | M45: 16 | N45: 88 | O45: 192 | P45: 216 | Q45: 64 | R45: 70 | S45: 66 | T45: 77 | U45: 59 | V45: 51 | W45: 138 | X45: 43
A46: 262 | B46: MARNE ARDENNES | C46: 11 | D46: REIMS | E46: 551314 | F46: FISMES | G46: 2.6 | H46: 37 | I46: 18 | J46: 29 | K46: 10 | L46: 27 | M46: 23 | N46: 37 | O46: 217 | P46: 231 | Q46: 27 | R46: 131 | S46: 165 | T46: 58 | U46: 50 | V46: 39 | W46: 159 | X46: 30
A47: 262 | B47: MARNE ARDENNES | C47: 2 | D47: CHARLEVILLE MEZIERES | E47: 508833 | F47: VILLERS SEMEUSE CORA | G47: 3.1 | H47: 38 | I47: 186 | J47: 208 | K47: 163 | L47: 82 | M47: 126 | N47: 41 | O47: 35 | P47: 56 | Q47: 22 | R47: 5 | S47: 6 | T47: 12 | U47: 16 | V47: 30 | W47: 15 | X47: 20
A48: 262 | B48: MEURTHE ET MOSELLE MEUSE | C48: 27 | D48: PONT A MOUSSON | E48: 554531 | F48: POMPEY | G48: 3.1 | H48: 39 | I48: 211 | J48: 185 | K48: 209 | L48: 19 | M48: 41 | N48: 15 | O48: 41 | P48: 66 | Q48: 20 | R48: 49 | S48: 70 | T48: 25 | U48: 9 | V48: 13 | W48: 9 | X48: 19
A49: 262 | B49: BAS RHIN | C49: 5006 | D49: STRASBOURG | E49: 4038 | F49: OBERHAUSBERGEN | G49: 3.3 | H49: 40 | I49: 60 | J49: 64 | K49: 73 | L49: 56 | M49: 103 | N49: 27 | O49: 10 | P49: 14 | Q49: 30 | R49: 203 | S49: 229 | T49: 71 | U49: 71 | V49: 52 | W49: 119 | X49: 76
A50: 262 | B50: MEURTHE ET MOSELLE MEUSE | C50: 31 | D50: VERDUN | E50: 554413 | F50: LONGWY BAS | G50: 3.5 | H50: 41 | I50: 12 | J50: 9 | K50: 62 | L50: 76 | M50: 66 | N50: 103 | O50: 154 | P50: 151 | Q50: 144 | R50: 96 | S50: 79 | T50: 153 | U50: 85 | V50: 72 | W50: 60 | X50: 144
A51: 262 | B51: MARNE ARDENNES | C51: 11 | D51: REIMS | E51: 551310 | F51: REIMS CHATILLONS | G51: 3.9 | H51: 42 | I51: 123 | J51: 102 | K51: 159 | L51: 25 | M51: 24 | N51: 34 | O51: 106 | P51: 101 | Q51: 100 | R51: 61 | S51: 81 | T51: 32 | U51: 30 | V51: 38 | W51: 104 | X51: 18
A52: 262 | B52: MOSELLE | C52: 42 | D52: MOSELLE EST | E52: 457583 | F52: SAINT AVOLD | G52: 7.0 | H52: 43 | I52: 59 | J52: 71 | K52: 38 | L52: 38 | M52: 33 | N52: 60 | O52: 115 | P52: 147 | Q52: 40 | R52: 59 | S52: 54 | T52: 74 | U52: 86 | V52: 74 | W52: 118 | X52: 91
A53: 262 | B53: BAS RHIN | C53: 5101 | D53: SELESTAT | E53: 4113 | F53: BARR | G53: 2.9 | H53: 44 | I53: 29 | J53: 45 | K53: 6 | L53: 37 | M53: 21 | N53: 83 | O53: 93 | P53: 112 | Q53: 48 | R53: 138 | S53: 113 | T53: 183 | U53: 127 | V53: 47 | W53: 240 | X53: 68
A54: 262 | B54: MEURTHE ET MOSELLE MEUSE | C54: 27 | D54: PONT A MOUSSON | E54: 554516 | F54: PAGNY SUR MOSELLE | G54: 2.7 | H54: 45 | I54: 108 | J54: 98 | K54: 119 | L54: 67 | M54: 57 | N54: 108 | O54: 55 | P54: 45 | Q54: 104 | R54: 32 | S54: 41 | T54: 34 | U54: 52 | V54: 45 | W54: 85 | X54: 62
A55: 262 | B55: MEURTHE ET MOSELLE MEUSE | C55: 31 | D55: VERDUN | E55: 555406 | F55: LIGNY EN BARROIS | G55: 2.5 | H55: 46 | I55: 13 | J55: 11 | K55: 58 | L55: 118 | M55: 119 | N55: 115 | O55: 12 | P55: 6 | Q55: 115 | R55: 213 | S55: 210 | T55: 189 | U55: 174 | V55: 219 | W55: 130 | X55: 150
A56: 262 | B56: MOSELLE | C56: 45 | D56: METZ | E56: 457574 | F56: ROMBAS | G56: 2.5 | H56: 47 | I56: 49 | J56: 37 | K56: 114 | L56: 89 | M56: 82 | N56: 101 | O56: 98 | P56: 117 | Q56: 47 | R56: 20 | S56: 11 | T56: 72 | U56: 132 | V56: 125 | W56: 101 | X56: 158
A57: 262 | B57: MOSELLE | C57: 44 | D57: MOSELLE NORD | E57: 557352 | F57: HETTANGE GRANDE | G57: 3.1 | H57: 48 | I57: 143 | J57: 112 | K57: 193 | L57: 34 | M57: 58 | N57: 21 | O57: 97 | P57: 106 | Q57: 62 | R57: 50 | S57: 59 | T57: 40 | U57: 21 | V57: 53 | W57: 10 | X57: 26
A58: 262 | B58: MARNE ARDENNES | C58: 6 | D58: CHALONS EN CHAMPAGNE | E58: 551110 | F58: CHALONS ROOSEVELT | G58: 4.4 | H58: 49 | I58: 32 | J58: 26 | K58: 79 | L58: 120 | M58: 96 | N58: 146 | O58: 125 | P58: 130 | Q58: 76 | R58: 26 | S58: 15 | T58: 105 | U58: 106 | V58: 71 | W58: 165 | X58: 104
A59: 262 | B59: MEURTHE ET MOSELLE MEUSE | C59: 26 | D59: NANCY | E59: 554636 | F59: TOMBLAINE | G59: 2.5 | H59: 50 | I59: 15 | J59: 24 | K59: 4 | L59: 151 | M59: 161 | N59: 122 | O59: 53 | P59: 54 | Q59: 57 | R59: 119 | S59: 130 | T59: 97 | U59: 129 | V59: 136 | W59: 133 | X59: 105
A60: 262 | B60: MOSELLE | C60: 45 | D60: METZ | E60: 557432 | F60: MAIZIERES LES METZ | G60: 2.7 | H60: 51 | I60: 192 | J60: 194 | K60: 175 | L60: 28 | M60: 62 | N60: 13 | O60: 83 | P60: 121 | Q60: 18 | R60: 54 | S60: 62 | T60: 43 | U60: 12 | V60: 5 | W60: 132 | X60: 15
A61: 262 | B61: MEURTHE ET MOSELLE MEUSE | C61: 31 | D61: VERDUN | E61: 455678 | F61: VERDUN CENTRALE | G61: 10.2 | H61: 52 | I61: 21 | J61: 16 | K61: 66 | L61: 68 | M61: 75 | N61: 73 | O61: 199 | P61: 210 | Q61: 88 | R61: 140 | S61: 148 | T61: 124 | U61: 41 | V61: 43 | W61: 81 | X61: 42
A62: 262 | B62: MEURTHE ET MOSELLE MEUSE | C62: 26 | D62: NANCY | E62: 454481 | F62: NANCY PLACE DOMBASLE | G62: 7.8 | H62: 53 | I62: 139 | J62: 138 | K62: 148 | L62: 61 | M62: 102 | N62: 33 | O62: 56 | P62: 96 | Q62: 9 | R62: 91 | S62: 122 | T62: 48 | U62: 17 | V62: 12 | W62: 73 | X62: 17
A63: 262 | B63: MARNE ARDENNES | C63: 11 | D63: REIMS | E63: 551369 | F63: DAMERY | G63: 1.6 | H63: 54 | I63: 77 | J63: 56 | K63: 146 | L63: 24 | M63: 42 | N63: 19 | O63: 235 | P63: 236 | Q63: 164 | R63: 51 | S63: 73 | T63: 24 | U63: 18 | V63: 16 | W63: 75 | X63: 11
A64: 262 | B64: MOSELLE | C64: 44 | D64: MOSELLE NORD | E64: 457350 | F64: HAYANGE | G64: 6.3 | H64: 55 | I64: 115 | J64: 101 | K64: 136 | L64: 48 | M64: 46 | N64: 76 | O64: 122 | P64: 168 | Q64: 26 | R64: 22 | S64: 19 | T64: 35 | U64: 61 | V64: 42 | W64: 122 | X64: 66
A65: 262 | B65: MEURTHE ET MOSELLE MEUSE | C65: 27 | D65: PONT A MOUSSON | E65: 554506 | F65: CHALIGNY NEUVES MAISONS | G65: 3.5 | H65: 56 | I65: 162 | J65: 150 | K65: 179 | L65: 22 | M65: 32 | N65: 24 | O65: 189 | P65: 214 | Q65: 59 | R65: 17 | S65: 18 | T65: 20 | U65: 20 | V65: 25 | W65: 32 | X65: 21
A66: 262 | B66: MOSELLE | C66: 44 | D66: MOSELLE NORD | E66: 557303 | F66: FAMECK | G66: 2.8 | H66: 57 | I66: 48 | J66: 52 | K66: 37 | L66: 83 | M66: 173 | N66: 20 | O66: 45 | P66: 46 | Q66: 69 | R66: 216 | S66: 224 | T66: 145 | U66: 37 | V66: 56 | W66: 28 | X66: 52
A67: 262 | B67: AUBE HAUTE MARNE | C67: 21 | D67: CHAUMONT | E67: 410541 | F67: LANGRES | G67: 8.1 | H67: 58 | I67: 66 | J67: 66 | K67: 75 | L67: 84 | M67: 54 | N67: 165 | O67: 89 | P67: 76 | Q67: 135 | R67: 36 | S67: 20 | T67: 116 | U67: 100 | V67: 178 | W67: 44 | X67: 127
A68: 262 | B68: MEURTHE ET MOSELLE MEUSE | C68: 27 | D68: PONT A MOUSSON | E68: 554686 | F68: VEZELISE | G68: 1.9 | H68: 59 | I68: 3 | J68: 3 | K68: 11 | L68: 138 | M68: 130 | N68: 136 | O68: 77 | P68: 57 | Q68: 184 | R68: 145 | S68: 135 | T68: 175 | U68: 229 | V68: 218 | W68: 179 | X68: 236
A69: 262 | B69: MOSELLE | C69: 44 | D69: MOSELLE NORD | E69: 457632 | F69: THIONVILLE CENTRALE | G69: 10.5 | H69: 60 | I69: 133 | J69: 138 | K69: 112 | L69: 31 | M69: 29 | N69: 51 | O69: 170 | P69: 196 | Q69: 43 | R69: 27 | S69: 31 | T69: 38 | U69: 45 | V69: 32 | W69: 96 | X69: 51
A70: 262 | B70: VOSGES | C70: 55 | D70: SAINT DIE | E70: 488326 | F70: GERARDMER | G70: 3.8 | H70: 61 | I70: 84 | J70: 75 | K70: 111 | L70: 96 | M70: 99 | N70: 98 | O70: 32 | P70: 23 | Q70: 148 | R70: 120 | S70: 126 | T70: 106 | U70: 69 | V70: 66 | W70: 59 | X70: 83
A71: 262 | B71: BAS RHIN | C71: 5006 | D71: STRASBOURG | E71: 4054 | F71: STRASBOURG MONTAGNE VERTE | G71: 2.7 | H71: 62 | I71: 41 | J71: 19 | K71: 144 | L71: 94 | M71: 157 | N71: 35 | O71: 66 | P71: 65 | Q71: 79 | R71: 46 | S71: 58 | T71: 31 | U71: 224 | V71: 241 | W71: 196 | X71: 149
A72: 262 | B72: MOSELLE | C72: 44 | D72: MOSELLE NORD | E72: 457348 | F72: HAGONDANGE | G72: 8.1 | H72: 63 | I72: 119 | J72: 120 | K72: 104 | L72: 55 | M72: 49 | N72: 90 | O72: 103 | P72: 105 | Q72: 84 | R72: 37 | S72: 30 | T72: 85 | U72: 60 | V72: 44 | W72: 120 | X72: 59
A73: 262 | B73: MOSELLE | C73: 42 | D73: MOSELLE EST | E73: 457617 | F73: SARREGUEMINES | G73: 6.5 | H73: 64 | I73: 145 | J73: 155 | K73: 138 | L73: 51 | M73: 55 | N73: 58 | O73: 54 | P73: 79 | Q73: 21 | R73: 63 | S73: 67 | T73: 59 | U73: 36 | V73: 33 | W73: 94 | X73: 39
A74: 264 | B74: MOSELLE | C74: 42 | D74: MOSELLE EST | E74: 557305 | F74: FAULQUEMONT | G74: 3.9 | H74: 65 | I74: 228 | J74: 170 | K74: 229 | L74: 17 | M74: 38 | N74: 12 | O74: 177 | P74: 218 | Q74: 23 | R74: 30 | S74: 49 | T74: 19 | U74: 10 | V74: 9 | W74: 89 | X74: 6
A75: 264 | B75: MARNE ARDENNES | C75: 6 | D75: CHALONS EN CHAMPAGNE | E75: 551103 | F75: FAGNIERES LECLERC | G75: 2.8 | H75: 66 | I75: 98 | J75: 128 | K75: 27 | L75: 116 | M75: 121 | N75: 110 | O75: 108 | P75: 128 | Q75: 45 | R75: 16 | S75: 12 | T75: 33 | U75: 77 | V75: 97 | W75: 51 | X75: 94
A76: 264 | B76: MARNE ARDENNES | C76: 11 | D76: REIMS | E76: 551306 | F76: REIMS SAINT MARCEAUX | G76: 3.7 | H76: 67 | I76: 65 | J76: 43 | K76: 127 | L76: 21 | M76: 13 | N76: 56 | O76: 234 | P76: 234 | Q76: 58 | R76: 73 | S76: 88 | T76: 68 | U76: 57 | V76: 58 | W76: 128 | X76: 38
A77: 264 | B77: MEURTHE ET MOSELLE MEUSE | C77: 26 | D77: NANCY | E77: 554116 | F77: BACCARAT | G77: 2.8 | H77: 68 | I77: 5 | J77: 4 | K77: 20 | L77: 147 | M77: 117 | N77: 206 | O77: 133 | P77: 94 | Q77: 227 | R77: 156 | S77: 153 | T77: 150 | U77: 187 | V77: 146 | W77: 161 | X77: 199
A78: 264 | B78: MOSELLE | C78: 45 | D78: METZ | E78: 557447 | F78: METZ SAINT MAXIMIN | G78: 2.4 | H78: 69 | I78: 151 | J78: 170 | K78: 128 | L78: 74 | M78: 125 | N78: 30 | O78: 65 | P78: 107 | Q78: 12 | R78: 4 | S78: 4 | T78: 14 | U78: 108 | V78: 122 | W78: 43 | X78: 197
A79: 264 | B79: MARNE ARDENNES | C79: 6 | D79: CHALONS EN CHAMPAGNE | E79: 451101 | F79: CHALONS VIVIERS | G79: 9.3 | H79: 70 | I79: 33 | J79: 43 | K79: 16 | L79: 128 | M79: 114 | N79: 150 | O79: 139 | P79: 161 | Q79: 71 | R79: 80 | S79: 72 | T79: 107 | U79: 92 | V79: 89 | W79: 131 | X79: 82
A80: 264 | B80: MEURTHE ET MOSELLE MEUSE | C80: 31 | D80: VERDUN | E80: 555679 | F80: VERDUN MAZEL | G80: 3.6 | H80: 71 | I80: 19 | J80: 26 | K80: 17 | L80: 126 | M80: 113 | N80: 135 | O80: 102 | P80: 82 | Q80: 182 | R80: 130 | S80: 99 | T80: 176 | U80: 169 | V80: 152 | W80: 191 | X80: 121
A81: 264 | B81: MOSELLE | C81: 42 | D81: MOSELLE EST | E81: 557668 | F81: VALMONT | G81: 2.8 | H81: 72 | I81: 36 | J81: 23 | K81: 100 | L81: 187 | M81: 192 | N81: 163 | O81: 23 | P81: 17 | Q81: 129 | R81: 98 | S81: 84 | T81: 150 | U81: 167 | V81: 189 | W81: 79 | X81: 206
A82: 264 | B82: VOSGES | C82: 57 | D82: EPINAL | E82: 588396 | F82: LE VAL D AJOL | G82: 2.4 | H82: 73 | I82: 4 | J82: 5 | K82: 8 | L82: 162 | M82: 150 | N82: 176 | O82: 105 | P82: 83 | Q82: 176 | R82: 159 | S82: 132 | T82: 208 | U82: 220 | V82: 182 | W82: 231 | X82: 160
A83: 264 | B83: BAS RHIN | C83: 5101 | D83: SELESTAT | E83: 4104 | F83: ERSTEIN | G83: 4.1 | H83: 74 | I83: 207 | J83: 191 | K83: 206 | L83: 14 | M83: 7 | N83: 78 | O83: 34 | P83: 31 | Q83: 101 | R83: 60 | S83: 35 | T83: 157 | U83: 78 | V83: 49 | W83: 158 | X83: 74
A84: 264 | B84: BAS RHIN | C84: 5006 | D84: STRASBOURG | E84: 4047 | F84: STRASBOURG CRONENBOURG | G84: 4.4 | H84: 75 | I84: 113 | J84: 148 | K84: 34 | L84: 33 | M84: 22 | N84: 77 | O84: 50 | P84: 53 | Q84: 50 | R84: 114 | S84: 118 | T84: 112 | U84: 139 | V84: 87 | W84: 189 | X84: 120
A85: 264 | B85: MEURTHE ET MOSELLE MEUSE | C85: 31 | D85: VERDUN | E85: 454414 | F85: LONGWY HAUT | G85: 3.4 | H85: 76 | I85: 109 | J85: 118 | K85: 78 | L85: 91 | M85: 118 | N85: 72 | O85: 69 | P85: 58 | Q85: 120 | R85: 41 | S85: 48 | T85: 39 | U85: 93 | V85: 92 | W85: 84 | X85: 108
A86: 264 | B86: BAS RHIN | C86: 5006 | D86: STRASBOURG | E86: 4024 | F86: STRASBOURG AUSTERLITZ | G86: 1.2 | H86: 77 | I86: 238 | J86: 194 | K86: 237 | L86: 40 | M86: 129 | N86: 3 | O86: 7 | P86: 8 | Q86: 14 | R86: 53 | S86: 190 | T86: 4 | U86: 53 | V86: 18 | W86: 183 | X86: 49
A87: 264 | B87: MOSELLE | C87: 42 | D87: MOSELLE EST | E87: 557523 | F87: PHALSBOURG | G87: 2.6 | H87: 78 | I87: 103 | J87: 110 | K87: 77 | L87: 143 | M87: 151 | N87: 124 | O87: 37 | P87: 35 | Q87: 77 | R87: 33 | S87: 16 | T87: 135 | U87: 101 | V87: 141 | W87: 91 | X87: 97
A88: 264 | B88: VOSGES | C88: 57 | D88: EPINAL | E88: 488561 | F88: REMIREMONT | G88: 7.2 | H88: 79 | I88: 14 | J88: 13 | K88: 32 | L88: 108 | M88: 69 | N88: 184 | O88: 147 | P88: 136 | Q88: 174 | R88: 137 | S88: 91 | T88: 220 | U88: 181 | V88: 98 | W88: 226 | X88: 125
A89: 264 | B89: MARNE ARDENNES | C89: 6 | D89: CHALONS EN CHAMPAGNE | E89: 451381 | F89: SEZANNE | G89: 4.7 | H89: 80 | I89: 80 | J89: 77 | K89: 102 | L89: 71 | M89: 65 | N89: 96 | O89: 25 | P89: 20 | Q89: 126 | R89: 212 | S89: 214 | T89: 162 | U89: 83 | V89: 67 | W89: 154 | X89: 67
A90: 264 | B90: MOSELLE | C90: 44 | D90: MOSELLE NORD | E90: 457306 | F90: FLORANGE | G90: 4.6 | H90: 81 | I90: 230 | J90: 206 | K90: 222 | L90: 35 | M90: 39 | N90: 40 | O90: 74 | P90: 90 | Q90: 33 | R90: 87 | S90: 109 | T90: 56 | U90: 11 | V90: 11 | W90: 24 | X90: 24
A91: 264 | B91: BAS RHIN | C91: 5060 | D91: HAGUENAU | E91: 4071 | F91: WISSEMBOURG | G91: 8.0 | H91: 82 | I91: 39 | J91: 42 | K91: 28 | L91: 93 | M91: 91 | N91: 105 | O91: 70 | P91: 62 | Q91: 108 | R91: 126 | S91: 132 | T91: 113 | U91: 212 | V91: 224 | W91: 166 | X91: 192
A92: 264 | B92: BAS RHIN | C92: 5060 | D92: HAGUENAU | E92: 4092 | F92: HOCHFELDEN | G92: 2.0 | H92: 83 | I92: 91 | J92: 98 | K92: 59 | L92: 140 | M92: 159 | N92: 95 | O92: 33 | P92: 27 | Q92: 117 | R92: 65 | S92: 68 | T92: 60 | U92: 114 | V92: 73 | W92: 151 | X92: 135
A93: 264 | B93: BAS RHIN | C93: 5006 | D93: STRASBOURG | E93: 4043 | F93: STRASBOURG HALLES | G93: 7.8 | H93: 84 | I93: 150 | J93: 208 | K93: 98 | L93: 41 | M93: 68 | N93: 23 | O93: 134 | P93: 187 | Q93: 15 | R93: 7 | S93: 10 | T93: 9 | U93: 137 | V93: 78 | W93: 236 | X93: 64
A94: 264 | B94: AUBE HAUTE MARNE | C94: 21 | D94: CHAUMONT | E94: 451154 | F94: JOINVILLE | G94: 1.8 | H94: 85 | I94: 76 | J94: 87 | K94: 52 | L94: 53 | M94: 72 | N94: 38 | O94: 232 | P94: 232 | Q94: 75 | R94: 19 | S94: 17 | T94: 29 | U94: 94 | V94: 154 | W94: 109 | X94: 60
A95: 264 | B95: VOSGES | C95: 55 | D95: SAINT DIE | E95: 488246 | F95: CORNIMONT LA BRESSE | G95: 2.7 | H95: 86 | I95: 17 | J95: 20 | K95: 19 | L95: 98 | M95: 101 | N95: 99 | O95: 211 | P95: 194 | Q95: 223 | R95: 104 | S95: 78 | T95: 171 | U95: 157 | V95: 215 | W95: 64 | X95: 176
A96: 30 | B96: VOSGES | C96: 55 | D96: SAINT DIE | E96: 588551 | F96: RAMBERVILLERS | G96: 2.6 | H96: 87 | I96: 24 | J96: 22 | K96: 50 | L96: 165 | M96: 197 | N96: 79 | O96: 117 | P96: 99 | Q96: 167 | R96: 217 | S96: 217 | T96: 186 | U96: 47 | V96: 69 | W96: 66 | X96: 33
A97: 30 | B97: MARNE ARDENNES | C97: 2 | D97: CHARLEVILLE MEZIERES | E97: 408822 | F97: CHARLEVILLE MEZIERES | G97: 5.1 | H97: 88 | I97: 179 | J97: 151 | K97: 198 | L97: 121 | M97: 185 | N97: 29 | O97: 13 | P97: 38 | Q97: 4 | R97: 67 | S97: 98 | T97: 28 | U97: 48 | V97: 40 | W97: 195 | X97: 22
A98: 30 | B98: MARNE ARDENNES | C98: 2 | D98: CHARLEVILLE MEZIERES | E98: 408840 | F98: RETHEL | G98: 4.3 | H98: 89 | I98: 134 | J98: 128 | K98: 126 | L98: 57 | M98: 51 | N98: 92 | O98: 86 | P98: 74 | Q98: 130 | R98: 82 | S98: 61 | T98: 136 | U98: 70 | V98: 84 | W98: 71 | X98: 54
A99: 30 | B99: MOSELLE | C99: 44 | D99: MOSELLE NORD | E99: 457158 | F99: YUTZ | G99: 4.7 | H99: 90 | I99: 157 | J99: 185 | K99: 131 | L99: 62 | M99: 56 | N99: 97 | O99: 111 | P99: 116 | Q99: 89 | R99: 29 | S99: 28 | T99: 57 | U99: 43 | V99: 54 | W99: 40 | X99: 58
A100: 30 | B100: MOSELLE | C100: 44 | D100: MOSELLE NORD | E100: 557347 | F100: GUENANGE | G100: 4.5 | H100: 91 | I100: 201 | J100: 194 | K100: 188 | L100: 30 | M100: 18 | N100: 67 | O100: 142 | P100: 169 | Q100: 66 | R100: 40 | S100: 33 | T100: 86 | U100: 32 | V100: 20 | W100: 74 | X100: 40
A101: 30 | B101: MARNE ARDENNES | C101: 6 | D101: CHALONS EN CHAMPAGNE | E101: 551128 | F101: SAINTE MENEHOULD | G101: 3.0 | H101: 92 | I101: 52 | J101: 54 | K101: 65 | L101: 92 | M101: 45 | N101: 225 | O101: 168 | P101: 141 | Q101: 216 | R101: 62 | S101: 44 | T101: 122 | U101: 154 | V101: 158 | W101: 72 | X101: 211
A102: 30 | B102: AUBE HAUTE MARNE | C102: 14 | D102: TROYES | E102: 510570 | F102: NOGENT SUR SEINE | G102: 4.1 | H102: 93 | I102: 26 | J102: 24 | K102: 53 | L102: 119 | M102: 116 | N102: 118 | O102: 150 | P102: 157 | Q102: 103 | R102: 147 | S102: 129 | T102: 192 | U102: 147 | V102: 96 | W102: 169 | X102: 129
A103: 30 | B103: MOSELLE | C103: 45 | D103: METZ | E103: 557434 | F103: MARLY | G103: 3.1 | H103: 94 | I103: 38 | J103: 31 | K103: 87 | L103: 127 | M103: 86 | N103: 187 | O103: 126 | P103: 97 | Q103: 191 | R103: 179 | S103: 150 | T103: 214 | U103: 107 | V103: 76 | W103: 170 | X103: 92
A104: 30 | B104: MOSELLE | C104: 45 | D104: METZ | E104: 557105 | F104: ARS SUR MOSELLE | G104: 2.9 | H104: 95 | I104: 106 | J104: 52 | K104: 199 | L104: 111 | M104: 158 | N104: 55 | O104: 120 | P104: 134 | Q104: 65 | R104: 151 | S104: 199 | T104: 55 | U104: 29 | V104: 28 | W104: 39 | X104: 44
A105: 30 | B105: MEURTHE ET MOSELLE MEUSE | C105: 31 | D105: VERDUN | E105: 554700 | F105: VILLERUPT | G105: 2.8 | H105: 96 | I105: 57 | J105: 54 | K105: 70 | L105: 81 | M105: 70 | N105: 104 | O105: 107 | P105: 115 | Q105: 73 | R105: 121 | S105: 105 | T105: 140 | U105: 191 | V105: 201 | W105: 69 | X105: 235
A106: 30 | B106: VOSGES | C106: 57 | D106: EPINAL | E106: 588631 | F106: THAON LES VOSGES | G106: 4.5 | H106: 97 | I106: 95 | J106: 81 | K106: 117 | L106: 87 | M106: 63 | N106: 140 | O106: 112 | P106: 100 | Q106: 140 | R106: 94 | S106: 117 | T106: 70 | U106: 91 | V106: 168 | W106: 46 | X106: 101
A107: 30 | B107: BAS RHIN | C107: 5006 | D107: STRASBOURG | E107: 4010 | F107: STRASBOURG MEINAU | G107: 3.0 | H107: 98 | I107: 96 | J107: 78 | K107: 135 | L107: 69 | M107: 106 | N107: 45 | O107: 140 | P107: 154 | Q107: 83 | R107: 39 | S107: 77 | T107: 15 | U107: 161 | V107: 187 | W107: 77 | X107: 190
A108: 30 | B108: MARNE ARDENNES | C108: 2 | D108: CHARLEVILLE MEZIERES | E108: 508819 | F108: MOUZON | G108: 1.9 | H108: 99 | I108: 131 | J108: 134 | K108: 108 | L108: 150 | M108: 177 | N108: 86 | O108: 67 | P108: 60 | Q108: 107 | R108: 83 | S108: 83 | T108: 92 | U108: 38 | V108: 94 | W108: 25 | X108: 32
A109: 30 | B109: VOSGES | C109: 55 | D109: SAINT DIE | E109: 588666 | F109: VAGNEY | G109: 3.5 | H109: 100 | I109: 28 | J109: 32 | K109: 39 | L109: 173 | M109: 141 | N109: 224 | O109: 40 | P109: 25 | Q109: 193 | R109: 201 | S109: 154 | T109: 237 | U109: 164 | V109: 193 | W109: 112 | X109: 165
A110: 30 | B110: MEURTHE ET MOSELLE MEUSE | C110: 27 | D110: PONT A MOUSSON | E110: 554416 | F110: LUDRES | G110: 3.6 | H110: 101 | I110: 73 | J110: 81 | K110: 56 | L110: 129 | M110: 112 | N110: 152 | O110: 81 | P110: 63 | Q110: 159 | R110: 112 | S110: 63 | T110: 211 | U110: 110 | V110: 90 | W110: 137 | X110: 115
A111: 30 | B111: MOSELLE | C111: 45 | D111: METZ | E111: 557444 | F111: SAINT JULIEN LES METZ | G111: 3.6 | H111: 102 | I111: 223 | J111: 170 | K111: 226 | L111: 70 | M111: 107 | N111: 46 | O111: 14 | P111: 18 | Q111: 28 | R111: 64 | S111: 121 | T111: 16 | U111: 56 | V111: 116 | W111: 13 | X111: 84
A112: 30 | B112: MARNE ARDENNES | C112: 11 | D112: REIMS | E112: 551341 | F112: REIMS JEAN JAURES | G112: 3.4 | H112: 103 | I112: 184 | J112: 158 | K112: 195 | L112: 50 | M112: 85 | N112: 26 | O112: 85 | P112: 84 | Q112: 72 | R112: 99 | S112: 138 | T112: 52 | U112: 28 | V112: 26 | W112: 175 | X112: 12
A113: 30 | B113: VOSGES | C113: 57 | D113: EPINAL | E113: 588716 | F113: XERTIGNY | G113: 2.8 | H113: 104 | I113: 63 | J113: 81 | K113: 25 | L113: 135 | M113: 90 | N113: 204 | O113: 60 | P113: 50 | Q113: 113 | R113: 125 | S113: 69 | T113: 223 | U113: 168 | V113: 184 | W113: 143 | X113: 155
A114: 30 | B114: VOSGES | C114: 55 | D114: SAINT DIE | E114: 588186 | F114: BRUYERES | G114: 3.5 | H114: 105 | I114: 30 | J114: 30 | K114: 57 | L114: 132 | M114: 137 | N114: 117 | O114: 186 | P114: 189 | Q114: 106 | R114: 160 | S114: 197 | T114: 73 | U114: 88 | V114: 115 | W114: 123 | X114: 57
A115: 30 | B115: VOSGES | C115: 55 | D115: SAINT DIE | E115: 588386 | F115: LE THILLOT | G115: 2.7 | H115: 106 | I115: 9 | J115: 10 | K115: 24 | L115: 146 | M115: 76 | N115: 237 | O115: 155 | P115: 118 | Q115: 235 | R115: 191 | S115: 161 | T115: 219 | U115: 204 | V115: 202 | W115: 173 | X115: 188
A116: 30 | B116: VOSGES | C116: 57 | D116: EPINAL | E116: 488281 | F116: ELOYES | G116: 3.4 | H116: 107 | I116: 46 | J116: 35 | K116: 95 | L116: 167 | M116: 143 | N116: 205 | O116: 42 | P116: 30 | Q116: 154 | R116: 219 | S116: 209 | T116: 224 | U116: 109 | V116: 160 | W116: 47 | X116: 163
A117: 30 | B117: BAS RHIN | C117: 5006 | D117: STRASBOURG | E117: 4006 | F117: STRASBOURG NEUDORF | G117: 7.9 | H117: 108 | I117: 25 | J117: 38 | K117: 13 | L117: 180 | M117: 187 | N117: 139 | O117: 118 | P117: 95 | Q117: 172 | R117: 97 | S117: 104 | T117: 102 | U117: 206 | V117: 144 | W117: 233 | X117: 131
A118: 30 | B118: BAS RHIN | C118: 5060 | D118: HAGUENAU | E118: 4057 | F118: BISCHWILLER | G118: 6.9 | H118: 109 | I118: 79 | J118: 87 | K118: 67 | L118: 58 | M118: 28 | N118: 189 | O118: 146 | P118: 126 | Q118: 197 | R118: 108 | S118: 95 | T118: 139 | U118: 165 | V118: 222 | W118: 52 | X118: 215
A119: 30 | B119: BAS RHIN | C119: 5060 | D119: HAGUENAU | E119: 4041 | F119: HOERDT | G119: 1.7 | H119: 110 | I119: 69 | J119: 67 | K119: 82 | L119: 155 | M119: 140 | N119: 188 | O119: 22 | P119: 11 | Q119: 181 | R119: 148 | S119: 119 | T119: 212 | U119: 225 | V119: 111 | W119: 225 | X119: 224
A120: 30 | B120: MEURTHE ET MOSELLE MEUSE | C120: 27 | D120: PONT A MOUSSON | E120: 554357 | F120: JOEUF | G120: 3.1 | H120: 111 | I120: 72 | J120: 61 | K120: 118 | L120: 110 | M120: 142 | N120: 70 | O120: 164 | P120: 163 | Q120: 147 | R120: 157 | S120: 181 | T120: 94 | U120: 66 | V120: 101 | W120: 11 | X120: 124
A121: 30 | B121: VOSGES | C121: 57 | D121: EPINAL | E121: 488286 | F121: EPINAL ARISTIDE BRIAND | G121: 8.2 | H121: 112 | I121: 165 | J121: 170 | K121: 157 | L121: 42 | M121: 53 | N121: 39 | O121: 59 | P121: 71 | Q121: 44 | R121: 89 | S121: 120 | T121: 54 | U121: 126 | V121: 102 | W121: 205 | X121: 63
A122: 30 | B122: BAS RHIN | C122: 5006 | D122: STRASBOURG | E122: 4019 | F122: STRASBOURG ANVERS | G122: 4.4 | H122: 113 | I122: 180 | J122: 190 | K122: 167 | L122: 43 | M122: 50 | N122: 47 | O122: 72 | P122: 91 | Q122: 24 | R122: 77 | S122: 85 | T122: 78 | U122: 97 | V122: 36 | W122: 228 | X122: 90
A123: 30 | B123: BAS RHIN | C123: 5060 | D123: HAGUENAU | E123: 4030 | F123: BRUMATH | G123: 3.8 | H123: 114 | I123: 216 | J123: 208 | K123: 208 | L123: 85 | M123: 52 | N123: 179 | O123: 2 | P123: 1 | Q123: 96 | R123: 218 | S123: 213 | T123: 210 | U123: 202 | V123: 149 | W123: 190 | X123: 212
A124: 30 | B124: MEURTHE ET MOSELLE MEUSE | C124: 27 | D124: PONT A MOUSSON | E124: 554376 | F124: LAXOU BOUFFLERS | G124: 2.6 | H124: 115 | I124: 236 | J124: 208 | K124: 236 | L124: 26 | M124: 77 | N124: 4 | O124: 178 | P124: 185 | Q124: 92 | R124: 74 | S124: 178 | T124: 6 | U124: 15 | V124: 29 | W124: 36 | X124: 13
A125: 30 | B125: MEURTHE ET MOSELLE MEUSE | C125: 31 | D125: VERDUN | E125: 455151 | F125: BAR LE DUC | G125: 9.8 | H125: 116 | I125: 61 | J125: 78 | K125: 29 | L125: 130 | M125: 109 | N125: 168 | O125: 159 | P125: 164 | Q125: 123 | R125: 95 | S125: 89 | T125: 123 | U125: 143 | V125: 181 | W125: 68 | X125: 173
A126: 30 | B126: MEURTHE ET MOSELLE MEUSE | C126: 31 | D126: VERDUN | E126: 554412 | F126: LONGUYON | G126: 2.8 | H126: 117 | I126: 85 | J126: 104 | K126: 31 | L126: 73 | M126: 81 | N126: 68 | O126: 135 | P126: 127 | Q126: 125 | R126: 129 | S126: 106 | T126: 164 | U126: 156 | V126: 143 | W126: 155 | X126: 128
A127: 30 | B127: VOSGES | C127: 55 | D127: SAINT DIE | E127: 588316 | F127: FRAIZE | G127: 3.6 | H127: 118 | I127: 92 | J127: 107 | K127: 45 | L127: 160 | M127: 145 | N127: 182 | O127: 99 | P127: 87 | Q127: 111 | R127: 75 | S127: 46 | T127: 169 | U127: 116 | V127: 142 | W127: 102 | X127: 111
A128: 30 | B128: BAS RHIN | C128: 5101 | D128: SELESTAT | E128: 4121 | F128: SCHIRMECK | G128: 2.8 | H128: 119 | I128: 53 | J128: 81 | K128: 9 | L128: 63 | M128: 47 | N128: 134 | O128: 194 | P128: 208 | Q128: 82 | R128: 195 | S128: 180 | T128: 199 | U128: 102 | V128: 106 | W128: 99 | X128: 113
A129: 30 | B129: MEURTHE ET MOSELLE MEUSE | C129: 26 | D129: NANCY | E129: 454426 | F129: LUNEVILLE CARNOT | G129: 8.4 | H129: 120 | I129: 167 | J129: 140 | K129: 204 | L129: 97 | M129: 124 | N129: 66 | O129: 46 | P129: 40 | Q129: 98 | R129: 165 | S129: 196 | T129: 82 | U129: 34 | V129: 59 | W129: 37 | X129: 41
A130: 30 | B130: MOSELLE | C130: 44 | D130: MOSELLE NORD | E130: 557307 | F130: FONTOY | G130: 1.9 | H130: 121 | I130: 62 | J130: 61 | K130: 84 | L130: 198 | M130: 191 | N130: 200 | O130: 104 | P130: 81 | Q130: 201 | R130: 190 | S130: 187 | T130: 173 | U130: 64 | V130: 80 | W130: 17 | X130: 134
A131: 30 | B131: MARNE ARDENNES | C131: 2 | D131: CHARLEVILLE MEZIERES | E131: 508802 | F131: CHARLEVILLE NEVERS | G131: 2.8 | H131: 122 | I131: 23 | J131: 33 | K131: 26 | L131: 203 | M131: 183 | N131: 215 | O131: 225 | P131: 225 | Q131: 168 | R131: 85 | S131: 56 | T131: 158 | U131: 122 | V131: 81 | W131: 80 | X131: 205
A132: 30 | B132: MOSELLE | C132: 45 | D132: METZ | E132: 557612 | F132: SAINTE MARIE AUX CHENES | G132: 3.7 | H132: 123 | I132: 35 | J132: 65 | K132: 2 | L132: 216 | M132: 198 | N132: 232 | O132: 78 | P132: 42 | Q132: 239 | R132: 124 | S132: 82 | T132: 202 | U132: 216 | V132: 226 | W132: 214 | X132: 132
A133: 30 | B133: MARNE ARDENNES | C133: 2 | D133: CHARLEVILLE MEZIERES | E133: 508815 | F133: CARIGNAN | G133: 2.7 | H133: 124 | I133: 83 | J133: 70 | K133: 129 | L133: 99 | M133: 92 | N133: 116 | O133: 185 | P133: 186 | Q133: 104 | R133: 117 | S133: 76 | T133: 195 | U133: 120 | V133: 131 | W133: 111 | X133: 115
A134: 30 | B134: MOSELLE | C134: 42 | D134: MOSELLE EST | E134: 457543 | F134: PUTTELANGE AUX LACS | G134: 2.4 | H134: 125 | I134: 118 | J134: 127 | K134: 96 | L134: 102 | M134: 108 | N134: 100 | O134: 165 | P134: 177 | Q134: 68 | R134: 86 | S134: 110 | T134: 49 | U134: 99 | V134: 61 | W134: 221 | X134: 65
A135: 110 | B135: MOSELLE | C135: 44 | D135: MOSELLE NORD | E135: 457192 | F135: CATTENOM | G135: 1.6 | H135: 126 | I135: 125 | J135: 116 | K135: 137 | L135: 95 | M135: 83 | N135: 121 | O135: 124 | P135: 144 | Q135: 52 | R135: 141 | S135: 137 | T135: 134 | U135: 84 | V135: 64 | W135: 61 | X135: 160
A136: 110 | B136: BAS RHIN | C136: 5006 | D136: STRASBOURG | E136: 4020 | F136: STRASBOURG ROBERTSAU | G136: 5.3 | H136: 127 | I136: 126 | J136: 140 | K136: 94 | L136: 170 | M136: 169 | N136: 153 | O136: 6 | P136: 5 | Q136: 138 | R136: 207 | S136: 174 | T136: 230 | U136: 208 | V136: 177 | W136: 181 | X136: 210
A137: 110 | B137: BAS RHIN | C137: 5006 | D137: STRASBOURG | E137: 4023 | F137: STRASBOURG VOSGES | G137: 2.9 | H137: 128 | I137: 105 | J137: 87 | K137: 134 | L137: 117 | M137: 120 | N137: 111 | O137: 26 | P137: 28 | Q137: 51 | R137: 202 | S137: 188 | T137: 200 | U137: 207 | V137: 121 | W137: 237 | X137: 145
A138: 110 | B138: MOSELLE | C138: 42 | D138: MOSELLE EST | E138: 457435 | F138: MERLEBACH | G138: 2.7 | H138: 129 | I138: 94 | J138: 98 | K138: 74 | L138: 149 | M138: 208 | N138: 42 | O138: 200 | P138: 220 | Q138: 55 | R138: 128 | S138: 185 | T138: 30 | U138: 55 | V138: 171 | W138: 5 | X138: 89
A139: 110 | B139: AUBE HAUTE MARNE | C139: 21 | D139: CHAUMONT | E139: 451156 | F139: SAINT DIZIER CENTRE | G139: 8.6 | H139: 130 | I139: 136 | J139: 120 | K139: 161 | L139: 125 | M139: 138 | N139: 94 | O139: 136 | P139: 140 | Q139: 112 | R139: 55 | S139: 52 | T139: 75 | U139: 104 | V139: 147 | W139: 124 | X139: 77
A140: 110 | B140: BAS RHIN | C140: 5101 | D140: SELESTAT | E140: 4126 | F140: MUTZIG | G140: 2.7 | H140: 131 | I140: 152 | J140: 208 | K140: 99 | L140: 45 | M140: 26 | N140: 125 | O140: 61 | P140: 68 | Q140: 56 | R140: 164 | S140: 164 | T140: 132 | U140: 152 | V140: 82 | W140: 239 | X140: 73
A141: 110 | B141: VOSGES | C141: 55 | D141: SAINT DIE | E141: 588461 | F141: MOYENMOUTIER | G141: 4.3 | H141: 132 | I141: 86 | J141: 86 | K141: 86 | L141: 88 | M141: 40 | N141: 219 | O141: 130 | P141: 88 | Q141: 214 | R141: 152 | S141: 142 | T141: 166 | U141: 211 | V141: 240 | W141: 115 | X141: 217
A142: 110 | B142: VOSGES | C142: 57 | D142: EPINAL | E142: 588201 | F142: CHANTRAINE | G142: 3.7 | H142: 133 | I142: 89 | J142: 93 | K142: 90 | L142: 100 | M142: 74 | N142: 155 | O142: 90 | P142: 77 | Q142: 133 | R142: 187 | S142: 151 | T142: 231 | U142: 190 | V142: 127 | W142: 220 | X142: 133
A143: 110 | B143: HAUT RHIN | C143: 5130 | D143: COLMAR | E143: 4143 | F143: MUNSTER | G143: 4.3 | H143: 134 | I143: 140 | J143: 170 | K143: 72 | L143: 78 | M143: 43 | N143: 196 | O143: 101 | P143: 75 | Q143: 207 | R143: 115 | S143: 86 | T143: 174 | U143: 141 | V143: 162 | W143: 63 | X143: 184
A144: 110 | B144: MEURTHE ET MOSELLE MEUSE | C144: 31 | D144: VERDUN | E144: 455566 | F144: REVIGNY SUR ORNAIN | G144: 2.7 | H144: 135 | I144: 107 | J144: 104 | K144: 97 | L144: 156 | M144: 127 | N144: 203 | O144: 88 | P144: 64 | Q144: 202 | R144: 101 | S144: 71 | T144: 178 | U144: 173 | V144: 235 | W144: 42 | X144: 226
A145: 110 | B145: MEURTHE ET MOSELLE MEUSE | C145: 26 | D145: NANCY | E145: 554296 | F145: ESSEY LES NANCY | G145: 3.6 | H145: 136 | I145: 47 | J145: 47 | K145: 46 | L145: 139 | M145: 135 | N145: 131 | O145: 171 | P145: 153 | Q145: 195 | R145: 211 | S145: 200 | T145: 205 | U145: 148 | V145: 139 | W145: 200 | X145: 80
A146: 110 | B146: MEURTHE ET MOSELLE MEUSE | C146: 26 | D146: NANCY | E146: 554486 | F146: NANCY POINT CENTRAL | G146: 3.0 | H146: 137 | I146: 132 | J146: 94 | K146: 182 | L146: 182 | M146: 210 | N146: 93 | O146: 20 | P146: 15 | Q146: 78 | R146: 167 | S146: 183 | T146: 114 | U146: 136 | V146: 104 | W146: 110 | X146: 175
A147: 110 | B147: MEURTHE ET MOSELLE MEUSE | C147: 27 | D147: PONT A MOUSSON | E147: 554496 | F147: NANCY TROIS MAISONS | G147: 2.3 | H147: 138 | I147: 160 | J147: 205 | K147: 120 | L147: 103 | M147: 123 | N147: 84 | O147: 162 | P147: 155 | Q147: 158 | R147: 68 | S147: 75 | T147: 61 | U147: 65 | V147: 130 | W147: 22 | X147: 72
A148: 110 | B148: MARNE ARDENNES | C148: 2 | D148: CHARLEVILLE MEZIERES | E148: 408862 | F148: REVIN | G148: 3.8 | H148: 139 | I148: 81 | J148: 96 | K148: 41 | L148: 169 | M148: 168 | N148: 164 | O148: 195 | P148: 201 | Q148: 114 | R148: 81 | S148: 64 | T148: 125 | U148: 121 | V148: 120 | W148: 157 | X148: 87
A149: 110 | B149: BAS RHIN | C149: 5006 | D149: STRASBOURG | E149: 4039 | F149: REICHSTETT | G149: 1.5 | H149: 140 | I149: 124 | J149: 120 | K149: 124 | L149: 163 | M149: 163 | N149: 149 | O149: 52 | P149: 41 | Q149: 121 | R149: 127 | S149: 128 | T149: 120 | U149: 178 | V149: 95 | W149: 216 | X149: 141
A150: 110 | B150: BAS RHIN | C150: 5060 | D150: HAGUENAU | E150: 4031 | F150: TRUCHTERSHEIM | G150: 2.4 | H150: 141 | I150: 54 | J150: 47 | K150: 85 | L150: 80 | M150: 31 | N150: 234 | O150: 129 | P150: 86 | Q150: 224 | R150: 223 | S150: 211 | T150: 232 | U150: 235 | V150: 216 | W150: 207 | X150: 240
A151: 110 | B151: AUBE HAUTE MARNE | C151: 21 | D151: CHAUMONT | E151: 410566 | F151: CHAUMONT HOTEL DE VILLE | G151: 10.4 | H151: 142 | I151: 93 | J151: 87 | K151: 103 | L151: 181 | M151: 178 | N151: 170 | O151: 84 | P151: 69 | Q151: 160 | R151: 139 | S151: 103 | T151: 194 | U151: 176 | V151: 169 | W151: 139 | X151: 186
A152: 110 | B152: BAS RHIN | C152: 5006 | D152: STRASBOURG | E152: 4027 | F152: SCHILTIGHEIM CENTRE | G152: 4.0 | H152: 143 | I152: 205 | J152: 208 | K152: 184 | L152: 49 | M152: 48 | N152: 69 | O152: 95 | P152: 92 | Q152: 81 | R152: 84 | S152: 115 | T152: 45 | U152: 133 | V152: 113 | W152: 162 | X152: 103
A153: 110 | B153: BAS RHIN | C153: 5101 | D153: SELESTAT | E153: 4127 | F153: ROSHEIM | G153: 1.7 | H153: 144 | I153: 129 | J153: 131 | K153: 115 | L153: 209 | M153: 206 | N153: 181 | O153: 19 | P153: 12 | Q153: 137 | R153: 163 | S153: 146 | T153: 191 | U153: 149 | V153: 132 | W153: 208 | X153: 75
A154: 110 | B154: MEURTHE ET MOSELLE MEUSE | C154: 31 | D154: VERDUN | E154: 555624 | F154: STENAY | G154: 3.2 | H154: 145 | I154: 175 | J154: 208 | K154: 153 | L154: 54 | M154: 97 | N154: 25 | O154: 183 | P154: 190 | Q154: 95 | R154: 209 | S154: 227 | T154: 87 | U154: 24 | V154: 86 | W154: 2 | X154: 55
A155: 110 | B155: VOSGES | C155: 57 | D155: EPINAL | E155: 488706 | F155: VITTEL | G155: 3.2 | H155: 146 | I155: 111 | J155: 124 | K155: 68 | L155: 171 | M155: 148 | N155: 207 | O155: 137 | P155: 114 | Q155: 211 | R155: 118 | S155: 107 | T155: 127 | U155: 112 | V155: 135 | W155: 145 | X155: 81
A156: 110 | B156: MEURTHE ET MOSELLE MEUSE | C156: 26 | D156: NANCY | E156: 554166 | F156: BLAINVILLE | G156: 2.9 | H156: 147 | I156: 177 | J156: 208 | K156: 155 | L156: 79 | M156: 67 | N156: 111 | O156: 161 | P156: 152 | Q156: 171 | R156: 58 | S156: 53 | T156: 80 | U156: 144 | V156: 126 | W156: 164 | X156: 109
A157: 110 | B157: MEURTHE ET MOSELLE MEUSE | C157: 27 | D157: PONT A MOUSSON | E157: 454535 | F157: PONT A MOUSSON CENTRALE | G157: 5.9 | H157: 148 | I157: 233 | J157: 194 | K157: 227 | L157: 66 | M157: 94 | N157: 48 | O157: 169 | P157: 149 | Q157: 194 | R157: 78 | S157: 94 | T157: 66 | U157: 46 | V157: 22 | W157: 180 | X157: 34
A158: 110 | B158: HAUT RHIN | C158: 5130 | D158: COLMAR | E158: 4157 | F158: NEUF BRISACH | G158: 2.6 | H158: 149 | I158: 194 | J158: 182 | K158: 183 | L158: 134 | M158: 170 | N158: 64 | O158: 113 | P158: 146 | Q158: 37 | R158: 71 | S158: 74 | T158: 67 | U158: 89 | V158: 163 | W158: 48 | X158: 93
A159: 110 | B159: MOSELLE | C159: 45 | D159: METZ | E159: 557459 | F159: MOULINS LES METZ | G159: 2.5 | H159: 150 | I159: 71 | J159: 47 | K159: 139 | L159: 196 | M159: 175 | N159: 218 | O159: 181 | P159: 173 | Q159: 180 | R159: 144 | S159: 108 | T159: 216 | U159: 145 | V159: 176 | W159: 78 | X159: 164
A160: 110 | B160: MOSELLE | C160: 42 | D160: MOSELLE EST | E160: 557503 | F160: NEUNKIRCH | G160: 3.2 | H160: 151 | I160: 7 | J160: 6 | K160: 7 | L160: 220 | M160: 201 | N160: 233 | O160: 220 | P160: 209 | Q160: 225 | R160: 233 | S160: 230 | T160: 236 | U160: 213 | V160: 200 | W160: 153 | X160: 223
A161: 110 | B161: VOSGES | C161: 57 | D161: EPINAL | E161: 588206 | F161: CHARMES | G161: 2.8 | H161: 152 | I161: 112 | J161: 145 | K161: 35 | L161: 200 | M161: 214 | N161: 127 | O161: 64 | P161: 36 | Q161: 218 | R161: 154 | S161: 176 | T161: 104 | U161: 179 | V161: 239 | W161: 114 | X161: 152
A162: 110 | B162: MEURTHE ET MOSELLE MEUSE | C162: 27 | D162: PONT A MOUSSON | E162: 454355 | F162: JARNY | G162: 4.1 | H162: 153 | I162: 100 | J162: 113 | K162: 64 | L162: 153 | M162: 152 | N162: 151 | O162: 116 | P162: 93 | Q162: 169 | R162: 143 | S162: 143 | T162: 133 | U162: 217 | V162: 199 | W162: 194 | X162: 204
A163: 110 | B163: AUBE HAUTE MARNE | C163: 14 | D163: TROYES | E163: 510513 | F163: SAINT PARRES AUX TERTRES | G163: 2.6 | H163: 154 | I163: 234 | J163: 208 | K163: 234 | L163: 59 | M163: 93 | N163: 32 | O163: 152 | P163: 188 | Q163: 35 | R163: 25 | S163: 24 | T163: 41 | U163: 135 | V163: 103 | W163: 156 | X163: 122
A164: 110 | B164: BAS RHIN | C164: 5006 | D164: STRASBOURG | E164: 4045 | F164: STRASBOURG FRANCS BOURGEOIS | G164: 4.2 | H164: 155 | I164: 116 | J164: 140 | K164: 54 | L164: 86 | M164: 87 | N164: 91 | O164: 184 | P164: 202 | Q164: 60 | R164: 153 | S164: 139 | T164: 172 | U164: 203 | V164: 118 | W164: 227 | X164: 169
A165: 110 | B165: MOSELLE | C165: 45 | D165: METZ | E165: 557559 | F165: REMILLY | G165: 3.3 | H165: 156 | I165: 147 | J165: 128 | K165: 180 | L165: 124 | M165: 98 | N165: 154 | O165: 121 | P165: 103 | Q165: 157 | R165: 193 | S165: 204 | T165: 141 | U165: 81 | V165: 129 | W165: 45 | X165: 99
A166: 110 | B166: MEURTHE ET MOSELLE MEUSE | C166: 27 | D166: PONT A MOUSSON | E166: 454651 | F166: TOUL | G166: 9.7 | H166: 157 | I166: 208 | J166: 162 | K166: 214 | L166: 179 | M166: 190 | N166: 132 | O166: 76 | P166: 73 | Q166: 94 | R166: 90 | S166: 112 | T166: 64 | U166: 67 | V166: 46 | W166: 100 | X166: 85
A167: 110 | B167: BAS RHIN | C167: 5101 | D167: SELESTAT | E167: 4007 | F167: ILLKIRCH CENTRE | G167: 6.4 | H167: 158 | I167: 172 | J167: 165 | K167: 173 | L167: 144 | M167: 131 | N167: 169 | O167: 160 | P167: 158 | Q167: 149 | R167: 44 | S167: 37 | T167: 99 | U167: 128 | V167: 93 | W167: 136 | X167: 138
A168: 110 | B168: BAS RHIN | C168: 5060 | D168: HAGUENAU | E168: 4085 | F168: INGWILLER | G168: 3.5 | H168: 159 | I168: 130 | J168: 107 | K168: 162 | L168: 154 | M168: 155 | N168: 147 | O168: 149 | P168: 142 | Q168: 155 | R168: 142 | S168: 149 | T168: 119 | U168: 138 | V168: 175 | W168: 55 | X168: 183
A169: 110 | B169: MOSELLE | C169: 45 | D169: METZ | E169: 557441 | F169: METZ PLAPPEVILLE | G169: 2.5 | H169: 160 | I169: 163 | J169: 140 | K169: 197 | L169: 186 | M169: 202 | N169: 120 | O169: 28 | P169: 19 | Q169: 155 | R169: 183 | S169: 166 | T169: 182 | U169: 117 | V169: 190 | W169: 33 | X169: 182
A170: 110 | B170: BAS RHIN | C170: 5006 | D170: STRASBOURG | E170: 4028 | F170: BISCHHEIM | G170: 3.2 | H170: 161 | I170: 173 | J170: 208 | K170: 152 | L170: 172 | M170: 180 | N170: 133 | O170: 51 | P170: 48 | Q170: 74 | R170: 76 | S170: 90 | T170: 69 | U170: 195 | V170: 186 | W170: 182 | X170: 166
A171: 110 | B171: MARNE ARDENNES | C171: 6 | D171: CHALONS EN CHAMPAGNE | E171: 451166 | F171: VITRY LE FRANCOIS | G171: 3.6 | H171: 162 | I171: 217 | J171: 208 | K171: 210 | L171: 65 | M171: 80 | N171: 57 | O171: 233 | P171: 233 | Q171: 46 | R171: 133 | S171: 147 | T171: 101 | U171: 22 | V171: 60 | W171: 12 | X171: 23
A172: 110 | B172: AUBE HAUTE MARNE | C172: 14 | D172: TROYES | E172: 510523 | F172: LA CHAPELLE ST LUC | G172: 4.7 | H172: 163 | I172: 231 | J172: 194 | K172: 225 | L172: 122 | M172: 166 | N172: 52 | O172: 100 | P172: 123 | Q172: 38 | R172: 52 | S172: 80 | T172: 23 | U172: 124 | V172: 134 | W172: 140 | X172: 96
A173: 110 | B173: MARNE ARDENNES | C173: 11 | D173: REIMS | E173: 551309 | F173: REIMS EUROPE | G173: 2.8 | H173: 164 | I173: 137 | J173: 81 | K173: 213 | L173: 142 | M173: 179 | N173: 63 | O173: 213 | P173: 221 | Q173: 85 | R173: 93 | S173: 127 | T173: 46 | U173: 130 | V173: 65 | W173: 234 | X173: 70
A174: 110 | B174: MEURTHE ET MOSELLE MEUSE | C174: 26 | D174: NANCY | E174: 554266 | F174: DOMBASLE SUR MEURTHE | G174: 3.4 | H174: 165 | I174: 181 | J174: 208 | K174: 160 | L174: 214 | M174: 213 | N174: 193 | O174: 48 | P174: 34 | Q174: 141 | R174: 110 | S174: 131 | T174: 81 | U174: 96 | V174: 151 | W174: 26 | X174: 172
A175: 110 | B175: AUBE HAUTE MARNE | C175: 14 | D175: TROYES | E175: 410550 | F175: BAR SUR AUBE | G175: 5.2 | H175: 166 | I175: 90 | J175: 92 | K175: 92 | L175: 168 | M175: 156 | N175: 178 | O175: 203 | P175: 184 | Q175: 215 | R175: 182 | S175: 163 | T175: 185 | U175: 158 | V175: 213 | W175: 58 | X175: 193
A176: 110 | B176: BAS RHIN | C176: 5006 | D176: STRASBOURG | E176: 4029 | F176: SCHILTIGHEIM KLEBER | G176: 0.7 | H176: 167 | I176: 149 | J176: 149 | K176: 165 | L176: 235 | M176: 234 | N176: 167 | O176: 44 | P176: 33 | Q176: 131 | R176: 111 | S176: 218 | T176: 5 | U176: 111 | V176: 166 | W176: 87 | X176: 102
A177: 160 | B177: MOSELLE | C177: 42 | D177: MOSELLE EST | E177: 557210 | F177: CHATEAU SALINS | G177: 1.8 | H177: 168 | I177: 178 | J177: 208 | K177: 156 | L177: 105 | M177: 84 | N177: 143 | O177: 212 | P177: 204 | Q177: 186 | R177: 35 | S177: 26 | T177: 93 | U177: 166 | V177: 217 | W177: 54 | X177: 213
A178: 160 | B178: MARNE ARDENNES | C178: 2 | D178: CHARLEVILLE MEZIERES | E178: 408806 | F178: SEDAN | G178: 7.5 | H178: 169 | I178: 101 | J178: 118 | K178: 47 | L178: 161 | M178: 149 | N178: 180 | O178: 174 | P178: 182 | Q178: 90 | R178: 222 | S178: 206 | T178: 234 | U178: 103 | V178: 109 | W178: 116 | X178: 95
A179: 160 | B179: BAS RHIN | C179: 5101 | D179: SELESTAT | E179: 4008 | F179: FEGERSHEIM | G179: 2.4 | H179: 170 | I179: 114 | J179: 115 | K179: 109 | L179: 123 | M179: 60 | N179: 226 | O179: 79 | P179: 52 | Q179: 217 | R179: 214 | S179: 191 | T179: 227 | U179: 237 | V179: 211 | W179: 229 | X179: 225
A180: 160 | B180: MOSELLE | C180: 45 | D180: METZ | E180: 557436 | F180: METZ CATHEDRALE | G180: 4.0 | H180: 171 | I180: 222 | J180: 208 | K180: 218 | L180: 114 | M180: 95 | N180: 141 | O180: 58 | P180: 39 | Q180: 166 | R180: 103 | S180: 93 | T180: 137 | U180: 160 | V180: 180 | W180: 126 | X180: 157
A181: 160 | B181: VOSGES | C181: 55 | D181: SAINT DIE | E181: 488556 | F181: RAON L ETAPE | G181: 2.2 | H181: 172 | I181: 75 | J181: 61 | K181: 130 | L181: 232 | M181: 232 | N181: 138 | O181: 231 | P181: 230 | Q181: 192 | R181: 155 | S181: 179 | T181: 103 | U181: 62 | V181: 210 | W181: 6 | X181: 71
A182: 160 | B182: MOSELLE | C182: 45 | D182: METZ | E182: 557712 | F182: WOIPPY | G182: 4.3 | H182: 173 | I182: 204 | J182: 134 | K182: 230 | L182: 106 | M182: 104 | N182: 109 | O182: 123 | P182: 139 | Q182: 63 | R182: 113 | S182: 111 | T182: 117 | U182: 134 | V182: 117 | W182: 113 | X182: 156
A183: 160 | B183: BAS RHIN | C183: 5101 | D183: SELESTAT | E183: 4107 | F183: VILLE | G183: 2.2 | H183: 174 | I183: 206 | J183: 208 | K183: 192 | L183: 75 | M183: 25 | N183: 230 | O183: 27 | P183: 16 | Q183: 208 | R183: 176 | S183: 141 | T183: 217 | U183: 236 | V183: 236 | W183: 199 | X183: 239
A184: 160 | B184: MOSELLE | C184: 42 | D184: MOSELLE EST | E184: 457614 | F184: SARREBOURG | G184: 7.3 | H184: 175 | I184: 138 | J184: 134 | K184: 150 | L184: 159 | M184: 144 | N184: 186 | O184: 166 | P184: 171 | Q184: 119 | R184: 135 | S184: 101 | T184: 181 | U184: 163 | V184: 153 | W184: 106 | X184: 201
A185: 160 | B185: HAUT RHIN | C185: 5130 | D185: COLMAR | E185: 4132 | F185: COLMAR MARAICHERS | G185: 3.5 | H185: 176 | I185: 142 | J185: 145 | K185: 158 | L185: 131 | M185: 115 | N185: 160 | O185: 96 | P185: 85 | Q185: 116 | R185: 185 | S185: 162 | T185: 198 | U185: 209 | V185: 209 | W185: 142 | X185: 219
A186: 160 | B186: HAUT RHIN | C186: 5169 | D186: MULHOUSE | E186: 4170 | F186: MULHOUSE REUNION | G186: 7.7 | H186: 177 | I186: 148 | J186: 124 | K186: 191 | L186: 152 | M186: 167 | N186: 119 | O186: 202 | P186: 197 | Q186: 150 | R186: 106 | S186: 144 | T186: 53 | U186: 119 | V186: 91 | W186: 127 | X186: 137
A187: 160 | B187: MEURTHE ET MOSELLE MEUSE | C187: 27 | D187: PONT A MOUSSON | E187: 454696 | F187: VILLERS GENERAL LECLERC | G187: 4.0 | H187: 178 | I187: 169 | J187: 208 | K187: 143 | L187: 197 | M187: 205 | N187: 142 | O187: 16 | P187: 7 | Q187: 151 | R187: 184 | S187: 169 | T187: 179 | U187: 226 | V187: 195 | W187: 212 | X187: 198
A188: 160 | B188: MOSELLE | C188: 44 | D188: MOSELLE NORD | E188: 457180 | F188: BOUSSE | G188: 2.5 | H188: 179 | I188: 8 | J188: 8 | K188: 30 | L188: 225 | M188: 174 | N188: 241 | O188: 193 | P188: 156 | Q188: 241 | R188: 234 | S188: 220 | T188: 241 | U188: 241 | V188: 233 | W188: 241 | X188: 241
A189: 160 | B189: MOSELLE | C189: 45 | D189: METZ | E189: 557440 | F189: METZ MOZART | G189: 2.9 | H189: 180 | I189: 156 | J189: 208 | K189: 107 | L189: 164 | M189: 133 | N189: 209 | O189: 80 | P189: 55 | Q189: 203 | R189: 149 | S189: 114 | T189: 218 | U189: 227 | V189: 150 | W189: 230 | X189: 196
A190: 160 | B190: BAS RHIN | C190: 5101 | D190: SELESTAT | E190: 4101 | F190: SELESTAT CENTRE | G190: 7.9 | H190: 181 | I190: 182 | J190: 182 | K190: 174 | L190: 112 | M190: 73 | N190: 192 | O190: 163 | P190: 131 | Q190: 226 | R190: 132 | S190: 134 | T190: 126 | U190: 184 | V190: 206 | W190: 117 | X190: 185
A191: 160 | B191: MEURTHE ET MOSELLE MEUSE | C191: 27 | D191: PONT A MOUSSON | E191: 554196 | F191: CHAMPIGNEULLES | G191: 2.6 | H191: 182 | I191: 164 | J191: 208 | K191: 121 | L191: 195 | M191: 171 | N191: 222 | O191: 153 | P191: 133 | Q191: 198 | R191: 72 | S191: 51 | T191: 128 | U191: 188 | V191: 100 | W191: 203 | X191: 181
A192: 160 | B192: AUBE HAUTE MARNE | C192: 14 | D192: TROYES | E192: 410510 | F192: TROYES GAMBETTA | G192: 8.7 | H192: 183 | I192: 200 | J192: 185 | K192: 200 | L192: 137 | M192: 132 | N192: 128 | O192: 179 | P192: 172 | Q192: 170 | R192: 100 | S192: 100 | T192: 115 | U192: 131 | V192: 88 | W192: 184 | X192: 110
A193: 160 | B193: BAS RHIN | C193: 5101 | D193: SELESTAT | E193: 4109 | F193: MARCKOLSHEIM | G193: 2.4 | H193: 184 | I193: 141 | J193: 194 | K193: 60 | L193: 158 | M193: 139 | N193: 195 | O193: 201 | P193: 203 | Q193: 128 | R193: 166 | S193: 192 | T193: 96 | U193: 142 | V193: 194 | W193: 105 | X193: 117
A194: 160 | B194: HAUT RHIN | C194: 5169 | D194: MULHOUSE | E194: 4178 | F194: SAINT LOUIS | G194: 6.6 | H194: 185 | I194: 183 | J194: 159 | K194: 190 | L194: 141 | M194: 147 | N194: 126 | O194: 71 | P194: 59 | Q194: 122 | R194: 174 | S194: 170 | T194: 154 | U194: 223 | V194: 159 | W194: 213 | X194: 214
A195: 160 | B195: MOSELLE | C195: 45 | D195: METZ | E195: 557433 | F195: MARANGE SILVANGE | G195: 2.7 | H195: 186 | I195: 174 | J195: 166 | K195: 172 | L195: 185 | M195: 172 | N195: 201 | O195: 157 | P195: 143 | Q195: 178 | R195: 168 | S195: 159 | T195: 165 | U195: 79 | V195: 185 | W195: 14 | X195: 123
A196: 160 | B196: BAS RHIN | C196: 5060 | D196: HAGUENAU | E196: 4060 | F196: HAGUENAU HOUBLON | G196: 8.5 | H196: 187 | I196: 187 | J196: 162 | K196: 185 | L196: 174 | M196: 165 | N196: 190 | O196: 91 | P196: 72 | Q196: 183 | R196: 136 | S196: 116 | T196: 163 | U196: 194 | V196: 198 | W196: 146 | X196: 187
A197: 160 | B197: BAS RHIN | C197: 5060 | D197: HAGUENAU | E197: 4082 | F197: BOUXWILLER | G197: 2.4 | H197: 188 | I197: 55 | J197: 59 | K197: 49 | L197: 193 | M197: 184 | N197: 198 | O197: 238 | P197: 238 | Q197: 143 | R197: 134 | S197: 140 | T197: 109 | U197: 140 | V197: 105 | W197: 163 | X197: 118
A198: 160 | B198: BAS RHIN | C198: 5060 | D198: HAGUENAU | E198: 4067 | F198: PFAFFENHOFFEN | G198: 1.9 | H198: 189 | I198: 146 | J198: 170 | K198: 116 | L198: 109 | M198: 88 | N198: 143 | O198: 138 | P198: 135 | Q198: 139 | R198: 221 | S198: 221 | T198: 188 | U198: 198 | V198: 197 | W198: 217 | X198: 106
A199: 160 | B199: MARNE ARDENNES | C199: 11 | D199: REIMS | E199: 451308 | F199: REIMS SAINT THOMAS | G199: 5.5 | H199: 190 | I199: 237 | J199: 191 | K199: 238 | L199: 90 | M199: 100 | N199: 81 | O199: 221 | P199: 228 | Q199: 93 | R199: 116 | S199: 125 | T199: 98 | U199: 54 | V199: 41 | W199: 147 | X199: 45
A200: 160 | B200: VOSGES | C200: 57 | D200: EPINAL | E200: 488256 | F200: DARNEY | G200: 1.6 | H200: 191 | I200: 34 | J200: 18 | K200: 122 | L200: 226 | M200: 229 | N200: 172 | O200: 236 | P200: 235 | Q200: 233 | R200: 162 | S200: 168 | T200: 121 | U200: 215 | V200: 214 | W200: 141 | X200: 228
A201: 160 | B201: MARNE ARDENNES | C201: 2 | D201: CHARLEVILLE MEZIERES | E201: 508860 | F201: ROCROI | G201: 2.4 | H201: 192 | I201: 210 | J201: 206 | K201: 202 | L201: 107 | M201: 105 | N201: 114 | O201: 187 | P201: 178 | Q201: 161 | R201: 150 | S201: 156 | T201: 129 | U201: 118 | V201: 99 | W201: 172 | X201: 86
A202: 160 | B202: BAS RHIN | C202: 5060 | D202: HAGUENAU | E202: 4066 | F202: NIEDERBRONN LES BAINS | G202: 5.7 | H202: 193 | I202: 128 | J202: 147 | K202: 83 | L202: 210 | M202: 209 | N202: 177 | O202: 158 | P202: 137 | Q202: 204 | R202: 200 | S202: 173 | T202: 221 | U202: 180 | V202: 230 | W202: 129 | X202: 159
A203: 160 | B203: MEURTHE ET MOSELLE MEUSE | C203: 26 | D203: NANCY | E203: 554491 | F203: NANCY SAINT SEBASTIEN | G203: 3.6 | H203: 194 | I203: 127 | J203: 114 | K203: 145 | L203: 219 | M203: 226 | N203: 156 | O203: 144 | P203: 122 | Q203: 200 | R203: 205 | S203: 201 | T203: 180 | U203: 171 | V203: 124 | W203: 168 | X203: 167
A204: 160 | B204: VOSGES | C204: 55 | D204: SAINT DIE | E204: 488586 | F204: SAINT DIE | G204: 11.4 | H204: 195 | I204: 120 | J204: 110 | K204: 132 | L204: 199 | M204: 181 | N204: 211 | O204: 197 | P204: 180 | Q204: 220 | R204: 186 | S204: 167 | T204: 203 | U204: 196 | V204: 161 | W204: 197 | X204: 168
... 47 more rows

Sheet AG_FICHE
A1: Accueil
A2: BAROMETRE GRAND PUBLIC
A4: UNITE: | B4: Agence | E4: ETP perf : | F4: =VLOOKUP(A5,'RECAP AG'!$G$6:$CY$248,3,FALSE) -> 5.50
A5: =VLOOKUP(B5,LISTES!$C$6:$D$246,2,FALSE) -> 4189 | B5: ALTKIRCH
C6: Coefficient du critère | E6: Résultats | I6: Ecart au 1ier | K6: =IF(OR(A5=4017,A5=4022),"Rang estimé","Rang") -> Rang
E7: du 1ier | G7: de l'Agence
A9: RANG GRAND PUBLIC | K9: =VLOOKUP($A$5,'RECAP AG'!$G$6:$CY$248,96,FALSE) -> 241
A11: SATISFACTION CLIENTS | C11: 20% | K11: =VLOOKUP($A$5,'RECAP AG'!$G$6:$CY$248,13,FALSE) -> 241
B12: NPS à froid (SAE) | C12: 10% | E12: =+'RECAP AG'!K4 -> 57 | G12: =VLOOKUP($A$5,'RECAP AG'!$G$6:$CY$248,5,FALSE) -> 0.0 | I12: =VLOOKUP($A$5,'RECAP AG'!$G$6:$CY$248,6,FALSE) -> 100% | K12: =VLOOKUP($A$5,'RECAP AG'!$G$6:$CY$248,7,FALSE) -> 208
B13: NPS à chaud (QHD) | C13: 10% | E13: =+'RECAP AG'!N4 -> 88% | G13: =VLOOKUP($A$5,'RECAP AG'!$G$6:$CY$248,8,FALSE) -> 10% | I13: =VLOOKUP($A$5,'RECAP AG'!$G$6:$CY$248,9,FALSE) -> 89% | K13: =VLOOKUP($A$5,'RECAP AG'!$G$6:$CY$248,10,FALSE) -> 241
A15: BANCARISATION | C15: 20% | K15: =VLOOKUP($A$5,'RECAP AG'!$G$6:$CY$248,28,FALSE) -> 238
B16: Ventes Nettes produits pondérés | C16: 12% | E16: ='RECAP AG'!X4 -> 105.7 | G16: =VLOOKUP($A$5,'RECAP AG'!$G$6:$CY$248,19,FALSE) -> -11.6 | I16: =VLOOKUP($A$5,'RECAP AG'!$G$6:$CY$248,20,FALSE) -> 111% | K16: =VLOOKUP($A$5,'RECAP AG'!$G$6:$CY$248,21,FALSE) -> 235
B17: Ventes sur client non détenteur de l’univers | C17: 8% | E17: ='RECAP AG'!AB4 -> 151.0 | G17: =VLOOKUP($A$5,'RECAP AG'!$G$6:$CY$248,23,FALSE) -> 32.0 | I17: =VLOOKUP($A$5,'RECAP AG'!$G$6:$CY$248,24,FALSE) -> 79% | K17: =VLOOKUP($A$5,'RECAP AG'!$G$6:$CY$248,25,FALSE) -> 238
A19: EPARGNE | C19: 20% | K19: =VLOOKUP($A$5,'RECAP AG'!$G$6:$CY$248,43,FALSE) -> 230
B20: Excédent Epargne hors DAV pondéré | C20: 12% | E20: ='RECAP AG'!AM4 -> 2315.0 | G20: =VLOOKUP($A$5,'RECAP AG'!$G$6:$CY$248,34,FALSE) -> -293.7 | I20: =VLOOKUP($A$5,'RECAP AG'!$G$6:$CY$248,35,FALSE) -> 97% | K20: =VLOOKUP($A$5,'RECAP AG'!$G$6:$CY$248,36,FALSE) -> 226
B21: Ventes sur client non détenteur de l’univers | C21: 8% | E21: ='RECAP AG'!AQ4 -> 283.9 | G21: =VLOOKUP($A$5,'RECAP AG'!$G$6:$CY$248,38,FALSE) -> 32.2 | I21: =VLOOKUP($A$5,'RECAP AG'!$G$6:$CY$248,39,FALSE) -> 89% | K21: =VLOOKUP($A$5,'RECAP AG'!$G$6:$CY$248,40,FALSE) -> 234
A23: IARD PREVOYANCE | C23: 20% | K23: =VLOOKUP($A$5,'RECAP AG'!$G$6:$CY$248,77,FALSE) -> 238
B24: Ventes Nettes produits pondérés | C24: 12% | E24: ='RECAP AG'!BU4 -> 657.7 | G24: =VLOOKUP($A$5,'RECAP AG'!$G$6:$CY$248,68,FALSE) -> -82.0 | I24: =VLOOKUP($A$5,'RECAP AG'!$G$6:$CY$248,69,FALSE) -> 106% | K24: =VLOOKUP($A$5,'RECAP AG'!$G$6:$CY$248,70,FALSE) -> 238
B25: Ventes sur client non détenteur de l’univers | C25: 8% | E25: ='RECAP AG'!BY4 -> 153.7 | G25: =VLOOKUP($A$5,'RECAP AG'!$G$6:$CY$248,72,FALSE) -> 24.2 | I25: =VLOOKUP($A$5,'RECAP AG'!$G$6:$CY$248,73,FALSE) -> 84% | K25: =VLOOKUP($A$5,'RECAP AG'!$G$6:$CY$248,74,FALSE) -> 225
A27: CREDITS | C27: 20% | K27: =VLOOKUP($A$5,'RECAP AG'!$G$6:$CY$248,62,FALSE) -> 238
B28: Engagements et ventes accessoires pondérés Immo | C28: 6% | E28: ='RECAP AG'!BB4 -> 1307.9 | G28: =VLOOKUP($A$5,'RECAP AG'!$G$6:$CY$248,49,FALSE) -> 92.5 | I28: =VLOOKUP($A$5,'RECAP AG'!$G$6:$CY$248,50,FALSE) -> 93% | K28: =VLOOKUP($A$5,'RECAP AG'!$G$6:$CY$248,51,FALSE) -> 238
B29: Engagements et ventes accessoires pondérés Conso | C29: 6% | E29: ='RECAP AG'!BF4 -> 110.7 | G29: =VLOOKUP($A$5,'RECAP AG'!$G$6:$CY$248,53,FALSE) -> 37.7 | I29: =VLOOKUP($A$5,'RECAP AG'!$G$6:$CY$248,54,FALSE) -> 66% | K29: =VLOOKUP($A$5,'RECAP AG'!$G$6:$CY$248,55,FALSE) -> 206
B30: Ventes sur client non détenteur de l’univers | C30: 8% | E30: ='RECAP AG'!BJ4 -> 86.6 | G30: =VLOOKUP($A$5,'RECAP AG'!$G$6:$CY$248,57,FALSE) -> 11.3 | I30: =VLOOKUP($A$5,'RECAP AG'!$G$6:$CY$248,58,FALSE) -> 87% | K30: =VLOOKUP($A$5,'RECAP AG'!$G$6:$CY$248,59,FALSE) -> 238

Sheet AG_TOTAL
B1: Accueil | H1: BAROMETRE BDD - AGENCES
H2: TOTAL GENERAL
H3: =ACCUEIL!F7 -> 2022-10-02
H7: TOTAL GENERAL | K7: Total Satisfaction Clients | N7: Total Bancarisation | Q7: Total Epargne | T7: Total IARD Prévoyance | W7: Total Crédits
I8: coef | J8: =M8+P8+S8+V8+Y8 -> 100% | L8: coef | M8: =AG_SATISFACTION!P8 -> 20% | O8: coef | P8: =AG_BANCA!R8 -> 20% | R8: coef | S8: =AG_EPARGNE!R8 -> 20% | U8: coef | V8: =AG_IARD!R8 -> 20% | X8: coef | Y8: =AG_CREDIT!V8 -> 20%
B9: Direction | C9: eds | D9: Territoire | E9: eds | F9: Agence | G9: ="ETP perf "&DATEMAJ!$C$28 -> ETP perf 02-oct | H9: Moyenne ecart au 1er | I9: % Ecart au 1er | J9: Rang CEGEE | K9: Moyenne ecart au 1er | L9: % Ecart au 1er | M9: Rang CEGEE | N9: Moyenne ecart au 1er | O9: % Ecart au 1er | P9: Rang CEGEE | Q9: Moyenne ecart au 1er | R9: % Ecart au 1er | S9: Rang CEGEE | T9: Moyenne ecart au 1er | U9: % Ecart au 1er | V9: Rang CEGEE | W9: Moyenne ecart au 1er | X9: % Ecart au 1er | Y9: Rang CEGEE
A10: 50 | B10: MOSELLE | C10: 44 | D10: MOSELLE NORD | E10: 557508 | F10: NILVANGE | G10: 1.5 | H10: 10% | I10: 0% | J10: 1 | K10: 38% | L10: 38% | M10: 64 | N10: 0% | O10: 0% | P10: 1 | Q10: 45% | R10: 15% | S10: 4 | T10: 0% | U10: 0% | V10: 1 | W10: 0% | X10: 0% | Y10: 1
A11: 50 | B11: VOSGES | C11: 57 | D11: EPINAL | E11: 488288 | F11: EPINAL LEOPOLD BOURG | G11: 2.0 | H11: 39% | I11: 28% | J11: 2 | K11: 5% | L11: 5% | M11: 2 | N11: 52% | O11: 52% | P11: 16 | Q11: 45% | R11: 15% | S11: 5 | T11: 70% | U11: 70% | V11: 57 | W11: 52% | X11: 52% | Y11: 25
A12: 50 | B12: MARNE ARDENNES | C12: 11 | D12: REIMS | E12: 551305 | F12: REIMS HIPPODROME | G12: 5.2 | H12: 43% | I12: 32% | J12: 3 | K12: 38% | L12: 38% | M12: 68 | N12: 50% | O12: 50% | P12: 11 | Q12: 60% | R12: 30% | S12: 18 | T12: 57% | U12: 57% | V12: 8 | W12: 39% | X12: 39% | Y12: 5
A13: 50 | B13: MARNE ARDENNES | C13: 6 | D13: CHALONS EN CHAMPAGNE | E13: 451115 | F13: MOURMELON LE GRAND | G13: 2.8 | H13: 43% | I13: 33% | J13: 4 | K13: 43% | L13: 43% | M13: 82 | N13: 37% | O13: 37% | P13: 2 | Q13: 60% | R13: 29% | S13: 17 | T13: 61% | U13: 61% | V13: 18 | W13: 47% | X13: 47% | Y13: 14
A14: 50 | B14: MARNE ARDENNES | C14: 11 | D14: REIMS | E14: 551340 | F14: BETHENY | G14: 2.2 | H14: 44% | I14: 34% | J14: 5 | K14: 33% | L14: 33% | M14: 45 | N14: 39% | O14: 39% | P14: 5 | Q14: 65% | R14: 34% | S14: 29 | T14: 73% | U14: 73% | V14: 79 | W14: 41% | X14: 41% | Y14: 8
A15: 50 | B15: MOSELLE | C15: 44 | D15: MOSELLE NORD | E15: 557660 | F15: UCKANGE | G15: 1.8 | H15: 45% | I15: 35% | J15: 6 | K15: 75% | L15: 75% | M15: 219 | N15: 51% | O15: 51% | P15: 12 | Q15: 64% | R15: 34% | S15: 24 | T15: 38% | U15: 38% | V15: 2 | W15: 28% | X15: 28% | Y15: 2
A16: 50 | B16: MARNE ARDENNES | C16: 2 | D16: CHARLEVILLE MEZIERES | E16: 508820 | F16: VOUZIERS | G16: 2.8 | H16: 45% | I16: 35% | J16: 7 | K16: 26% | L16: 26% | M16: 27 | N16: 59% | O16: 59% | P16: 36 | Q16: 65% | R16: 35% | S16: 31 | T16: 52% | U16: 52% | V16: 3 | W16: 56% | X16: 56% | Y16: 33
A17: 50 | B17: MARNE ARDENNES | C17: 11 | D17: REIMS | E17: 551349 | F17: REIMS SAINT REMI | G17: 2.9 | H17: 46% | I17: 35% | J17: 8 | K17: 53% | L17: 53% | M17: 122 | N17: 37% | O17: 37% | P17: 3 | Q17: 68% | R17: 37% | S17: 43 | T17: 60% | U17: 60% | V17: 15 | W17: 40% | X17: 40% | Y17: 7
A18: 50 | B18: MARNE ARDENNES | C18: 6 | D18: CHALONS EN CHAMPAGNE | E18: 551330 | F18: MONTMIRAIL | G18: 2.8 | H18: 46% | I18: 35% | J18: 9 | K18: 17% | L18: 17% | M18: 10 | N18: 51% | O18: 51% | P18: 13 | Q18: 68% | R18: 38% | S18: 49 | T18: 58% | U18: 58% | V18: 11 | W18: 63% | X18: 63% | Y18: 75
A19: 50 | B19: MEURTHE ET MOSELLE MEUSE | C19: 26 | D19: NANCY | E19: 554476 | F19: NANCY ARTEM | G19: 2.8 | H19: 47% | I19: 36% | J19: 10 | K19: 29% | L19: 29% | M19: 37 | N19: 48% | O19: 48% | P19: 10 | Q19: 81% | R19: 51% | S19: 156 | T19: 70% | U19: 70% | V19: 56 | W19: 35% | X19: 35% | Y19: 3
A20: 50 | B20: MOSELLE | C20: 45 | D20: METZ | E20: 457443 | F20: METZ REPUBLIQUE | G20: 3.4 | H20: 47% | I20: 36% | J20: 11 | K20: 31% | L20: 31% | M20: 42 | N20: 68% | O20: 68% | P20: 72 | Q20: 40% | R20: 10% | S20: 3 | T20: 59% | U20: 59% | V20: 12 | W20: 67% | X20: 67% | Y20: 98
A21: 50 | B21: MARNE ARDENNES | C21: 6 | D21: CHALONS EN CHAMPAGNE | E21: 451120 | F21: SARRY | G21: 2.3 | H21: 47% | I21: 37% | J21: 12 | K21: 11% | L21: 11% | M21: 6 | N21: 53% | O21: 53% | P21: 18 | Q21: 77% | R21: 46% | S21: 110 | T21: 68% | U21: 68% | V21: 45 | W21: 59% | X21: 59% | Y21: 51
A22: 50 | B22: MOSELLE | C22: 44 | D22: MOSELLE NORD | E22: 557113 | F22: AUDUN LE TICHE | G22: 2.1 | H22: 48% | I22: 37% | J22: 13 | K22: 51% | L22: 51% | M22: 117 | N22: 46% | O22: 46% | P22: 9 | Q22: 61% | R22: 31% | S22: 21 | T22: 62% | U22: 62% | V22: 21 | W22: 46% | X22: 46% | Y22: 13
A23: 50 | B23: BAS RHIN | C23: 5006 | D23: STRASBOURG | E23: 4048 | F23: STRASBOURG KOENIGSHOFFEN | G23: 1.6 | H23: 48% | I23: 37% | J23: 14 | K23: 66% | L23: 66% | M23: 170 | N23: 46% | O23: 46% | P23: 8 | Q23: 55% | R23: 25% | S23: 8 | T23: 54% | U23: 54% | V23: 6 | W23: 49% | X23: 49% | Y23: 19
A24: 50 | B24: MEURTHE ET MOSELLE MEUSE | C24: 27 | D24: PONT A MOUSSON | E24: 554381 | F24: LAXOU ARISTIDE BRIAND | G24: 2.3 | H24: 48% | I24: 37% | J24: 15 | K24: 63% | L24: 63% | M24: 159 | N24: 38% | O24: 38% | P24: 4 | Q24: 69% | R24: 39% | S24: 57 | T24: 60% | U24: 60% | V24: 13 | W24: 39% | X24: 39% | Y24: 6
A25: 50 | B25: MARNE ARDENNES | C25: 11 | D25: REIMS | E25: 551365 | F25: DORMANS | G25: 2.5 | H25: 49% | I25: 39% | J25: 16 | K25: 35% | L25: 35% | M25: 50 | N25: 42% | O25: 42% | P25: 6 | Q25: 80% | R25: 50% | S25: 141 | T25: 68% | U25: 68% | V25: 42 | W25: 52% | X25: 52% | Y25: 23
A26: 50 | B26: BAS RHIN | C26: 5006 | D26: STRASBOURG | E26: 4037 | F26: MUNDOLSHEIM | G26: 3.8 | H26: 50% | I26: 39% | J26: 17 | K26: 36% | L26: 36% | M26: 56 | N26: 52% | O26: 52% | P26: 15 | Q26: 81% | R26: 51% | S26: 151 | T26: 57% | U26: 57% | V26: 9 | W26: 52% | X26: 52% | Y26: 26
A27: 50 | B27: MOSELLE | C27: 42 | D27: MOSELLE EST | E27: 457165 | F27: BITCHE | G27: 2.5 | H27: 51% | I27: 40% | J27: 18 | K27: 20% | L27: 20% | M27: 16 | N27: 54% | O27: 54% | P27: 20 | Q27: 77% | R27: 47% | S27: 114 | T27: 65% | U27: 65% | V27: 28 | W27: 69% | X27: 69% | Y27: 115
A28: 262 | B28: MOSELLE | C28: 45 | D28: METZ | E28: 457453 | F28: MONTIGNY LES METZ | G28: 6.9 | H28: 51% | I28: 40% | J28: 19 | K28: 18% | L28: 18% | M28: 11 | N28: 62% | O28: 62% | P28: 44 | Q28: 71% | R28: 41% | S28: 73 | T28: 76% | U28: 76% | V28: 107 | W28: 58% | X28: 58% | Y28: 42
A29: 262 | B29: MARNE ARDENNES | C29: 11 | D29: REIMS | E29: 451350 | F29: REIMS CENTRE VILLE | G29: 6.4 | H29: 51% | I29: 41% | J29: 20 | K29: 69% | L29: 69% | M29: 195 | N29: 46% | O29: 46% | P29: 7 | Q29: 72% | R29: 42% | S29: 75 | T29: 63% | U29: 63% | V29: 24 | W29: 36% | X29: 36% | Y29: 4
A30: 262 | B30: MARNE ARDENNES | C30: 11 | D30: REIMS | E30: 451336 | F30: TINQUEUX | G30: 5.0 | H30: 52% | I30: 41% | J30: 21 | K30: 60% | L30: 60% | M30: 144 | N30: 62% | O30: 62% | P30: 46 | Q30: 30% | R30: 0% | S30: 1 | T30: 76% | U30: 76% | V30: 102 | W30: 60% | X30: 60% | Y30: 58
A31: 262 | B31: MEURTHE ET MOSELLE MEUSE | C31: 26 | D31: NANCY | E31: 554601 | F31: SAINT MAX | G31: 3.5 | H31: 52% | I31: 41% | J31: 22 | K31: 25% | L31: 25% | M31: 22 | N31: 72% | O31: 72% | P31: 104 | Q31: 60% | R31: 29% | S31: 15 | T31: 68% | U31: 68% | V31: 43 | W31: 65% | X31: 65% | Y31: 82
A32: 262 | B32: MOSELLE | C32: 42 | D32: MOSELLE EST | E32: 457308 | F32: FORBACH CENTRALE | G32: 10.2 | H32: 52% | I32: 42% | J32: 23 | K32: 44% | L32: 44% | M32: 88 | N32: 55% | O32: 55% | P32: 23 | Q32: 75% | R32: 45% | S32: 94 | T32: 63% | U32: 63% | V32: 23 | W32: 54% | X32: 54% | Y32: 31
A33: 262 | B33: MARNE ARDENNES | C33: 2 | D33: CHARLEVILLE MEZIERES | E33: 408801 | F33: CHARLEVILLE JEAN JAURES | G33: 8.8 | H33: 53% | I33: 43% | J33: 24 | K33: 38% | L33: 38% | M33: 67 | N33: 66% | O33: 66% | P33: 64 | Q33: 68% | R33: 38% | S33: 47 | T33: 67% | U33: 67% | V33: 38 | W33: 57% | X33: 57% | Y33: 40
A34: 262 | B34: MARNE ARDENNES | C34: 2 | D34: CHARLEVILLE MEZIERES | E34: 508839 | F34: GIVET | G34: 3.3 | H34: 54% | I34: 43% | J34: 25 | K34: 41% | L34: 41% | M34: 74 | N34: 63% | O34: 63% | P34: 47 | Q34: 81% | R34: 50% | S34: 145 | T34: 57% | U34: 57% | V34: 10 | W34: 56% | X34: 56% | Y34: 35
A35: 262 | B35: MOSELLE | C35: 45 | D35: METZ | E35: 557439 | F35: METZ POMPIDOU | G35: 2.6 | H35: 54% | I35: 43% | J35: 26 | K35: 37% | L35: 37% | M35: 58 | N35: 66% | O35: 66% | P35: 60 | Q35: 58% | R35: 27% | S35: 11 | T35: 77% | U35: 77% | V35: 122 | W35: 63% | X35: 63% | Y35: 72
A36: 262 | B36: MOSELLE | C36: 45 | D36: METZ | E36: 457446 | F36: METZ SAINT LOUIS | G36: 5.7 | H36: 54% | I36: 44% | J36: 27 | K36: 47% | L36: 47% | M36: 102 | N36: 57% | O36: 57% | P36: 29 | Q36: 73% | R36: 43% | S36: 82 | T36: 71% | U36: 71% | V36: 66 | W36: 52% | X36: 52% | Y36: 27
A37: 262 | B37: MARNE ARDENNES | C37: 11 | D37: REIMS | E37: 551367 | F37: AY CHAMPAGNE | G37: 2.6 | H37: 54% | I37: 44% | J37: 28 | K37: 31% | L37: 31% | M37: 43 | N37: 72% | O37: 72% | P37: 101 | Q37: 71% | R37: 41% | S37: 68 | T37: 69% | U37: 69% | V37: 48 | W37: 58% | X37: 58% | Y37: 44
A38: 262 | B38: MARNE ARDENNES | C38: 11 | D38: REIMS | E38: 451361 | F38: PIERRY LECLERC | G38: 1.8 | H38: 54% | I38: 44% | J38: 29 | K38: 35% | L38: 35% | M38: 51 | N38: 68% | O38: 68% | P38: 77 | Q38: 58% | R38: 27% | S38: 9 | T38: 74% | U38: 74% | V38: 88 | W38: 66% | X38: 66% | Y38: 90
A39: 262 | B39: VOSGES | C39: 57 | D39: EPINAL | E39: 588336 | F39: GOLBEY | G39: 2.8 | H39: 54% | I39: 44% | J39: 30 | K39: 30% | L39: 30% | M39: 40 | N39: 73% | O39: 73% | P39: 115 | Q39: 67% | R39: 36% | S39: 36 | T39: 68% | U39: 68% | V39: 47 | W39: 63% | X39: 63% | Y39: 74
A40: 262 | B40: AUBE HAUTE MARNE | C40: 21 | D40: CHAUMONT | E40: 510590 | F40: CHAUMONT REPUBLIQUE | G40: 2.9 | H40: 54% | I40: 44% | J40: 31 | K40: 32% | L40: 32% | M40: 44 | N40: 75% | O40: 75% | P40: 133 | Q40: 67% | R40: 37% | S40: 38 | T40: 65% | U40: 65% | V40: 31 | W40: 61% | X40: 61% | Y40: 63
A41: 262 | B41: MARNE ARDENNES | C41: 11 | D41: REIMS | E41: 451301 | F41: REIMS HOTEL DE VILLE | G41: 6.9 | H41: 54% | I41: 44% | J41: 32 | K41: 47% | L41: 47% | M41: 99 | N41: 64% | O41: 64% | P41: 52 | Q41: 74% | R41: 43% | S41: 87 | T41: 60% | U41: 60% | V41: 14 | W41: 57% | X41: 57% | Y41: 39
A42: 262 | B42: MARNE ARDENNES | C42: 11 | D42: REIMS | E42: 451370 | F42: EPERNAY | G42: 9.0 | H42: 54% | I42: 44% | J42: 33 | K42: 39% | L42: 39% | M42: 70 | N42: 60% | O42: 60% | P42: 39 | Q42: 70% | R42: 40% | S42: 63 | T42: 74% | U42: 74% | V42: 92 | W42: 59% | X42: 59% | Y42: 49
A43: 262 | B43: MOSELLE | C43: 42 | D43: MOSELLE EST | E43: 557250 | F43: CREUTZWALD | G43: 2.5 | H43: 54% | I43: 44% | J43: 34 | K43: 23% | L43: 23% | M43: 20 | N43: 75% | O43: 75% | P43: 136 | Q43: 75% | R43: 44% | S43: 92 | T43: 67% | U43: 67% | V43: 34 | W43: 63% | X43: 63% | Y43: 73
A44: 262 | B44: MARNE ARDENNES | C44: 6 | D44: CHALONS EN CHAMPAGNE | E44: 551354 | F44: VERTUS | G44: 2.0 | H44: 54% | I44: 44% | J44: 35 | K44: 0% | L44: 0% | M44: 1 | N44: 77% | O44: 77% | P44: 145 | Q44: 70% | R44: 40% | S44: 62 | T44: 86% | U44: 86% | V44: 208 | W44: 69% | X44: 69% | Y44: 123
A45: 262 | B45: MEURTHE ET MOSELLE MEUSE | C45: 26 | D45: NANCY | E45: 554356 | F45: JARVILLE LA MALGRANGE | G45: 4.2 | H45: 55% | I45: 44% | J45: 36 | K45: 28% | L45: 28% | M45: 31 | N45: 58% | O45: 58% | P45: 32 | Q45: 86% | R45: 55% | S45: 192 | T45: 71% | U45: 71% | V45: 70 | W45: 61% | X45: 61% | Y45: 59
A46: 262 | B46: MARNE ARDENNES | C46: 11 | D46: REIMS | E46: 551314 | F46: FISMES | G46: 2.6 | H46: 55% | I46: 44% | J46: 37 | K46: 22% | L46: 22% | M46: 18 | N46: 56% | O46: 56% | P46: 27 | Q46: 89% | R46: 59% | S46: 217 | T46: 78% | U46: 78% | V46: 131 | W46: 59% | X46: 59% | Y46: 50
A47: 262 | B47: MARNE ARDENNES | C47: 2 | D47: CHARLEVILLE MEZIERES | E47: 508833 | F47: VILLERS SEMEUSE CORA | G47: 3.1 | H47: 55% | I47: 44% | J47: 38 | K47: 68% | L47: 68% | M47: 186 | N47: 69% | O47: 69% | P47: 82 | Q47: 67% | R47: 36% | S47: 35 | T47: 53% | U47: 53% | V47: 5 | W47: 47% | X47: 47% | Y47: 16
A48: 262 | B48: MEURTHE ET MOSELLE MEUSE | C48: 27 | D48: PONT A MOUSSON | E48: 554531 | F48: POMPEY | G48: 3.1 | H48: 55% | I48: 44% | J48: 39 | K48: 72% | L48: 72% | M48: 211 | N48: 53% | O48: 53% | P48: 19 | Q48: 68% | R48: 37% | S48: 41 | T48: 69% | U48: 69% | V48: 49 | W48: 42% | X48: 42% | Y48: 9
A49: 262 | B49: BAS RHIN | C49: 5006 | D49: STRASBOURG | E49: 4038 | F49: OBERHAUSBERGEN | G49: 3.3 | H49: 55% | I49: 45% | J49: 40 | K49: 37% | L49: 37% | M49: 60 | N49: 65% | O49: 65% | P49: 56 | Q49: 58% | R49: 27% | S49: 10 | T49: 85% | U49: 85% | V49: 203 | W49: 63% | X49: 63% | Y49: 71
A50: 262 | B50: MEURTHE ET MOSELLE MEUSE | C50: 31 | D50: VERDUN | E50: 554413 | F50: LONGWY BAS | G50: 3.5 | H50: 56% | I50: 45% | J50: 41 | K50: 19% | L50: 19% | M50: 12 | N50: 68% | O50: 68% | P50: 76 | Q50: 81% | R50: 51% | S50: 154 | T50: 75% | U50: 75% | V50: 96 | W50: 65% | X50: 65% | Y50: 85
A51: 262 | B51: MARNE ARDENNES | C51: 11 | D51: REIMS | E51: 551310 | F51: REIMS CHATILLONS | G51: 3.9 | H51: 56% | I51: 45% | J51: 42 | K51: 53% | L51: 53% | M51: 123 | N51: 55% | O51: 55% | P51: 25 | Q51: 76% | R51: 46% | S51: 106 | T51: 70% | U51: 70% | V51: 61 | W51: 54% | X51: 54% | Y51: 30
A52: 262 | B52: MOSELLE | C52: 42 | D52: MOSELLE EST | E52: 457583 | F52: SAINT AVOLD | G52: 7.0 | H52: 56% | I52: 45% | J52: 43 | K52: 37% | L52: 37% | M52: 59 | N52: 59% | O52: 59% | P52: 38 | Q52: 77% | R52: 47% | S52: 115 | T52: 70% | U52: 70% | V52: 59 | W52: 65% | X52: 65% | Y52: 86
A53: 262 | B53: BAS RHIN | C53: 5101 | D53: SELESTAT | E53: 4113 | F53: BARR | G53: 2.9 | H53: 56% | I53: 45% | J53: 44 | K53: 27% | L53: 27% | M53: 29 | N53: 59% | O53: 59% | P53: 37 | Q53: 75% | R53: 45% | S53: 93 | T53: 79% | U53: 79% | V53: 138 | W53: 69% | X53: 69% | Y53: 127
A54: 262 | B54: MEURTHE ET MOSELLE MEUSE | C54: 27 | D54: PONT A MOUSSON | E54: 554516 | F54: PAGNY SUR MOSELLE | G54: 2.7 | H54: 56% | I54: 45% | J54: 45 | K54: 49% | L54: 49% | M54: 108 | N54: 67% | O54: 67% | P54: 67 | Q54: 69% | R54: 39% | S54: 55 | T54: 66% | U54: 66% | V54: 32 | W54: 60% | X54: 60% | Y54: 52
A55: 262 | B55: MEURTHE ET MOSELLE MEUSE | C55: 31 | D55: VERDUN | E55: 555406 | F55: LIGNY EN BARROIS | G55: 2.5 | H55: 56% | I55: 46% | J55: 46 | K55: 20% | L55: 20% | M55: 13 | N55: 73% | O55: 73% | P55: 118 | Q55: 58% | R55: 28% | S55: 12 | T55: 87% | U55: 87% | V55: 213 | W55: 73% | X55: 73% | Y55: 174
A56: 262 | B56: MOSELLE | C56: 45 | D56: METZ | E56: 457574 | F56: ROMBAS | G56: 2.5 | H56: 56% | I56: 46% | J56: 47 | K56: 35% | L56: 35% | M56: 49 | N56: 70% | O56: 70% | P56: 89 | Q56: 75% | R56: 45% | S56: 98 | T56: 62% | U56: 62% | V56: 20 | W56: 70% | X56: 70% | Y56: 132
A57: 262 | B57: MOSELLE | C57: 44 | D57: MOSELLE NORD | E57: 557352 | F57: HETTANGE GRANDE | G57: 3.1 | H57: 56% | I57: 46% | J57: 48 | K57: 59% | L57: 59% | M57: 143 | N57: 59% | O57: 59% | P57: 34 | Q57: 75% | R57: 45% | S57: 97 | T57: 69% | U57: 69% | V57: 50 | W57: 50% | X57: 50% | Y57: 21
A58: 262 | B58: MARNE ARDENNES | C58: 6 | D58: CHALONS EN CHAMPAGNE | E58: 551110 | F58: CHALONS ROOSEVELT | G58: 4.4 | H58: 56% | I58: 46% | J58: 49 | K58: 28% | L58: 28% | M58: 32 | N58: 73% | O58: 73% | P58: 120 | Q58: 78% | R58: 48% | S58: 125 | T58: 64% | U58: 64% | V58: 26 | W58: 68% | X58: 68% | Y58: 106
A59: 262 | B59: MEURTHE ET MOSELLE MEUSE | C59: 26 | D59: NANCY | E59: 554636 | F59: TOMBLAINE | G59: 2.5 | H59: 56% | I59: 46% | J59: 50 | K59: 20% | L59: 20% | M59: 15 | N59: 78% | O59: 78% | P59: 151 | Q59: 69% | R59: 38% | S59: 53 | T59: 77% | U59: 77% | V59: 119 | W59: 69% | X59: 69% | Y59: 129
A60: 262 | B60: MOSELLE | C60: 45 | D60: METZ | E60: 557432 | F60: MAIZIERES LES METZ | G60: 2.7 | H60: 56% | I60: 46% | J60: 51 | K60: 69% | L60: 69% | M60: 192 | N60: 57% | O60: 57% | P60: 28 | Q60: 73% | R60: 43% | S60: 83 | T60: 69% | U60: 69% | V60: 54 | W60: 44% | X60: 44% | Y60: 12
A61: 262 | B61: MEURTHE ET MOSELLE MEUSE | C61: 31 | D61: VERDUN | E61: 455678 | F61: VERDUN CENTRALE | G61: 10.2 | H61: 57% | I61: 46% | J61: 52 | K61: 23% | L61: 23% | M61: 21 | N61: 67% | O61: 67% | P61: 68 | Q61: 86% | R61: 56% | S61: 199 | T61: 79% | U61: 79% | V61: 140 | W61: 57% | X61: 57% | Y61: 41
A62: 262 | B62: MEURTHE ET MOSELLE MEUSE | C62: 26 | D62: NANCY | E62: 454481 | F62: NANCY PLACE DOMBASLE | G62: 7.8 | H62: 57% | I62: 46% | J62: 53 | K62: 58% | L62: 58% | M62: 139 | N62: 66% | O62: 66% | P62: 61 | Q62: 69% | R62: 39% | S62: 56 | T62: 74% | U62: 74% | V62: 91 | W62: 47% | X62: 47% | Y62: 17
A63: 262 | B63: MARNE ARDENNES | C63: 11 | D63: REIMS | E63: 551369 | F63: DAMERY | G63: 1.6 | H63: 57% | I63: 46% | J63: 54 | K63: 42% | L63: 42% | M63: 77 | N63: 55% | O63: 55% | P63: 24 | Q63: 101% | R63: 71% | S63: 235 | T63: 69% | U63: 69% | V63: 51 | W63: 48% | X63: 48% | Y63: 18
A64: 262 | B64: MOSELLE | C64: 44 | D64: MOSELLE NORD | E64: 457350 | F64: HAYANGE | G64: 6.3 | H64: 57% | I64: 46% | J64: 55 | K64: 51% | L64: 51% | M64: 115 | N64: 63% | O64: 63% | P64: 48 | Q64: 78% | R64: 47% | S64: 122 | T64: 63% | U64: 63% | V64: 22 | W64: 61% | X64: 61% | Y64: 61
A65: 262 | B65: MEURTHE ET MOSELLE MEUSE | C65: 27 | D65: PONT A MOUSSON | E65: 554506 | F65: CHALIGNY NEUVES MAISONS | G65: 3.5 | H65: 57% | I65: 46% | J65: 56 | K65: 64% | L65: 64% | M65: 162 | N65: 55% | O65: 55% | P65: 22 | Q65: 85% | R65: 55% | S65: 189 | T65: 61% | U65: 61% | V65: 17 | W65: 49% | X65: 49% | Y65: 20
A66: 262 | B66: MOSELLE | C66: 44 | D66: MOSELLE NORD | E66: 557303 | F66: FAMECK | G66: 2.8 | H66: 57% | I66: 46% | J66: 57 | K66: 33% | L66: 33% | M66: 48 | N66: 69% | O66: 69% | P66: 83 | Q66: 68% | R66: 37% | S66: 45 | T66: 88% | U66: 88% | V66: 216 | W66: 57% | X66: 57% | Y66: 37
A67: 262 | B67: AUBE HAUTE MARNE | C67: 21 | D67: CHAUMONT | E67: 410541 | F67: LANGRES | G67: 8.1 | H67: 57% | I67: 47% | J67: 58 | K67: 38% | L67: 38% | M67: 66 | N67: 69% | O67: 69% | P67: 84 | Q67: 74% | R67: 44% | S67: 89 | T67: 67% | U67: 67% | V67: 36 | W67: 67% | X67: 67% | Y67: 100
A68: 262 | B68: MEURTHE ET MOSELLE MEUSE | C68: 27 | D68: PONT A MOUSSON | E68: 554686 | F68: VEZELISE | G68: 1.9 | H68: 57% | I68: 47% | J68: 59 | K68: 8% | L68: 8% | M68: 3 | N68: 75% | O68: 75% | P68: 138 | Q68: 73% | R68: 42% | S68: 77 | T68: 80% | U68: 80% | V68: 145 | W68: 80% | X68: 80% | Y68: 229
A69: 262 | B69: MOSELLE | C69: 44 | D69: MOSELLE NORD | E69: 457632 | F69: THIONVILLE CENTRALE | G69: 10.5 | H69: 57% | I69: 47% | J69: 60 | K69: 55% | L69: 55% | M69: 133 | N69: 58% | O69: 58% | P69: 31 | Q69: 82% | R69: 52% | S69: 170 | T69: 65% | U69: 65% | V69: 27 | W69: 58% | X69: 58% | Y69: 45
A70: 262 | B70: VOSGES | C70: 55 | D70: SAINT DIE | E70: 488326 | F70: GERARDMER | G70: 3.8 | H70: 58% | I70: 47% | J70: 61 | K70: 43% | L70: 43% | M70: 84 | N70: 71% | O70: 71% | P70: 96 | Q70: 65% | R70: 35% | S70: 32 | T70: 77% | U70: 77% | V70: 120 | W70: 62% | X70: 62% | Y70: 69
A71: 262 | B71: BAS RHIN | C71: 5006 | D71: STRASBOURG | E71: 4054 | F71: STRASBOURG MONTAGNE VERTE | G71: 2.7 | H71: 58% | I71: 47% | J71: 62 | K71: 31% | L71: 31% | M71: 41 | N71: 71% | O71: 71% | P71: 94 | Q71: 71% | R71: 41% | S71: 66 | T71: 68% | U71: 68% | V71: 46 | W71: 78% | X71: 78% | Y71: 224
A72: 262 | B72: MOSELLE | C72: 44 | D72: MOSELLE NORD | E72: 457348 | F72: HAGONDANGE | G72: 8.1 | H72: 58% | I72: 47% | J72: 63 | K72: 52% | L72: 52% | M72: 119 | N72: 64% | O72: 64% | P72: 55 | Q72: 76% | R72: 46% | S72: 103 | T72: 67% | U72: 67% | V72: 37 | W72: 61% | X72: 61% | Y72: 60
A73: 262 | B73: MOSELLE | C73: 42 | D73: MOSELLE EST | E73: 457617 | F73: SARREGUEMINES | G73: 6.5 | H73: 58% | I73: 47% | J73: 64 | K73: 61% | L73: 61% | M73: 145 | N73: 63% | O73: 63% | P73: 51 | Q73: 69% | R73: 39% | S73: 54 | T73: 71% | U73: 71% | V73: 63 | W73: 56% | X73: 56% | Y73: 36
A74: 264 | B74: MOSELLE | C74: 42 | D74: MOSELLE EST | E74: 557305 | F74: FAULQUEMONT | G74: 3.9 | H74: 58% | I74: 48% | J74: 65 | K74: 77% | L74: 77% | M74: 228 | N74: 53% | O74: 53% | P74: 17 | Q74: 83% | R74: 53% | S74: 177 | T74: 65% | U74: 65% | V74: 30 | W74: 42% | X74: 42% | Y74: 10
A75: 264 | B75: MARNE ARDENNES | C75: 6 | D75: CHALONS EN CHAMPAGNE | E75: 551103 | F75: FAGNIERES LECLERC | G75: 2.8 | H75: 58% | I75: 48% | J75: 66 | K75: 47% | L75: 47% | M75: 98 | N75: 73% | O75: 73% | P75: 116 | Q75: 76% | R75: 46% | S75: 108 | T75: 61% | U75: 61% | V75: 16 | W75: 64% | X75: 64% | Y75: 77
A76: 264 | B76: MARNE ARDENNES | C76: 11 | D76: REIMS | E76: 551306 | F76: REIMS SAINT MARCEAUX | G76: 3.7 | H76: 58% | I76: 48% | J76: 67 | K76: 38% | L76: 38% | M76: 65 | N76: 54% | O76: 54% | P76: 21 | Q76: 97% | R76: 66% | S76: 234 | T76: 72% | U76: 72% | V76: 73 | W76: 60% | X76: 60% | Y76: 57
A77: 264 | B77: MEURTHE ET MOSELLE MEUSE | C77: 26 | D77: NANCY | E77: 554116 | F77: BACCARAT | G77: 2.8 | H77: 58% | I77: 48% | J77: 68 | K77: 10% | L77: 10% | M77: 5 | N77: 77% | O77: 77% | P77: 147 | Q77: 79% | R77: 49% | S77: 133 | T77: 81% | U77: 81% | V77: 156 | W77: 74% | X77: 74% | Y77: 187
A78: 264 | B78: MOSELLE | C78: 45 | D78: METZ | E78: 557447 | F78: METZ SAINT MAXIMIN | G78: 2.4 | H78: 58% | I78: 48% | J78: 69 | K78: 62% | L78: 62% | M78: 151 | N78: 68% | O78: 68% | P78: 74 | Q78: 71% | R78: 40% | S78: 65 | T78: 53% | U78: 53% | V78: 4 | W78: 68% | X78: 68% | Y78: 108
A79: 264 | B79: MARNE ARDENNES | C79: 6 | D79: CHALONS EN CHAMPAGNE | E79: 451101 | F79: CHALONS VIVIERS | G79: 9.3 | H79: 58% | I79: 48% | J79: 70 | K79: 28% | L79: 28% | M79: 33 | N79: 75% | O79: 75% | P79: 128 | Q79: 80% | R79: 49% | S79: 139 | T79: 73% | U79: 73% | V79: 80 | W79: 66% | X79: 66% | Y79: 92
A80: 264 | B80: MEURTHE ET MOSELLE MEUSE | C80: 31 | D80: VERDUN | E80: 555679 | F80: VERDUN MAZEL | G80: 3.6 | H80: 58% | I80: 48% | J80: 71 | K80: 22% | L80: 22% | M80: 19 | N80: 74% | O80: 74% | P80: 126 | Q80: 76% | R80: 45% | S80: 102 | T80: 78% | U80: 78% | V80: 130 | W80: 73% | X80: 73% | Y80: 169
A81: 264 | B81: MOSELLE | C81: 42 | D81: MOSELLE EST | E81: 557668 | F81: VALMONT | G81: 2.8 | H81: 58% | I81: 48% | J81: 72 | K81: 29% | L81: 29% | M81: 36 | N81: 83% | O81: 83% | P81: 187 | Q81: 62% | R81: 32% | S81: 23 | T81: 75% | U81: 75% | V81: 98 | W81: 73% | X81: 73% | Y81: 167
A82: 264 | B82: VOSGES | C82: 57 | D82: EPINAL | E82: 588396 | F82: LE VAL D AJOL | G82: 2.4 | H82: 59% | I82: 48% | J82: 73 | K82: 9% | L82: 9% | M82: 4 | N82: 79% | O82: 79% | P82: 162 | Q82: 76% | R82: 46% | S82: 105 | T82: 81% | U82: 81% | V82: 159 | W82: 78% | X82: 78% | Y82: 220
A83: 264 | B83: BAS RHIN | C83: 5101 | D83: SELESTAT | E83: 4104 | F83: ERSTEIN | G83: 4.1 | H83: 59% | I83: 48% | J83: 74 | K83: 72% | L83: 72% | M83: 207 | N83: 52% | O83: 52% | P83: 14 | Q83: 67% | R83: 36% | S83: 34 | T83: 70% | U83: 70% | V83: 60 | W83: 64% | X83: 64% | Y83: 78
A84: 264 | B84: BAS RHIN | C84: 5006 | D84: STRASBOURG | E84: 4047 | F84: STRASBOURG CRONENBOURG | G84: 4.4 | H84: 59% | I84: 48% | J84: 75 | K84: 50% | L84: 50% | M84: 113 | N84: 59% | O84: 59% | P84: 33 | Q84: 68% | R84: 38% | S84: 50 | T84: 76% | U84: 76% | V84: 114 | W84: 70% | X84: 70% | Y84: 139
A85: 264 | B85: MEURTHE ET MOSELLE MEUSE | C85: 31 | D85: VERDUN | E85: 454414 | F85: LONGWY HAUT | G85: 3.4 | H85: 59% | I85: 48% | J85: 76 | K85: 49% | L85: 49% | M85: 109 | N85: 71% | O85: 71% | P85: 91 | Q85: 71% | R85: 41% | S85: 69 | T85: 67% | U85: 67% | V85: 41 | W85: 66% | X85: 66% | Y85: 93
A86: 264 | B86: BAS RHIN | C86: 5006 | D86: STRASBOURG | E86: 4024 | F86: STRASBOURG AUSTERLITZ | G86: 1.2 | H86: 59% | I86: 48% | J86: 77 | K86: 83% | L86: 83% | M86: 238 | N86: 60% | O86: 60% | P86: 40 | Q86: 53% | R86: 23% | S86: 7 | T86: 69% | U86: 69% | V86: 53 | W86: 60% | X86: 60% | Y86: 53
A87: 264 | B87: MOSELLE | C87: 42 | D87: MOSELLE EST | E87: 557523 | F87: PHALSBOURG | G87: 2.6 | H87: 59% | I87: 48% | J87: 78 | K87: 47% | L87: 47% | M87: 103 | N87: 77% | O87: 77% | P87: 143 | Q87: 67% | R87: 37% | S87: 37 | T87: 66% | U87: 66% | V87: 33 | W87: 68% | X87: 68% | Y87: 101
A88: 264 | B88: VOSGES | C88: 57 | D88: EPINAL | E88: 488561 | F88: REMIREMONT | G88: 7.2 | H88: 59% | I88: 49% | J88: 79 | K88: 20% | L88: 20% | M88: 14 | N88: 72% | O88: 72% | P88: 108 | Q88: 81% | R88: 50% | S88: 147 | T88: 79% | U88: 79% | V88: 137 | W88: 74% | X88: 74% | Y88: 181
A89: 264 | B89: MARNE ARDENNES | C89: 6 | D89: CHALONS EN CHAMPAGNE | E89: 451381 | F89: SEZANNE | G89: 4.7 | H89: 59% | I89: 49% | J89: 80 | K89: 42% | L89: 42% | M89: 80 | N89: 68% | O89: 68% | P89: 71 | Q89: 64% | R89: 34% | S89: 25 | T89: 86% | U89: 86% | V89: 212 | W89: 65% | X89: 65% | Y89: 83
A90: 264 | B90: MOSELLE | C90: 44 | D90: MOSELLE NORD | E90: 457306 | F90: FLORANGE | G90: 4.6 | H90: 59% | I90: 49% | J90: 81 | K90: 77% | L90: 77% | M90: 230 | N90: 59% | O90: 59% | P90: 35 | Q90: 72% | R90: 42% | S90: 74 | T90: 74% | U90: 74% | V90: 87 | W90: 44% | X90: 44% | Y90: 11
A91: 264 | B91: BAS RHIN | C91: 5060 | D91: HAGUENAU | E91: 4071 | F91: WISSEMBOURG | G91: 8.0 | H91: 59% | I91: 49% | J91: 82 | K91: 30% | L91: 30% | M91: 39 | N91: 71% | O91: 71% | P91: 93 | Q91: 71% | R91: 41% | S91: 70 | T91: 77% | U91: 77% | V91: 126 | W91: 77% | X91: 77% | Y91: 212
A92: 264 | B92: BAS RHIN | C92: 5060 | D92: HAGUENAU | E92: 4092 | F92: HOCHFELDEN | G92: 2.0 | H92: 59% | I92: 49% | J92: 83 | K92: 44% | L92: 44% | M92: 91 | N92: 76% | O92: 76% | P92: 140 | Q92: 66% | R92: 36% | S92: 33 | T92: 71% | U92: 71% | V92: 65 | W92: 69% | X92: 69% | Y92: 114
A93: 264 | B93: BAS RHIN | C93: 5006 | D93: STRASBOURG | E93: 4043 | F93: STRASBOURG HALLES | G93: 7.8 | H93: 59% | I93: 49% | J93: 84 | K93: 62% | L93: 62% | M93: 150 | N93: 60% | O93: 60% | P93: 41 | Q93: 79% | R93: 49% | S93: 134 | T93: 55% | U93: 55% | V93: 7 | W93: 70% | X93: 70% | Y93: 137
A94: 264 | B94: AUBE HAUTE MARNE | C94: 21 | D94: CHAUMONT | E94: 451154 | F94: JOINVILLE | G94: 1.8 | H94: 59% | I94: 49% | J94: 85 | K94: 42% | L94: 42% | M94: 76 | N94: 64% | O94: 64% | P94: 53 | Q94: 94% | R94: 64% | S94: 232 | T94: 61% | U94: 61% | V94: 19 | W94: 66% | X94: 66% | Y94: 94
A95: 264 | B95: VOSGES | C95: 55 | D95: SAINT DIE | E95: 488246 | F95: CORNIMONT LA BRESSE | G95: 2.7 | H95: 60% | I95: 49% | J95: 86 | K95: 21% | L95: 21% | M95: 17 | N95: 71% | O95: 71% | P95: 98 | Q95: 88% | R95: 57% | S95: 211 | T95: 76% | U95: 76% | V95: 104 | W95: 72% | X95: 72% | Y95: 157
A96: 30 | B96: VOSGES | C96: 55 | D96: SAINT DIE | E96: 588551 | F96: RAMBERVILLERS | G96: 2.6 | H96: 60% | I96: 49% | J96: 87 | K96: 25% | L96: 25% | M96: 24 | N96: 79% | O96: 79% | P96: 165 | Q96: 77% | R96: 47% | S96: 117 | T96: 88% | U96: 88% | V96: 217 | W96: 58% | X96: 58% | Y96: 47
A97: 30 | B97: MARNE ARDENNES | C97: 2 | D97: CHARLEVILLE MEZIERES | E97: 408822 | F97: CHARLEVILLE MEZIERES | G97: 5.1 | H97: 60% | I97: 49% | J97: 88 | K97: 67% | L97: 67% | M97: 179 | N97: 73% | O97: 73% | P97: 121 | Q97: 59% | R97: 29% | S97: 13 | T97: 71% | U97: 71% | V97: 67 | W97: 59% | X97: 59% | Y97: 48
A98: 30 | B98: MARNE ARDENNES | C98: 2 | D98: CHARLEVILLE MEZIERES | E98: 408840 | F98: RETHEL | G98: 4.3 | H98: 60% | I98: 49% | J98: 89 | K98: 55% | L98: 55% | M98: 134 | N98: 65% | O98: 65% | P98: 57 | Q98: 74% | R98: 43% | S98: 86 | T98: 73% | U98: 73% | V98: 82 | W98: 62% | X98: 62% | Y98: 70
A99: 30 | B99: MOSELLE | C99: 44 | D99: MOSELLE NORD | E99: 457158 | F99: YUTZ | G99: 4.7 | H99: 60% | I99: 49% | J99: 90 | K99: 63% | L99: 63% | M99: 157 | N99: 66% | O99: 66% | P99: 62 | Q99: 77% | R99: 46% | S99: 111 | T99: 65% | U99: 65% | V99: 29 | W99: 58% | X99: 58% | Y99: 43
A100: 30 | B100: MOSELLE | C100: 44 | D100: MOSELLE NORD | E100: 557347 | F100: GUENANGE | G100: 4.5 | H100: 60% | I100: 50% | J100: 91 | K100: 71% | L100: 71% | M100: 201 | N100: 58% | O100: 58% | P100: 30 | Q100: 80% | R100: 50% | S100: 142 | T100: 67% | U100: 67% | V100: 40 | W100: 55% | X100: 55% | Y100: 32
A101: 30 | B101: MARNE ARDENNES | C101: 6 | D101: CHALONS EN CHAMPAGNE | E101: 551128 | F101: SAINTE MENEHOULD | G101: 3.0 | H101: 60% | I101: 50% | J101: 92 | K101: 35% | L101: 35% | M101: 52 | N101: 71% | O101: 71% | P101: 92 | Q101: 82% | R101: 52% | S101: 168 | T101: 70% | U101: 70% | V101: 62 | W101: 72% | X101: 72% | Y101: 154
A102: 30 | B102: AUBE HAUTE MARNE | C102: 14 | D102: TROYES | E102: 510570 | F102: NOGENT SUR SEINE | G102: 4.1 | H102: 60% | I102: 50% | J102: 93 | K102: 26% | L102: 26% | M102: 26 | N102: 73% | O102: 73% | P102: 119 | Q102: 81% | R102: 50% | S102: 150 | T102: 80% | U102: 80% | V102: 147 | W102: 71% | X102: 71% | Y102: 147
A103: 30 | B103: MOSELLE | C103: 45 | D103: METZ | E103: 557434 | F103: MARLY | G103: 3.1 | H103: 60% | I103: 50% | J103: 94 | K103: 30% | L103: 30% | M103: 38 | N103: 74% | O103: 74% | P103: 127 | Q103: 78% | R103: 48% | S103: 126 | T103: 83% | U103: 83% | V103: 179 | W103: 68% | X103: 68% | Y103: 107
A104: 30 | B104: MOSELLE | C104: 45 | D104: METZ | E104: 557105 | F104: ARS SUR MOSELLE | G104: 2.9 | H104: 60% | I104: 50% | J104: 95 | K104: 48% | L104: 48% | M104: 106 | N104: 73% | O104: 73% | P104: 111 | Q104: 78% | R104: 47% | S104: 120 | T104: 80% | U104: 80% | V104: 151 | W104: 54% | X104: 54% | Y104: 29
A105: 30 | B105: MEURTHE ET MOSELLE MEUSE | C105: 31 | D105: VERDUN | E105: 554700 | F105: VILLERUPT | G105: 2.8 | H105: 60% | I105: 50% | J105: 96 | K105: 36% | L105: 36% | M105: 57 | N105: 69% | O105: 69% | P105: 81 | Q105: 76% | R105: 46% | S105: 107 | T105: 77% | U105: 77% | V105: 121 | W105: 75% | X105: 75% | Y105: 191
A106: 30 | B106: VOSGES | C106: 57 | D106: EPINAL | E106: 588631 | F106: THAON LES VOSGES | G106: 4.5 | H106: 60% | I106: 50% | J106: 97 | K106: 45% | L106: 45% | M106: 95 | N106: 70% | O106: 70% | P106: 87 | Q106: 77% | R106: 47% | S106: 112 | T106: 75% | U106: 75% | V106: 94 | W106: 66% | X106: 66% | Y106: 91
A107: 30 | B107: BAS RHIN | C107: 5006 | D107: STRASBOURG | E107: 4010 | F107: STRASBOURG MEINAU | G107: 3.0 | H107: 60% | I107: 50% | J107: 98 | K107: 46% | L107: 46% | M107: 96 | N107: 67% | O107: 67% | P107: 69 | Q107: 80% | R107: 50% | S107: 140 | T107: 67% | U107: 67% | V107: 39 | W107: 72% | X107: 72% | Y107: 161
A108: 30 | B108: MARNE ARDENNES | C108: 2 | D108: CHARLEVILLE MEZIERES | E108: 508819 | F108: MOUZON | G108: 1.9 | H108: 60% | I108: 50% | J108: 99 | K108: 54% | L108: 54% | M108: 131 | N108: 77% | O108: 77% | P108: 150 | Q108: 71% | R108: 41% | S108: 67 | T108: 73% | U108: 73% | V108: 83 | W108: 57% | X108: 57% | Y108: 38
A109: 30 | B109: VOSGES | C109: 55 | D109: SAINT DIE | E109: 588666 | F109: VAGNEY | G109: 3.5 | H109: 60% | I109: 50% | J109: 100 | K109: 27% | L109: 27% | M109: 28 | N109: 81% | O109: 81% | P109: 173 | Q109: 67% | R109: 37% | S109: 40 | T109: 85% | U109: 85% | V109: 201 | W109: 73% | X109: 73% | Y109: 164
A110: 30 | B110: MEURTHE ET MOSELLE MEUSE | C110: 27 | D110: PONT A MOUSSON | E110: 554416 | F110: LUDRES | G110: 3.6 | H110: 61% | I110: 50% | J110: 101 | K110: 41% | L110: 41% | M110: 73 | N110: 75% | O110: 75% | P110: 129 | Q110: 73% | R110: 43% | S110: 81 | T110: 76% | U110: 76% | V110: 112 | W110: 68% | X110: 68% | Y110: 110
A111: 30 | B111: MOSELLE | C111: 45 | D111: METZ | E111: 557444 | F111: SAINT JULIEN LES METZ | G111: 3.6 | H111: 61% | I111: 50% | J111: 102 | K111: 76% | L111: 76% | M111: 223 | N111: 67% | O111: 67% | P111: 70 | Q111: 59% | R111: 29% | S111: 14 | T111: 71% | U111: 71% | V111: 64 | W111: 60% | X111: 60% | Y111: 56
A112: 30 | B112: MARNE ARDENNES | C112: 11 | D112: REIMS | E112: 551341 | F112: REIMS JEAN JAURES | G112: 3.4 | H112: 61% | I112: 50% | J112: 103 | K112: 68% | L112: 68% | M112: 184 | N112: 63% | O112: 63% | P112: 50 | Q112: 74% | R112: 43% | S112: 85 | T112: 75% | U112: 75% | V112: 99 | W112: 53% | X112: 53% | Y112: 28
A113: 30 | B113: VOSGES | C113: 57 | D113: EPINAL | E113: 588716 | F113: XERTIGNY | G113: 2.8 | H113: 61% | I113: 50% | J113: 104 | K113: 38% | L113: 38% | M113: 63 | N113: 75% | O113: 75% | P113: 135 | Q113: 70% | R113: 40% | S113: 60 | T113: 77% | U113: 77% | V113: 125 | W113: 73% | X113: 73% | Y113: 168
A114: 30 | B114: VOSGES | C114: 55 | D114: SAINT DIE | E114: 588186 | F114: BRUYERES | G114: 3.5 | H114: 61% | I114: 50% | J114: 105 | K114: 28% | L114: 28% | M114: 30 | N114: 75% | O114: 75% | P114: 132 | Q114: 84% | R114: 54% | S114: 186 | T114: 81% | U114: 81% | V114: 160 | W114: 66% | X114: 66% | Y114: 88
A115: 30 | B115: VOSGES | C115: 55 | D115: SAINT DIE | E115: 588386 | F115: LE THILLOT | G115: 2.7 | H115: 61% | I115: 50% | J115: 106 | K115: 16% | L115: 16% | M115: 9 | N115: 77% | O115: 77% | P115: 146 | Q115: 81% | R115: 51% | S115: 155 | T115: 84% | U115: 84% | V115: 191 | W115: 76% | X115: 76% | Y115: 204
A116: 30 | B116: VOSGES | C116: 57 | D116: EPINAL | E116: 488281 | F116: ELOYES | G116: 3.4 | H116: 61% | I116: 51% | J116: 107 | K116: 33% | L116: 33% | M116: 46 | N116: 80% | O116: 80% | P116: 167 | Q116: 68% | R116: 37% | S116: 42 | T116: 88% | U116: 88% | V116: 219 | W116: 68% | X116: 68% | Y116: 109
A117: 30 | B117: BAS RHIN | C117: 5006 | D117: STRASBOURG | E117: 4006 | F117: STRASBOURG NEUDORF | G117: 7.9 | H117: 61% | I117: 51% | J117: 108 | K117: 26% | L117: 26% | M117: 25 | N117: 82% | O117: 82% | P117: 180 | Q117: 77% | R117: 47% | S117: 118 | T117: 75% | U117: 75% | V117: 97 | W117: 76% | X117: 76% | Y117: 206
A118: 30 | B118: BAS RHIN | C118: 5060 | D118: HAGUENAU | E118: 4057 | F118: BISCHWILLER | G118: 6.9 | H118: 61% | I118: 51% | J118: 109 | K118: 42% | L118: 42% | M118: 79 | N118: 65% | O118: 65% | P118: 58 | Q118: 81% | R118: 50% | S118: 146 | T118: 76% | U118: 76% | V118: 108 | W118: 73% | X118: 73% | Y118: 165
A119: 30 | B119: BAS RHIN | C119: 5060 | D119: HAGUENAU | E119: 4041 | F119: HOERDT | G119: 1.7 | H119: 61% | I119: 51% | J119: 110 | K119: 39% | L119: 39% | M119: 69 | N119: 78% | O119: 78% | P119: 155 | Q119: 62% | R119: 31% | S119: 22 | T119: 80% | U119: 80% | V119: 148 | W119: 78% | X119: 78% | Y119: 225
A120: 30 | B120: MEURTHE ET MOSELLE MEUSE | C120: 27 | D120: PONT A MOUSSON | E120: 554357 | F120: JOEUF | G120: 3.1 | H120: 61% | I120: 51% | J120: 111 | K120: 40% | L120: 40% | M120: 72 | N120: 73% | O120: 73% | P120: 110 | Q120: 82% | R120: 52% | S120: 164 | T120: 81% | U120: 81% | V120: 157 | W120: 61% | X120: 61% | Y120: 66
A121: 30 | B121: VOSGES | C121: 57 | D121: EPINAL | E121: 488286 | F121: EPINAL ARISTIDE BRIAND | G121: 8.2 | H121: 62% | I121: 51% | J121: 112 | K121: 64% | L121: 64% | M121: 165 | N121: 61% | O121: 61% | P121: 42 | Q121: 70% | R121: 40% | S121: 59 | T121: 74% | U121: 74% | V121: 89 | W121: 69% | X121: 69% | Y121: 126
A122: 30 | B122: BAS RHIN | C122: 5006 | D122: STRASBOURG | E122: 4019 | F122: STRASBOURG ANVERS | G122: 4.4 | H122: 62% | I122: 51% | J122: 113 | K122: 67% | L122: 67% | M122: 180 | N122: 61% | O122: 61% | P122: 43 | Q122: 71% | R122: 41% | S122: 72 | T122: 73% | U122: 73% | V122: 77 | W122: 67% | X122: 67% | Y122: 97
A123: 30 | B123: BAS RHIN | C123: 5060 | D123: HAGUENAU | E123: 4030 | F123: BRUMATH | G123: 3.8 | H123: 62% | I123: 51% | J123: 114 | K123: 74% | L123: 74% | M123: 216 | N123: 69% | O123: 69% | P123: 85 | Q123: 32% | R123: 1% | S123: 2 | T123: 88% | U123: 88% | V123: 218 | W123: 76% | X123: 76% | Y123: 202
A124: 30 | B124: MEURTHE ET MOSELLE MEUSE | C124: 27 | D124: PONT A MOUSSON | E124: 554376 | F124: LAXOU BOUFFLERS | G124: 2.6 | H124: 62% | I124: 51% | J124: 115 | K124: 81% | L124: 81% | M124: 236 | N124: 56% | O124: 56% | P124: 26 | Q124: 84% | R124: 53% | S124: 178 | T124: 72% | U124: 72% | V124: 74 | W124: 47% | X124: 47% | Y124: 15
A125: 30 | B125: MEURTHE ET MOSELLE MEUSE | C125: 31 | D125: VERDUN | E125: 455151 | F125: BAR LE DUC | G125: 9.8 | H125: 62% | I125: 51% | J125: 116 | K125: 37% | L125: 37% | M125: 61 | N125: 75% | O125: 75% | P125: 130 | Q125: 82% | R125: 51% | S125: 159 | T125: 75% | U125: 75% | V125: 95 | W125: 71% | X125: 71% | Y125: 143
A126: 30 | B126: MEURTHE ET MOSELLE MEUSE | C126: 31 | D126: VERDUN | E126: 554412 | F126: LONGUYON | G126: 2.8 | H126: 62% | I126: 51% | J126: 117 | K126: 43% | L126: 43% | M126: 85 | N126: 68% | O126: 68% | P126: 73 | Q126: 79% | R126: 49% | S126: 135 | T126: 78% | U126: 78% | V126: 129 | W126: 72% | X126: 72% | Y126: 156
A127: 30 | B127: VOSGES | C127: 55 | D127: SAINT DIE | E127: 588316 | F127: FRAIZE | G127: 3.6 | H127: 62% | I127: 51% | J127: 118 | K127: 45% | L127: 45% | M127: 92 | N127: 79% | O127: 79% | P127: 160 | Q127: 75% | R127: 45% | S127: 99 | T127: 72% | U127: 72% | V127: 75 | W127: 69% | X127: 69% | Y127: 116
A128: 30 | B128: BAS RHIN | C128: 5101 | D128: SELESTAT | E128: 4121 | F128: SCHIRMECK | G128: 2.8 | H128: 62% | I128: 51% | J128: 119 | K128: 36% | L128: 36% | M128: 53 | N128: 66% | O128: 66% | P128: 63 | Q128: 86% | R128: 56% | S128: 194 | T128: 85% | U128: 85% | V128: 195 | W128: 68% | X128: 68% | Y128: 102
A129: 30 | B129: MEURTHE ET MOSELLE MEUSE | C129: 26 | D129: NANCY | E129: 454426 | F129: LUNEVILLE CARNOT | G129: 8.4 | H129: 62% | I129: 52% | J129: 120 | K129: 65% | L129: 65% | M129: 167 | N129: 71% | O129: 71% | P129: 97 | Q129: 68% | R129: 38% | S129: 46 | T129: 81% | U129: 81% | V129: 165 | W129: 56% | X129: 56% | Y129: 34
A130: 30 | B130: MOSELLE | C130: 44 | D130: MOSELLE NORD | E130: 557307 | F130: FONTOY | G130: 1.9 | H130: 63% | I130: 52% | J130: 121 | K130: 38% | L130: 38% | M130: 62 | N130: 84% | O130: 84% | P130: 198 | Q130: 76% | R130: 46% | S130: 104 | T130: 84% | U130: 84% | V130: 190 | W130: 61% | X130: 61% | Y130: 64
A131: 30 | B131: MARNE ARDENNES | C131: 2 | D131: CHARLEVILLE MEZIERES | E131: 508802 | F131: CHARLEVILLE NEVERS | G131: 2.8 | H131: 63% | I131: 52% | J131: 122 | K131: 25% | L131: 25% | M131: 23 | N131: 85% | O131: 85% | P131: 203 | Q131: 91% | R131: 60% | S131: 225 | T131: 73% | U131: 73% | V131: 85 | W131: 69% | X131: 69% | Y131: 122
A132: 30 | B132: MOSELLE | C132: 45 | D132: METZ | E132: 557612 | F132: SAINTE MARIE AUX CHENES | G132: 3.7 | H132: 63% | I132: 52% | J132: 123 | K132: 29% | L132: 29% | M132: 35 | N132: 88% | O132: 88% | P132: 216 | Q132: 73% | R132: 42% | S132: 78 | T132: 77% | U132: 77% | V132: 124 | W132: 77% | X132: 77% | Y132: 216
A133: 30 | B133: MARNE ARDENNES | C133: 2 | D133: CHARLEVILLE MEZIERES | E133: 508815 | F133: CARIGNAN | G133: 2.7 | H133: 63% | I133: 52% | J133: 124 | K133: 43% | L133: 43% | M133: 83 | N133: 71% | O133: 71% | P133: 99 | Q133: 84% | R133: 54% | S133: 185 | T133: 77% | U133: 77% | V133: 117 | W133: 69% | X133: 69% | Y133: 120
A134: 30 | B134: MOSELLE | C134: 42 | D134: MOSELLE EST | E134: 457543 | F134: PUTTELANGE AUX LACS | G134: 2.4 | H134: 63% | I134: 53% | J134: 125 | K134: 52% | L134: 52% | M134: 118 | N134: 72% | O134: 72% | P134: 102 | Q134: 82% | R134: 52% | S134: 165 | T134: 73% | U134: 73% | V134: 86 | W134: 67% | X134: 67% | Y134: 99
A135: 110 | B135: MOSELLE | C135: 44 | D135: MOSELLE NORD | E135: 457192 | F135: CATTENOM | G135: 1.6 | H135: 63% | I135: 53% | J135: 126 | K135: 53% | L135: 53% | M135: 125 | N135: 71% | O135: 71% | P135: 95 | Q135: 78% | R135: 47% | S135: 124 | T135: 79% | U135: 79% | V135: 141 | W135: 65% | X135: 65% | Y135: 84
A136: 110 | B136: BAS RHIN | C136: 5006 | D136: STRASBOURG | E136: 4020 | F136: STRASBOURG ROBERTSAU | G136: 5.3 | H136: 63% | I136: 53% | J136: 127 | K136: 53% | L136: 53% | M136: 126 | N136: 80% | O136: 80% | P136: 170 | Q136: 51% | R136: 20% | S136: 6 | T136: 86% | U136: 86% | V136: 207 | W136: 77% | X136: 77% | Y136: 208
A137: 110 | B137: BAS RHIN | C137: 5006 | D137: STRASBOURG | E137: 4023 | F137: STRASBOURG VOSGES | G137: 2.9 | H137: 63% | I137: 53% | J137: 128 | K137: 48% | L137: 48% | M137: 105 | N137: 73% | O137: 73% | P137: 117 | Q137: 64% | R137: 34% | S137: 26 | T137: 85% | U137: 85% | V137: 202 | W137: 76% | X137: 76% | Y137: 207
A138: 110 | B138: MOSELLE | C138: 42 | D138: MOSELLE EST | E138: 457435 | F138: MERLEBACH | G138: 2.7 | H138: 63% | I138: 53% | J138: 129 | K138: 45% | L138: 45% | M138: 94 | N138: 77% | O138: 77% | P138: 149 | Q138: 86% | R138: 56% | S138: 200 | T138: 78% | U138: 78% | V138: 128 | W138: 60% | X138: 60% | Y138: 55
A139: 110 | B139: AUBE HAUTE MARNE | C139: 21 | D139: CHAUMONT | E139: 451156 | F139: SAINT DIZIER CENTRE | G139: 8.6 | H139: 63% | I139: 53% | J139: 130 | K139: 56% | L139: 56% | M139: 136 | N139: 74% | O139: 74% | P139: 125 | Q139: 80% | R139: 49% | S139: 136 | T139: 69% | U139: 69% | V139: 55 | W139: 68% | X139: 68% | Y139: 104
A140: 110 | B140: BAS RHIN | C140: 5101 | D140: SELESTAT | E140: 4126 | F140: MUTZIG | G140: 2.7 | H140: 64% | I140: 53% | J140: 131 | K140: 62% | L140: 62% | M140: 152 | N140: 62% | O140: 62% | P140: 45 | Q140: 70% | R140: 40% | S140: 61 | T140: 81% | U140: 81% | V140: 164 | W140: 72% | X140: 72% | Y140: 152
A141: 110 | B141: VOSGES | C141: 55 | D141: SAINT DIE | E141: 588461 | F141: MOYENMOUTIER | G141: 4.3 | H141: 64% | I141: 53% | J141: 132 | K141: 43% | L141: 43% | M141: 86 | N141: 70% | O141: 70% | P141: 88 | Q141: 78% | R141: 48% | S141: 130 | T141: 80% | U141: 80% | V141: 152 | W141: 77% | X141: 77% | Y141: 211
A142: 110 | B142: VOSGES | C142: 57 | D142: EPINAL | E142: 588201 | F142: CHANTRAINE | G142: 3.7 | H142: 64% | I142: 53% | J142: 133 | K142: 44% | L142: 44% | M142: 89 | N142: 72% | O142: 72% | P142: 100 | Q142: 74% | R142: 44% | S142: 90 | T142: 84% | U142: 84% | V142: 187 | W142: 75% | X142: 75% | Y142: 190
A143: 110 | B143: HAUT RHIN | C143: 5130 | D143: COLMAR | E143: 4143 | F143: MUNSTER | G143: 4.3 | H143: 64% | I143: 53% | J143: 134 | K143: 58% | L143: 58% | M143: 140 | N143: 69% | O143: 69% | P143: 78 | Q143: 76% | R143: 45% | S143: 101 | T143: 76% | U143: 76% | V143: 115 | W143: 71% | X143: 71% | Y143: 141
A144: 110 | B144: MEURTHE ET MOSELLE MEUSE | C144: 31 | D144: VERDUN | E144: 455566 | F144: REVIGNY SUR ORNAIN | G144: 2.7 | H144: 64% | I144: 53% | J144: 135 | K144: 48% | L144: 48% | M144: 107 | N144: 78% | O144: 78% | P144: 156 | Q144: 74% | R144: 44% | S144: 88 | T144: 76% | U144: 76% | V144: 101 | W144: 73% | X144: 73% | Y144: 173
A145: 110 | B145: MEURTHE ET MOSELLE MEUSE | C145: 26 | D145: NANCY | E145: 554296 | F145: ESSEY LES NANCY | G145: 3.6 | H145: 64% | I145: 53% | J145: 136 | K145: 33% | L145: 33% | M145: 47 | N145: 76% | O145: 76% | P145: 139 | Q145: 83% | R145: 52% | S145: 171 | T145: 86% | U145: 86% | V145: 211 | W145: 71% | X145: 71% | Y145: 148
A146: 110 | B146: MEURTHE ET MOSELLE MEUSE | C146: 26 | D146: NANCY | E146: 554486 | F146: NANCY POINT CENTRAL | G146: 3.0 | H146: 64% | I146: 53% | J146: 137 | K146: 55% | L146: 55% | M146: 132 | N146: 82% | O146: 82% | P146: 182 | Q146: 61% | R146: 31% | S146: 20 | T146: 82% | U146: 82% | V146: 167 | W146: 70% | X146: 70% | Y146: 136
A147: 110 | B147: MEURTHE ET MOSELLE MEUSE | C147: 27 | D147: PONT A MOUSSON | E147: 554496 | F147: NANCY TROIS MAISONS | G147: 2.3 | H147: 64% | I147: 53% | J147: 138 | K147: 63% | L147: 63% | M147: 160 | N147: 72% | O147: 72% | P147: 103 | Q147: 82% | R147: 52% | S147: 162 | T147: 71% | U147: 71% | V147: 68 | W147: 61% | X147: 61% | Y147: 65
A148: 110 | B148: MARNE ARDENNES | C148: 2 | D148: CHARLEVILLE MEZIERES | E148: 408862 | F148: REVIN | G148: 3.8 | H148: 64% | I148: 54% | J148: 139 | K148: 43% | L148: 43% | M148: 81 | N148: 80% | O148: 80% | P148: 169 | Q148: 86% | R148: 56% | S148: 195 | T148: 73% | U148: 73% | V148: 81 | W148: 69% | X148: 69% | Y148: 121
A149: 110 | B149: BAS RHIN | C149: 5006 | D149: STRASBOURG | E149: 4039 | F149: REICHSTETT | G149: 1.5 | H149: 64% | I149: 54% | J149: 140 | K149: 53% | L149: 53% | M149: 124 | N149: 79% | O149: 79% | P149: 163 | Q149: 69% | R149: 38% | S149: 52 | T149: 77% | U149: 77% | V149: 127 | W149: 74% | X149: 74% | Y149: 178
A150: 110 | B150: BAS RHIN | C150: 5060 | D150: HAGUENAU | E150: 4031 | F150: TRUCHTERSHEIM | G150: 2.4 | H150: 64% | I150: 54% | J150: 141 | K150: 36% | L150: 36% | M150: 54 | N150: 69% | O150: 69% | P150: 80 | Q150: 78% | R150: 48% | S150: 129 | T150: 89% | U150: 89% | V150: 223 | W150: 82% | X150: 82% | Y150: 235
A151: 110 | B151: AUBE HAUTE MARNE | C151: 21 | D151: CHAUMONT | E151: 410566 | F151: CHAUMONT HOTEL DE VILLE | G151: 10.4 | H151: 64% | I151: 54% | J151: 142 | K151: 45% | L151: 45% | M151: 93 | N151: 82% | O151: 82% | P151: 181 | Q151: 73% | R151: 43% | S151: 84 | T151: 79% | U151: 79% | V151: 139 | W151: 74% | X151: 74% | Y151: 176
A152: 110 | B152: BAS RHIN | C152: 5006 | D152: STRASBOURG | E152: 4027 | F152: SCHILTIGHEIM CENTRE | G152: 4.0 | H152: 64% | I152: 54% | J152: 143 | K152: 71% | L152: 71% | M152: 205 | N152: 63% | O152: 63% | P152: 49 | Q152: 75% | R152: 45% | S152: 95 | T152: 73% | U152: 73% | V152: 84 | W152: 70% | X152: 70% | Y152: 133
A153: 110 | B153: BAS RHIN | C153: 5101 | D153: SELESTAT | E153: 4127 | F153: ROSHEIM | G153: 1.7 | H153: 64% | I153: 54% | J153: 144 | K153: 54% | L153: 54% | M153: 129 | N153: 86% | O153: 86% | P153: 209 | Q153: 60% | R153: 30% | S153: 19 | T153: 81% | U153: 81% | V153: 163 | W153: 71% | X153: 71% | Y153: 149
A154: 110 | B154: MEURTHE ET MOSELLE MEUSE | C154: 31 | D154: VERDUN | E154: 555624 | F154: STENAY | G154: 3.2 | H154: 64% | I154: 54% | J154: 145 | K154: 66% | L154: 66% | M154: 175 | N154: 64% | O154: 64% | P154: 54 | Q154: 84% | R154: 54% | S154: 183 | T154: 86% | U154: 86% | V154: 209 | W154: 52% | X154: 52% | Y154: 24
A155: 110 | B155: VOSGES | C155: 57 | D155: EPINAL | E155: 488706 | F155: VITTEL | G155: 3.2 | H155: 65% | I155: 54% | J155: 146 | K155: 49% | L155: 49% | M155: 111 | N155: 80% | O155: 80% | P155: 171 | Q155: 80% | R155: 49% | S155: 137 | T155: 77% | U155: 77% | V155: 118 | W155: 69% | X155: 69% | Y155: 112
A156: 110 | B156: MEURTHE ET MOSELLE MEUSE | C156: 26 | D156: NANCY | E156: 554166 | F156: BLAINVILLE | G156: 2.9 | H156: 65% | I156: 55% | J156: 147 | K156: 66% | L156: 66% | M156: 177 | N156: 69% | O156: 69% | P156: 79 | Q156: 82% | R156: 52% | S156: 161 | T156: 70% | U156: 70% | V156: 58 | W156: 71% | X156: 71% | Y156: 144
A157: 110 | B157: MEURTHE ET MOSELLE MEUSE | C157: 27 | D157: PONT A MOUSSON | E157: 454535 | F157: PONT A MOUSSON CENTRALE | G157: 5.9 | H157: 66% | I157: 55% | J157: 148 | K157: 78% | L157: 78% | M157: 233 | N157: 67% | O157: 67% | P157: 66 | Q157: 82% | R157: 52% | S157: 169 | T157: 73% | U157: 73% | V157: 78 | W157: 58% | X157: 58% | Y157: 46
A158: 110 | B158: HAUT RHIN | C158: 5130 | D158: COLMAR | E158: 4157 | F158: NEUF BRISACH | G158: 2.6 | H158: 66% | I158: 55% | J158: 149 | K158: 69% | L158: 69% | M158: 194 | N158: 75% | O158: 75% | P158: 134 | Q158: 77% | R158: 47% | S158: 113 | T158: 71% | U158: 71% | V158: 71 | W158: 66% | X158: 66% | Y158: 89
A159: 110 | B159: MOSELLE | C159: 45 | D159: METZ | E159: 557459 | F159: MOULINS LES METZ | G159: 2.5 | H159: 66% | I159: 55% | J159: 150 | K159: 40% | L159: 40% | M159: 71 | N159: 84% | O159: 84% | P159: 196 | Q159: 84% | R159: 54% | S159: 181 | T159: 80% | U159: 80% | V159: 144 | W159: 71% | X159: 71% | Y159: 145
A160: 110 | B160: MOSELLE | C160: 42 | D160: MOSELLE EST | E160: 557503 | F160: NEUNKIRCH | G160: 3.2 | H160: 66% | I160: 55% | J160: 151 | K160: 11% | L160: 11% | M160: 7 | N160: 88% | O160: 88% | P160: 220 | Q160: 90% | R160: 59% | S160: 220 | T160: 93% | U160: 93% | V160: 233 | W160: 77% | X160: 77% | Y160: 213
A161: 110 | B161: VOSGES | C161: 57 | D161: EPINAL | E161: 588206 | F161: CHARMES | G161: 2.8 | H161: 66% | I161: 55% | J161: 152 | K161: 50% | L161: 50% | M161: 112 | N161: 84% | O161: 84% | P161: 200 | Q161: 71% | R161: 40% | S161: 64 | T161: 81% | U161: 81% | V161: 154 | W161: 74% | X161: 74% | Y161: 179
A162: 110 | B162: MEURTHE ET MOSELLE MEUSE | C162: 27 | D162: PONT A MOUSSON | E162: 454355 | F162: JARNY | G162: 4.1 | H162: 66% | I162: 55% | J162: 153 | K162: 47% | L162: 47% | M162: 100 | N162: 78% | O162: 78% | P162: 153 | Q162: 77% | R162: 47% | S162: 116 | T162: 79% | U162: 79% | V162: 143 | W162: 78% | X162: 78% | Y162: 217
A163: 110 | B163: AUBE HAUTE MARNE | C163: 14 | D163: TROYES | E163: 510513 | F163: SAINT PARRES AUX TERTRES | G163: 2.6 | H163: 66% | I163: 56% | J163: 154 | K163: 81% | L163: 81% | M163: 234 | N163: 65% | O163: 65% | P163: 59 | Q163: 81% | R163: 51% | S163: 152 | T163: 64% | U163: 64% | V163: 25 | W163: 70% | X163: 70% | Y163: 135
A164: 110 | B164: BAS RHIN | C164: 5006 | D164: STRASBOURG | E164: 4045 | F164: STRASBOURG FRANCS BOURGEOIS | G164: 4.2 | H164: 66% | I164: 56% | J164: 155 | K164: 51% | L164: 51% | M164: 116 | N164: 69% | O164: 69% | P164: 86 | Q164: 84% | R164: 54% | S164: 184 | T164: 81% | U164: 81% | V164: 153 | W164: 76% | X164: 76% | Y164: 203
A165: 110 | B165: MOSELLE | C165: 45 | D165: METZ | E165: 557559 | F165: REMILLY | G165: 3.3 | H165: 66% | I165: 56% | J165: 156 | K165: 61% | L165: 61% | M165: 147 | N165: 74% | O165: 74% | P165: 124 | Q165: 78% | R165: 47% | S165: 121 | T165: 85% | U165: 85% | V165: 193 | W165: 65% | X165: 65% | Y165: 81
A166: 110 | B166: MEURTHE ET MOSELLE MEUSE | C166: 27 | D166: PONT A MOUSSON | E166: 454651 | F166: TOUL | G166: 9.7 | H166: 66% | I166: 56% | J166: 157 | K166: 72% | L166: 72% | M166: 208 | N166: 81% | O166: 81% | P166: 179 | Q166: 73% | R166: 42% | S166: 76 | T166: 74% | U166: 74% | V166: 90 | W166: 62% | X166: 62% | Y166: 67
A167: 110 | B167: BAS RHIN | C167: 5101 | D167: SELESTAT | E167: 4007 | F167: ILLKIRCH CENTRE | G167: 6.4 | H167: 66% | I167: 56% | J167: 158 | K167: 66% | L167: 66% | M167: 172 | N167: 77% | O167: 77% | P167: 144 | Q167: 82% | R167: 51% | S167: 160 | T167: 68% | U167: 68% | V167: 44 | W167: 69% | X167: 69% | Y167: 128
A168: 110 | B168: BAS RHIN | C168: 5060 | D168: HAGUENAU | E168: 4085 | F168: INGWILLER | G168: 3.5 | H168: 66% | I168: 56% | J168: 159 | K168: 54% | L168: 54% | M168: 130 | N168: 78% | O168: 78% | P168: 154 | Q168: 81% | R168: 50% | S168: 149 | T168: 79% | U168: 79% | V168: 142 | W168: 70% | X168: 70% | Y168: 138
A169: 110 | B169: MOSELLE | C169: 45 | D169: METZ | E169: 557441 | F169: METZ PLAPPEVILLE | G169: 2.5 | H169: 66% | I169: 56% | J169: 160 | K169: 64% | L169: 64% | M169: 163 | N169: 82% | O169: 82% | P169: 186 | Q169: 64% | R169: 34% | S169: 28 | T169: 83% | U169: 83% | V169: 183 | W169: 69% | X169: 69% | Y169: 117
A170: 110 | B170: BAS RHIN | C170: 5006 | D170: STRASBOURG | E170: 4028 | F170: BISCHHEIM | G170: 3.2 | H170: 66% | I170: 56% | J170: 161 | K170: 66% | L170: 66% | M170: 173 | N170: 80% | O170: 80% | P170: 172 | Q170: 68% | R170: 38% | S170: 51 | T170: 72% | U170: 72% | V170: 76 | W170: 75% | X170: 75% | Y170: 195
A171: 110 | B171: MARNE ARDENNES | C171: 6 | D171: CHALONS EN CHAMPAGNE | E171: 451166 | F171: VITRY LE FRANCOIS | G171: 3.6 | H171: 67% | I171: 56% | J171: 162 | K171: 74% | L171: 74% | M171: 217 | N171: 67% | O171: 67% | P171: 65 | Q171: 95% | R171: 64% | S171: 233 | T171: 78% | U171: 78% | V171: 133 | W171: 50% | X171: 50% | Y171: 22
A172: 110 | B172: AUBE HAUTE MARNE | C172: 14 | D172: TROYES | E172: 510523 | F172: LA CHAPELLE ST LUC | G172: 4.7 | H172: 67% | I172: 56% | J172: 163 | K172: 77% | L172: 77% | M172: 231 | N172: 73% | O172: 73% | P172: 122 | Q172: 76% | R172: 45% | S172: 100 | T172: 69% | U172: 69% | V172: 52 | W172: 69% | X172: 69% | Y172: 124
A173: 110 | B173: MARNE ARDENNES | C173: 11 | D173: REIMS | E173: 551309 | F173: REIMS EUROPE | G173: 2.8 | H173: 67% | I173: 56% | J173: 164 | K173: 57% | L173: 57% | M173: 137 | N173: 76% | O173: 76% | P173: 142 | Q173: 88% | R173: 58% | S173: 213 | T173: 74% | U173: 74% | V173: 93 | W173: 70% | X173: 70% | Y173: 130
A174: 110 | B174: MEURTHE ET MOSELLE MEUSE | C174: 26 | D174: NANCY | E174: 554266 | F174: DOMBASLE SUR MEURTHE | G174: 3.4 | H174: 67% | I174: 56% | J174: 165 | K174: 67% | L174: 67% | M174: 181 | N174: 87% | O174: 87% | P174: 214 | Q174: 68% | R174: 38% | S174: 48 | T174: 76% | U174: 76% | V174: 110 | W174: 67% | X174: 67% | Y174: 96
A175: 110 | B175: AUBE HAUTE MARNE | C175: 14 | D175: TROYES | E175: 410550 | F175: BAR SUR AUBE | G175: 5.2 | H175: 67% | I175: 57% | J175: 166 | K175: 44% | L175: 44% | M175: 90 | N175: 80% | O175: 80% | P175: 168 | Q175: 86% | R175: 56% | S175: 203 | T175: 83% | U175: 83% | V175: 182 | W175: 72% | X175: 72% | Y175: 158
A176: 110 | B176: BAS RHIN | C176: 5006 | D176: STRASBOURG | E176: 4029 | F176: SCHILTIGHEIM KLEBER | G176: 0.7 | H176: 67% | I176: 57% | J176: 167 | K176: 61% | L176: 61% | M176: 149 | N176: 92% | O176: 92% | P176: 235 | Q176: 68% | R176: 37% | S176: 44 | T176: 76% | U176: 76% | V176: 111 | W176: 68% | X176: 68% | Y176: 111
A177: 160 | B177: MOSELLE | C177: 42 | D177: MOSELLE EST | E177: 557210 | F177: CHATEAU SALINS | G177: 1.8 | H177: 67% | I177: 57% | J177: 168 | K177: 67% | L177: 67% | M177: 178 | N177: 72% | O177: 72% | P177: 105 | Q177: 88% | R177: 57% | S177: 212 | T177: 67% | U177: 67% | V177: 35 | W177: 73% | X177: 73% | Y177: 166
A178: 160 | B178: MARNE ARDENNES | C178: 2 | D178: CHARLEVILLE MEZIERES | E178: 408806 | F178: SEDAN | G178: 7.5 | H178: 67% | I178: 57% | J178: 169 | K178: 47% | L178: 47% | M178: 101 | N178: 79% | O178: 79% | P178: 161 | Q178: 83% | R178: 53% | S178: 174 | T178: 89% | U178: 89% | V178: 222 | W178: 68% | X178: 68% | Y178: 103
A179: 160 | B179: BAS RHIN | C179: 5101 | D179: SELESTAT | E179: 4008 | F179: FEGERSHEIM | G179: 2.4 | H179: 67% | I179: 57% | J179: 170 | K179: 51% | L179: 51% | M179: 114 | N179: 74% | O179: 74% | P179: 123 | Q179: 73% | R179: 42% | S179: 79 | T179: 87% | U179: 87% | V179: 214 | W179: 82% | X179: 82% | Y179: 237
A180: 160 | B180: MOSELLE | C180: 45 | D180: METZ | E180: 557436 | F180: METZ CATHEDRALE | G180: 4.0 | H180: 67% | I180: 57% | J180: 171 | K180: 76% | L180: 76% | M180: 222 | N180: 73% | O180: 73% | P180: 114 | Q180: 69% | R180: 39% | S180: 58 | T180: 76% | U180: 76% | V180: 103 | W180: 72% | X180: 72% | Y180: 160
A181: 160 | B181: VOSGES | C181: 55 | D181: SAINT DIE | E181: 488556 | F181: RAON L ETAPE | G181: 2.2 | H181: 67% | I181: 57% | J181: 172 | K181: 42% | L181: 42% | M181: 75 | N181: 90% | O181: 90% | P181: 232 | Q181: 94% | R181: 63% | S181: 231 | T181: 81% | U181: 81% | V181: 155 | W181: 61% | X181: 61% | Y181: 62
A182: 160 | B182: MOSELLE | C182: 45 | D182: METZ | E182: 557712 | F182: WOIPPY | G182: 4.3 | H182: 67% | I182: 57% | J182: 173 | K182: 71% | L182: 71% | M182: 204 | N182: 72% | O182: 72% | P182: 106 | Q182: 78% | R182: 47% | S182: 123 | T182: 76% | U182: 76% | V182: 113 | W182: 70% | X182: 70% | Y182: 134
A183: 160 | B183: BAS RHIN | C183: 5101 | D183: SELESTAT | E183: 4107 | F183: VILLE | G183: 2.2 | H183: 68% | I183: 57% | J183: 174 | K183: 72% | L183: 72% | M183: 206 | N183: 68% | O183: 68% | P183: 75 | Q183: 64% | R183: 34% | S183: 27 | T183: 82% | U183: 82% | V183: 176 | W183: 82% | X183: 82% | Y183: 236
A184: 160 | B184: MOSELLE | C184: 42 | D184: MOSELLE EST | E184: 457614 | F184: SARREBOURG | G184: 7.3 | H184: 68% | I184: 57% | J184: 175 | K184: 57% | L184: 57% | M184: 138 | N184: 79% | O184: 79% | P184: 159 | Q184: 82% | R184: 52% | S184: 166 | T184: 78% | U184: 78% | V184: 135 | W184: 73% | X184: 73% | Y184: 163
A185: 160 | B185: HAUT RHIN | C185: 5130 | D185: COLMAR | E185: 4132 | F185: COLMAR MARAICHERS | G185: 3.5 | H185: 68% | I185: 57% | J185: 176 | K185: 59% | L185: 59% | M185: 142 | N185: 75% | O185: 75% | P185: 131 | Q185: 75% | R185: 45% | S185: 96 | T185: 83% | U185: 83% | V185: 185 | W185: 77% | X185: 77% | Y185: 209
A186: 160 | B186: HAUT RHIN | C186: 5169 | D186: MULHOUSE | E186: 4170 | F186: MULHOUSE REUNION | G186: 7.7 | H186: 68% | I186: 57% | J186: 177 | K186: 61% | L186: 61% | M186: 148 | N186: 78% | O186: 78% | P186: 152 | Q186: 86% | R186: 56% | S186: 202 | T186: 76% | U186: 76% | V186: 106 | W186: 69% | X186: 69% | Y186: 119
A187: 160 | B187: MEURTHE ET MOSELLE MEUSE | C187: 27 | D187: PONT A MOUSSON | E187: 454696 | F187: VILLERS GENERAL LECLERC | G187: 4.0 | H187: 68% | I187: 58% | J187: 178 | K187: 66% | L187: 66% | M187: 169 | N187: 84% | O187: 84% | P187: 197 | Q187: 60% | R187: 29% | S187: 16 | T187: 83% | U187: 83% | V187: 184 | W187: 79% | X187: 79% | Y187: 226
A188: 160 | B188: MOSELLE | C188: 44 | D188: MOSELLE NORD | E188: 457180 | F188: BOUSSE | G188: 2.5 | H188: 68% | I188: 58% | J188: 179 | K188: 15% | L188: 15% | M188: 8 | N188: 89% | O188: 89% | P188: 225 | Q188: 86% | R188: 56% | S188: 193 | T188: 94% | U188: 94% | V188: 234 | W188: 89% | X188: 89% | Y188: 241
A189: 160 | B189: MOSELLE | C189: 45 | D189: METZ | E189: 557440 | F189: METZ MOZART | G189: 2.9 | H189: 69% | I189: 58% | J189: 180 | K189: 63% | L189: 63% | M189: 156 | N189: 79% | O189: 79% | P189: 164 | Q189: 73% | R189: 43% | S189: 80 | T189: 80% | U189: 80% | V189: 149 | W189: 79% | X189: 79% | Y189: 227
A190: 160 | B190: BAS RHIN | C190: 5101 | D190: SELESTAT | E190: 4101 | F190: SELESTAT CENTRE | G190: 7.9 | H190: 69% | I190: 58% | J190: 181 | K190: 68% | L190: 68% | M190: 182 | N190: 73% | O190: 73% | P190: 112 | Q190: 82% | R190: 52% | S190: 163 | T190: 78% | U190: 78% | V190: 132 | W190: 74% | X190: 74% | Y190: 184
A191: 160 | B191: MEURTHE ET MOSELLE MEUSE | C191: 27 | D191: PONT A MOUSSON | E191: 554196 | F191: CHAMPIGNEULLES | G191: 2.6 | H191: 69% | I191: 58% | J191: 182 | K191: 64% | L191: 64% | M191: 164 | N191: 84% | O191: 84% | P191: 195 | Q191: 81% | R191: 51% | S191: 153 | T191: 71% | U191: 71% | V191: 72 | W191: 75% | X191: 75% | Y191: 188
A192: 160 | B192: AUBE HAUTE MARNE | C192: 14 | D192: TROYES | E192: 410510 | F192: TROYES GAMBETTA | G192: 8.7 | H192: 69% | I192: 58% | J192: 183 | K192: 71% | L192: 71% | M192: 200 | N192: 75% | O192: 75% | P192: 137 | Q192: 84% | R192: 53% | S192: 179 | T192: 76% | U192: 76% | V192: 100 | W192: 70% | X192: 70% | Y192: 131
A193: 160 | B193: BAS RHIN | C193: 5101 | D193: SELESTAT | E193: 4109 | F193: MARCKOLSHEIM | G193: 2.4 | H193: 69% | I193: 59% | J193: 184 | K193: 58% | L193: 58% | M193: 141 | N193: 79% | O193: 79% | P193: 158 | Q193: 86% | R193: 56% | S193: 201 | T193: 81% | U193: 81% | V193: 166 | W193: 71% | X193: 71% | Y193: 142
A194: 160 | B194: HAUT RHIN | C194: 5169 | D194: MULHOUSE | E194: 4178 | F194: SAINT LOUIS | G194: 6.6 | H194: 69% | I194: 59% | J194: 185 | K194: 68% | L194: 68% | M194: 183 | N194: 76% | O194: 76% | P194: 141 | Q194: 71% | R194: 41% | S194: 71 | T194: 82% | U194: 82% | V194: 174 | W194: 78% | X194: 78% | Y194: 223
A195: 160 | B195: MOSELLE | C195: 45 | D195: METZ | E195: 557433 | F195: MARANGE SILVANGE | G195: 2.7 | H195: 69% | I195: 59% | J195: 186 | K195: 66% | L195: 66% | M195: 174 | N195: 82% | O195: 82% | P195: 185 | Q195: 81% | R195: 51% | S195: 157 | T195: 82% | U195: 82% | V195: 168 | W195: 64% | X195: 64% | Y195: 79
A196: 160 | B196: BAS RHIN | C196: 5060 | D196: HAGUENAU | E196: 4060 | F196: HAGUENAU HOUBLON | G196: 8.5 | H196: 69% | I196: 59% | J196: 187 | K196: 68% | L196: 68% | M196: 187 | N196: 81% | O196: 81% | P196: 174 | Q196: 75% | R196: 44% | S196: 91 | T196: 78% | U196: 78% | V196: 136 | W196: 75% | X196: 75% | Y196: 194
A197: 160 | B197: BAS RHIN | C197: 5060 | D197: HAGUENAU | E197: 4082 | F197: BOUXWILLER | G197: 2.4 | H197: 69% | I197: 59% | J197: 188 | K197: 36% | L197: 36% | M197: 55 | N197: 84% | O197: 84% | P197: 193 | Q197: 110% | R197: 79% | S197: 238 | T197: 78% | U197: 78% | V197: 134 | W197: 70% | X197: 70% | Y197: 140
A198: 160 | B198: BAS RHIN | C198: 5060 | D198: HAGUENAU | E198: 4067 | F198: PFAFFENHOFFEN | G198: 1.9 | H198: 69% | I198: 59% | J198: 189 | K198: 61% | L198: 61% | M198: 146 | N198: 73% | O198: 73% | P198: 109 | Q198: 80% | R198: 49% | S198: 138 | T198: 89% | U198: 89% | V198: 221 | W198: 76% | X198: 76% | Y198: 198
A199: 160 | B199: MARNE ARDENNES | C199: 11 | D199: REIMS | E199: 451308 | F199: REIMS SAINT THOMAS | G199: 5.5 | H199: 70% | I199: 59% | J199: 190 | K199: 82% | L199: 82% | M199: 237 | N199: 70% | O199: 70% | P199: 90 | Q199: 90% | R199: 59% | S199: 221 | T199: 77% | U199: 77% | V199: 116 | W199: 60% | X199: 60% | Y199: 54
A200: 160 | B200: VOSGES | C200: 57 | D200: EPINAL | E200: 488256 | F200: DARNEY | G200: 1.6 | H200: 70% | I200: 59% | J200: 191 | K200: 29% | L200: 29% | M200: 34 | N200: 89% | O200: 89% | P200: 226 | Q200: 103% | R200: 72% | S200: 236 | T200: 81% | U200: 81% | V200: 162 | W200: 77% | X200: 77% | Y200: 215
A201: 160 | B201: MARNE ARDENNES | C201: 2 | D201: CHARLEVILLE MEZIERES | E201: 508860 | F201: ROCROI | G201: 2.4 | H201: 70% | I201: 59% | J201: 192 | K201: 72% | L201: 72% | M201: 210 | N201: 72% | O201: 72% | P201: 107 | Q201: 85% | R201: 54% | S201: 187 | T201: 80% | U201: 80% | V201: 150 | W201: 69% | X201: 69% | Y201: 118
A202: 160 | B202: BAS RHIN | C202: 5060 | D202: HAGUENAU | E202: 4066 | F202: NIEDERBRONN LES BAINS | G202: 5.7 | H202: 70% | I202: 59% | J202: 193 | K202: 54% | L202: 54% | M202: 128 | N202: 86% | O202: 86% | P202: 210 | Q202: 81% | R202: 51% | S202: 158 | T202: 85% | U202: 85% | V202: 200 | W202: 74% | X202: 74% | Y202: 180
A203: 160 | B203: MEURTHE ET MOSELLE MEUSE | C203: 26 | D203: NANCY | E203: 554491 | F203: NANCY SAINT SEBASTIEN | G203: 3.6 | H203: 70% | I203: 60% | J203: 194 | K203: 53% | L203: 53% | M203: 127 | N203: 88% | O203: 88% | P203: 219 | Q203: 80% | R203: 50% | S203: 144 | T203: 86% | U203: 86% | V203: 205 | W203: 73% | X203: 73% | Y203: 171
... 48 more rows

Sheet AG_BANCA
B1: Accueil | H1: BAROMETRE BDD - AGENCES
H2: BANCARISATION
H3: =ACCUEIL!F7 -> 2022-10-02
H7: Ventes Nettes produits pondérés | L7: Ventes sur client non détenteur de l’univers | P7: Total Bancarisation
H8: =DATEMAJ!C8 -> au 02/10 | J8: coef | K8: ='RECAP DIRCOM'!AA4 -> 12% | L8: =DATEMAJ!C9 -> au 02/10 | N8: coef | O8: ='RECAP DIRCOM'!AE4 -> 8% | Q8: coef | R8: ='RECAP DIRCOM'!$AH$4 -> 20%
B9: Direction | C9: eds | D9: Territoire | E9: eds | F9: Agence | G9: ="ETP perf "&DATEMAJ!$C$28 -> ETP perf 02-oct | H9: VN | I9: VN / ETP | J9: % Ecart au 1er | K9: Rang | L9: VB | M9: VB / ETP | N9: % Ecart au 1er | O9: Rang | P9: Moyenne ecart au 1er | Q9: % Ecart au 1er | R9: Rang CEGEE
A10: 50 | B10: AUBE HAUTE MARNE | C10: 21 | D10: CHAUMONT | E10: 410541 | F10: LANGRES | G10: =VLOOKUP($E10,'RECAP AG'!$G$6:$CU$247,3,FALSE) -> 8.1 | H10: =VLOOKUP($E10,'RECAP AG'!$G$6:$CU$247,18,FALSE) -> 243.3 | I10: =VLOOKUP($E10,'RECAP AG'!$G$6:$CU$247,19,FALSE) -> 30.04 | J10: =VLOOKUP($E10,'RECAP AG'!$G$6:$CU$247,20,FALSE) -> 72% | K10: =VLOOKUP($E10,'RECAP AG'!$G$6:$CU$247,21,FALSE) -> 54 | L10: =VLOOKUP($E10,'RECAP AG'!$G$6:$CU$247,22,FALSE) -> 419 | M10: =VLOOKUP($E10,'RECAP AG'!$G$6:$CU$247,23,FALSE) -> 51.73 | N10: =VLOOKUP($E10,'RECAP AG'!$G$6:$CU$247,24,FALSE) -> 66% | O10: =VLOOKUP($E10,'RECAP AG'!$G$6:$CU$247,25,FALSE) -> 165 | P10: =VLOOKUP($E10,'RECAP AG'!$G$6:$CU$247,26,FALSE) -> 69% | Q10: =VLOOKUP($E10,'RECAP AG'!$G$6:$CU$247,27,FALSE) -> 69% | R10: =VLOOKUP($E10,'RECAP AG'!$G$6:$CU$247,28,FALSE) -> 84
A11: 50 | B11: AUBE HAUTE MARNE | C11: 21 | D11: CHAUMONT | E11: 410566 | F11: CHAUMONT HOTEL DE VILLE | G11: =VLOOKUP($E11,'RECAP AG'!$G$6:$CU$247,3,FALSE) -> 10.4 | H11: =VLOOKUP($E11,'RECAP AG'!$G$6:$CU$247,18,FALSE) -> 86.6 | I11: =VLOOKUP($E11,'RECAP AG'!$G$6:$CU$247,19,FALSE) -> 8.30 | J11: =VLOOKUP($E11,'RECAP AG'!$G$6:$CU$247,20,FALSE) -> 92% | K11: =VLOOKUP($E11,'RECAP AG'!$G$6:$CU$247,21,FALSE) -> 178 | L11: =VLOOKUP($E11,'RECAP AG'!$G$6:$CU$247,22,FALSE) -> 529 | M11: =VLOOKUP($E11,'RECAP AG'!$G$6:$CU$247,23,FALSE) -> 50.67 | N11: =VLOOKUP($E11,'RECAP AG'!$G$6:$CU$247,24,FALSE) -> 66% | O11: =VLOOKUP($E11,'RECAP AG'!$G$6:$CU$247,25,FALSE) -> 170 | P11: =VLOOKUP($E11,'RECAP AG'!$G$6:$CU$247,26,FALSE) -> 82% | Q11: =VLOOKUP($E11,'RECAP AG'!$G$6:$CU$247,27,FALSE) -> 82% | R11: =VLOOKUP($E11,'RECAP AG'!$G$6:$CU$247,28,FALSE) -> 181
A12: 50 | B12: AUBE HAUTE MARNE | C12: 21 | D12: CHAUMONT | E12: 510590 | F12: CHAUMONT REPUBLIQUE | G12: =VLOOKUP($E12,'RECAP AG'!$G$6:$CU$247,3,FALSE) -> 2.9 | H12: =VLOOKUP($E12,'RECAP AG'!$G$6:$CU$247,18,FALSE) -> 33.4 | I12: =VLOOKUP($E12,'RECAP AG'!$G$6:$CU$247,19,FALSE) -> 11.68 | J12: =VLOOKUP($E12,'RECAP AG'!$G$6:$CU$247,20,FALSE) -> 89% | K12: =VLOOKUP($E12,'RECAP AG'!$G$6:$CU$247,21,FALSE) -> 162 | L12: =VLOOKUP($E12,'RECAP AG'!$G$6:$CU$247,22,FALSE) -> 195 | M12: =VLOOKUP($E12,'RECAP AG'!$G$6:$CU$247,23,FALSE) -> 68.18 | N12: =VLOOKUP($E12,'RECAP AG'!$G$6:$CU$247,24,FALSE) -> 55% | O12: =VLOOKUP($E12,'RECAP AG'!$G$6:$CU$247,25,FALSE) -> 80 | P12: =VLOOKUP($E12,'RECAP AG'!$G$6:$CU$247,26,FALSE) -> 75% | Q12: =VLOOKUP($E12,'RECAP AG'!$G$6:$CU$247,27,FALSE) -> 75% | R12: =VLOOKUP($E12,'RECAP AG'!$G$6:$CU$247,28,FALSE) -> 133
A13: 50 | B13: AUBE HAUTE MARNE | C13: 21 | D13: CHAUMONT | E13: 451154 | F13: JOINVILLE | G13: =VLOOKUP($E13,'RECAP AG'!$G$6:$CU$247,3,FALSE) -> 1.8 | H13: =VLOOKUP($E13,'RECAP AG'!$G$6:$CU$247,18,FALSE) -> 45.7 | I13: =VLOOKUP($E13,'RECAP AG'!$G$6:$CU$247,19,FALSE) -> 25.53 | J13: =VLOOKUP($E13,'RECAP AG'!$G$6:$CU$247,20,FALSE) -> 76% | K13: =VLOOKUP($E13,'RECAP AG'!$G$6:$CU$247,21,FALSE) -> 72 | L13: =VLOOKUP($E13,'RECAP AG'!$G$6:$CU$247,22,FALSE) -> 146 | M13: =VLOOKUP($E13,'RECAP AG'!$G$6:$CU$247,23,FALSE) -> 81.56 | N13: =VLOOKUP($E13,'RECAP AG'!$G$6:$CU$247,24,FALSE) -> 46% | O13: =VLOOKUP($E13,'RECAP AG'!$G$6:$CU$247,25,FALSE) -> 38 | P13: =VLOOKUP($E13,'RECAP AG'!$G$6:$CU$247,26,FALSE) -> 64% | Q13: =VLOOKUP($E13,'RECAP AG'!$G$6:$CU$247,27,FALSE) -> 64% | R13: =VLOOKUP($E13,'RECAP AG'!$G$6:$CU$247,28,FALSE) -> 53
A14: 50 | B14: AUBE HAUTE MARNE | C14: 21 | D14: CHAUMONT | E14: 451156 | F14: SAINT DIZIER CENTRE | G14: =VLOOKUP($E14,'RECAP AG'!$G$6:$CU$247,3,FALSE) -> 8.6 | H14: =VLOOKUP($E14,'RECAP AG'!$G$6:$CU$247,18,FALSE) -> 135.3 | I14: =VLOOKUP($E14,'RECAP AG'!$G$6:$CU$247,19,FALSE) -> 15.77 | J14: =VLOOKUP($E14,'RECAP AG'!$G$6:$CU$247,20,FALSE) -> 85% | K14: =VLOOKUP($E14,'RECAP AG'!$G$6:$CU$247,21,FALSE) -> 138 | L14: =VLOOKUP($E14,'RECAP AG'!$G$6:$CU$247,22,FALSE) -> 558 | M14: =VLOOKUP($E14,'RECAP AG'!$G$6:$CU$247,23,FALSE) -> 65.03 | N14: =VLOOKUP($E14,'RECAP AG'!$G$6:$CU$247,24,FALSE) -> 57% | O14: =VLOOKUP($E14,'RECAP AG'!$G$6:$CU$247,25,FALSE) -> 94 | P14: =VLOOKUP($E14,'RECAP AG'!$G$6:$CU$247,26,FALSE) -> 74% | Q14: =VLOOKUP($E14,'RECAP AG'!$G$6:$CU$247,27,FALSE) -> 74% | R14: =VLOOKUP($E14,'RECAP AG'!$G$6:$CU$247,28,FALSE) -> 125
A15: 50 | B15: AUBE HAUTE MARNE | C15: 21 | D15: CHAUMONT | E15: 451151 | F15: WASSY | G15: =VLOOKUP($E15,'RECAP AG'!$G$6:$CU$247,3,FALSE) -> 1.9 | H15: =VLOOKUP($E15,'RECAP AG'!$G$6:$CU$247,18,FALSE) -> 25.8 | I15: =VLOOKUP($E15,'RECAP AG'!$G$6:$CU$247,19,FALSE) -> 13.44 | J15: =VLOOKUP($E15,'RECAP AG'!$G$6:$CU$247,20,FALSE) -> 87% | K15: =VLOOKUP($E15,'RECAP AG'!$G$6:$CU$247,21,FALSE) -> 153 | L15: =VLOOKUP($E15,'RECAP AG'!$G$6:$CU$247,22,FALSE) -> 101 | M15: =VLOOKUP($E15,'RECAP AG'!$G$6:$CU$247,23,FALSE) -> 52.60 | N15: =VLOOKUP($E15,'RECAP AG'!$G$6:$CU$247,24,FALSE) -> 65% | O15: =VLOOKUP($E15,'RECAP AG'!$G$6:$CU$247,25,FALSE) -> 157 | P15: =VLOOKUP($E15,'RECAP AG'!$G$6:$CU$247,26,FALSE) -> 78% | Q15: =VLOOKUP($E15,'RECAP AG'!$G$6:$CU$247,27,FALSE) -> 78% | R15: =VLOOKUP($E15,'RECAP AG'!$G$6:$CU$247,28,FALSE) -> 157
A16: 50 | B16: AUBE HAUTE MARNE | C16: 14 | D16: TROYES | E16: 510523 | F16: LA CHAPELLE ST LUC | G16: =VLOOKUP($E16,'RECAP AG'!$G$6:$CU$247,3,FALSE) -> 4.7 | H16: =VLOOKUP($E16,'RECAP AG'!$G$6:$CU$247,18,FALSE) -> 52.9 | I16: =VLOOKUP($E16,'RECAP AG'!$G$6:$CU$247,19,FALSE) -> 11.35 | J16: =VLOOKUP($E16,'RECAP AG'!$G$6:$CU$247,20,FALSE) -> 89% | K16: =VLOOKUP($E16,'RECAP AG'!$G$6:$CU$247,21,FALSE) -> 166 | L16: =VLOOKUP($E16,'RECAP AG'!$G$6:$CU$247,22,FALSE) -> 354 | M16: =VLOOKUP($E16,'RECAP AG'!$G$6:$CU$247,23,FALSE) -> 75.97 | N16: =VLOOKUP($E16,'RECAP AG'!$G$6:$CU$247,24,FALSE) -> 50% | O16: =VLOOKUP($E16,'RECAP AG'!$G$6:$CU$247,25,FALSE) -> 52 | P16: =VLOOKUP($E16,'RECAP AG'!$G$6:$CU$247,26,FALSE) -> 73% | Q16: =VLOOKUP($E16,'RECAP AG'!$G$6:$CU$247,27,FALSE) -> 73% | R16: =VLOOKUP($E16,'RECAP AG'!$G$6:$CU$247,28,FALSE) -> 122
A17: 50 | B17: AUBE HAUTE MARNE | C17: 14 | D17: TROYES | E17: 510530 | F17: ARCIS SUR AUBE | G17: =VLOOKUP($E17,'RECAP AG'!$G$6:$CU$247,3,FALSE) -> 3.7 | H17: =VLOOKUP($E17,'RECAP AG'!$G$6:$CU$247,18,FALSE) -> 58.7 | I17: =VLOOKUP($E17,'RECAP AG'!$G$6:$CU$247,19,FALSE) -> 16.08 | J17: =VLOOKUP($E17,'RECAP AG'!$G$6:$CU$247,20,FALSE) -> 85% | K17: =VLOOKUP($E17,'RECAP AG'!$G$6:$CU$247,21,FALSE) -> 134 | L17: =VLOOKUP($E17,'RECAP AG'!$G$6:$CU$247,22,FALSE) -> 188 | M17: =VLOOKUP($E17,'RECAP AG'!$G$6:$CU$247,23,FALSE) -> 51.51 | N17: =VLOOKUP($E17,'RECAP AG'!$G$6:$CU$247,24,FALSE) -> 66% | O17: =VLOOKUP($E17,'RECAP AG'!$G$6:$CU$247,25,FALSE) -> 166 | P17: =VLOOKUP($E17,'RECAP AG'!$G$6:$CU$247,26,FALSE) -> 77% | Q17: =VLOOKUP($E17,'RECAP AG'!$G$6:$CU$247,27,FALSE) -> 77% | R17: =VLOOKUP($E17,'RECAP AG'!$G$6:$CU$247,28,FALSE) -> 148
A18: 50 | B18: AUBE HAUTE MARNE | C18: 14 | D18: TROYES | E18: 410550 | F18: BAR SUR AUBE | G18: =VLOOKUP($E18,'RECAP AG'!$G$6:$CU$247,3,FALSE) -> 5.2 | H18: =VLOOKUP($E18,'RECAP AG'!$G$6:$CU$247,18,FALSE) -> 68.3 | I18: =VLOOKUP($E18,'RECAP AG'!$G$6:$CU$247,19,FALSE) -> 13.06 | J18: =VLOOKUP($E18,'RECAP AG'!$G$6:$CU$247,20,FALSE) -> 88% | K18: =VLOOKUP($E18,'RECAP AG'!$G$6:$CU$247,21,FALSE) -> 156 | L18: =VLOOKUP($E18,'RECAP AG'!$G$6:$CU$247,22,FALSE) -> 255 | M18: =VLOOKUP($E18,'RECAP AG'!$G$6:$CU$247,23,FALSE) -> 48.76 | N18: =VLOOKUP($E18,'RECAP AG'!$G$6:$CU$247,24,FALSE) -> 68% | O18: =VLOOKUP($E18,'RECAP AG'!$G$6:$CU$247,25,FALSE) -> 178 | P18: =VLOOKUP($E18,'RECAP AG'!$G$6:$CU$247,26,FALSE) -> 80% | Q18: =VLOOKUP($E18,'RECAP AG'!$G$6:$CU$247,27,FALSE) -> 80% | R18: =VLOOKUP($E18,'RECAP AG'!$G$6:$CU$247,28,FALSE) -> 168
A19: 50 | B19: AUBE HAUTE MARNE | C19: 14 | D19: TROYES | E19: 510556 | F19: BAR SUR SEINE | G19: =VLOOKUP($E19,'RECAP AG'!$G$6:$CU$247,3,FALSE) -> 2.7 | H19: =VLOOKUP($E19,'RECAP AG'!$G$6:$CU$247,18,FALSE) -> 13.4 | I19: =VLOOKUP($E19,'RECAP AG'!$G$6:$CU$247,19,FALSE) -> 4.98 | J19: =VLOOKUP($E19,'RECAP AG'!$G$6:$CU$247,20,FALSE) -> 95% | K19: =VLOOKUP($E19,'RECAP AG'!$G$6:$CU$247,21,FALSE) -> 196 | L19: =VLOOKUP($E19,'RECAP AG'!$G$6:$CU$247,22,FALSE) -> 106 | M19: =VLOOKUP($E19,'RECAP AG'!$G$6:$CU$247,23,FALSE) -> 39.41 | N19: =VLOOKUP($E19,'RECAP AG'!$G$6:$CU$247,24,FALSE) -> 74% | O19: =VLOOKUP($E19,'RECAP AG'!$G$6:$CU$247,25,FALSE) -> 223 | P19: =VLOOKUP($E19,'RECAP AG'!$G$6:$CU$247,26,FALSE) -> 87% | Q19: =VLOOKUP($E19,'RECAP AG'!$G$6:$CU$247,27,FALSE) -> 87% | R19: =VLOOKUP($E19,'RECAP AG'!$G$6:$CU$247,28,FALSE) -> 213
A20: 50 | B20: AUBE HAUTE MARNE | C20: 14 | D20: TROYES | E20: 510570 | F20: NOGENT SUR SEINE | G20: =VLOOKUP($E20,'RECAP AG'!$G$6:$CU$247,3,FALSE) -> 4.1 | H20: =VLOOKUP($E20,'RECAP AG'!$G$6:$CU$247,18,FALSE) -> 79.9 | I20: =VLOOKUP($E20,'RECAP AG'!$G$6:$CU$247,19,FALSE) -> 19.44 | J20: =VLOOKUP($E20,'RECAP AG'!$G$6:$CU$247,20,FALSE) -> 82% | K20: =VLOOKUP($E20,'RECAP AG'!$G$6:$CU$247,21,FALSE) -> 116 | L20: =VLOOKUP($E20,'RECAP AG'!$G$6:$CU$247,22,FALSE) -> 244 | M20: =VLOOKUP($E20,'RECAP AG'!$G$6:$CU$247,23,FALSE) -> 59.37 | N20: =VLOOKUP($E20,'RECAP AG'!$G$6:$CU$247,24,FALSE) -> 61% | O20: =VLOOKUP($E20,'RECAP AG'!$G$6:$CU$247,25,FALSE) -> 118 | P20: =VLOOKUP($E20,'RECAP AG'!$G$6:$CU$247,26,FALSE) -> 73% | Q20: =VLOOKUP($E20,'RECAP AG'!$G$6:$CU$247,27,FALSE) -> 73% | R20: =VLOOKUP($E20,'RECAP AG'!$G$6:$CU$247,28,FALSE) -> 119
A21: 50 | B21: AUBE HAUTE MARNE | C21: 14 | D21: TROYES | E21: 410571 | F21: ROMILLY SUR SEINE | G21: =VLOOKUP($E21,'RECAP AG'!$G$6:$CU$247,3,FALSE) -> 4.7 | H21: =VLOOKUP($E21,'RECAP AG'!$G$6:$CU$247,18,FALSE) -> 5.9 | I21: =VLOOKUP($E21,'RECAP AG'!$G$6:$CU$247,19,FALSE) -> 1.26 | J21: =VLOOKUP($E21,'RECAP AG'!$G$6:$CU$247,20,FALSE) -> 99% | K21: =VLOOKUP($E21,'RECAP AG'!$G$6:$CU$247,21,FALSE) -> 211 | L21: =VLOOKUP($E21,'RECAP AG'!$G$6:$CU$247,22,FALSE) -> 261 | M21: =VLOOKUP($E21,'RECAP AG'!$G$6:$CU$247,23,FALSE) -> 55.89 | N21: =VLOOKUP($E21,'RECAP AG'!$G$6:$CU$247,24,FALSE) -> 63% | O21: =VLOOKUP($E21,'RECAP AG'!$G$6:$CU$247,25,FALSE) -> 137 | P21: =VLOOKUP($E21,'RECAP AG'!$G$6:$CU$247,26,FALSE) -> 84% | Q21: =VLOOKUP($E21,'RECAP AG'!$G$6:$CU$247,27,FALSE) -> 84% | R21: =VLOOKUP($E21,'RECAP AG'!$G$6:$CU$247,28,FALSE) -> 201
A22: 50 | B22: AUBE HAUTE MARNE | C22: 14 | D22: TROYES | E22: 510520 | F22: SAINT ANDRE LES VERGERS | G22: =VLOOKUP($E22,'RECAP AG'!$G$6:$CU$247,3,FALSE) -> 3.1 | H22: =VLOOKUP($E22,'RECAP AG'!$G$6:$CU$247,18,FALSE) -> -3.2 | I22: =VLOOKUP($E22,'RECAP AG'!$G$6:$CU$247,19,FALSE) -> -1.04 | J22: =VLOOKUP($E22,'RECAP AG'!$G$6:$CU$247,20,FALSE) -> 101% | K22: =VLOOKUP($E22,'RECAP AG'!$G$6:$CU$247,21,FALSE) -> 218 | L22: =VLOOKUP($E22,'RECAP AG'!$G$6:$CU$247,22,FALSE) -> 215 | M22: =VLOOKUP($E22,'RECAP AG'!$G$6:$CU$247,23,FALSE) -> 70.03 | N22: =VLOOKUP($E22,'RECAP AG'!$G$6:$CU$247,24,FALSE) -> 54% | O22: =VLOOKUP($E22,'RECAP AG'!$G$6:$CU$247,25,FALSE) -> 71 | P22: =VLOOKUP($E22,'RECAP AG'!$G$6:$CU$247,26,FALSE) -> 82% | Q22: =VLOOKUP($E22,'RECAP AG'!$G$6:$CU$247,27,FALSE) -> 82% | R22: =VLOOKUP($E22,'RECAP AG'!$G$6:$CU$247,28,FALSE) -> 183
A23: 50 | B23: AUBE HAUTE MARNE | C23: 14 | D23: TROYES | E23: 410524 | F23: SAINT JULIEN LES VILLAS | G23: =VLOOKUP($E23,'RECAP AG'!$G$6:$CU$247,3,FALSE) -> 5.2 | H23: =VLOOKUP($E23,'RECAP AG'!$G$6:$CU$247,18,FALSE) -> 35.0 | I23: =VLOOKUP($E23,'RECAP AG'!$G$6:$CU$247,19,FALSE) -> 6.78 | J23: =VLOOKUP($E23,'RECAP AG'!$G$6:$CU$247,20,FALSE) -> 94% | K23: =VLOOKUP($E23,'RECAP AG'!$G$6:$CU$247,21,FALSE) -> 186 | L23: =VLOOKUP($E23,'RECAP AG'!$G$6:$CU$247,22,FALSE) -> 269 | M23: =VLOOKUP($E23,'RECAP AG'!$G$6:$CU$247,23,FALSE) -> 52.13 | N23: =VLOOKUP($E23,'RECAP AG'!$G$6:$CU$247,24,FALSE) -> 65% | O23: =VLOOKUP($E23,'RECAP AG'!$G$6:$CU$247,25,FALSE) -> 161 | P23: =VLOOKUP($E23,'RECAP AG'!$G$6:$CU$247,26,FALSE) -> 82% | Q23: =VLOOKUP($E23,'RECAP AG'!$G$6:$CU$247,27,FALSE) -> 82% | R23: =VLOOKUP($E23,'RECAP AG'!$G$6:$CU$247,28,FALSE) -> 184
A24: 50 | B24: AUBE HAUTE MARNE | C24: 14 | D24: TROYES | E24: 410521 | F24: SAINTE SAVINE | G24: =VLOOKUP($E24,'RECAP AG'!$G$6:$CU$247,3,FALSE) -> 4.2 | H24: =VLOOKUP($E24,'RECAP AG'!$G$6:$CU$247,18,FALSE) -> 16.9 | I24: =VLOOKUP($E24,'RECAP AG'!$G$6:$CU$247,19,FALSE) -> 4.07 | J24: =VLOOKUP($E24,'RECAP AG'!$G$6:$CU$247,20,FALSE) -> 96% | K24: =VLOOKUP($E24,'RECAP AG'!$G$6:$CU$247,21,FALSE) -> 200 | L24: =VLOOKUP($E24,'RECAP AG'!$G$6:$CU$247,22,FALSE) -> 224 | M24: =VLOOKUP($E24,'RECAP AG'!$G$6:$CU$247,23,FALSE) -> 53.98 | N24: =VLOOKUP($E24,'RECAP AG'!$G$6:$CU$247,24,FALSE) -> 64% | O24: =VLOOKUP($E24,'RECAP AG'!$G$6:$CU$247,25,FALSE) -> 148 | P24: =VLOOKUP($E24,'RECAP AG'!$G$6:$CU$247,26,FALSE) -> 83% | Q24: =VLOOKUP($E24,'RECAP AG'!$G$6:$CU$247,27,FALSE) -> 83% | R24: =VLOOKUP($E24,'RECAP AG'!$G$6:$CU$247,28,FALSE) -> 190
A25: 50 | B25: AUBE HAUTE MARNE | C25: 14 | D25: TROYES | E25: 510513 | F25: SAINT PARRES AUX TERTRES | G25: =VLOOKUP($E25,'RECAP AG'!$G$6:$CU$247,3,FALSE) -> 2.6 | H25: =VLOOKUP($E25,'RECAP AG'!$G$6:$CU$247,18,FALSE) -> 57.5 | I25: =VLOOKUP($E25,'RECAP AG'!$G$6:$CU$247,19,FALSE) -> 22.12 | J25: =VLOOKUP($E25,'RECAP AG'!$G$6:$CU$247,20,FALSE) -> 79% | K25: =VLOOKUP($E25,'RECAP AG'!$G$6:$CU$247,21,FALSE) -> 93 | L25: =VLOOKUP($E25,'RECAP AG'!$G$6:$CU$247,22,FALSE) -> 217 | M25: =VLOOKUP($E25,'RECAP AG'!$G$6:$CU$247,23,FALSE) -> 83.46 | N25: =VLOOKUP($E25,'RECAP AG'!$G$6:$CU$247,24,FALSE) -> 45% | O25: =VLOOKUP($E25,'RECAP AG'!$G$6:$CU$247,25,FALSE) -> 32 | P25: =VLOOKUP($E25,'RECAP AG'!$G$6:$CU$247,26,FALSE) -> 65% | Q25: =VLOOKUP($E25,'RECAP AG'!$G$6:$CU$247,27,FALSE) -> 65% | R25: =VLOOKUP($E25,'RECAP AG'!$G$6:$CU$247,28,FALSE) -> 59
A26: 50 | B26: AUBE HAUTE MARNE | C26: 14 | D26: TROYES | E26: 410510 | F26: TROYES GAMBETTA | G26: =VLOOKUP($E26,'RECAP AG'!$G$6:$CU$247,3,FALSE) -> 8.7 | H26: =VLOOKUP($E26,'RECAP AG'!$G$6:$CU$247,18,FALSE) -> 143.6 | I26: =VLOOKUP($E26,'RECAP AG'!$G$6:$CU$247,19,FALSE) -> 16.45 | J26: =VLOOKUP($E26,'RECAP AG'!$G$6:$CU$247,20,FALSE) -> 84% | K26: =VLOOKUP($E26,'RECAP AG'!$G$6:$CU$247,21,FALSE) -> 132 | L26: =VLOOKUP($E26,'RECAP AG'!$G$6:$CU$247,22,FALSE) -> 501 | M26: =VLOOKUP($E26,'RECAP AG'!$G$6:$CU$247,23,FALSE) -> 57.39 | N26: =VLOOKUP($E26,'RECAP AG'!$G$6:$CU$247,24,FALSE) -> 62% | O26: =VLOOKUP($E26,'RECAP AG'!$G$6:$CU$247,25,FALSE) -> 128 | P26: =VLOOKUP($E26,'RECAP AG'!$G$6:$CU$247,26,FALSE) -> 75% | Q26: =VLOOKUP($E26,'RECAP AG'!$G$6:$CU$247,27,FALSE) -> 75% | R26: =VLOOKUP($E26,'RECAP AG'!$G$6:$CU$247,28,FALSE) -> 137
A27: 50 | B27: AUBE HAUTE MARNE | C27: 14 | D27: TROYES | E27: 410512 | F27: TROYES ZOLA | G27: =VLOOKUP($E27,'RECAP AG'!$G$6:$CU$247,3,FALSE) -> 5.5 | H27: =VLOOKUP($E27,'RECAP AG'!$G$6:$CU$247,18,FALSE) -> -19.1 | I27: =VLOOKUP($E27,'RECAP AG'!$G$6:$CU$247,19,FALSE) -> -3.47 | J27: =VLOOKUP($E27,'RECAP AG'!$G$6:$CU$247,20,FALSE) -> 103% | K27: =VLOOKUP($E27,'RECAP AG'!$G$6:$CU$247,21,FALSE) -> 228 | L27: =VLOOKUP($E27,'RECAP AG'!$G$6:$CU$247,22,FALSE) -> 288 | M27: =VLOOKUP($E27,'RECAP AG'!$G$6:$CU$247,23,FALSE) -> 52.36 | N27: =VLOOKUP($E27,'RECAP AG'!$G$6:$CU$247,24,FALSE) -> 65% | O27: =VLOOKUP($E27,'RECAP AG'!$G$6:$CU$247,25,FALSE) -> 158 | P27: =VLOOKUP($E27,'RECAP AG'!$G$6:$CU$247,26,FALSE) -> 88% | Q27: =VLOOKUP($E27,'RECAP AG'!$G$6:$CU$247,27,FALSE) -> 88% | R27: =VLOOKUP($E27,'RECAP AG'!$G$6:$CU$247,28,FALSE) -> 222
A28: 262 | B28: BAS RHIN | C28: 5060 | D28: HAGUENAU | E28: 4057 | F28: BISCHWILLER | G28: =VLOOKUP($E28,'RECAP AG'!$G$6:$CU$247,3,FALSE) -> 6.9 | H28: =VLOOKUP($E28,'RECAP AG'!$G$6:$CU$247,18,FALSE) -> 267.5 | I28: =VLOOKUP($E28,'RECAP AG'!$G$6:$CU$247,19,FALSE) -> 38.71 | J28: =VLOOKUP($E28,'RECAP AG'!$G$6:$CU$247,20,FALSE) -> 63% | K28: =VLOOKUP($E28,'RECAP AG'!$G$6:$CU$247,21,FALSE) -> 28 | L28: =VLOOKUP($E28,'RECAP AG'!$G$6:$CU$247,22,FALSE) -> 333 | M28: =VLOOKUP($E28,'RECAP AG'!$G$6:$CU$247,23,FALSE) -> 48.19 | N28: =VLOOKUP($E28,'RECAP AG'!$G$6:$CU$247,24,FALSE) -> 68% | O28: =VLOOKUP($E28,'RECAP AG'!$G$6:$CU$247,25,FALSE) -> 189 | P28: =VLOOKUP($E28,'RECAP AG'!$G$6:$CU$247,26,FALSE) -> 65% | Q28: =VLOOKUP($E28,'RECAP AG'!$G$6:$CU$247,27,FALSE) -> 65% | R28: =VLOOKUP($E28,'RECAP AG'!$G$6:$CU$247,28,FALSE) -> 58
A29: 262 | B29: BAS RHIN | C29: 5060 | D29: HAGUENAU | E29: 4082 | F29: BOUXWILLER | G29: =VLOOKUP($E29,'RECAP AG'!$G$6:$CU$247,3,FALSE) -> 2.4 | H29: =VLOOKUP($E29,'RECAP AG'!$G$6:$CU$247,18,FALSE) -> 17.6 | I29: =VLOOKUP($E29,'RECAP AG'!$G$6:$CU$247,19,FALSE) -> 7.39 | J29: =VLOOKUP($E29,'RECAP AG'!$G$6:$CU$247,20,FALSE) -> 93% | K29: =VLOOKUP($E29,'RECAP AG'!$G$6:$CU$247,21,FALSE) -> 184 | L29: =VLOOKUP($E29,'RECAP AG'!$G$6:$CU$247,22,FALSE) -> 110 | M29: =VLOOKUP($E29,'RECAP AG'!$G$6:$CU$247,23,FALSE) -> 46.22 | N29: =VLOOKUP($E29,'RECAP AG'!$G$6:$CU$247,24,FALSE) -> 69% | O29: =VLOOKUP($E29,'RECAP AG'!$G$6:$CU$247,25,FALSE) -> 198 | P29: =VLOOKUP($E29,'RECAP AG'!$G$6:$CU$247,26,FALSE) -> 84% | Q29: =VLOOKUP($E29,'RECAP AG'!$G$6:$CU$247,27,FALSE) -> 84% | R29: =VLOOKUP($E29,'RECAP AG'!$G$6:$CU$247,28,FALSE) -> 193
A30: 262 | B30: BAS RHIN | C30: 5060 | D30: HAGUENAU | E30: 4030 | F30: BRUMATH | G30: =VLOOKUP($E30,'RECAP AG'!$G$6:$CU$247,3,FALSE) -> 3.8 | H30: =VLOOKUP($E30,'RECAP AG'!$G$6:$CU$247,18,FALSE) -> 118.7 | I30: =VLOOKUP($E30,'RECAP AG'!$G$6:$CU$247,19,FALSE) -> 31.40 | J30: =VLOOKUP($E30,'RECAP AG'!$G$6:$CU$247,20,FALSE) -> 70% | K30: =VLOOKUP($E30,'RECAP AG'!$G$6:$CU$247,21,FALSE) -> 52 | L30: =VLOOKUP($E30,'RECAP AG'!$G$6:$CU$247,22,FALSE) -> 184 | M30: =VLOOKUP($E30,'RECAP AG'!$G$6:$CU$247,23,FALSE) -> 48.68 | N30: =VLOOKUP($E30,'RECAP AG'!$G$6:$CU$247,24,FALSE) -> 68% | O30: =VLOOKUP($E30,'RECAP AG'!$G$6:$CU$247,25,FALSE) -> 179 | P30: =VLOOKUP($E30,'RECAP AG'!$G$6:$CU$247,26,FALSE) -> 69% | Q30: =VLOOKUP($E30,'RECAP AG'!$G$6:$CU$247,27,FALSE) -> 69% | R30: =VLOOKUP($E30,'RECAP AG'!$G$6:$CU$247,28,FALSE) -> 85
A31: 262 | B31: BAS RHIN | C31: 5060 | D31: HAGUENAU | E31: 4060 | F31: HAGUENAU HOUBLON | G31: =VLOOKUP($E31,'RECAP AG'!$G$6:$CU$247,3,FALSE) -> 8.5 | H31: =VLOOKUP($E31,'RECAP AG'!$G$6:$CU$247,18,FALSE) -> 98.2 | I31: =VLOOKUP($E31,'RECAP AG'!$G$6:$CU$247,19,FALSE) -> 11.50 | J31: =VLOOKUP($E31,'RECAP AG'!$G$6:$CU$247,20,FALSE) -> 89% | K31: =VLOOKUP($E31,'RECAP AG'!$G$6:$CU$247,21,FALSE) -> 165 | L31: =VLOOKUP($E31,'RECAP AG'!$G$6:$CU$247,22,FALSE) -> 411 | M31: =VLOOKUP($E31,'RECAP AG'!$G$6:$CU$247,23,FALSE) -> 48.13 | N31: =VLOOKUP($E31,'RECAP AG'!$G$6:$CU$247,24,FALSE) -> 68% | O31: =VLOOKUP($E31,'RECAP AG'!$G$6:$CU$247,25,FALSE) -> 190 | P31: =VLOOKUP($E31,'RECAP AG'!$G$6:$CU$247,26,FALSE) -> 81% | Q31: =VLOOKUP($E31,'RECAP AG'!$G$6:$CU$247,27,FALSE) -> 81% | R31: =VLOOKUP($E31,'RECAP AG'!$G$6:$CU$247,28,FALSE) -> 174
A32: 262 | B32: BAS RHIN | C32: 5060 | D32: HAGUENAU | E32: 4092 | F32: HOCHFELDEN | G32: =VLOOKUP($E32,'RECAP AG'!$G$6:$CU$247,3,FALSE) -> 2.0 | H32: =VLOOKUP($E32,'RECAP AG'!$G$6:$CU$247,18,FALSE) -> 24.5 | I32: =VLOOKUP($E32,'RECAP AG'!$G$6:$CU$247,19,FALSE) -> 12.31 | J32: =VLOOKUP($E32,'RECAP AG'!$G$6:$CU$247,20,FALSE) -> 88% | K32: =VLOOKUP($E32,'RECAP AG'!$G$6:$CU$247,21,FALSE) -> 159 | L32: =VLOOKUP($E32,'RECAP AG'!$G$6:$CU$247,22,FALSE) -> 128 | M32: =VLOOKUP($E32,'RECAP AG'!$G$6:$CU$247,23,FALSE) -> 64.32 | N32: =VLOOKUP($E32,'RECAP AG'!$G$6:$CU$247,24,FALSE) -> 57% | O32: =VLOOKUP($E32,'RECAP AG'!$G$6:$CU$247,25,FALSE) -> 95 | P32: =VLOOKUP($E32,'RECAP AG'!$G$6:$CU$247,26,FALSE) -> 76% | Q32: =VLOOKUP($E32,'RECAP AG'!$G$6:$CU$247,27,FALSE) -> 76% | R32: =VLOOKUP($E32,'RECAP AG'!$G$6:$CU$247,28,FALSE) -> 140
A33: 262 | B33: BAS RHIN | C33: 5060 | D33: HAGUENAU | E33: 4041 | F33: HOERDT | G33: =VLOOKUP($E33,'RECAP AG'!$G$6:$CU$247,3,FALSE) -> 1.7 | H33: =VLOOKUP($E33,'RECAP AG'!$G$6:$CU$247,18,FALSE) -> 26.4 | I33: =VLOOKUP($E33,'RECAP AG'!$G$6:$CU$247,19,FALSE) -> 15.71 | J33: =VLOOKUP($E33,'RECAP AG'!$G$6:$CU$247,20,FALSE) -> 85% | K33: =VLOOKUP($E33,'RECAP AG'!$G$6:$CU$247,21,FALSE) -> 140 | L33: =VLOOKUP($E33,'RECAP AG'!$G$6:$CU$247,22,FALSE) -> 81 | M33: =VLOOKUP($E33,'RECAP AG'!$G$6:$CU$247,23,FALSE) -> 48.21 | N33: =VLOOKUP($E33,'RECAP AG'!$G$6:$CU$247,24,FALSE) -> 68% | O33: =VLOOKUP($E33,'RECAP AG'!$G$6:$CU$247,25,FALSE) -> 188 | P33: =VLOOKUP($E33,'RECAP AG'!$G$6:$CU$247,26,FALSE) -> 78% | Q33: =VLOOKUP($E33,'RECAP AG'!$G$6:$CU$247,27,FALSE) -> 78% | R33: =VLOOKUP($E33,'RECAP AG'!$G$6:$CU$247,28,FALSE) -> 155
A34: 262 | B34: BAS RHIN | C34: 5060 | D34: HAGUENAU | E34: 4085 | F34: INGWILLER | G34: =VLOOKUP($E34,'RECAP AG'!$G$6:$CU$247,3,FALSE) -> 3.5 | H34: =VLOOKUP($E34,'RECAP AG'!$G$6:$CU$247,18,FALSE) -> 46.9 | I34: =VLOOKUP($E34,'RECAP AG'!$G$6:$CU$247,19,FALSE) -> 13.32 | J34: =VLOOKUP($E34,'RECAP AG'!$G$6:$CU$247,20,FALSE) -> 87% | K34: =VLOOKUP($E34,'RECAP AG'!$G$6:$CU$247,21,FALSE) -> 155 | L34: =VLOOKUP($E34,'RECAP AG'!$G$6:$CU$247,22,FALSE) -> 191 | M34: =VLOOKUP($E34,'RECAP AG'!$G$6:$CU$247,23,FALSE) -> 54.26 | N34: =VLOOKUP($E34,'RECAP AG'!$G$6:$CU$247,24,FALSE) -> 64% | O34: =VLOOKUP($E34,'RECAP AG'!$G$6:$CU$247,25,FALSE) -> 147 | P34: =VLOOKUP($E34,'RECAP AG'!$G$6:$CU$247,26,FALSE) -> 78% | Q34: =VLOOKUP($E34,'RECAP AG'!$G$6:$CU$247,27,FALSE) -> 78% | R34: =VLOOKUP($E34,'RECAP AG'!$G$6:$CU$247,28,FALSE) -> 154
A35: 262 | B35: BAS RHIN | C35: 5060 | D35: HAGUENAU | E35: 4066 | F35: NIEDERBRONN LES BAINS | G35: =VLOOKUP($E35,'RECAP AG'!$G$6:$CU$247,3,FALSE) -> 5.7 | H35: =VLOOKUP($E35,'RECAP AG'!$G$6:$CU$247,18,FALSE) -> 10.7 | I35: =VLOOKUP($E35,'RECAP AG'!$G$6:$CU$247,19,FALSE) -> 1.88 | J35: =VLOOKUP($E35,'RECAP AG'!$G$6:$CU$247,20,FALSE) -> 98% | K35: =VLOOKUP($E35,'RECAP AG'!$G$6:$CU$247,21,FALSE) -> 209 | L35: =VLOOKUP($E35,'RECAP AG'!$G$6:$CU$247,22,FALSE) -> 277 | M35: =VLOOKUP($E35,'RECAP AG'!$G$6:$CU$247,23,FALSE) -> 48.77 | N35: =VLOOKUP($E35,'RECAP AG'!$G$6:$CU$247,24,FALSE) -> 68% | O35: =VLOOKUP($E35,'RECAP AG'!$G$6:$CU$247,25,FALSE) -> 177 | P35: =VLOOKUP($E35,'RECAP AG'!$G$6:$CU$247,26,FALSE) -> 86% | Q35: =VLOOKUP($E35,'RECAP AG'!$G$6:$CU$247,27,FALSE) -> 86% | R35: =VLOOKUP($E35,'RECAP AG'!$G$6:$CU$247,28,FALSE) -> 210
A36: 262 | B36: BAS RHIN | C36: 5060 | D36: HAGUENAU | E36: 4067 | F36: PFAFFENHOFFEN | G36: =VLOOKUP($E36,'RECAP AG'!$G$6:$CU$247,3,FALSE) -> 1.9 | H36: =VLOOKUP($E36,'RECAP AG'!$G$6:$CU$247,18,FALSE) -> 42.5 | I36: =VLOOKUP($E36,'RECAP AG'!$G$6:$CU$247,19,FALSE) -> 22.73 | J36: =VLOOKUP($E36,'RECAP AG'!$G$6:$CU$247,20,FALSE) -> 78% | K36: =VLOOKUP($E36,'RECAP AG'!$G$6:$CU$247,21,FALSE) -> 88 | L36: =VLOOKUP($E36,'RECAP AG'!$G$6:$CU$247,22,FALSE) -> 102 | M36: =VLOOKUP($E36,'RECAP AG'!$G$6:$CU$247,23,FALSE) -> 54.55 | N36: =VLOOKUP($E36,'RECAP AG'!$G$6:$CU$247,24,FALSE) -> 64% | O36: =VLOOKUP($E36,'RECAP AG'!$G$6:$CU$247,25,FALSE) -> 143 | P36: =VLOOKUP($E36,'RECAP AG'!$G$6:$CU$247,26,FALSE) -> 73% | Q36: =VLOOKUP($E36,'RECAP AG'!$G$6:$CU$247,27,FALSE) -> 73% | R36: =VLOOKUP($E36,'RECAP AG'!$G$6:$CU$247,28,FALSE) -> 109
A37: 262 | B37: BAS RHIN | C37: 5060 | D37: HAGUENAU | E37: 4095 | F37: SARRE UNION | G37: =VLOOKUP($E37,'RECAP AG'!$G$6:$CU$247,3,FALSE) -> 2.8 | H37: =VLOOKUP($E37,'RECAP AG'!$G$6:$CU$247,18,FALSE) -> 17.5 | I37: =VLOOKUP($E37,'RECAP AG'!$G$6:$CU$247,19,FALSE) -> 6.36 | J37: =VLOOKUP($E37,'RECAP AG'!$G$6:$CU$247,20,FALSE) -> 94% | K37: =VLOOKUP($E37,'RECAP AG'!$G$6:$CU$247,21,FALSE) -> 189 | L37: =VLOOKUP($E37,'RECAP AG'!$G$6:$CU$247,22,FALSE) -> 114 | M37: =VLOOKUP($E37,'RECAP AG'!$G$6:$CU$247,23,FALSE) -> 41.45 | N37: =VLOOKUP($E37,'RECAP AG'!$G$6:$CU$247,24,FALSE) -> 73% | O37: =VLOOKUP($E37,'RECAP AG'!$G$6:$CU$247,25,FALSE) -> 216 | P37: =VLOOKUP($E37,'RECAP AG'!$G$6:$CU$247,26,FALSE) -> 85% | Q37: =VLOOKUP($E37,'RECAP AG'!$G$6:$CU$247,27,FALSE) -> 85% | R37: =VLOOKUP($E37,'RECAP AG'!$G$6:$CU$247,28,FALSE) -> 206
A38: 262 | B38: BAS RHIN | C38: 5060 | D38: HAGUENAU | E38: 4087 | F38: SAVERNE | G38: =VLOOKUP($E38,'RECAP AG'!$G$6:$CU$247,3,FALSE) -> 5.7 | H38: =VLOOKUP($E38,'RECAP AG'!$G$6:$CU$247,18,FALSE) -> 143.8 | I38: =VLOOKUP($E38,'RECAP AG'!$G$6:$CU$247,19,FALSE) -> 25.05 | J38: =VLOOKUP($E38,'RECAP AG'!$G$6:$CU$247,20,FALSE) -> 76% | K38: =VLOOKUP($E38,'RECAP AG'!$G$6:$CU$247,21,FALSE) -> 78 | L38: =VLOOKUP($E38,'RECAP AG'!$G$6:$CU$247,22,FALSE) -> 275 | M38: =VLOOKUP($E38,'RECAP AG'!$G$6:$CU$247,23,FALSE) -> 47.91 | N38: =VLOOKUP($E38,'RECAP AG'!$G$6:$CU$247,24,FALSE) -> 68% | O38: =VLOOKUP($E38,'RECAP AG'!$G$6:$CU$247,25,FALSE) -> 191 | P38: =VLOOKUP($E38,'RECAP AG'!$G$6:$CU$247,26,FALSE) -> 73% | Q38: =VLOOKUP($E38,'RECAP AG'!$G$6:$CU$247,27,FALSE) -> 73% | R38: =VLOOKUP($E38,'RECAP AG'!$G$6:$CU$247,28,FALSE) -> 113
A39: 262 | B39: BAS RHIN | C39: 5060 | D39: HAGUENAU | E39: 4031 | F39: TRUCHTERSHEIM | G39: =VLOOKUP($E39,'RECAP AG'!$G$6:$CU$247,3,FALSE) -> 2.4 | H39: =VLOOKUP($E39,'RECAP AG'!$G$6:$CU$247,18,FALSE) -> 89.7 | I39: =VLOOKUP($E39,'RECAP AG'!$G$6:$CU$247,19,FALSE) -> 38.17 | J39: =VLOOKUP($E39,'RECAP AG'!$G$6:$CU$247,20,FALSE) -> 64% | K39: =VLOOKUP($E39,'RECAP AG'!$G$6:$CU$247,21,FALSE) -> 31 | L39: =VLOOKUP($E39,'RECAP AG'!$G$6:$CU$247,22,FALSE) -> 86 | M39: =VLOOKUP($E39,'RECAP AG'!$G$6:$CU$247,23,FALSE) -> 36.60 | N39: =VLOOKUP($E39,'RECAP AG'!$G$6:$CU$247,24,FALSE) -> 76% | O39: =VLOOKUP($E39,'RECAP AG'!$G$6:$CU$247,25,FALSE) -> 234 | P39: =VLOOKUP($E39,'RECAP AG'!$G$6:$CU$247,26,FALSE) -> 69% | Q39: =VLOOKUP($E39,'RECAP AG'!$G$6:$CU$247,27,FALSE) -> 69% | R39: =VLOOKUP($E39,'RECAP AG'!$G$6:$CU$247,28,FALSE) -> 80
A40: 262 | B40: BAS RHIN | C40: 5060 | D40: HAGUENAU | E40: 4071 | F40: WISSEMBOURG | G40: =VLOOKUP($E40,'RECAP AG'!$G$6:$CU$247,3,FALSE) -> 8.0 | H40: =VLOOKUP($E40,'RECAP AG'!$G$6:$CU$247,18,FALSE) -> 181.1 | I40: =VLOOKUP($E40,'RECAP AG'!$G$6:$CU$247,19,FALSE) -> 22.55 | J40: =VLOOKUP($E40,'RECAP AG'!$G$6:$CU$247,20,FALSE) -> 79% | K40: =VLOOKUP($E40,'RECAP AG'!$G$6:$CU$247,21,FALSE) -> 91 | L40: =VLOOKUP($E40,'RECAP AG'!$G$6:$CU$247,22,FALSE) -> 502 | M40: =VLOOKUP($E40,'RECAP AG'!$G$6:$CU$247,23,FALSE) -> 62.52 | N40: =VLOOKUP($E40,'RECAP AG'!$G$6:$CU$247,24,FALSE) -> 59% | O40: =VLOOKUP($E40,'RECAP AG'!$G$6:$CU$247,25,FALSE) -> 105 | P40: =VLOOKUP($E40,'RECAP AG'!$G$6:$CU$247,26,FALSE) -> 71% | Q40: =VLOOKUP($E40,'RECAP AG'!$G$6:$CU$247,27,FALSE) -> 71% | R40: =VLOOKUP($E40,'RECAP AG'!$G$6:$CU$247,28,FALSE) -> 93
A41: 262 | B41: BAS RHIN | C41: 5101 | D41: SELESTAT | E41: 4113 | F41: BARR | G41: =VLOOKUP($E41,'RECAP AG'!$G$6:$CU$247,3,FALSE) -> 2.9 | H41: =VLOOKUP($E41,'RECAP AG'!$G$6:$CU$247,18,FALSE) -> 118.1 | I41: =VLOOKUP($E41,'RECAP AG'!$G$6:$CU$247,19,FALSE) -> 41.01 | J41: =VLOOKUP($E41,'RECAP AG'!$G$6:$CU$247,20,FALSE) -> 61% | K41: =VLOOKUP($E41,'RECAP AG'!$G$6:$CU$247,21,FALSE) -> 21 | L41: =VLOOKUP($E41,'RECAP AG'!$G$6:$CU$247,22,FALSE) -> 194 | M41: =VLOOKUP($E41,'RECAP AG'!$G$6:$CU$247,23,FALSE) -> 67.36 | N41: =VLOOKUP($E41,'RECAP AG'!$G$6:$CU$247,24,FALSE) -> 55% | O41: =VLOOKUP($E41,'RECAP AG'!$G$6:$CU$247,25,FALSE) -> 83 | P41: =VLOOKUP($E41,'RECAP AG'!$G$6:$CU$247,26,FALSE) -> 59% | Q41: =VLOOKUP($E41,'RECAP AG'!$G$6:$CU$247,27,FALSE) -> 59% | R41: =VLOOKUP($E41,'RECAP AG'!$G$6:$CU$247,28,FALSE) -> 37
A42: 262 | B42: BAS RHIN | C42: 5101 | D42: SELESTAT | E42: 4111 | F42: BENFELD | G42: =VLOOKUP($E42,'RECAP AG'!$G$6:$CU$247,3,FALSE) -> 3.1 | H42: =VLOOKUP($E42,'RECAP AG'!$G$6:$CU$247,18,FALSE) -> -0.2 | I42: =VLOOKUP($E42,'RECAP AG'!$G$6:$CU$247,19,FALSE) -> -0.07 | J42: =VLOOKUP($E42,'RECAP AG'!$G$6:$CU$247,20,FALSE) -> 100% | K42: =VLOOKUP($E42,'RECAP AG'!$G$6:$CU$247,21,FALSE) -> 217 | L42: =VLOOKUP($E42,'RECAP AG'!$G$6:$CU$247,22,FALSE) -> 119 | M42: =VLOOKUP($E42,'RECAP AG'!$G$6:$CU$247,23,FALSE) -> 38.76 | N42: =VLOOKUP($E42,'RECAP AG'!$G$6:$CU$247,24,FALSE) -> 74% | O42: =VLOOKUP($E42,'RECAP AG'!$G$6:$CU$247,25,FALSE) -> 227 | P42: =VLOOKUP($E42,'RECAP AG'!$G$6:$CU$247,26,FALSE) -> 90% | Q42: =VLOOKUP($E42,'RECAP AG'!$G$6:$CU$247,27,FALSE) -> 90% | R42: =VLOOKUP($E42,'RECAP AG'!$G$6:$CU$247,28,FALSE) -> 230
A43: 262 | B43: BAS RHIN | C43: 5101 | D43: SELESTAT | E43: 4104 | F43: ERSTEIN | G43: =VLOOKUP($E43,'RECAP AG'!$G$6:$CU$247,3,FALSE) -> 4.1 | H43: =VLOOKUP($E43,'RECAP AG'!$G$6:$CU$247,18,FALSE) -> 217.3 | I43: =VLOOKUP($E43,'RECAP AG'!$G$6:$CU$247,19,FALSE) -> 52.87 | J43: =VLOOKUP($E43,'RECAP AG'!$G$6:$CU$247,20,FALSE) -> 50% | K43: =VLOOKUP($E43,'RECAP AG'!$G$6:$CU$247,21,FALSE) -> 7 | L43: =VLOOKUP($E43,'RECAP AG'!$G$6:$CU$247,22,FALSE) -> 282 | M43: =VLOOKUP($E43,'RECAP AG'!$G$6:$CU$247,23,FALSE) -> 68.61 | N43: =VLOOKUP($E43,'RECAP AG'!$G$6:$CU$247,24,FALSE) -> 55% | O43: =VLOOKUP($E43,'RECAP AG'!$G$6:$CU$247,25,FALSE) -> 78 | P43: =VLOOKUP($E43,'RECAP AG'!$G$6:$CU$247,26,FALSE) -> 52% | Q43: =VLOOKUP($E43,'RECAP AG'!$G$6:$CU$247,27,FALSE) -> 52% | R43: =VLOOKUP($E43,'RECAP AG'!$G$6:$CU$247,28,FALSE) -> 14
A44: 262 | B44: BAS RHIN | C44: 5101 | D44: SELESTAT | E44: 4008 | F44: FEGERSHEIM | G44: =VLOOKUP($E44,'RECAP AG'!$G$6:$CU$247,3,FALSE) -> 2.4 | H44: =VLOOKUP($E44,'RECAP AG'!$G$6:$CU$247,18,FALSE) -> 67.7 | I44: =VLOOKUP($E44,'RECAP AG'!$G$6:$CU$247,19,FALSE) -> 28.57 | J44: =VLOOKUP($E44,'RECAP AG'!$G$6:$CU$247,20,FALSE) -> 73% | K44: =VLOOKUP($E44,'RECAP AG'!$G$6:$CU$247,21,FALSE) -> 60 | L44: =VLOOKUP($E44,'RECAP AG'!$G$6:$CU$247,22,FALSE) -> 92 | M44: =VLOOKUP($E44,'RECAP AG'!$G$6:$CU$247,23,FALSE) -> 38.82 | N44: =VLOOKUP($E44,'RECAP AG'!$G$6:$CU$247,24,FALSE) -> 74% | O44: =VLOOKUP($E44,'RECAP AG'!$G$6:$CU$247,25,FALSE) -> 226 | P44: =VLOOKUP($E44,'RECAP AG'!$G$6:$CU$247,26,FALSE) -> 74% | Q44: =VLOOKUP($E44,'RECAP AG'!$G$6:$CU$247,27,FALSE) -> 74% | R44: =VLOOKUP($E44,'RECAP AG'!$G$6:$CU$247,28,FALSE) -> 123
A45: 262 | B45: BAS RHIN | C45: 5101 | D45: SELESTAT | E45: 4007 | F45: ILLKIRCH CENTRE | G45: =VLOOKUP($E45,'RECAP AG'!$G$6:$CU$247,3,FALSE) -> 6.4 | H45: =VLOOKUP($E45,'RECAP AG'!$G$6:$CU$247,18,FALSE) -> 108.2 | I45: =VLOOKUP($E45,'RECAP AG'!$G$6:$CU$247,19,FALSE) -> 16.85 | J45: =VLOOKUP($E45,'RECAP AG'!$G$6:$CU$247,20,FALSE) -> 84% | K45: =VLOOKUP($E45,'RECAP AG'!$G$6:$CU$247,21,FALSE) -> 131 | L45: =VLOOKUP($E45,'RECAP AG'!$G$6:$CU$247,22,FALSE) -> 326 | M45: =VLOOKUP($E45,'RECAP AG'!$G$6:$CU$247,23,FALSE) -> 50.78 | N45: =VLOOKUP($E45,'RECAP AG'!$G$6:$CU$247,24,FALSE) -> 66% | O45: =VLOOKUP($E45,'RECAP AG'!$G$6:$CU$247,25,FALSE) -> 169 | P45: =VLOOKUP($E45,'RECAP AG'!$G$6:$CU$247,26,FALSE) -> 77% | Q45: =VLOOKUP($E45,'RECAP AG'!$G$6:$CU$247,27,FALSE) -> 77% | R45: =VLOOKUP($E45,'RECAP AG'!$G$6:$CU$247,28,FALSE) -> 144
A46: 262 | B46: BAS RHIN | C46: 5101 | D46: SELESTAT | E46: 4015 | F46: LINGOLSHEIM | G46: =VLOOKUP($E46,'RECAP AG'!$G$6:$CU$247,3,FALSE) -> 2.6 | H46: =VLOOKUP($E46,'RECAP AG'!$G$6:$CU$247,18,FALSE) -> -30.9 | I46: =VLOOKUP($E46,'RECAP AG'!$G$6:$CU$247,19,FALSE) -> -12.12 | J46: =VLOOKUP($E46,'RECAP AG'!$G$6:$CU$247,20,FALSE) -> 111% | K46: =VLOOKUP($E46,'RECAP AG'!$G$6:$CU$247,21,FALSE) -> 237 | L46: =VLOOKUP($E46,'RECAP AG'!$G$6:$CU$247,22,FALSE) -> 157 | M46: =VLOOKUP($E46,'RECAP AG'!$G$6:$CU$247,23,FALSE) -> 61.57 | N46: =VLOOKUP($E46,'RECAP AG'!$G$6:$CU$247,24,FALSE) -> 59% | O46: =VLOOKUP($E46,'RECAP AG'!$G$6:$CU$247,25,FALSE) -> 107 | P46: =VLOOKUP($E46,'RECAP AG'!$G$6:$CU$247,26,FALSE) -> 91% | Q46: =VLOOKUP($E46,'RECAP AG'!$G$6:$CU$247,27,FALSE) -> 91% | R46: =VLOOKUP($E46,'RECAP AG'!$G$6:$CU$247,28,FALSE) -> 233
A47: 262 | B47: BAS RHIN | C47: 5101 | D47: SELESTAT | E47: 4109 | F47: MARCKOLSHEIM | G47: =VLOOKUP($E47,'RECAP AG'!$G$6:$CU$247,3,FALSE) -> 2.4 | H47: =VLOOKUP($E47,'RECAP AG'!$G$6:$CU$247,18,FALSE) -> 38.1 | I47: =VLOOKUP($E47,'RECAP AG'!$G$6:$CU$247,19,FALSE) -> 15.74 | J47: =VLOOKUP($E47,'RECAP AG'!$G$6:$CU$247,20,FALSE) -> 85% | K47: =VLOOKUP($E47,'RECAP AG'!$G$6:$CU$247,21,FALSE) -> 139 | L47: =VLOOKUP($E47,'RECAP AG'!$G$6:$CU$247,22,FALSE) -> 114 | M47: =VLOOKUP($E47,'RECAP AG'!$G$6:$CU$247,23,FALSE) -> 47.11 | N47: =VLOOKUP($E47,'RECAP AG'!$G$6:$CU$247,24,FALSE) -> 69% | O47: =VLOOKUP($E47,'RECAP AG'!$G$6:$CU$247,25,FALSE) -> 195 | P47: =VLOOKUP($E47,'RECAP AG'!$G$6:$CU$247,26,FALSE) -> 79% | Q47: =VLOOKUP($E47,'RECAP AG'!$G$6:$CU$247,27,FALSE) -> 79% | R47: =VLOOKUP($E47,'RECAP AG'!$G$6:$CU$247,28,FALSE) -> 158
A48: 262 | B48: BAS RHIN | C48: 5101 | D48: SELESTAT | E48: 4120 | F48: WASSELONNE | G48: =VLOOKUP($E48,'RECAP AG'!$G$6:$CU$247,3,FALSE) -> 2.8 | H48: =VLOOKUP($E48,'RECAP AG'!$G$6:$CU$247,18,FALSE) -> -3.2 | I48: =VLOOKUP($E48,'RECAP AG'!$G$6:$CU$247,19,FALSE) -> -1.13 | J48: =VLOOKUP($E48,'RECAP AG'!$G$6:$CU$247,20,FALSE) -> 101% | K48: =VLOOKUP($E48,'RECAP AG'!$G$6:$CU$247,21,FALSE) -> 219 | L48: =VLOOKUP($E48,'RECAP AG'!$G$6:$CU$247,22,FALSE) -> 166 | M48: =VLOOKUP($E48,'RECAP AG'!$G$6:$CU$247,23,FALSE) -> 58.45 | N48: =VLOOKUP($E48,'RECAP AG'!$G$6:$CU$247,24,FALSE) -> 61% | O48: =VLOOKUP($E48,'RECAP AG'!$G$6:$CU$247,25,FALSE) -> 123 | P48: =VLOOKUP($E48,'RECAP AG'!$G$6:$CU$247,26,FALSE) -> 85% | Q48: =VLOOKUP($E48,'RECAP AG'!$G$6:$CU$247,27,FALSE) -> 85% | R48: =VLOOKUP($E48,'RECAP AG'!$G$6:$CU$247,28,FALSE) -> 205
A49: 262 | B49: BAS RHIN | C49: 5101 | D49: SELESTAT | E49: 4116 | F49: MOLSHEIM | G49: =VLOOKUP($E49,'RECAP AG'!$G$6:$CU$247,3,FALSE) -> 3.8 | H49: =VLOOKUP($E49,'RECAP AG'!$G$6:$CU$247,18,FALSE) -> -5.7 | I49: =VLOOKUP($E49,'RECAP AG'!$G$6:$CU$247,19,FALSE) -> -1.48 | J49: =VLOOKUP($E49,'RECAP AG'!$G$6:$CU$247,20,FALSE) -> 101% | K49: =VLOOKUP($E49,'RECAP AG'!$G$6:$CU$247,21,FALSE) -> 222 | L49: =VLOOKUP($E49,'RECAP AG'!$G$6:$CU$247,22,FALSE) -> 147 | M49: =VLOOKUP($E49,'RECAP AG'!$G$6:$CU$247,23,FALSE) -> 38.28 | N49: =VLOOKUP($E49,'RECAP AG'!$G$6:$CU$247,24,FALSE) -> 75% | O49: =VLOOKUP($E49,'RECAP AG'!$G$6:$CU$247,25,FALSE) -> 228 | P49: =VLOOKUP($E49,'RECAP AG'!$G$6:$CU$247,26,FALSE) -> 91% | Q49: =VLOOKUP($E49,'RECAP AG'!$G$6:$CU$247,27,FALSE) -> 91% | R49: =VLOOKUP($E49,'RECAP AG'!$G$6:$CU$247,28,FALSE) -> 234
